Workbook

Sheet Main_GUI
B1: ="Caltrans Cost Estimating Tool - " & DB_Cost!$F$8 -> Caltrans Cost Estimating Tool - District 7 | AO1: 11 | AP1: Bicycle | AQ1: One-Way Cycletrack | AR1: Two-Way Cycle Track
C2: Project Description | S2: Cost Summary | AP2: Type | AS2: Projects | AT2: Segments
B3: SR 123 - San Pablo Avenue | Q3: # of Miles | S3: Total Project Cost | AP3: Bicycle | AS3: test | AT3: test
Q4: =SUM(DB_Segment!$K$11:$K$1000) -> 1.5 | S4: =SUM(DB_Segment!$H$11:$H$1000) -> 10160514.42
AP5: Pedestrian | AS5: Telegraph Avenue Complete Streets | AT5: 20th to 29th Streets Bikeway
B6: =SGMTNUM(B7) ->  | C6: Segment Name | S6: Segment Cost | AS6: sasdafsd | AT6: sdafsad
B7: Solano Avenue to Central Avenue | S7: =SUM(S11,S25,S27,S31) -> 8167388.898 | AP7: Bike Route | AQ7: Walkways | AS7: zzz | AT7: ijk
AP8: Bike Route | AQ8: Walkways | AS8: San Pablo Avenue Bicycle & pedestrian Improvements 2 | AT8: ijk
B9: Segment Cross Section Type | AP9: Bike Boulevard | AQ9: Single Lane Uncontrolled Crosswalk Enhancements | AS9: San Pablo Avenue Bicycle & pedestrian Improvements 2
AP10: Standard Bike Lane | AQ10: Multi-lane Uncontrolled Crosswalk Enhancements | AS10: San Pablo Avenue Bicycle & pedestrian Improvements 2
B11: # of Miles | C11: 1 | O11: Total Width | P11: =SUM(P13:P21) -> 96 | Q11: Total Cost | S11: =SUM(S13:S21) -> 5721388.898 | AP11: Buffered Bike Lane | AQ11: Controlled Intersection Improvements | AS11: San Pablo Avenue Bicycle & pedestrian Improvements 2
AP12: One Way Cycle-Track | AQ12: Shared Use Path
B13: Roadway Segment Type | C13: 60' Roadway Slurry Seal | O13: Roadway Width | P13: =IF($C13="","",INDEX(DB_Roadway!$F$11:$F$10000,MATCH($C13,DB_Roadway!$C$11:$C$10000,0),1)) -> 60 | Q13: Roadway Cost | S13: =IF($C13="","",$C$11*5280*INDEX(DB_Segment!$F$11:$F$10000,MATCH($C13,DB_Segment!$E$11:$E$10000,0),1)) -> 2333352.226 | AP13: Two Way Cycle-Track
B15: Bikeway Segment Type | C15: + | D15: 8' Cycle Track | O15: Bikeway Width | P15: =IF($D15="","",INDEX(DB_Bikeway!$F$11:$F$10000,MATCH($D15,DB_Bikeway!$C$11:$C$10000,0),1)) -> 8 | Q15: Bikeway Cost | S15: =IF($D15="","",$C$11*5280*INDEX(DB_Segment!$F$11:$F$10000,MATCH($D15,DB_Segment!$E$11:$E$10000,0),1)) -> 1059881.696
B17: Bikeway Segment Type | C17: - | D17: 8' Cycle Track | O17: Bikeway Width | P17: =IF($D17="","",INDEX(DB_Bikeway!$F$11:$F$10000,MATCH($D17,DB_Bikeway!$C$11:$C$10000,0),1)) -> 8 | Q17: Bikeway Cost | S17: =IF($D17="","",$C$11*5280*INDEX(DB_Segment!$F$11:$F$10000,MATCH($D17,DB_Segment!$E$11:$E$10000,0),1)) -> 1059881.696
B19: Pedestrian Segment Type | C19: + | D19: 10' wide 5' Concrete Sidewalk 5' Raised Planter | O19: Sidewalk Width | P19: =IF($D19="","",INDEX(DB_Pedestrian!$F$11:$F$10000,MATCH($D19,DB_Pedestrian!$C$11:$C$10000,0),1)) -> 10 | Q19: Sidewalk Cost | S19: =IF($D19="","",$C$11*5280*INDEX(DB_Segment!$F$11:$F$10000,MATCH($D19,DB_Segment!$E$11:$E$10000,0),1)) -> 554400
B21: Pedestrian Segment Type | C21: - | D21: 10' Concrete Sidewalk | O21: Sidewalk Width | P21: =IF($D21="","",INDEX(DB_Pedestrian!$F$11:$F$10000,MATCH($D21,DB_Pedestrian!$C$11:$C$10000,0),1)) -> 10 | Q21: Sidewalk Cost | S21: =IF($D21="","",$C$11*5280*INDEX(DB_Segment!$F$11:$F$10000,MATCH($D21,DB_Segment!$E$11:$E$10000,0),1)) -> 713873.2795
B23: Segment Intersection Type
B25: Signalized Type | C25: Signalized Cycle Track Intersection | O25: # of Signalized | P25: 5 | Q25: Signalized Cost | S25: =IF($C25="","",$P25*INDEX(DB_Segment!$F$11:$F$10000,MATCH($C25,DB_Segment!$E$11:$E$10000,0),1)) -> 2250000
B27: Unsignalized Type | C27: Uncontrolled with RRFB | O27: # of Unsignalized | P27: 5 | Q27: Unsignalized Cost | S27: =IF($C27="","",$P27*INDEX(DB_Segment!$F$11:$F$10000,MATCH($C27,DB_Segment!$E$11:$E$10000,0),1)) -> 60000
B29: Additional Street Furniture or Miscellaneous Elements
B31: Street Furniture / Miscellaneous Elements | O31: # of Misc Element | Q31: Total Misc Cost | S31: =SUM(S35:S100) -> 136000
C34: Additional Street Furniture/Miscellaneous Selected | O34: # of Element | Q34: Misc Cost
C35: 15' Street Light | P35: 20 | S35: =IF($C35="","",$P35*INDEX(DB_Segment!$F$11:$F$10000,MATCH($C35,DB_Segment!$E$11:$E$10000,0),1)) -> 100000
C36: 3' Circular Planter | P36: 20 | S36: =IF($C36="","",$P36*INDEX(DB_Segment!$F$11:$F$10000,MATCH($C36,DB_Segment!$E$11:$E$10000,0),1)) -> 6000
C37: 3x3' Planter | P37: 0 | S37: =IF($C37="","",$P37*INDEX(DB_Segment!$F$11:$F$10000,MATCH($C37,DB_Segment!$E$11:$E$10000,0),1)) -> 0
C38: 3x5' Planter | P38: 0 | S38: =IF($C38="","",$P38*INDEX(DB_Segment!$F$11:$F$10000,MATCH($C38,DB_Segment!$E$11:$E$10000,0),1)) -> 0
C39: Bench | P39: 10 | S39: =IF($C39="","",$P39*INDEX(DB_Segment!$F$11:$F$10000,MATCH($C39,DB_Segment!$E$11:$E$10000,0),1)) -> 30000
C40: Bike Parking | P40: 0 | S40: =IF($C40="","",$P40*INDEX(DB_Misc!$E$11:$E$100000,MATCH($C40,DB_Misc!$C$11:$C$10000,0),1)) -> 0
C41: Phone Booth | P41: 0 | S41: =IF($C41="","",$P41*INDEX(DB_Misc!$E$11:$E$100000,MATCH($C41,DB_Misc!$C$11:$C$10000,0),1)) -> 0
C42: Trash Can | P42: 0 | S42: =IF($C42="","",$P42*INDEX(DB_Misc!$E$11:$E$100000,MATCH($C42,DB_Misc!$C$11:$C$10000,0),1)) -> 0
S43: =IF($C43="","",$P43*INDEX(DB_Misc!$E$11:$E$100000,MATCH($C43,DB_Misc!$C$11:$C$10000,0),1)) -> 
S44: =IF($C44="","",$P44*INDEX(DB_Misc!$E$11:$E$100000,MATCH($C44,DB_Misc!$C$11:$C$10000,0),1)) -> 
S45: =IF($C45="","",$P45*INDEX(DB_Misc!$E$11:$E$100000,MATCH($C45,DB_Misc!$C$11:$C$10000,0),1)) -> 
S46: =IF($C46="","",$P46*INDEX(DB_Misc!$E$11:$E$100000,MATCH($C46,DB_Misc!$C$11:$C$10000,0),1)) -> 
S47: =IF($C47="","",$P47*INDEX(DB_Misc!$E$11:$E$100000,MATCH($C47,DB_Misc!$C$11:$C$10000,0),1)) -> 
S48: =IF($C48="","",$P48*INDEX(DB_Misc!$E$11:$E$100000,MATCH($C48,DB_Misc!$C$11:$C$10000,0),1)) -> 
S49: =IF($C49="","",$P49*INDEX(DB_Misc!$E$11:$E$100000,MATCH($C49,DB_Misc!$C$11:$C$10000,0),1)) -> 
S50: =IF($C50="","",$P50*INDEX(DB_Misc!$E$11:$E$100000,MATCH($C50,DB_Misc!$C$11:$C$10000,0),1)) -> 
S51: =IF($C51="","",$P51*INDEX(DB_Misc!$E$11:$E$100000,MATCH($C51,DB_Misc!$C$11:$C$10000,0),1)) -> 
S52: =IF($C52="","",$P52*INDEX(DB_Misc!$E$11:$E$100000,MATCH($C52,DB_Misc!$C$11:$C$10000,0),1)) -> 
S53: =IF($C53="","",$P53*INDEX(DB_Misc!$E$11:$E$100000,MATCH($C53,DB_Misc!$C$11:$C$10000,0),1)) -> 
S54: =IF($C54="","",$P54*INDEX(DB_Misc!$E$11:$E$100000,MATCH($C54,DB_Misc!$C$11:$C$10000,0),1)) -> 
S55: =IF($C55="","",$P55*INDEX(DB_Misc!$E$11:$E$100000,MATCH($C55,DB_Misc!$C$11:$C$10000,0),1)) -> 
S56: =IF($C56="","",$P56*INDEX(DB_Misc!$E$11:$E$100000,MATCH($C56,DB_Misc!$C$11:$C$10000,0),1)) -> 
S57: =IF($C57="","",$P57*INDEX(DB_Misc!$E$11:$E$100000,MATCH($C57,DB_Misc!$C$11:$C$10000,0),1)) -> 
S58: =IF($C58="","",$P58*INDEX(DB_Misc!$E$11:$E$100000,MATCH($C58,DB_Misc!$C$11:$C$10000,0),1)) -> 
S59: =IF($C59="","",$P59*INDEX(DB_Misc!$E$11:$E$100000,MATCH($C59,DB_Misc!$C$11:$C$10000,0),1)) -> 
S60: =IF($C60="","",$P60*INDEX(DB_Misc!$E$11:$E$100000,MATCH($C60,DB_Misc!$C$11:$C$10000,0),1)) -> 
S61: =IF($C61="","",$P61*INDEX(DB_Misc!$E$11:$E$100000,MATCH($C61,DB_Misc!$C$11:$C$10000,0),1)) -> 
S62: =IF($C62="","",$P62*INDEX(DB_Misc!$E$11:$E$100000,MATCH($C62,DB_Misc!$C$11:$C$10000,0),1)) -> 
S63: =IF($C63="","",$P63*INDEX(DB_Misc!$E$11:$E$100000,MATCH($C63,DB_Misc!$C$11:$C$10000,0),1)) -> 
S64: =IF($C64="","",$P64*INDEX(DB_Misc!$E$11:$E$100000,MATCH($C64,DB_Misc!$C$11:$C$10000,0),1)) -> 
S65: =IF($C65="","",$P65*INDEX(DB_Misc!$E$11:$E$100000,MATCH($C65,DB_Misc!$C$11:$C$10000,0),1)) -> 
S66: =IF($C66="","",$P66*INDEX(DB_Misc!$E$11:$E$100000,MATCH($C66,DB_Misc!$C$11:$C$10000,0),1)) -> 
S67: =IF($C67="","",$P67*INDEX(DB_Misc!$E$11:$E$100000,MATCH($C67,DB_Misc!$C$11:$C$10000,0),1)) -> 
S68: =IF($C68="","",$P68*INDEX(DB_Misc!$E$11:$E$100000,MATCH($C68,DB_Misc!$C$11:$C$10000,0),1)) -> 
S69: =IF($C69="","",$P69*INDEX(DB_Misc!$E$11:$E$100000,MATCH($C69,DB_Misc!$C$11:$C$10000,0),1)) -> 
S70: =IF($C70="","",$P70*INDEX(DB_Misc!$E$11:$E$100000,MATCH($C70,DB_Misc!$C$11:$C$10000,0),1)) -> 
S71: =IF($C71="","",$P71*INDEX(DB_Misc!$E$11:$E$100000,MATCH($C71,DB_Misc!$C$11:$C$10000,0),1)) -> 
S72: =IF($C72="","",$P72*INDEX(DB_Misc!$E$11:$E$100000,MATCH($C72,DB_Misc!$C$11:$C$10000,0),1)) -> 
S73: =IF($C73="","",$P73*INDEX(DB_Misc!$E$11:$E$100000,MATCH($C73,DB_Misc!$C$11:$C$10000,0),1)) -> 
S74: =IF($C74="","",$P74*INDEX(DB_Misc!$E$11:$E$100000,MATCH($C74,DB_Misc!$C$11:$C$10000,0),1)) -> 
S75: =IF($C75="","",$P75*INDEX(DB_Misc!$E$11:$E$100000,MATCH($C75,DB_Misc!$C$11:$C$10000,0),1)) -> 
S76: =IF($C76="","",$P76*INDEX(DB_Misc!$E$11:$E$100000,MATCH($C76,DB_Misc!$C$11:$C$10000,0),1)) -> 
S77: =IF($C77="","",$P77*INDEX(DB_Misc!$E$11:$E$100000,MATCH($C77,DB_Misc!$C$11:$C$10000,0),1)) -> 
S78: =IF($C78="","",$P78*INDEX(DB_Misc!$E$11:$E$100000,MATCH($C78,DB_Misc!$C$11:$C$10000,0),1)) -> 
S79: =IF($C79="","",$P79*INDEX(DB_Misc!$E$11:$E$100000,MATCH($C79,DB_Misc!$C$11:$C$10000,0),1)) -> 
S80: =IF($C80="","",$P80*INDEX(DB_Misc!$E$11:$E$100000,MATCH($C80,DB_Misc!$C$11:$C$10000,0),1)) -> 
S81: =IF($C81="","",$P81*INDEX(DB_Misc!$E$11:$E$100000,MATCH($C81,DB_Misc!$C$11:$C$10000,0),1)) -> 
S82: =IF($C82="","",$P82*INDEX(DB_Misc!$E$11:$E$100000,MATCH($C82,DB_Misc!$C$11:$C$10000,0),1)) -> 
S83: =IF($C83="","",$P83*INDEX(DB_Misc!$E$11:$E$100000,MATCH($C83,DB_Misc!$C$11:$C$10000,0),1)) -> 
S84: =IF($C84="","",$P84*INDEX(DB_Misc!$E$11:$E$100000,MATCH($C84,DB_Misc!$C$11:$C$10000,0),1)) -> 
S85: =IF($C85="","",$P85*INDEX(DB_Misc!$E$11:$E$100000,MATCH($C85,DB_Misc!$C$11:$C$10000,0),1)) -> 
S86: =IF($C86="","",$P86*INDEX(DB_Misc!$E$11:$E$100000,MATCH($C86,DB_Misc!$C$11:$C$10000,0),1)) -> 
S87: =IF($C87="","",$P87*INDEX(DB_Misc!$E$11:$E$100000,MATCH($C87,DB_Misc!$C$11:$C$10000,0),1)) -> 
S88: =IF($C88="","",$P88*INDEX(DB_Misc!$E$11:$E$100000,MATCH($C88,DB_Misc!$C$11:$C$10000,0),1)) -> 
S89: =IF($C89="","",$P89*INDEX(DB_Misc!$E$11:$E$100000,MATCH($C89,DB_Misc!$C$11:$C$10000,0),1)) -> 
S90: =IF($C90="","",$P90*INDEX(DB_Misc!$E$11:$E$100000,MATCH($C90,DB_Misc!$C$11:$C$10000,0),1)) -> 
S91: =IF($C91="","",$P91*INDEX(DB_Misc!$E$11:$E$100000,MATCH($C91,DB_Misc!$C$11:$C$10000,0),1)) -> 
S92: =IF($C92="","",$P92*INDEX(DB_Misc!$E$11:$E$100000,MATCH($C92,DB_Misc!$C$11:$C$10000,0),1)) -> 
S93: =IF($C93="","",$P93*INDEX(DB_Misc!$E$11:$E$100000,MATCH($C93,DB_Misc!$C$11:$C$10000,0),1)) -> 
S94: =IF($C94="","",$P94*INDEX(DB_Misc!$E$11:$E$100000,MATCH($C94,DB_Misc!$C$11:$C$10000,0),1)) -> 
S95: =IF($C95="","",$P95*INDEX(DB_Misc!$E$11:$E$100000,MATCH($C95,DB_Misc!$C$11:$C$10000,0),1)) -> 
S96: =IF($C96="","",$P96*INDEX(DB_Misc!$E$11:$E$100000,MATCH($C96,DB_Misc!$C$11:$C$10000,0),1)) -> 
S97: =IF($C97="","",$P97*INDEX(DB_Misc!$E$11:$E$100000,MATCH($C97,DB_Misc!$C$11:$C$10000,0),1)) -> 
S98: =IF($C98="","",$P98*INDEX(DB_Misc!$E$11:$E$100000,MATCH($C98,DB_Misc!$C$11:$C$10000,0),1)) -> 
S99: =IF($C99="","",$P99*INDEX(DB_Misc!$E$11:$E$100000,MATCH($C99,DB_Misc!$C$11:$C$10000,0),1)) -> 
S100: =IF($C100="","",$P100*INDEX(DB_Misc!$E$11:$E$100000,MATCH($C100,DB_Misc!$C$11:$C$10000,0),1)) -> 
S101: =IF($C101="","",$P101*INDEX(DB_Misc!$E$11:$E$100000,MATCH($C101,DB_Misc!$C$11:$C$10000,0),1)) -> 
S102: =IF($C102="","",$P102*INDEX(DB_Misc!$E$11:$E$100000,MATCH($C102,DB_Misc!$C$11:$C$10000,0),1)) -> 
S103: =IF($C103="","",$P103*INDEX(DB_Misc!$E$11:$E$100000,MATCH($C103,DB_Misc!$C$11:$C$10000,0),1)) -> 
S104: =IF($C104="","",$P104*INDEX(DB_Misc!$E$11:$E$100000,MATCH($C104,DB_Misc!$C$11:$C$10000,0),1)) -> 
S105: =IF($C105="","",$P105*INDEX(DB_Misc!$E$11:$E$100000,MATCH($C105,DB_Misc!$C$11:$C$10000,0),1)) -> 
S106: =IF($C106="","",$P106*INDEX(DB_Misc!$E$11:$E$100000,MATCH($C106,DB_Misc!$C$11:$C$10000,0),1)) -> 
S107: =IF($C107="","",$P107*INDEX(DB_Misc!$E$11:$E$100000,MATCH($C107,DB_Misc!$C$11:$C$10000,0),1)) -> 
S108: =IF($C108="","",$P108*INDEX(DB_Misc!$E$11:$E$100000,MATCH($C108,DB_Misc!$C$11:$C$10000,0),1)) -> 
S109: =IF($C109="","",$P109*INDEX(DB_Misc!$E$11:$E$100000,MATCH($C109,DB_Misc!$C$11:$C$10000,0),1)) -> 
S110: =IF($C110="","",$P110*INDEX(DB_Misc!$E$11:$E$100000,MATCH($C110,DB_Misc!$C$11:$C$10000,0),1)) -> 
S111: =IF($C111="","",$P111*INDEX(DB_Misc!$E$11:$E$100000,MATCH($C111,DB_Misc!$C$11:$C$10000,0),1)) -> 
S112: =IF($C112="","",$P112*INDEX(DB_Misc!$E$11:$E$100000,MATCH($C112,DB_Misc!$C$11:$C$10000,0),1)) -> 
S113: =IF($C113="","",$P113*INDEX(DB_Misc!$E$11:$E$100000,MATCH($C113,DB_Misc!$C$11:$C$10000,0),1)) -> 
S114: =IF($C114="","",$P114*INDEX(DB_Misc!$E$11:$E$100000,MATCH($C114,DB_Misc!$C$11:$C$10000,0),1)) -> 
S115: =IF($C115="","",$P115*INDEX(DB_Misc!$E$11:$E$100000,MATCH($C115,DB_Misc!$C$11:$C$10000,0),1)) -> 
S116: =IF($C116="","",$P116*INDEX(DB_Misc!$E$11:$E$100000,MATCH($C116,DB_Misc!$C$11:$C$10000,0),1)) -> 
S117: =IF($C117="","",$P117*INDEX(DB_Misc!$E$11:$E$100000,MATCH($C117,DB_Misc!$C$11:$C$10000,0),1)) -> 
S118: =IF($C118="","",$P118*INDEX(DB_Misc!$E$11:$E$100000,MATCH($C118,DB_Misc!$C$11:$C$10000,0),1)) -> 
S119: =IF($C119="","",$P119*INDEX(DB_Misc!$E$11:$E$100000,MATCH($C119,DB_Misc!$C$11:$C$10000,0),1)) -> 
S120: =IF($C120="","",$P120*INDEX(DB_Misc!$E$11:$E$100000,MATCH($C120,DB_Misc!$C$11:$C$10000,0),1)) -> 
S121: =IF($C121="","",$P121*INDEX(DB_Misc!$E$11:$E$100000,MATCH($C121,DB_Misc!$C$11:$C$10000,0),1)) -> 
S122: =IF($C122="","",$P122*INDEX(DB_Misc!$E$11:$E$100000,MATCH($C122,DB_Misc!$C$11:$C$10000,0),1)) -> 
S123: =IF($C123="","",$P123*INDEX(DB_Misc!$E$11:$E$100000,MATCH($C123,DB_Misc!$C$11:$C$10000,0),1)) -> 
S124: =IF($C124="","",$P124*INDEX(DB_Misc!$E$11:$E$100000,MATCH($C124,DB_Misc!$C$11:$C$10000,0),1)) -> 
S125: =IF($C125="","",$P125*INDEX(DB_Misc!$E$11:$E$100000,MATCH($C125,DB_Misc!$C$11:$C$10000,0),1)) -> 
S126: =IF($C126="","",$P126*INDEX(DB_Misc!$E$11:$E$100000,MATCH($C126,DB_Misc!$C$11:$C$10000,0),1)) -> 
S127: =IF($C127="","",$P127*INDEX(DB_Misc!$E$11:$E$100000,MATCH($C127,DB_Misc!$C$11:$C$10000,0),1)) -> 
S128: =IF($C128="","",$P128*INDEX(DB_Misc!$E$11:$E$100000,MATCH($C128,DB_Misc!$C$11:$C$10000,0),1)) -> 
S129: =IF($C129="","",$P129*INDEX(DB_Misc!$E$11:$E$100000,MATCH($C129,DB_Misc!$C$11:$C$10000,0),1)) -> 
S130: =IF($C130="","",$P130*INDEX(DB_Misc!$E$11:$E$100000,MATCH($C130,DB_Misc!$C$11:$C$10000,0),1)) -> 
S131: =IF($C131="","",$P131*INDEX(DB_Misc!$E$11:$E$100000,MATCH($C131,DB_Misc!$C$11:$C$10000,0),1)) -> 
S132: =IF($C132="","",$P132*INDEX(DB_Misc!$E$11:$E$100000,MATCH($C132,DB_Misc!$C$11:$C$10000,0),1)) -> 
S133: =IF($C133="","",$P133*INDEX(DB_Misc!$E$11:$E$100000,MATCH($C133,DB_Misc!$C$11:$C$10000,0),1)) -> 
S134: =IF($C134="","",$P134*INDEX(DB_Misc!$E$11:$E$100000,MATCH($C134,DB_Misc!$C$11:$C$10000,0),1)) -> 
S135: =IF($C135="","",$P135*INDEX(DB_Misc!$E$11:$E$100000,MATCH($C135,DB_Misc!$C$11:$C$10000,0),1)) -> 
S136: =IF($C136="","",$P136*INDEX(DB_Misc!$E$11:$E$100000,MATCH($C136,DB_Misc!$C$11:$C$10000,0),1)) -> 
S137: =IF($C137="","",$P137*INDEX(DB_Misc!$E$11:$E$100000,MATCH($C137,DB_Misc!$C$11:$C$10000,0),1)) -> 
S138: =IF($C138="","",$P138*INDEX(DB_Misc!$E$11:$E$100000,MATCH($C138,DB_Misc!$C$11:$C$10000,0),1)) -> 
S139: =IF($C139="","",$P139*INDEX(DB_Misc!$E$11:$E$100000,MATCH($C139,DB_Misc!$C$11:$C$10000,0),1)) -> 
S140: =IF($C140="","",$P140*INDEX(DB_Misc!$E$11:$E$100000,MATCH($C140,DB_Misc!$C$11:$C$10000,0),1)) -> 
S141: =IF($C141="","",$P141*INDEX(DB_Misc!$E$11:$E$100000,MATCH($C141,DB_Misc!$C$11:$C$10000,0),1)) -> 
S142: =IF($C142="","",$P142*INDEX(DB_Misc!$E$11:$E$100000,MATCH($C142,DB_Misc!$C$11:$C$10000,0),1)) -> 
S143: =IF($C143="","",$P143*INDEX(DB_Misc!$E$11:$E$100000,MATCH($C143,DB_Misc!$C$11:$C$10000,0),1)) -> 
S144: =IF($C144="","",$P144*INDEX(DB_Misc!$E$11:$E$100000,MATCH($C144,DB_Misc!$C$11:$C$10000,0),1)) -> 
S145: =IF($C145="","",$P145*INDEX(DB_Misc!$E$11:$E$100000,MATCH($C145,DB_Misc!$C$11:$C$10000,0),1)) -> 
S146: =IF($C146="","",$P146*INDEX(DB_Misc!$E$11:$E$100000,MATCH($C146,DB_Misc!$C$11:$C$10000,0),1)) -> 
S147: =IF($C147="","",$P147*INDEX(DB_Misc!$E$11:$E$100000,MATCH($C147,DB_Misc!$C$11:$C$10000,0),1)) -> 
S148: =IF($C148="","",$P148*INDEX(DB_Misc!$E$11:$E$100000,MATCH($C148,DB_Misc!$C$11:$C$10000,0),1)) -> 
S149: =IF($C149="","",$P149*INDEX(DB_Misc!$E$11:$E$100000,MATCH($C149,DB_Misc!$C$11:$C$10000,0),1)) -> 
S150: =IF($C150="","",$P150*INDEX(DB_Misc!$E$11:$E$100000,MATCH($C150,DB_Misc!$C$11:$C$10000,0),1)) -> 
S151: =IF($C151="","",$P151*INDEX(DB_Misc!$E$11:$E$100000,MATCH($C151,DB_Misc!$C$11:$C$10000,0),1)) -> 
S152: =IF($C152="","",$P152*INDEX(DB_Misc!$E$11:$E$100000,MATCH($C152,DB_Misc!$C$11:$C$10000,0),1)) -> 
S153: =IF($C153="","",$P153*INDEX(DB_Misc!$E$11:$E$100000,MATCH($C153,DB_Misc!$C$11:$C$10000,0),1)) -> 
S154: =IF($C154="","",$P154*INDEX(DB_Misc!$E$11:$E$100000,MATCH($C154,DB_Misc!$C$11:$C$10000,0),1)) -> 
S155: =IF($C155="","",$P155*INDEX(DB_Misc!$E$11:$E$100000,MATCH($C155,DB_Misc!$C$11:$C$10000,0),1)) -> 
S156: =IF($C156="","",$P156*INDEX(DB_Misc!$E$11:$E$100000,MATCH($C156,DB_Misc!$C$11:$C$10000,0),1)) -> 
S157: =IF($C157="","",$P157*INDEX(DB_Misc!$E$11:$E$100000,MATCH($C157,DB_Misc!$C$11:$C$10000,0),1)) -> 
S158: =IF($C158="","",$P158*INDEX(DB_Misc!$E$11:$E$100000,MATCH($C158,DB_Misc!$C$11:$C$10000,0),1)) -> 
S159: =IF($C159="","",$P159*INDEX(DB_Misc!$E$11:$E$100000,MATCH($C159,DB_Misc!$C$11:$C$10000,0),1)) -> 
S160: =IF($C160="","",$P160*INDEX(DB_Misc!$E$11:$E$100000,MATCH($C160,DB_Misc!$C$11:$C$10000,0),1)) -> 
S161: =IF($C161="","",$P161*INDEX(DB_Misc!$E$11:$E$100000,MATCH($C161,DB_Misc!$C$11:$C$10000,0),1)) -> 
S162: =IF($C162="","",$P162*INDEX(DB_Misc!$E$11:$E$100000,MATCH($C162,DB_Misc!$C$11:$C$10000,0),1)) -> 
S163: =IF($C163="","",$P163*INDEX(DB_Misc!$E$11:$E$100000,MATCH($C163,DB_Misc!$C$11:$C$10000,0),1)) -> 
S164: =IF($C164="","",$P164*INDEX(DB_Misc!$E$11:$E$100000,MATCH($C164,DB_Misc!$C$11:$C$10000,0),1)) -> 
S165: =IF($C165="","",$P165*INDEX(DB_Misc!$E$11:$E$100000,MATCH($C165,DB_Misc!$C$11:$C$10000,0),1)) -> 
S166: =IF($C166="","",$P166*INDEX(DB_Misc!$E$11:$E$100000,MATCH($C166,DB_Misc!$C$11:$C$10000,0),1)) -> 
S167: =IF($C167="","",$P167*INDEX(DB_Misc!$E$11:$E$100000,MATCH($C167,DB_Misc!$C$11:$C$10000,0),1)) -> 
S168: =IF($C168="","",$P168*INDEX(DB_Misc!$E$11:$E$100000,MATCH($C168,DB_Misc!$C$11:$C$10000,0),1)) -> 
S169: =IF($C169="","",$P169*INDEX(DB_Misc!$E$11:$E$100000,MATCH($C169,DB_Misc!$C$11:$C$10000,0),1)) -> 
S170: =IF($C170="","",$P170*INDEX(DB_Misc!$E$11:$E$100000,MATCH($C170,DB_Misc!$C$11:$C$10000,0),1)) -> 
S171: =IF($C171="","",$P171*INDEX(DB_Misc!$E$11:$E$100000,MATCH($C171,DB_Misc!$C$11:$C$10000,0),1)) -> 
S172: =IF($C172="","",$P172*INDEX(DB_Misc!$E$11:$E$100000,MATCH($C172,DB_Misc!$C$11:$C$10000,0),1)) -> 
S173: =IF($C173="","",$P173*INDEX(DB_Misc!$E$11:$E$100000,MATCH($C173,DB_Misc!$C$11:$C$10000,0),1)) -> 
S174: =IF($C174="","",$P174*INDEX(DB_Misc!$E$11:$E$100000,MATCH($C174,DB_Misc!$C$11:$C$10000,0),1)) -> 
S175: =IF($C175="","",$P175*INDEX(DB_Misc!$E$11:$E$100000,MATCH($C175,DB_Misc!$C$11:$C$10000,0),1)) -> 
S176: =IF($C176="","",$P176*INDEX(DB_Misc!$E$11:$E$100000,MATCH($C176,DB_Misc!$C$11:$C$10000,0),1)) -> 
S177: =IF($C177="","",$P177*INDEX(DB_Misc!$E$11:$E$100000,MATCH($C177,DB_Misc!$C$11:$C$10000,0),1)) -> 
S178: =IF($C178="","",$P178*INDEX(DB_Misc!$E$11:$E$100000,MATCH($C178,DB_Misc!$C$11:$C$10000,0),1)) -> 
S179: =IF($C179="","",$P179*INDEX(DB_Misc!$E$11:$E$100000,MATCH($C179,DB_Misc!$C$11:$C$10000,0),1)) -> 
S180: =IF($C180="","",$P180*INDEX(DB_Misc!$E$11:$E$100000,MATCH($C180,DB_Misc!$C$11:$C$10000,0),1)) -> 
S181: =IF($C181="","",$P181*INDEX(DB_Misc!$E$11:$E$100000,MATCH($C181,DB_Misc!$C$11:$C$10000,0),1)) -> 
S182: =IF($C182="","",$P182*INDEX(DB_Misc!$E$11:$E$100000,MATCH($C182,DB_Misc!$C$11:$C$10000,0),1)) -> 
S183: =IF($C183="","",$P183*INDEX(DB_Misc!$E$11:$E$100000,MATCH($C183,DB_Misc!$C$11:$C$10000,0),1)) -> 
S184: =IF($C184="","",$P184*INDEX(DB_Misc!$E$11:$E$100000,MATCH($C184,DB_Misc!$C$11:$C$10000,0),1)) -> 
S185: =IF($C185="","",$P185*INDEX(DB_Misc!$E$11:$E$100000,MATCH($C185,DB_Misc!$C$11:$C$10000,0),1)) -> 
S186: =IF($C186="","",$P186*INDEX(DB_Misc!$E$11:$E$100000,MATCH($C186,DB_Misc!$C$11:$C$10000,0),1)) -> 
S187: =IF($C187="","",$P187*INDEX(DB_Misc!$E$11:$E$100000,MATCH($C187,DB_Misc!$C$11:$C$10000,0),1)) -> 
S188: =IF($C188="","",$P188*INDEX(DB_Misc!$E$11:$E$100000,MATCH($C188,DB_Misc!$C$11:$C$10000,0),1)) -> 
S189: =IF($C189="","",$P189*INDEX(DB_Misc!$E$11:$E$100000,MATCH($C189,DB_Misc!$C$11:$C$10000,0),1)) -> 
S190: =IF($C190="","",$P190*INDEX(DB_Misc!$E$11:$E$100000,MATCH($C190,DB_Misc!$C$11:$C$10000,0),1)) -> 
S191: =IF($C191="","",$P191*INDEX(DB_Misc!$E$11:$E$100000,MATCH($C191,DB_Misc!$C$11:$C$10000,0),1)) -> 
S192: =IF($C192="","",$P192*INDEX(DB_Misc!$E$11:$E$100000,MATCH($C192,DB_Misc!$C$11:$C$10000,0),1)) -> 
S193: =IF($C193="","",$P193*INDEX(DB_Misc!$E$11:$E$100000,MATCH($C193,DB_Misc!$C$11:$C$10000,0),1)) -> 
S194: =IF($C194="","",$P194*INDEX(DB_Misc!$E$11:$E$100000,MATCH($C194,DB_Misc!$C$11:$C$10000,0),1)) -> 
S195: =IF($C195="","",$P195*INDEX(DB_Misc!$E$11:$E$100000,MATCH($C195,DB_Misc!$C$11:$C$10000,0),1)) -> 
S196: =IF($C196="","",$P196*INDEX(DB_Misc!$E$11:$E$100000,MATCH($C196,DB_Misc!$C$11:$C$10000,0),1)) -> 
S197: =IF($C197="","",$P197*INDEX(DB_Misc!$E$11:$E$100000,MATCH($C197,DB_Misc!$C$11:$C$10000,0),1)) -> 
S198: =IF($C198="","",$P198*INDEX(DB_Misc!$E$11:$E$100000,MATCH($C198,DB_Misc!$C$11:$C$10000,0),1)) -> 
S199: =IF($C199="","",$P199*INDEX(DB_Misc!$E$11:$E$100000,MATCH($C199,DB_Misc!$C$11:$C$10000,0),1)) -> 
S200: =IF($C200="","",$P200*INDEX(DB_Misc!$E$11:$E$100000,MATCH($C200,DB_Misc!$C$11:$C$10000,0),1)) -> 
S201: =IF($C201="","",$P201*INDEX(DB_Misc!$E$11:$E$100000,MATCH($C201,DB_Misc!$C$11:$C$10000,0),1)) -> 
S202: =IF($C202="","",$P202*INDEX(DB_Misc!$E$11:$E$100000,MATCH($C202,DB_Misc!$C$11:$C$10000,0),1)) -> 
S203: =IF($C203="","",$P203*INDEX(DB_Misc!$E$11:$E$100000,MATCH($C203,DB_Misc!$C$11:$C$10000,0),1)) -> 
S204: =IF($C204="","",$P204*INDEX(DB_Misc!$E$11:$E$100000,MATCH($C204,DB_Misc!$C$11:$C$10000,0),1)) -> 
S205: =IF($C205="","",$P205*INDEX(DB_Misc!$E$11:$E$100000,MATCH($C205,DB_Misc!$C$11:$C$10000,0),1)) -> 
S206: =IF($C206="","",$P206*INDEX(DB_Misc!$E$11:$E$100000,MATCH($C206,DB_Misc!$C$11:$C$10000,0),1)) -> 
S207: =IF($C207="","",$P207*INDEX(DB_Misc!$E$11:$E$100000,MATCH($C207,DB_Misc!$C$11:$C$10000,0),1)) -> 
S208: =IF($C208="","",$P208*INDEX(DB_Misc!$E$11:$E$100000,MATCH($C208,DB_Misc!$C$11:$C$10000,0),1)) -> 
S209: =IF($C209="","",$P209*INDEX(DB_Misc!$E$11:$E$100000,MATCH($C209,DB_Misc!$C$11:$C$10000,0),1)) -> 
S210: =IF($C210="","",$P210*INDEX(DB_Misc!$E$11:$E$100000,MATCH($C210,DB_Misc!$C$11:$C$10000,0),1)) -> 
S211: =IF($C211="","",$P211*INDEX(DB_Misc!$E$11:$E$100000,MATCH($C211,DB_Misc!$C$11:$C$10000,0),1)) -> 
... 789 more rows

Sheet CE_Roadway
A1: Cost Roadway Type Name | B1: 80' Wide Street | C1: Notes | D1: Random test note.
A3: Average cost per foot | B3: =SUM($J$11:$J$100) -> 1345.023295
A4: User override cost per foot | B4: 3200
A6: Segment Width | B6: 80
G7: These dimensions applies to each linear foot of the segment, when applicable
A8: Hours per LF (day = 8 hr) | B8: 0.001515151515
G9: Per segment foot
B10: # | C10: Item Number | D10: Item Description | E10: Unit | F10: Average Cost | G10: Item Length (ft) | H10: Item Width (ft) | I10: Item Depth (ft) | J10: Normalized Cost (LF)
B11: 1 | C11: 208597 | D11: 1 1/2" PLASTIC PIPE (SCHEDULE 40) (SUPPLY LINE) | E11: LF | F11: 456 | G11: 1 | H11: 10 | I11: 0.1 | J11: =IF(OR(E11="EA",E11="LS"),F11,IF(E11="LF",F11*G11,IF(E11="LNMI",F11/5280*G11,0))) + IF(E11="SQFT",G11*H11*F11, IF(E11="SQYD",G11*H11/9*F11, IF(E11="ACRE",G11*H11/43560*F11,0))) + IF(E11="CF",G11*H11*I11*F11, IF(E11="CY",G11*H11*I11/27*F11, IF(E11="GAL",G11*H11*I11/7.48052*F11, IF(E11="MFBM",G11*H11*I11/83.3332*F11,0))))+IF(OR(E11="DAY",E11="WDAY"),F11/8*$B$8,IF(E11="HR",F11*$B$8,0))+IF(E11="TON",G11*H11*I11/(1/0.075)*F11,IF(E11="LB",G11*H11*I11/(1/150)*F11,0)) -> 456
B12: 2 | C12: 208573 | D12: 1 1/4" GATE VALVE | E12: EA | F12: 789 | J12: =IF(OR(E12="EA",E12="LS"),F12,IF(E12="LF",F12*G12,IF(E12="LNMI",F12/5280*G12,0))) + IF(E12="SQFT",G12*H12*F12, IF(E12="SQYD",G12*H12/9*F12, IF(E12="ACRE",G12*H12/43560*F12,0))) + IF(E12="CF",G12*H12*I12*F12, IF(E12="CY",G12*H12*I12/27*F12, IF(E12="GAL",G12*H12*I12/7.48052*F12, IF(E12="MFBM",G12*H12*I12/83.3332*F12,0))))+IF(OR(E12="DAY",E12="WDAY"),F12/8*$B$8,IF(E12="HR",F12*$B$8,0))+IF(E12="TON",G12*H12*I12/(1/0.075)*F12,IF(E12="LB",G12*H12*I12/(1/150)*F12,0)) -> 789
B13: 3 | C13: 374207 | D13: CRACK TREATMENT | E13: LNMI | F13: 528000 | G13: 1 | J13: 100
B14: 4 | C14: 146001 | D14: CONTRACTOR-SUPPLIED BIOLOGIST (DAY) | E14: DAY | F14: 123 | J14: 0.02329545455
B15: 5 | J15: 0
B16: 6 | J16: 0
B17: 7 | J17: 0
B18: 8 | J18: 0
B19: 9 | J19: 0
B20: 10 | J20: 0
B21: 11 | J21: 0
B22: 12 | J22: 0
B23: 13 | J23: 0
B24: 14 | J24: 0
B25: 15 | J25: 0
B26: 16 | J26: 0
B27: 17 | J27: 0
B28: 18 | J28: 0
B29: 19 | J29: 0
B30: 20 | J30: 0
B31: 21 | J31: 0
B32: 22 | J32: 0
B33: 23 | J33: 0
B34: 24 | J34: 0
B35: 25 | J35: 0
B36: 26 | J36: 0
B37: 27 | J37: 0
B38: 28 | J38: 0
B39: 29 | J39: 0
B40: 30 | J40: 0
B41: 31 | J41: 0
B42: 32 | J42: 0
B43: 33 | J43: 0
B44: 34 | J44: 0
B45: 35 | J45: 0
B46: 36 | J46: 0
B47: 37 | J47: 0
B48: 38 | J48: 0
B49: 39 | J49: 0
B50: 40 | J50: 0
B51: 41 | J51: 0
B52: 42 | J52: 0
B53: 43 | J53: 0
B54: 44 | J54: 0
B55: 45 | J55: 0
B56: 46 | J56: 0
B57: 47 | J57: 0
B58: 48 | J58: 0
B59: 49 | J59: 0
B60: 50 | J60: 0
B61: 51 | J61: 0
B62: 52 | J62: 0
B63: 53 | J63: 0
B64: 54 | J64: 0
B65: 55 | J65: 0
B66: 56 | J66: 0
B67: 57 | J67: 0
B68: 58 | J68: 0
B69: 59 | J69: 0
B70: 60 | J70: 0
B71: 61 | J71: 0
B72: 62 | J72: 0
B73: 63 | J73: 0
B74: 64 | J74: 0
B75: 65 | J75: 0
B76: 66 | J76: =IF(OR(E76="EA",E76="LS"),F76,IF(E76="LF",F76*G76,IF(E76="LNMI",F76/5280*G76,0))) + IF(E76="SQFT",G76*H76*F76, IF(E76="SQYD",G76*H76/9*F76, IF(E76="ACRE",G76*H76/43560*F76,0))) + IF(E76="CF",G76*H76*I76*F76, IF(E76="CY",G76*H76*I76/27*F76, IF(E76="GAL",G76*H76*I76/7.48052*F76, IF(E76="MFBM",G76*H76*I76/83.3332*F76,0))))+IF(OR(E76="DAY",E76="WDAY"),F76/8*$B$8,IF(E76="HR",F76*$B$8,0))+IF(E76="TON",G76*H76*I76/(1/0.075)*F76,IF(E76="LB",G76*H76*I76/(1/150)*F76,0)) -> 0
B77: 67 | J77: 0
B78: 68 | J78: 0
B79: 69 | J79: 0
B80: 70 | J80: 0
B81: 71 | J81: 0
B82: 72 | J82: 0
B83: 73 | J83: 0
B84: 74 | J84: 0
B85: 75 | J85: 0
B86: 76 | J86: 0
B87: 77 | J87: 0
B88: 78 | J88: 0
B89: 79 | J89: 0
B90: 80 | J90: 0
B91: 81 | J91: 0
B92: 82 | J92: 0
B93: 83 | J93: 0
B94: 84 | J94: 0
B95: 85 | J95: 0
B96: 86 | J96: 0
B97: 87 | J97: 0
B98: 88 | J98: 0
B99: 89 | J99: 0
B100: 90 | J100: 0
B101: 91 | J101: 0
B102: 92 | J102: 0
B103: 93 | J103: 0
B104: 94 | J104: 0
B105: 95 | J105: 0
B106: 96 | J106: 0
B107: 97 | J107: 0
B108: 98 | J108: 0
B109: 99 | J109: 0
B110: 100 | J110: 0

Sheet CE_Bikeway
A1: Cost Bikeway Type Name | B1: 8' Cycle Track | C1: Notes | D1: 6 foot bikeway with 2 foot raised island
A3: Average cost per foot | B3: =SUM($J$11:$J$100) -> 121.038
A4: User override cost per foot
A6: Segment Width | B6: 8
G7: These dimensions applies to each linear foot of the segment, when applicable
A8: Hours per LF (day = 8 hr)
G9: Per segment foot
B10: # | C10: Item Number | D10: Item Description | E10: Unit | F10: Average Cost | G10: Item Length (ft) | H10: Item Width (ft) | I10: Item Depth (ft) | J10: Normalized Cost (LF)
B11: 1 | C11: 730010 | D11: MINOR CONCRETE (CURB) (LF) | E11: LF | F11: 54.5 | G11: 2 | H11: 0.5 | I11: 1 | J11: =IF(OR(E11="EA",E11="LS"),F11,IF(E11="LF",F11*G11,IF(E11="LNMI",F11/5280*G11,0))) + IF(E11="SQFT",G11*H11*F11, IF(E11="SQYD",G11*H11/9*F11, IF(E11="ACRE",G11*H11/43560*F11,0))) + IF(E11="CF",G11*H11*I11*F11, IF(E11="CY",G11*H11*I11/27*F11, IF(E11="GAL",G11*H11*I11/7.48052*F11, IF(E11="MFBM",G11*H11*I11/83.3332*F11,0))))+IF(OR(E11="DAY",E11="WDAY"),F11/8*$B$8,IF(E11="HR",F11*$B$8,0))+IF(E11="TON",G11*H11*I11/(1/0.075)*F11,IF(E11="LB",G11*H11*I11/(1/150)*F11,0)) -> 109
B12: 2 | C12: 260203 | D12: CLASS 2 AGGREGATE BASE (CY) | E12: CY | F12: 119.3625 | G12: 1 | H12: 2 | I12: 1 | J12: =IF(OR(E12="EA",E12="LS"),F12,IF(E12="LF",F12*G12,IF(E12="LNMI",F12/5280*G12,0))) + IF(E12="SQFT",G12*H12*F12, IF(E12="SQYD",G12*H12/9*F12, IF(E12="ACRE",G12*H12/43560*F12,0))) + IF(E12="CF",G12*H12*I12*F12, IF(E12="CY",G12*H12*I12/27*F12, IF(E12="GAL",G12*H12*I12/7.48052*F12, IF(E12="MFBM",G12*H12*I12/83.3332*F12,0))))+IF(OR(E12="DAY",E12="WDAY"),F12/8*$B$8,IF(E12="HR",F12*$B$8,0))+IF(E12="TON",G12*H12*I12/(1/0.075)*F12,IF(E12="LB",G12*H12*I12/(1/150)*F12,0)) -> 8.841666667
B13: 3 | C13: 840515 | D13: THERMOPLASTIC PAVEMENT MARKING | E13: SQFT | F13: 9.185555556 | G13: 0.1 | H13: 1 | J13: 0.9185555556
B14: 4 | C14: 731511 | D14: MINOR CONCRETE (ISLAND PAVING) | E14: CY | F14: 123 | G14: 1 | H14: 1 | I14: 0.5 | J14: 2.277777778
B15: 5 | J15: 0
B16: 6 | J16: 0
B17: 7 | J17: 0
B18: 8 | J18: 0
B19: 9 | J19: 0
B20: 10 | J20: 0
B21: 11 | J21: 0
B22: 12 | J22: 0
B23: 13 | J23: 0
B24: 14 | J24: 0
B25: 15 | J25: 0
B26: 16 | J26: 0
B27: 17 | J27: 0
B28: 18 | J28: 0
B29: 19 | J29: 0
B30: 20 | J30: 0
B31: 21 | J31: 0
B32: 22 | J32: 0
B33: 23 | J33: 0
B34: 24 | J34: 0
B35: 25 | J35: 0
B36: 26 | J36: 0
B37: 27 | J37: 0
B38: 28 | J38: 0
B39: 29 | J39: 0
B40: 30 | J40: 0
B41: 31 | J41: 0
B42: 32 | J42: 0
B43: 33 | J43: 0
B44: 34 | J44: 0
B45: 35 | J45: 0
B46: 36 | J46: 0
B47: 37 | J47: 0
B48: 38 | J48: 0
B49: 39 | J49: 0
B50: 40 | J50: 0
B51: 41 | J51: 0
B52: 42 | J52: 0
B53: 43 | J53: 0
B54: 44 | J54: 0
B55: 45 | J55: 0
B56: 46 | J56: 0
B57: 47 | J57: 0
B58: 48 | J58: 0
B59: 49 | J59: 0
B60: 50 | J60: 0
B61: 51 | J61: 0
B62: 52 | J62: 0
B63: 53 | J63: 0
B64: 54 | J64: 0
B65: 55 | J65: 0
B66: 56 | J66: 0
B67: 57 | J67: 0
B68: 58 | J68: 0
B69: 59 | J69: 0
B70: 60 | J70: 0
B71: 61 | J71: 0
B72: 62 | J72: 0
B73: 63 | J73: 0
B74: 64 | J74: 0
B75: 65 | J75: 0
B76: 66 | J76: =IF(OR(E76="EA",E76="LS"),F76,IF(E76="LF",F76*G76,IF(E76="LNMI",F76/5280*G76,0))) + IF(E76="SQFT",G76*H76*F76, IF(E76="SQYD",G76*H76/9*F76, IF(E76="ACRE",G76*H76/43560*F76,0))) + IF(E76="CF",G76*H76*I76*F76, IF(E76="CY",G76*H76*I76/27*F76, IF(E76="GAL",G76*H76*I76/7.48052*F76, IF(E76="MFBM",G76*H76*I76/83.3332*F76,0))))+IF(OR(E76="DAY",E76="WDAY"),F76/8*$B$8,IF(E76="HR",F76*$B$8,0))+IF(E76="TON",G76*H76*I76/(1/0.075)*F76,IF(E76="LB",G76*H76*I76/(1/150)*F76,0)) -> 0
B77: 67 | J77: 0
B78: 68 | J78: 0
B79: 69 | J79: 0
B80: 70 | J80: 0
B81: 71 | J81: 0
B82: 72 | J82: 0
B83: 73 | J83: 0
B84: 74 | J84: 0
B85: 75 | J85: 0
B86: 76 | J86: 0
B87: 77 | J87: 0
B88: 78 | J88: 0
B89: 79 | J89: 0
B90: 80 | J90: 0
B91: 81 | J91: 0
B92: 82 | J92: 0
B93: 83 | J93: 0
B94: 84 | J94: 0
B95: 85 | J95: 0
B96: 86 | J96: 0
B97: 87 | J97: 0
B98: 88 | J98: 0
B99: 89 | J99: 0
B100: 90 | J100: 0
B101: 91 | J101: 0
B102: 92 | J102: 0
B103: 93 | J103: 0
B104: 94 | J104: 0
B105: 95 | J105: 0
B106: 96 | J106: 0
B107: 97 | J107: 0
B108: 98 | J108: 0
B109: 99 | J109: 0
B110: 100 | J110: 0

Sheet CE_Pedestrian
A1: Cost Pedestrian Type Name | B1: 10' Concrete Sidewalk | C1: Notes | D1: Assumes new concrete .5' curb, 1.5' gutter, and 10' sidewalk
A3: Average cost per foot | B3: =SUM($J$11:$J$100) -> 126.722963
A4: User override cost per foot
A6: Segment Width | B6: 10
G7: These dimensions applies to each linear foot of the segment, when applicable
A8: Hours per LF (day = 8 hr)
G9: Per segment foot
B10: # | C10: Item Number | D10: Item Description | E10: Unit | F10: Average Cost | G10: Item Length (ft) | H10: Item Width (ft) | I10: Item Depth (ft) | J10: Normalized Cost (LF)
B11: 1 | C11: 731504 | D11: MINOR CONCRETE (CURB AND GUTTER) | E11: CY | F11: 858.75 | G11: 1 | H11: 10 | I11: 0.3333333333 | J11: =IF(OR(E11="EA",E11="LS"),F11,IF(E11="LF",F11*G11,IF(E11="LNMI",F11/5280*G11,0))) + IF(E11="SQFT",G11*H11*F11, IF(E11="SQYD",G11*H11/9*F11, IF(E11="ACRE",G11*H11/43560*F11,0))) + IF(E11="CF",G11*H11*I11*F11, IF(E11="CY",G11*H11*I11/27*F11, IF(E11="GAL",G11*H11*I11/7.48052*F11, IF(E11="MFBM",G11*H11*I11/83.3332*F11,0))))+IF(OR(E11="DAY",E11="WDAY"),F11/8*$B$8,IF(E11="HR",F11*$B$8,0))+IF(E11="TON",G11*H11*I11/(1/0.075)*F11,IF(E11="LB",G11*H11*I11/(1/150)*F11,0)) -> 106.0185185
B12: 2 | C12: 250201 | D12: CLASS 2 AGGREGATE SUBBASE | E12: CY | F12: 93.17 | G12: 1 | H12: 12 | I12: 0.5 | J12: =IF(OR(E12="EA",E12="LS"),F12,IF(E12="LF",F12*G12,IF(E12="LNMI",F12/5280*G12,0))) + IF(E12="SQFT",G12*H12*F12, IF(E12="SQYD",G12*H12/9*F12, IF(E12="ACRE",G12*H12/43560*F12,0))) + IF(E12="CF",G12*H12*I12*F12, IF(E12="CY",G12*H12*I12/27*F12, IF(E12="GAL",G12*H12*I12/7.48052*F12, IF(E12="MFBM",G12*H12*I12/83.3332*F12,0))))+IF(OR(E12="DAY",E12="WDAY"),F12/8*$B$8,IF(E12="HR",F12*$B$8,0))+IF(E12="TON",G12*H12*I12/(1/0.075)*F12,IF(E12="LB",G12*H12*I12/(1/150)*F12,0)) -> 20.70444444
B13: 3 | J13: 0
B14: 4 | J14: 0
B15: 5 | J15: 0
B16: 6 | J16: 0
B17: 7 | J17: 0
B18: 8 | J18: 0
B19: 9 | J19: 0
B20: 10 | J20: 0
B21: 11 | J21: 0
B22: 12 | J22: 0
B23: 13 | J23: 0
B24: 14 | J24: 0
B25: 15 | J25: 0
B26: 16 | J26: 0
B27: 17 | J27: 0
B28: 18 | J28: 0
B29: 19 | J29: 0
B30: 20 | J30: 0
B31: 21 | J31: 0
B32: 22 | J32: 0
B33: 23 | J33: 0
B34: 24 | J34: 0
B35: 25 | J35: 0
B36: 26 | J36: 0
B37: 27 | J37: 0
B38: 28 | J38: 0
B39: 29 | J39: 0
B40: 30 | J40: 0
B41: 31 | J41: 0
B42: 32 | J42: 0
B43: 33 | J43: 0
B44: 34 | J44: 0
B45: 35 | J45: 0
B46: 36 | J46: 0
B47: 37 | J47: 0
B48: 38 | J48: 0
B49: 39 | J49: 0
B50: 40 | J50: 0
B51: 41 | J51: 0
B52: 42 | J52: 0
B53: 43 | J53: 0
B54: 44 | J54: 0
B55: 45 | J55: 0
B56: 46 | J56: 0
B57: 47 | J57: 0
B58: 48 | J58: 0
B59: 49 | J59: 0
B60: 50 | J60: 0
B61: 51 | J61: 0
B62: 52 | J62: 0
B63: 53 | J63: 0
B64: 54 | J64: 0
B65: 55 | J65: 0
B66: 56 | J66: 0
B67: 57 | J67: 0
B68: 58 | J68: 0
B69: 59 | J69: 0
B70: 60 | J70: 0
B71: 61 | J71: 0
B72: 62 | J72: 0
B73: 63 | J73: 0
B74: 64 | J74: 0
B75: 65 | J75: 0
B76: 66 | J76: =IF(OR(E76="EA",E76="LS"),F76,IF(E76="LF",F76*G76,IF(E76="LNMI",F76/5280*G76,0))) + IF(E76="SQFT",G76*H76*F76, IF(E76="SQYD",G76*H76/9*F76, IF(E76="ACRE",G76*H76/43560*F76,0))) + IF(E76="CF",G76*H76*I76*F76, IF(E76="CY",G76*H76*I76/27*F76, IF(E76="GAL",G76*H76*I76/7.48052*F76, IF(E76="MFBM",G76*H76*I76/83.3332*F76,0))))+IF(OR(E76="DAY",E76="WDAY"),F76/8*$B$8,IF(E76="HR",F76*$B$8,0))+IF(E76="TON",G76*H76*I76/(1/0.075)*F76,IF(E76="LB",G76*H76*I76/(1/150)*F76,0)) -> 0
B77: 67 | J77: 0
B78: 68 | J78: 0
B79: 69 | J79: 0
B80: 70 | J80: 0
B81: 71 | J81: 0
B82: 72 | J82: 0
B83: 73 | J83: 0
B84: 74 | J84: 0
B85: 75 | J85: 0
B86: 76 | J86: 0
B87: 77 | J87: 0
B88: 78 | J88: 0
B89: 79 | J89: 0
B90: 80 | J90: 0
B91: 81 | J91: 0
B92: 82 | J92: 0
B93: 83 | J93: 0
B94: 84 | J94: 0
B95: 85 | J95: 0
B96: 86 | J96: 0
B97: 87 | J97: 0
B98: 88 | J98: 0
B99: 89 | J99: 0
B100: 90 | J100: 0
B101: 91 | J101: 0
B102: 92 | J102: 0
B103: 93 | J103: 0
B104: 94 | J104: 0
B105: 95 | J105: 0
B106: 96 | J106: 0
B107: 97 | J107: 0
B108: 98 | J108: 0
B109: 99 | J109: 0
B110: 100 | J110: 0

Sheet CE_Sig_Int
A1: Cost Signalized Type Name | B1: Signalized Cycle Track Intersection | C1: Notes | D1: Protected phasing for cycle track
A3: Average cost per foot | B3: =SUM($J$11:$J$100) -> 61.5
A4: User override cost per each | B4: 450000
A6: Segment Width | B6: 50
A8: Hours per EA (day = 8 hr) | B8: =8/2 -> 4
G9: Per segment foot
B10: # | C10: Item Number | D10: Item Description | E10: Unit | F10: Average Cost | G10: Item Length (ft) | H10: Item Width (ft) | I10: Item Depth (ft) | J10: Normalized Cost (EA)
B11: 1 | E11: DAY | F11: 123 | J11: =IF(OR(E11="EA",E11="LS"),F11,IF(E11="LF",F11*G11,IF(E11="LNMI",F11/5280*G11,0))) + IF(E11="SQFT",G11*H11*F11, IF(E11="SQYD",G11*H11/9*F11, IF(E11="ACRE",G11*H11/43560*F11,0))) + IF(E11="CF",G11*H11*I11*F11, IF(E11="CY",G11*H11*I11/27*F11, IF(E11="GAL",G11*H11*I11/7.48052*F11, IF(E11="MFBM",G11*H11*I11/83.3332*F11,0))))+IF(OR(E11="DAY",E11="WDAY"),F11/8*$B$8,IF(E11="HR",F11*$B$8,0))+IF(E11="TON",G11*H11*I11/(1/0.075)*F11,IF(E11="LB",G11*H11*I11/(1/150)*F11,0)) -> 61.5
B12: 2 | J12: =IF(OR(E12="EA",E12="LS"),F12,IF(E12="LF",F12*G12,IF(E12="LNMI",F12/5280*G12,0))) + IF(E12="SQFT",G12*H12*F12, IF(E12="SQYD",G12*H12/9*F12, IF(E12="ACRE",G12*H12/43560*F12,0))) + IF(E12="CF",G12*H12*I12*F12, IF(E12="CY",G12*H12*I12/27*F12, IF(E12="GAL",G12*H12*I12/7.48052*F12, IF(E12="MFBM",G12*H12*I12/83.3332*F12,0))))+IF(OR(E12="DAY",E12="WDAY"),F12/8*$B$8,IF(E12="HR",F12*$B$8,0))+IF(E12="TON",G12*H12*I12/(1/0.075)*F12,IF(E12="LB",G12*H12*I12/(1/150)*F12,0)) -> 0
B13: 3 | J13: 0
B14: 4 | J14: 0
B15: 5 | J15: 0
B16: 6 | J16: 0
B17: 7 | J17: 0
B18: 8 | J18: 0
B19: 9 | J19: 0
B20: 10 | J20: 0
B21: 11 | J21: 0
B22: 12 | J22: 0
B23: 13 | J23: 0
B24: 14 | J24: 0
B25: 15 | J25: 0
B26: 16 | J26: 0
B27: 17 | J27: 0
B28: 18 | J28: 0
B29: 19 | J29: 0
B30: 20 | J30: 0
B31: 21 | J31: 0
B32: 22 | J32: 0
B33: 23 | J33: 0
B34: 24 | J34: 0
B35: 25 | J35: 0
B36: 26 | J36: 0
B37: 27 | J37: 0
B38: 28 | J38: 0
B39: 29 | J39: 0
B40: 30 | J40: 0
B41: 31 | J41: 0
B42: 32 | J42: 0
B43: 33 | J43: 0
B44: 34 | J44: 0
B45: 35 | J45: 0
B46: 36 | J46: 0
B47: 37 | J47: 0
B48: 38 | J48: 0
B49: 39 | J49: 0
B50: 40 | J50: 0
B51: 41 | J51: 0
B52: 42 | J52: 0
B53: 43 | J53: 0
B54: 44 | J54: 0
B55: 45 | J55: 0
B56: 46 | J56: 0
B57: 47 | J57: 0
B58: 48 | J58: 0
B59: 49 | J59: 0
B60: 50 | J60: 0
B61: 51 | J61: 0
B62: 52 | J62: 0
B63: 53 | J63: 0
B64: 54 | J64: 0
B65: 55 | J65: 0
B66: 56 | J66: 0
B67: 57 | J67: 0
B68: 58 | J68: 0
B69: 59 | J69: 0
B70: 60 | J70: 0
B71: 61 | J71: 0
B72: 62 | J72: 0
B73: 63 | J73: 0
B74: 64 | J74: 0
B75: 65 | J75: 0
B76: 66 | J76: =IF(OR(E76="EA",E76="LS"),F76,IF(E76="LF",F76*G76,IF(E76="LNMI",F76/5280*G76,0))) + IF(E76="SQFT",G76*H76*F76, IF(E76="SQYD",G76*H76/9*F76, IF(E76="ACRE",G76*H76/43560*F76,0))) + IF(E76="CF",G76*H76*I76*F76, IF(E76="CY",G76*H76*I76/27*F76, IF(E76="GAL",G76*H76*I76/7.48052*F76, IF(E76="MFBM",G76*H76*I76/83.3332*F76,0))))+IF(OR(E76="DAY",E76="WDAY"),F76/8*$B$8,IF(E76="HR",F76*$B$8,0))+IF(E76="TON",G76*H76*I76/(1/0.075)*F76,IF(E76="LB",G76*H76*I76/(1/150)*F76,0)) -> 0
B77: 67 | J77: 0
B78: 68 | J78: 0
B79: 69 | J79: 0
B80: 70 | J80: 0
B81: 71 | J81: 0
B82: 72 | J82: 0
B83: 73 | J83: 0
B84: 74 | J84: 0
B85: 75 | J85: 0
B86: 76 | J86: 0
B87: 77 | J87: 0
B88: 78 | J88: 0
B89: 79 | J89: 0
B90: 80 | J90: 0
B91: 81 | J91: 0
B92: 82 | J92: 0
B93: 83 | J93: 0
B94: 84 | J94: 0
B95: 85 | J95: 0
B96: 86 | J96: 0
B97: 87 | J97: 0
B98: 88 | J98: 0
B99: 89 | J99: 0
B100: 90 | J100: 0
B101: 91 | J101: 0
B102: 92 | J102: 0
B103: 93 | J103: 0
B104: 94 | J104: 0
B105: 95 | J105: 0
B106: 96 | J106: 0
B107: 97 | J107: 0
B108: 98 | J108: 0
B109: 99 | J109: 0
B110: 100 | J110: 0

Sheet CE_Unsig_Int
A1: Cost Unsignalized Type Name | B1: Uncontrolled with RRFB | C1: Notes
A3: Average cost per foot | B3: =SUM($J$11:$J$100) -> 6273
A4: User override cost per each | B4: 12000
A6: Segment Width | B6: 30
A8: Hours per EA (day = 8 hr)
G9: Per segment foot
B10: # | C10: Item Number | D10: Item Description | E10: Unit | F10: Average Cost | G10: Item Length (ft) | H10: Item Width (ft) | I10: Item Depth (ft) | J10: Normalized Cost (EA)
B11: 1 | C11: 870800 | D11: PEDESTRIAN HYBRID BEACON SYSTEMS | E11: LS | F11: 123 | J11: =IF(OR(E11="EA",E11="LS"),F11,IF(E11="LF",F11*G11,IF(E11="LNMI",F11/5280*G11,0))) + IF(E11="SQFT",G11*H11*F11, IF(E11="SQYD",G11*H11/9*F11, IF(E11="ACRE",G11*H11/43560*F11,0))) + IF(E11="CF",G11*H11*I11*F11, IF(E11="CY",G11*H11*I11/27*F11, IF(E11="GAL",G11*H11*I11/7.48052*F11, IF(E11="MFBM",G11*H11*I11/83.3332*F11,0))))+IF(OR(E11="DAY",E11="WDAY"),F11/8*$B$8,IF(E11="HR",F11*$B$8,0))+IF(E11="TON",G11*H11*I11/(1/0.075)*F11,IF(E11="LB",G11*H11*I11/(1/150)*F11,0)) -> 123
B12: 2 | C12: 840625 | D12: TWO-COMPONENT PAINT CROSSWALK AND PAVEMENT MARKING | E12: SQFT | F12: 123 | G12: 1 | H12: 50 | J12: =IF(OR(E12="EA",E12="LS"),F12,IF(E12="LF",F12*G12,IF(E12="LNMI",F12/5280*G12,0))) + IF(E12="SQFT",G12*H12*F12, IF(E12="SQYD",G12*H12/9*F12, IF(E12="ACRE",G12*H12/43560*F12,0))) + IF(E12="CF",G12*H12*I12*F12, IF(E12="CY",G12*H12*I12/27*F12, IF(E12="GAL",G12*H12*I12/7.48052*F12, IF(E12="MFBM",G12*H12*I12/83.3332*F12,0))))+IF(OR(E12="DAY",E12="WDAY"),F12/8*$B$8,IF(E12="HR",F12*$B$8,0))+IF(E12="TON",G12*H12*I12/(1/0.075)*F12,IF(E12="LB",G12*H12*I12/(1/150)*F12,0)) -> 6150
B13: 3 | J13: 0
B14: 4 | J14: 0
B15: 5 | J15: 0
B16: 6 | J16: 0
B17: 7 | J17: 0
B18: 8 | J18: 0
B19: 9 | J19: 0
B20: 10 | J20: 0
B21: 11 | J21: 0
B22: 12 | J22: 0
B23: 13 | J23: 0
B24: 14 | J24: 0
B25: 15 | J25: 0
B26: 16 | J26: 0
B27: 17 | J27: 0
B28: 18 | J28: 0
B29: 19 | J29: 0
B30: 20 | J30: 0
B31: 21 | J31: 0
B32: 22 | J32: 0
B33: 23 | J33: 0
B34: 24 | J34: 0
B35: 25 | J35: 0
B36: 26 | J36: 0
B37: 27 | J37: 0
B38: 28 | J38: 0
B39: 29 | J39: 0
B40: 30 | J40: 0
B41: 31 | J41: 0
B42: 32 | J42: 0
B43: 33 | J43: 0
B44: 34 | J44: 0
B45: 35 | J45: 0
B46: 36 | J46: 0
B47: 37 | J47: 0
B48: 38 | J48: 0
B49: 39 | J49: 0
B50: 40 | J50: 0
B51: 41 | J51: 0
B52: 42 | J52: 0
B53: 43 | J53: 0
B54: 44 | J54: 0
B55: 45 | J55: 0
B56: 46 | J56: 0
B57: 47 | J57: 0
B58: 48 | J58: 0
B59: 49 | J59: 0
B60: 50 | J60: 0
B61: 51 | J61: 0
B62: 52 | J62: 0
B63: 53 | J63: 0
B64: 54 | J64: 0
B65: 55 | J65: 0
B66: 56 | J66: 0
B67: 57 | J67: 0
B68: 58 | J68: 0
B69: 59 | J69: 0
B70: 60 | J70: 0
B71: 61 | J71: 0
B72: 62 | J72: 0
B73: 63 | J73: 0
B74: 64 | J74: 0
B75: 65 | J75: 0
B76: 66 | J76: =IF(OR(E76="EA",E76="LS"),F76,IF(E76="LF",F76*G76,IF(E76="LNMI",F76/5280*G76,0))) + IF(E76="SQFT",G76*H76*F76, IF(E76="SQYD",G76*H76/9*F76, IF(E76="ACRE",G76*H76/43560*F76,0))) + IF(E76="CF",G76*H76*I76*F76, IF(E76="CY",G76*H76*I76/27*F76, IF(E76="GAL",G76*H76*I76/7.48052*F76, IF(E76="MFBM",G76*H76*I76/83.3332*F76,0))))+IF(OR(E76="DAY",E76="WDAY"),F76/8*$B$8,IF(E76="HR",F76*$B$8,0))+IF(E76="TON",G76*H76*I76/(1/0.075)*F76,IF(E76="LB",G76*H76*I76/(1/150)*F76,0)) -> 0
B77: 67 | J77: 0
B78: 68 | J78: 0
B79: 69 | J79: 0
B80: 70 | J80: 0
B81: 71 | J81: 0
B82: 72 | J82: 0
B83: 73 | J83: 0
B84: 74 | J84: 0
B85: 75 | J85: 0
B86: 76 | J86: 0
B87: 77 | J87: 0
B88: 78 | J88: 0
B89: 79 | J89: 0
B90: 80 | J90: 0
B91: 81 | J91: 0
B92: 82 | J92: 0
B93: 83 | J93: 0
B94: 84 | J94: 0
B95: 85 | J95: 0
B96: 86 | J96: 0
B97: 87 | J97: 0
B98: 88 | J98: 0
B99: 89 | J99: 0
B100: 90 | J100: 0
B101: 91 | J101: 0
B102: 92 | J102: 0
B103: 93 | J103: 0
B104: 94 | J104: 0
B105: 95 | J105: 0
B106: 96 | J106: 0
B107: 97 | J107: 0
B108: 98 | J108: 0
B109: 99 | J109: 0
B110: 100 | J110: 0

Sheet CE_Misc
A1: Cost Misc Type Name | B1: Bench | C1: Notes
A3: Average cost per foot | B3: =SUM($J$11:$J$100) -> 0
A4: User override cost per each | B4: 3000
A6: Segment Width
A8: Hours per EA (day = 8 hr)
G9: Per segment foot
B10: # | C10: Item Number | D10: Item Description | E10: Unit | F10: Average Cost | G10: Item Length (ft) | H10: Item Width (ft) | I10: Item Depth (ft) | J10: Normalized Cost (EA)
B11: 1 | J11: =IF(OR(E11="EA",E11="LS"),F11,IF(E11="LF",F11*G11,IF(E11="LNMI",F11/5280*G11,0))) + IF(E11="SQFT",G11*H11*F11, IF(E11="SQYD",G11*H11/9*F11, IF(E11="ACRE",G11*H11/43560*F11,0))) + IF(E11="CF",G11*H11*I11*F11, IF(E11="CY",G11*H11*I11/27*F11, IF(E11="GAL",G11*H11*I11/7.48052*F11, IF(E11="MFBM",G11*H11*I11/83.3332*F11,0))))+IF(OR(E11="DAY",E11="WDAY"),F11/8*$B$8,IF(E11="HR",F11*$B$8,0))+IF(E11="TON",G11*H11*I11/(1/0.075)*F11,IF(E11="LB",G11*H11*I11/(1/150)*F11,0)) -> 0
B12: 2 | J12: =IF(OR(E12="EA",E12="LS"),F12,IF(E12="LF",F12*G12,IF(E12="LNMI",F12/5280*G12,0))) + IF(E12="SQFT",G12*H12*F12, IF(E12="SQYD",G12*H12/9*F12, IF(E12="ACRE",G12*H12/43560*F12,0))) + IF(E12="CF",G12*H12*I12*F12, IF(E12="CY",G12*H12*I12/27*F12, IF(E12="GAL",G12*H12*I12/7.48052*F12, IF(E12="MFBM",G12*H12*I12/83.3332*F12,0))))+IF(OR(E12="DAY",E12="WDAY"),F12/8*$B$8,IF(E12="HR",F12*$B$8,0))+IF(E12="TON",G12*H12*I12/(1/0.075)*F12,IF(E12="LB",G12*H12*I12/(1/150)*F12,0)) -> 0
B13: 3 | J13: 0
B14: 4 | J14: 0
B15: 5 | J15: 0
B16: 6 | J16: 0
B17: 7 | J17: 0
B18: 8 | J18: 0
B19: 9 | J19: 0
B20: 10 | J20: 0
B21: 11 | J21: 0
B22: 12 | J22: 0
B23: 13 | J23: 0
B24: 14 | J24: 0
B25: 15 | J25: 0
B26: 16 | J26: 0
B27: 17 | J27: 0
B28: 18 | J28: 0
B29: 19 | J29: 0
B30: 20 | J30: 0
B31: 21 | J31: 0
B32: 22 | J32: 0
B33: 23 | J33: 0
B34: 24 | J34: 0
B35: 25 | J35: 0
B36: 26 | J36: 0
B37: 27 | J37: 0
B38: 28 | J38: 0
B39: 29 | J39: 0
B40: 30 | J40: 0
B41: 31 | J41: 0
B42: 32 | J42: 0
B43: 33 | J43: 0
B44: 34 | J44: 0
B45: 35 | J45: 0
B46: 36 | J46: 0
B47: 37 | J47: 0
B48: 38 | J48: 0
B49: 39 | J49: 0
B50: 40 | J50: 0
B51: 41 | J51: 0
B52: 42 | J52: 0
B53: 43 | J53: 0
B54: 44 | J54: 0
B55: 45 | J55: 0
B56: 46 | J56: 0
B57: 47 | J57: 0
B58: 48 | J58: 0
B59: 49 | J59: 0
B60: 50 | J60: 0
B61: 51 | J61: 0
B62: 52 | J62: 0
B63: 53 | J63: 0
B64: 54 | J64: 0
B65: 55 | J65: 0
B66: 56 | J66: 0
B67: 57 | J67: 0
B68: 58 | J68: 0
B69: 59 | J69: 0
B70: 60 | J70: 0
B71: 61 | J71: 0
B72: 62 | J72: 0
B73: 63 | J73: 0
B74: 64 | J74: 0
B75: 65 | J75: 0
B76: 66 | J76: =IF(OR(E76="EA",E76="LS"),F76,IF(E76="LF",F76*G76,IF(E76="LNMI",F76/5280*G76,0))) + IF(E76="SQFT",G76*H76*F76, IF(E76="SQYD",G76*H76/9*F76, IF(E76="ACRE",G76*H76/43560*F76,0))) + IF(E76="CF",G76*H76*I76*F76, IF(E76="CY",G76*H76*I76/27*F76, IF(E76="GAL",G76*H76*I76/7.48052*F76, IF(E76="MFBM",G76*H76*I76/83.3332*F76,0))))+IF(OR(E76="DAY",E76="WDAY"),F76/8*$B$8,IF(E76="HR",F76*$B$8,0))+IF(E76="TON",G76*H76*I76/(1/0.075)*F76,IF(E76="LB",G76*H76*I76/(1/150)*F76,0)) -> 0
B77: 67 | J77: 0
B78: 68 | J78: 0
B79: 69 | J79: 0
B80: 70 | J80: 0
B81: 71 | J81: 0
B82: 72 | J82: 0
B83: 73 | J83: 0
B84: 74 | J84: 0
B85: 75 | J85: 0
B86: 76 | J86: 0
B87: 77 | J87: 0
B88: 78 | J88: 0
B89: 79 | J89: 0
B90: 80 | J90: 0
B91: 81 | J91: 0
B92: 82 | J92: 0
B93: 83 | J93: 0
B94: 84 | J94: 0
B95: 85 | J95: 0
B96: 86 | J96: 0
B97: 87 | J97: 0
B98: 88 | J98: 0
B99: 89 | J99: 0
B100: 90 | J100: 0
B101: 91 | J101: 0
B102: 92 | J102: 0
B103: 93 | J103: 0
B104: 94 | J104: 0
B105: 95 | J105: 0
B106: 96 | J106: 0
B107: 97 | J107: 0
B108: 98 | J108: 0
B109: 99 | J109: 0
B110: 100 | J110: 0

Sheet DB_Segment
D1: Roadway | G1: mile
D2: Bikeway_1 | G2: each
D3: Bikeway_2
D4: Pedestrian_1
D5: Pedestrian_2
D6: Sig_Int
D7: Unsig_Int
D8: Misc
C10: Segment Name | D10: Cost Type | E10: Cost Template Name | F10: Cost Per Unit | G10: Unit Count | H10: Total | I10: O_Cost | J10: A_Cost | K10: For Total Mileage Calc
C11: Central to Cutting | D11: Bikeway_1 | E11: 5' Bike Lane | F11: =IF(I11=0,J11,I11) -> 2.049019608 | G11: 0.5 | H11: =IF(D11="","Error",IF(OR(D11="Roadway",D11="Bikeway_1",D11="Bikeway_2",D11="Pedestrian_1",D11="Pedestrian_2"),F11*G11*5280,F11*G11)) -> 5409.411765 | I11: =IF(LEFT($D11,3)="Roa",INDEX(DB_Roadway!$E$11:$E$10000,MATCH($E11,DB_Roadway!$C$11:$C$10000,0),1),IF(LEFT($D11,3)="Bik",INDEX(DB_Bikeway!$E$11:$E$10000,MATCH($E11,DB_Bikeway!$C$11:$C$10000,0),1),IF(LEFT($D11,3)="Ped",INDEX(DB_Pedestrian!$E$11:$E$10000,MATCH($E11,DB_Pedestrian!$C$11:$C$10000,0),1),IF(LEFT($D11,3)="Sig",INDEX(DB_Sig_Int!$E$11:$E$10000,MATCH($E11,DB_Sig_Int!$C$11:$C$10000,0),1),IF(LEFT($D11,3)="Uns",INDEX(DB_Unsig_Int!$E$11:$E$10000,MATCH($E11,DB_Unsig_Int!$C$11:$C$10000,0),1),IF(LEFT($D11,3)="Mis",INDEX(DB_Misc!$E$11:$E$10000,MATCH($E11,DB_Misc!$C$11:$C$10000,0),1),"Error")))))) -> 0 | J11: =IF(LEFT($D11,3)="Roa",INDEX(DB_Roadway!$D$11:$D$10000,MATCH($E11,DB_Roadway!$C$11:$C$10000,0),1),IF(LEFT($D11,3)="Bik",INDEX(DB_Bikeway!$D$11:$D$10000,MATCH($E11,DB_Bikeway!$C$11:$C$10000,0),1),IF(LEFT($D11,3)="Ped",INDEX(DB_Pedestrian!$D$11:$D$10000,MATCH($E11,DB_Pedestrian!$C$11:$C$10000,0),1),IF(LEFT($D11,3)="Sig",INDEX(DB_Sig_Int!$D$11:$D$10000,MATCH($E11,DB_Sig_Int!$C$11:$C$10000,0),1),IF(LEFT($D11,3)="Uns",INDEX(DB_Unsig_Int!$D$11:$D$10000,MATCH($E11,DB_Unsig_Int!$C$11:$C$10000,0),1),IF(LEFT($D11,3)="Mis",INDEX(DB_Misc!$D$11:$D$10000,MATCH($E11,DB_Misc!$C$11:$C$10000,0),1),"Error")))))) -> 2.049019608 | K11: =IF(OR(C11="",D11=""),"",IF(C11<>C10,SUMIFS($G$11:$G$10000,$C$11:$C$10000,C11,DB_Segment!$D$11:$D$10000,"<>Misc",DB_Segment!$D$11:$D$10000,"<>Sig_Int",DB_Segment!$D$11:$D$10000,"<>Unsig_Int")/COUNTIFS($C$11:$C$10000,C11,DB_Segment!$D$11:$D$10000,"<>Misc",DB_Segment!$D$11:$D$10000,"<>Sig_Int",DB_Segment!$D$11:$D$10000,"<>Unsig_Int",DB_Segment!$D$11:$D$10000,"<>"),"")) -> 0.5
C12: Central to Cutting | D12: Bikeway_2 | E12: 10' wide 7' Bike Lane 3' Diag Cross Hatch | F12: =IF(I12=0,J12,I12) -> 103 | G12: 0.5 | H12: =IF(D12="","Error",IF(OR(D12="Roadway",D12="Bikeway_1",D12="Bikeway_2",D12="Pedestrian_1",D12="Pedestrian_2"),F12*G12*5280,F12*G12)) -> 271920 | I12: =IF(LEFT($D12,3)="Roa",INDEX(DB_Roadway!$E$11:$E$10000,MATCH($E12,DB_Roadway!$C$11:$C$10000,0),1),IF(LEFT($D12,3)="Bik",INDEX(DB_Bikeway!$E$11:$E$10000,MATCH($E12,DB_Bikeway!$C$11:$C$10000,0),1),IF(LEFT($D12,3)="Ped",INDEX(DB_Pedestrian!$E$11:$E$10000,MATCH($E12,DB_Pedestrian!$C$11:$C$10000,0),1),IF(LEFT($D12,3)="Sig",INDEX(DB_Sig_Int!$E$11:$E$10000,MATCH($E12,DB_Sig_Int!$C$11:$C$10000,0),1),IF(LEFT($D12,3)="Uns",INDEX(DB_Unsig_Int!$E$11:$E$10000,MATCH($E12,DB_Unsig_Int!$C$11:$C$10000,0),1),IF(LEFT($D12,3)="Mis",INDEX(DB_Misc!$E$11:$E$10000,MATCH($E12,DB_Misc!$C$11:$C$10000,0),1),"Error")))))) -> 103 | J12: =IF(LEFT($D12,3)="Roa",INDEX(DB_Roadway!$D$11:$D$10000,MATCH($E12,DB_Roadway!$C$11:$C$10000,0),1),IF(LEFT($D12,3)="Bik",INDEX(DB_Bikeway!$D$11:$D$10000,MATCH($E12,DB_Bikeway!$C$11:$C$10000,0),1),IF(LEFT($D12,3)="Ped",INDEX(DB_Pedestrian!$D$11:$D$10000,MATCH($E12,DB_Pedestrian!$C$11:$C$10000,0),1),IF(LEFT($D12,3)="Sig",INDEX(DB_Sig_Int!$D$11:$D$10000,MATCH($E12,DB_Sig_Int!$C$11:$C$10000,0),1),IF(LEFT($D12,3)="Uns",INDEX(DB_Unsig_Int!$D$11:$D$10000,MATCH($E12,DB_Unsig_Int!$C$11:$C$10000,0),1),IF(LEFT($D12,3)="Mis",INDEX(DB_Misc!$D$11:$D$10000,MATCH($E12,DB_Misc!$C$11:$C$10000,0),1),"Error")))))) -> 0 | K12: =IF(OR(C12="",D12=""),"",IF(C12<>C11,SUMIFS($G$11:$G$10000,$C$11:$C$10000,C12,DB_Segment!$D$11:$D$10000,"<>Misc",DB_Segment!$D$11:$D$10000,"<>Sig_Int",DB_Segment!$D$11:$D$10000,"<>Unsig_Int")/COUNTIFS($C$11:$C$10000,C12,DB_Segment!$D$11:$D$10000,"<>Misc",DB_Segment!$D$11:$D$10000,"<>Sig_Int",DB_Segment!$D$11:$D$10000,"<>Unsig_Int",DB_Segment!$D$11:$D$10000,"<>"),"")) -> 
C13: Central to Cutting | D13: Pedestrian_1 | E13: 10' wide 5' Concrete Sidewalk 5' Raised Planter | F13: =IF(I13=0,J13,I13) -> 105 | G13: 0.5 | H13: =IF(D13="","Error",IF(OR(D13="Roadway",D13="Bikeway_1",D13="Bikeway_2",D13="Pedestrian_1",D13="Pedestrian_2"),F13*G13*5280,F13*G13)) -> 277200 | I13: =IF(LEFT($D13,3)="Roa",INDEX(DB_Roadway!$E$11:$E$10000,MATCH($E13,DB_Roadway!$C$11:$C$10000,0),1),IF(LEFT($D13,3)="Bik",INDEX(DB_Bikeway!$E$11:$E$10000,MATCH($E13,DB_Bikeway!$C$11:$C$10000,0),1),IF(LEFT($D13,3)="Ped",INDEX(DB_Pedestrian!$E$11:$E$10000,MATCH($E13,DB_Pedestrian!$C$11:$C$10000,0),1),IF(LEFT($D13,3)="Sig",INDEX(DB_Sig_Int!$E$11:$E$10000,MATCH($E13,DB_Sig_Int!$C$11:$C$10000,0),1),IF(LEFT($D13,3)="Uns",INDEX(DB_Unsig_Int!$E$11:$E$10000,MATCH($E13,DB_Unsig_Int!$C$11:$C$10000,0),1),IF(LEFT($D13,3)="Mis",INDEX(DB_Misc!$E$11:$E$10000,MATCH($E13,DB_Misc!$C$11:$C$10000,0),1),"Error")))))) -> 105 | J13: =IF(LEFT($D13,3)="Roa",INDEX(DB_Roadway!$D$11:$D$10000,MATCH($E13,DB_Roadway!$C$11:$C$10000,0),1),IF(LEFT($D13,3)="Bik",INDEX(DB_Bikeway!$D$11:$D$10000,MATCH($E13,DB_Bikeway!$C$11:$C$10000,0),1),IF(LEFT($D13,3)="Ped",INDEX(DB_Pedestrian!$D$11:$D$10000,MATCH($E13,DB_Pedestrian!$C$11:$C$10000,0),1),IF(LEFT($D13,3)="Sig",INDEX(DB_Sig_Int!$D$11:$D$10000,MATCH($E13,DB_Sig_Int!$C$11:$C$10000,0),1),IF(LEFT($D13,3)="Uns",INDEX(DB_Unsig_Int!$D$11:$D$10000,MATCH($E13,DB_Unsig_Int!$C$11:$C$10000,0),1),IF(LEFT($D13,3)="Mis",INDEX(DB_Misc!$D$11:$D$10000,MATCH($E13,DB_Misc!$C$11:$C$10000,0),1),"Error")))))) -> 0 | K13: =IF(OR(C13="",D13=""),"",IF(C13<>C12,SUMIFS($G$11:$G$10000,$C$11:$C$10000,C13,DB_Segment!$D$11:$D$10000,"<>Misc",DB_Segment!$D$11:$D$10000,"<>Sig_Int",DB_Segment!$D$11:$D$10000,"<>Unsig_Int")/COUNTIFS($C$11:$C$10000,C13,DB_Segment!$D$11:$D$10000,"<>Misc",DB_Segment!$D$11:$D$10000,"<>Sig_Int",DB_Segment!$D$11:$D$10000,"<>Unsig_Int",DB_Segment!$D$11:$D$10000,"<>"),"")) -> 
C14: Central to Cutting | D14: Pedestrian_2 | E14: 10' wide 7' Concrete Sidewalk 3' Raised Planter | F14: =IF(I14=0,J14,I14) -> 103 | G14: 0.5 | H14: =IF(D14="","Error",IF(OR(D14="Roadway",D14="Bikeway_1",D14="Bikeway_2",D14="Pedestrian_1",D14="Pedestrian_2"),F14*G14*5280,F14*G14)) -> 271920 | I14: =IF(LEFT($D14,3)="Roa",INDEX(DB_Roadway!$E$11:$E$10000,MATCH($E14,DB_Roadway!$C$11:$C$10000,0),1),IF(LEFT($D14,3)="Bik",INDEX(DB_Bikeway!$E$11:$E$10000,MATCH($E14,DB_Bikeway!$C$11:$C$10000,0),1),IF(LEFT($D14,3)="Ped",INDEX(DB_Pedestrian!$E$11:$E$10000,MATCH($E14,DB_Pedestrian!$C$11:$C$10000,0),1),IF(LEFT($D14,3)="Sig",INDEX(DB_Sig_Int!$E$11:$E$10000,MATCH($E14,DB_Sig_Int!$C$11:$C$10000,0),1),IF(LEFT($D14,3)="Uns",INDEX(DB_Unsig_Int!$E$11:$E$10000,MATCH($E14,DB_Unsig_Int!$C$11:$C$10000,0),1),IF(LEFT($D14,3)="Mis",INDEX(DB_Misc!$E$11:$E$10000,MATCH($E14,DB_Misc!$C$11:$C$10000,0),1),"Error")))))) -> 103 | J14: =IF(LEFT($D14,3)="Roa",INDEX(DB_Roadway!$D$11:$D$10000,MATCH($E14,DB_Roadway!$C$11:$C$10000,0),1),IF(LEFT($D14,3)="Bik",INDEX(DB_Bikeway!$D$11:$D$10000,MATCH($E14,DB_Bikeway!$C$11:$C$10000,0),1),IF(LEFT($D14,3)="Ped",INDEX(DB_Pedestrian!$D$11:$D$10000,MATCH($E14,DB_Pedestrian!$C$11:$C$10000,0),1),IF(LEFT($D14,3)="Sig",INDEX(DB_Sig_Int!$D$11:$D$10000,MATCH($E14,DB_Sig_Int!$C$11:$C$10000,0),1),IF(LEFT($D14,3)="Uns",INDEX(DB_Unsig_Int!$D$11:$D$10000,MATCH($E14,DB_Unsig_Int!$C$11:$C$10000,0),1),IF(LEFT($D14,3)="Mis",INDEX(DB_Misc!$D$11:$D$10000,MATCH($E14,DB_Misc!$C$11:$C$10000,0),1),"Error")))))) -> 0 | K14: =IF(OR(C14="",D14=""),"",IF(C14<>C13,SUMIFS($G$11:$G$10000,$C$11:$C$10000,C14,DB_Segment!$D$11:$D$10000,"<>Misc",DB_Segment!$D$11:$D$10000,"<>Sig_Int",DB_Segment!$D$11:$D$10000,"<>Unsig_Int")/COUNTIFS($C$11:$C$10000,C14,DB_Segment!$D$11:$D$10000,"<>Misc",DB_Segment!$D$11:$D$10000,"<>Sig_Int",DB_Segment!$D$11:$D$10000,"<>Unsig_Int",DB_Segment!$D$11:$D$10000,"<>"),"")) -> 
C15: Central to Cutting | D15: Roadway | E15: 60' Roadway Slurry Seal | F15: =IF(I15=0,J15,I15) -> 441.9227701 | G15: 0.5 | H15: =IF(D15="","Error",IF(OR(D15="Roadway",D15="Bikeway_1",D15="Bikeway_2",D15="Pedestrian_1",D15="Pedestrian_2"),F15*G15*5280,F15*G15)) -> 1166676.113 | I15: =IF(LEFT($D15,3)="Roa",INDEX(DB_Roadway!$E$11:$E$10000,MATCH($E15,DB_Roadway!$C$11:$C$10000,0),1),IF(LEFT($D15,3)="Bik",INDEX(DB_Bikeway!$E$11:$E$10000,MATCH($E15,DB_Bikeway!$C$11:$C$10000,0),1),IF(LEFT($D15,3)="Ped",INDEX(DB_Pedestrian!$E$11:$E$10000,MATCH($E15,DB_Pedestrian!$C$11:$C$10000,0),1),IF(LEFT($D15,3)="Sig",INDEX(DB_Sig_Int!$E$11:$E$10000,MATCH($E15,DB_Sig_Int!$C$11:$C$10000,0),1),IF(LEFT($D15,3)="Uns",INDEX(DB_Unsig_Int!$E$11:$E$10000,MATCH($E15,DB_Unsig_Int!$C$11:$C$10000,0),1),IF(LEFT($D15,3)="Mis",INDEX(DB_Misc!$E$11:$E$10000,MATCH($E15,DB_Misc!$C$11:$C$10000,0),1),"Error")))))) -> 0 | J15: =IF(LEFT($D15,3)="Roa",INDEX(DB_Roadway!$D$11:$D$10000,MATCH($E15,DB_Roadway!$C$11:$C$10000,0),1),IF(LEFT($D15,3)="Bik",INDEX(DB_Bikeway!$D$11:$D$10000,MATCH($E15,DB_Bikeway!$C$11:$C$10000,0),1),IF(LEFT($D15,3)="Ped",INDEX(DB_Pedestrian!$D$11:$D$10000,MATCH($E15,DB_Pedestrian!$C$11:$C$10000,0),1),IF(LEFT($D15,3)="Sig",INDEX(DB_Sig_Int!$D$11:$D$10000,MATCH($E15,DB_Sig_Int!$C$11:$C$10000,0),1),IF(LEFT($D15,3)="Uns",INDEX(DB_Unsig_Int!$D$11:$D$10000,MATCH($E15,DB_Unsig_Int!$C$11:$C$10000,0),1),IF(LEFT($D15,3)="Mis",INDEX(DB_Misc!$D$11:$D$10000,MATCH($E15,DB_Misc!$C$11:$C$10000,0),1),"Error")))))) -> 441.9227701 | K15: =IF(OR(C15="",D15=""),"",IF(C15<>C14,SUMIFS($G$11:$G$10000,$C$11:$C$10000,C15,DB_Segment!$D$11:$D$10000,"<>Misc",DB_Segment!$D$11:$D$10000,"<>Sig_Int",DB_Segment!$D$11:$D$10000,"<>Unsig_Int")/COUNTIFS($C$11:$C$10000,C15,DB_Segment!$D$11:$D$10000,"<>Misc",DB_Segment!$D$11:$D$10000,"<>Sig_Int",DB_Segment!$D$11:$D$10000,"<>Unsig_Int",DB_Segment!$D$11:$D$10000,"<>"),"")) -> 
C16: Solano Avenue to Central Avenue | D16: Bikeway_1 | E16: 8' Cycle Track | F16: =IF(I16=0,J16,I16) -> 200.7351697 | G16: 1 | H16: =IF(D16="","Error",IF(OR(D16="Roadway",D16="Bikeway_1",D16="Bikeway_2",D16="Pedestrian_1",D16="Pedestrian_2"),F16*G16*5280,F16*G16)) -> 1059881.696 | I16: =IF(LEFT($D16,3)="Roa",INDEX(DB_Roadway!$E$11:$E$10000,MATCH($E16,DB_Roadway!$C$11:$C$10000,0),1),IF(LEFT($D16,3)="Bik",INDEX(DB_Bikeway!$E$11:$E$10000,MATCH($E16,DB_Bikeway!$C$11:$C$10000,0),1),IF(LEFT($D16,3)="Ped",INDEX(DB_Pedestrian!$E$11:$E$10000,MATCH($E16,DB_Pedestrian!$C$11:$C$10000,0),1),IF(LEFT($D16,3)="Sig",INDEX(DB_Sig_Int!$E$11:$E$10000,MATCH($E16,DB_Sig_Int!$C$11:$C$10000,0),1),IF(LEFT($D16,3)="Uns",INDEX(DB_Unsig_Int!$E$11:$E$10000,MATCH($E16,DB_Unsig_Int!$C$11:$C$10000,0),1),IF(LEFT($D16,3)="Mis",INDEX(DB_Misc!$E$11:$E$10000,MATCH($E16,DB_Misc!$C$11:$C$10000,0),1),"Error")))))) -> 0 | J16: =IF(LEFT($D16,3)="Roa",INDEX(DB_Roadway!$D$11:$D$10000,MATCH($E16,DB_Roadway!$C$11:$C$10000,0),1),IF(LEFT($D16,3)="Bik",INDEX(DB_Bikeway!$D$11:$D$10000,MATCH($E16,DB_Bikeway!$C$11:$C$10000,0),1),IF(LEFT($D16,3)="Ped",INDEX(DB_Pedestrian!$D$11:$D$10000,MATCH($E16,DB_Pedestrian!$C$11:$C$10000,0),1),IF(LEFT($D16,3)="Sig",INDEX(DB_Sig_Int!$D$11:$D$10000,MATCH($E16,DB_Sig_Int!$C$11:$C$10000,0),1),IF(LEFT($D16,3)="Uns",INDEX(DB_Unsig_Int!$D$11:$D$10000,MATCH($E16,DB_Unsig_Int!$C$11:$C$10000,0),1),IF(LEFT($D16,3)="Mis",INDEX(DB_Misc!$D$11:$D$10000,MATCH($E16,DB_Misc!$C$11:$C$10000,0),1),"Error")))))) -> 200.7351697 | K16: =IF(OR(C16="",D16=""),"",IF(C16<>C15,SUMIFS($G$11:$G$10000,$C$11:$C$10000,C16,DB_Segment!$D$11:$D$10000,"<>Misc",DB_Segment!$D$11:$D$10000,"<>Sig_Int",DB_Segment!$D$11:$D$10000,"<>Unsig_Int")/COUNTIFS($C$11:$C$10000,C16,DB_Segment!$D$11:$D$10000,"<>Misc",DB_Segment!$D$11:$D$10000,"<>Sig_Int",DB_Segment!$D$11:$D$10000,"<>Unsig_Int",DB_Segment!$D$11:$D$10000,"<>"),"")) -> 1
C17: Solano Avenue to Central Avenue | D17: Bikeway_2 | E17: 8' Cycle Track | F17: =IF(I17=0,J17,I17) -> 200.7351697 | G17: 1 | H17: =IF(D17="","Error",IF(OR(D17="Roadway",D17="Bikeway_1",D17="Bikeway_2",D17="Pedestrian_1",D17="Pedestrian_2"),F17*G17*5280,F17*G17)) -> 1059881.696 | I17: =IF(LEFT($D17,3)="Roa",INDEX(DB_Roadway!$E$11:$E$10000,MATCH($E17,DB_Roadway!$C$11:$C$10000,0),1),IF(LEFT($D17,3)="Bik",INDEX(DB_Bikeway!$E$11:$E$10000,MATCH($E17,DB_Bikeway!$C$11:$C$10000,0),1),IF(LEFT($D17,3)="Ped",INDEX(DB_Pedestrian!$E$11:$E$10000,MATCH($E17,DB_Pedestrian!$C$11:$C$10000,0),1),IF(LEFT($D17,3)="Sig",INDEX(DB_Sig_Int!$E$11:$E$10000,MATCH($E17,DB_Sig_Int!$C$11:$C$10000,0),1),IF(LEFT($D17,3)="Uns",INDEX(DB_Unsig_Int!$E$11:$E$10000,MATCH($E17,DB_Unsig_Int!$C$11:$C$10000,0),1),IF(LEFT($D17,3)="Mis",INDEX(DB_Misc!$E$11:$E$10000,MATCH($E17,DB_Misc!$C$11:$C$10000,0),1),"Error")))))) -> 0 | J17: =IF(LEFT($D17,3)="Roa",INDEX(DB_Roadway!$D$11:$D$10000,MATCH($E17,DB_Roadway!$C$11:$C$10000,0),1),IF(LEFT($D17,3)="Bik",INDEX(DB_Bikeway!$D$11:$D$10000,MATCH($E17,DB_Bikeway!$C$11:$C$10000,0),1),IF(LEFT($D17,3)="Ped",INDEX(DB_Pedestrian!$D$11:$D$10000,MATCH($E17,DB_Pedestrian!$C$11:$C$10000,0),1),IF(LEFT($D17,3)="Sig",INDEX(DB_Sig_Int!$D$11:$D$10000,MATCH($E17,DB_Sig_Int!$C$11:$C$10000,0),1),IF(LEFT($D17,3)="Uns",INDEX(DB_Unsig_Int!$D$11:$D$10000,MATCH($E17,DB_Unsig_Int!$C$11:$C$10000,0),1),IF(LEFT($D17,3)="Mis",INDEX(DB_Misc!$D$11:$D$10000,MATCH($E17,DB_Misc!$C$11:$C$10000,0),1),"Error")))))) -> 200.7351697 | K17: =IF(OR(C17="",D17=""),"",IF(C17<>C16,SUMIFS($G$11:$G$10000,$C$11:$C$10000,C17,DB_Segment!$D$11:$D$10000,"<>Misc",DB_Segment!$D$11:$D$10000,"<>Sig_Int",DB_Segment!$D$11:$D$10000,"<>Unsig_Int")/COUNTIFS($C$11:$C$10000,C17,DB_Segment!$D$11:$D$10000,"<>Misc",DB_Segment!$D$11:$D$10000,"<>Sig_Int",DB_Segment!$D$11:$D$10000,"<>Unsig_Int",DB_Segment!$D$11:$D$10000,"<>"),"")) -> 
C18: Solano Avenue to Central Avenue | D18: Misc | E18: 15' Street Light | F18: =IF(I18=0,J18,I18) -> 5000 | G18: 20 | H18: =IF(D18="","Error",IF(OR(D18="Roadway",D18="Bikeway_1",D18="Bikeway_2",D18="Pedestrian_1",D18="Pedestrian_2"),F18*G18*5280,F18*G18)) -> 100000 | I18: =IF(LEFT($D18,3)="Roa",INDEX(DB_Roadway!$E$11:$E$10000,MATCH($E18,DB_Roadway!$C$11:$C$10000,0),1),IF(LEFT($D18,3)="Bik",INDEX(DB_Bikeway!$E$11:$E$10000,MATCH($E18,DB_Bikeway!$C$11:$C$10000,0),1),IF(LEFT($D18,3)="Ped",INDEX(DB_Pedestrian!$E$11:$E$10000,MATCH($E18,DB_Pedestrian!$C$11:$C$10000,0),1),IF(LEFT($D18,3)="Sig",INDEX(DB_Sig_Int!$E$11:$E$10000,MATCH($E18,DB_Sig_Int!$C$11:$C$10000,0),1),IF(LEFT($D18,3)="Uns",INDEX(DB_Unsig_Int!$E$11:$E$10000,MATCH($E18,DB_Unsig_Int!$C$11:$C$10000,0),1),IF(LEFT($D18,3)="Mis",INDEX(DB_Misc!$E$11:$E$10000,MATCH($E18,DB_Misc!$C$11:$C$10000,0),1),"Error")))))) -> 5000 | J18: =IF(LEFT($D18,3)="Roa",INDEX(DB_Roadway!$D$11:$D$10000,MATCH($E18,DB_Roadway!$C$11:$C$10000,0),1),IF(LEFT($D18,3)="Bik",INDEX(DB_Bikeway!$D$11:$D$10000,MATCH($E18,DB_Bikeway!$C$11:$C$10000,0),1),IF(LEFT($D18,3)="Ped",INDEX(DB_Pedestrian!$D$11:$D$10000,MATCH($E18,DB_Pedestrian!$C$11:$C$10000,0),1),IF(LEFT($D18,3)="Sig",INDEX(DB_Sig_Int!$D$11:$D$10000,MATCH($E18,DB_Sig_Int!$C$11:$C$10000,0),1),IF(LEFT($D18,3)="Uns",INDEX(DB_Unsig_Int!$D$11:$D$10000,MATCH($E18,DB_Unsig_Int!$C$11:$C$10000,0),1),IF(LEFT($D18,3)="Mis",INDEX(DB_Misc!$D$11:$D$10000,MATCH($E18,DB_Misc!$C$11:$C$10000,0),1),"Error")))))) -> 0 | K18: =IF(OR(C18="",D18=""),"",IF(C18<>C17,SUMIFS($G$11:$G$10000,$C$11:$C$10000,C18,DB_Segment!$D$11:$D$10000,"<>Misc",DB_Segment!$D$11:$D$10000,"<>Sig_Int",DB_Segment!$D$11:$D$10000,"<>Unsig_Int")/COUNTIFS($C$11:$C$10000,C18,DB_Segment!$D$11:$D$10000,"<>Misc",DB_Segment!$D$11:$D$10000,"<>Sig_Int",DB_Segment!$D$11:$D$10000,"<>Unsig_Int",DB_Segment!$D$11:$D$10000,"<>"),"")) -> 
C19: Solano Avenue to Central Avenue | D19: Misc | E19: 3' Circular Planter | F19: =IF(I19=0,J19,I19) -> 300 | G19: 20 | H19: =IF(D19="","Error",IF(OR(D19="Roadway",D19="Bikeway_1",D19="Bikeway_2",D19="Pedestrian_1",D19="Pedestrian_2"),F19*G19*5280,F19*G19)) -> 6000 | I19: =IF(LEFT($D19,3)="Roa",INDEX(DB_Roadway!$E$11:$E$10000,MATCH($E19,DB_Roadway!$C$11:$C$10000,0),1),IF(LEFT($D19,3)="Bik",INDEX(DB_Bikeway!$E$11:$E$10000,MATCH($E19,DB_Bikeway!$C$11:$C$10000,0),1),IF(LEFT($D19,3)="Ped",INDEX(DB_Pedestrian!$E$11:$E$10000,MATCH($E19,DB_Pedestrian!$C$11:$C$10000,0),1),IF(LEFT($D19,3)="Sig",INDEX(DB_Sig_Int!$E$11:$E$10000,MATCH($E19,DB_Sig_Int!$C$11:$C$10000,0),1),IF(LEFT($D19,3)="Uns",INDEX(DB_Unsig_Int!$E$11:$E$10000,MATCH($E19,DB_Unsig_Int!$C$11:$C$10000,0),1),IF(LEFT($D19,3)="Mis",INDEX(DB_Misc!$E$11:$E$10000,MATCH($E19,DB_Misc!$C$11:$C$10000,0),1),"Error")))))) -> 300 | J19: =IF(LEFT($D19,3)="Roa",INDEX(DB_Roadway!$D$11:$D$10000,MATCH($E19,DB_Roadway!$C$11:$C$10000,0),1),IF(LEFT($D19,3)="Bik",INDEX(DB_Bikeway!$D$11:$D$10000,MATCH($E19,DB_Bikeway!$C$11:$C$10000,0),1),IF(LEFT($D19,3)="Ped",INDEX(DB_Pedestrian!$D$11:$D$10000,MATCH($E19,DB_Pedestrian!$C$11:$C$10000,0),1),IF(LEFT($D19,3)="Sig",INDEX(DB_Sig_Int!$D$11:$D$10000,MATCH($E19,DB_Sig_Int!$C$11:$C$10000,0),1),IF(LEFT($D19,3)="Uns",INDEX(DB_Unsig_Int!$D$11:$D$10000,MATCH($E19,DB_Unsig_Int!$C$11:$C$10000,0),1),IF(LEFT($D19,3)="Mis",INDEX(DB_Misc!$D$11:$D$10000,MATCH($E19,DB_Misc!$C$11:$C$10000,0),1),"Error")))))) -> 0 | K19: =IF(OR(C19="",D19=""),"",IF(C19<>C18,SUMIFS($G$11:$G$10000,$C$11:$C$10000,C19,DB_Segment!$D$11:$D$10000,"<>Misc",DB_Segment!$D$11:$D$10000,"<>Sig_Int",DB_Segment!$D$11:$D$10000,"<>Unsig_Int")/COUNTIFS($C$11:$C$10000,C19,DB_Segment!$D$11:$D$10000,"<>Misc",DB_Segment!$D$11:$D$10000,"<>Sig_Int",DB_Segment!$D$11:$D$10000,"<>Unsig_Int",DB_Segment!$D$11:$D$10000,"<>"),"")) -> 
C20: Solano Avenue to Central Avenue | D20: Misc | E20: 3x3' Planter | F20: =IF(I20=0,J20,I20) -> 350 | G20: 0 | H20: =IF(D20="","Error",IF(OR(D20="Roadway",D20="Bikeway_1",D20="Bikeway_2",D20="Pedestrian_1",D20="Pedestrian_2"),F20*G20*5280,F20*G20)) -> 0 | I20: =IF(LEFT($D20,3)="Roa",INDEX(DB_Roadway!$E$11:$E$10000,MATCH($E20,DB_Roadway!$C$11:$C$10000,0),1),IF(LEFT($D20,3)="Bik",INDEX(DB_Bikeway!$E$11:$E$10000,MATCH($E20,DB_Bikeway!$C$11:$C$10000,0),1),IF(LEFT($D20,3)="Ped",INDEX(DB_Pedestrian!$E$11:$E$10000,MATCH($E20,DB_Pedestrian!$C$11:$C$10000,0),1),IF(LEFT($D20,3)="Sig",INDEX(DB_Sig_Int!$E$11:$E$10000,MATCH($E20,DB_Sig_Int!$C$11:$C$10000,0),1),IF(LEFT($D20,3)="Uns",INDEX(DB_Unsig_Int!$E$11:$E$10000,MATCH($E20,DB_Unsig_Int!$C$11:$C$10000,0),1),IF(LEFT($D20,3)="Mis",INDEX(DB_Misc!$E$11:$E$10000,MATCH($E20,DB_Misc!$C$11:$C$10000,0),1),"Error")))))) -> 350 | J20: =IF(LEFT($D20,3)="Roa",INDEX(DB_Roadway!$D$11:$D$10000,MATCH($E20,DB_Roadway!$C$11:$C$10000,0),1),IF(LEFT($D20,3)="Bik",INDEX(DB_Bikeway!$D$11:$D$10000,MATCH($E20,DB_Bikeway!$C$11:$C$10000,0),1),IF(LEFT($D20,3)="Ped",INDEX(DB_Pedestrian!$D$11:$D$10000,MATCH($E20,DB_Pedestrian!$C$11:$C$10000,0),1),IF(LEFT($D20,3)="Sig",INDEX(DB_Sig_Int!$D$11:$D$10000,MATCH($E20,DB_Sig_Int!$C$11:$C$10000,0),1),IF(LEFT($D20,3)="Uns",INDEX(DB_Unsig_Int!$D$11:$D$10000,MATCH($E20,DB_Unsig_Int!$C$11:$C$10000,0),1),IF(LEFT($D20,3)="Mis",INDEX(DB_Misc!$D$11:$D$10000,MATCH($E20,DB_Misc!$C$11:$C$10000,0),1),"Error")))))) -> 0 | K20: =IF(OR(C20="",D20=""),"",IF(C20<>C19,SUMIFS($G$11:$G$10000,$C$11:$C$10000,C20,DB_Segment!$D$11:$D$10000,"<>Misc",DB_Segment!$D$11:$D$10000,"<>Sig_Int",DB_Segment!$D$11:$D$10000,"<>Unsig_Int")/COUNTIFS($C$11:$C$10000,C20,DB_Segment!$D$11:$D$10000,"<>Misc",DB_Segment!$D$11:$D$10000,"<>Sig_Int",DB_Segment!$D$11:$D$10000,"<>Unsig_Int",DB_Segment!$D$11:$D$10000,"<>"),"")) -> 
C21: Solano Avenue to Central Avenue | D21: Misc | E21: 3x5' Planter | F21: =IF(I21=0,J21,I21) -> 550 | G21: 0 | H21: =IF(D21="","Error",IF(OR(D21="Roadway",D21="Bikeway_1",D21="Bikeway_2",D21="Pedestrian_1",D21="Pedestrian_2"),F21*G21*5280,F21*G21)) -> 0 | I21: =IF(LEFT($D21,3)="Roa",INDEX(DB_Roadway!$E$11:$E$10000,MATCH($E21,DB_Roadway!$C$11:$C$10000,0),1),IF(LEFT($D21,3)="Bik",INDEX(DB_Bikeway!$E$11:$E$10000,MATCH($E21,DB_Bikeway!$C$11:$C$10000,0),1),IF(LEFT($D21,3)="Ped",INDEX(DB_Pedestrian!$E$11:$E$10000,MATCH($E21,DB_Pedestrian!$C$11:$C$10000,0),1),IF(LEFT($D21,3)="Sig",INDEX(DB_Sig_Int!$E$11:$E$10000,MATCH($E21,DB_Sig_Int!$C$11:$C$10000,0),1),IF(LEFT($D21,3)="Uns",INDEX(DB_Unsig_Int!$E$11:$E$10000,MATCH($E21,DB_Unsig_Int!$C$11:$C$10000,0),1),IF(LEFT($D21,3)="Mis",INDEX(DB_Misc!$E$11:$E$10000,MATCH($E21,DB_Misc!$C$11:$C$10000,0),1),"Error")))))) -> 550 | J21: =IF(LEFT($D21,3)="Roa",INDEX(DB_Roadway!$D$11:$D$10000,MATCH($E21,DB_Roadway!$C$11:$C$10000,0),1),IF(LEFT($D21,3)="Bik",INDEX(DB_Bikeway!$D$11:$D$10000,MATCH($E21,DB_Bikeway!$C$11:$C$10000,0),1),IF(LEFT($D21,3)="Ped",INDEX(DB_Pedestrian!$D$11:$D$10000,MATCH($E21,DB_Pedestrian!$C$11:$C$10000,0),1),IF(LEFT($D21,3)="Sig",INDEX(DB_Sig_Int!$D$11:$D$10000,MATCH($E21,DB_Sig_Int!$C$11:$C$10000,0),1),IF(LEFT($D21,3)="Uns",INDEX(DB_Unsig_Int!$D$11:$D$10000,MATCH($E21,DB_Unsig_Int!$C$11:$C$10000,0),1),IF(LEFT($D21,3)="Mis",INDEX(DB_Misc!$D$11:$D$10000,MATCH($E21,DB_Misc!$C$11:$C$10000,0),1),"Error")))))) -> 0 | K21: =IF(OR(C21="",D21=""),"",IF(C21<>C20,SUMIFS($G$11:$G$10000,$C$11:$C$10000,C21,DB_Segment!$D$11:$D$10000,"<>Misc",DB_Segment!$D$11:$D$10000,"<>Sig_Int",DB_Segment!$D$11:$D$10000,"<>Unsig_Int")/COUNTIFS($C$11:$C$10000,C21,DB_Segment!$D$11:$D$10000,"<>Misc",DB_Segment!$D$11:$D$10000,"<>Sig_Int",DB_Segment!$D$11:$D$10000,"<>Unsig_Int",DB_Segment!$D$11:$D$10000,"<>"),"")) -> 
C22: Solano Avenue to Central Avenue | D22: Misc | E22: Bench | F22: =IF(I22=0,J22,I22) -> 3000 | G22: 10 | H22: =IF(D22="","Error",IF(OR(D22="Roadway",D22="Bikeway_1",D22="Bikeway_2",D22="Pedestrian_1",D22="Pedestrian_2"),F22*G22*5280,F22*G22)) -> 30000 | I22: =IF(LEFT($D22,3)="Roa",INDEX(DB_Roadway!$E$11:$E$10000,MATCH($E22,DB_Roadway!$C$11:$C$10000,0),1),IF(LEFT($D22,3)="Bik",INDEX(DB_Bikeway!$E$11:$E$10000,MATCH($E22,DB_Bikeway!$C$11:$C$10000,0),1),IF(LEFT($D22,3)="Ped",INDEX(DB_Pedestrian!$E$11:$E$10000,MATCH($E22,DB_Pedestrian!$C$11:$C$10000,0),1),IF(LEFT($D22,3)="Sig",INDEX(DB_Sig_Int!$E$11:$E$10000,MATCH($E22,DB_Sig_Int!$C$11:$C$10000,0),1),IF(LEFT($D22,3)="Uns",INDEX(DB_Unsig_Int!$E$11:$E$10000,MATCH($E22,DB_Unsig_Int!$C$11:$C$10000,0),1),IF(LEFT($D22,3)="Mis",INDEX(DB_Misc!$E$11:$E$10000,MATCH($E22,DB_Misc!$C$11:$C$10000,0),1),"Error")))))) -> 3000 | J22: =IF(LEFT($D22,3)="Roa",INDEX(DB_Roadway!$D$11:$D$10000,MATCH($E22,DB_Roadway!$C$11:$C$10000,0),1),IF(LEFT($D22,3)="Bik",INDEX(DB_Bikeway!$D$11:$D$10000,MATCH($E22,DB_Bikeway!$C$11:$C$10000,0),1),IF(LEFT($D22,3)="Ped",INDEX(DB_Pedestrian!$D$11:$D$10000,MATCH($E22,DB_Pedestrian!$C$11:$C$10000,0),1),IF(LEFT($D22,3)="Sig",INDEX(DB_Sig_Int!$D$11:$D$10000,MATCH($E22,DB_Sig_Int!$C$11:$C$10000,0),1),IF(LEFT($D22,3)="Uns",INDEX(DB_Unsig_Int!$D$11:$D$10000,MATCH($E22,DB_Unsig_Int!$C$11:$C$10000,0),1),IF(LEFT($D22,3)="Mis",INDEX(DB_Misc!$D$11:$D$10000,MATCH($E22,DB_Misc!$C$11:$C$10000,0),1),"Error")))))) -> 0 | K22: =IF(OR(C22="",D22=""),"",IF(C22<>C21,SUMIFS($G$11:$G$10000,$C$11:$C$10000,C22,DB_Segment!$D$11:$D$10000,"<>Misc",DB_Segment!$D$11:$D$10000,"<>Sig_Int",DB_Segment!$D$11:$D$10000,"<>Unsig_Int")/COUNTIFS($C$11:$C$10000,C22,DB_Segment!$D$11:$D$10000,"<>Misc",DB_Segment!$D$11:$D$10000,"<>Sig_Int",DB_Segment!$D$11:$D$10000,"<>Unsig_Int",DB_Segment!$D$11:$D$10000,"<>"),"")) -> 
C23: Solano Avenue to Central Avenue | D23: Misc | E23: Bike Parking | F23: =IF(I23=0,J23,I23) -> 3000 | G23: 0 | H23: =IF(D23="","Error",IF(OR(D23="Roadway",D23="Bikeway_1",D23="Bikeway_2",D23="Pedestrian_1",D23="Pedestrian_2"),F23*G23*5280,F23*G23)) -> 0 | I23: =IF(LEFT($D23,3)="Roa",INDEX(DB_Roadway!$E$11:$E$10000,MATCH($E23,DB_Roadway!$C$11:$C$10000,0),1),IF(LEFT($D23,3)="Bik",INDEX(DB_Bikeway!$E$11:$E$10000,MATCH($E23,DB_Bikeway!$C$11:$C$10000,0),1),IF(LEFT($D23,3)="Ped",INDEX(DB_Pedestrian!$E$11:$E$10000,MATCH($E23,DB_Pedestrian!$C$11:$C$10000,0),1),IF(LEFT($D23,3)="Sig",INDEX(DB_Sig_Int!$E$11:$E$10000,MATCH($E23,DB_Sig_Int!$C$11:$C$10000,0),1),IF(LEFT($D23,3)="Uns",INDEX(DB_Unsig_Int!$E$11:$E$10000,MATCH($E23,DB_Unsig_Int!$C$11:$C$10000,0),1),IF(LEFT($D23,3)="Mis",INDEX(DB_Misc!$E$11:$E$10000,MATCH($E23,DB_Misc!$C$11:$C$10000,0),1),"Error")))))) -> 3000 | J23: =IF(LEFT($D23,3)="Roa",INDEX(DB_Roadway!$D$11:$D$10000,MATCH($E23,DB_Roadway!$C$11:$C$10000,0),1),IF(LEFT($D23,3)="Bik",INDEX(DB_Bikeway!$D$11:$D$10000,MATCH($E23,DB_Bikeway!$C$11:$C$10000,0),1),IF(LEFT($D23,3)="Ped",INDEX(DB_Pedestrian!$D$11:$D$10000,MATCH($E23,DB_Pedestrian!$C$11:$C$10000,0),1),IF(LEFT($D23,3)="Sig",INDEX(DB_Sig_Int!$D$11:$D$10000,MATCH($E23,DB_Sig_Int!$C$11:$C$10000,0),1),IF(LEFT($D23,3)="Uns",INDEX(DB_Unsig_Int!$D$11:$D$10000,MATCH($E23,DB_Unsig_Int!$C$11:$C$10000,0),1),IF(LEFT($D23,3)="Mis",INDEX(DB_Misc!$D$11:$D$10000,MATCH($E23,DB_Misc!$C$11:$C$10000,0),1),"Error")))))) -> 0 | K23: =IF(OR(C23="",D23=""),"",IF(C23<>C22,SUMIFS($G$11:$G$10000,$C$11:$C$10000,C23,DB_Segment!$D$11:$D$10000,"<>Misc",DB_Segment!$D$11:$D$10000,"<>Sig_Int",DB_Segment!$D$11:$D$10000,"<>Unsig_Int")/COUNTIFS($C$11:$C$10000,C23,DB_Segment!$D$11:$D$10000,"<>Misc",DB_Segment!$D$11:$D$10000,"<>Sig_Int",DB_Segment!$D$11:$D$10000,"<>Unsig_Int",DB_Segment!$D$11:$D$10000,"<>"),"")) -> 
C24: Solano Avenue to Central Avenue | D24: Misc | E24: Phone Booth | F24: =IF(I24=0,J24,I24) -> 11000 | G24: 0 | H24: =IF(D24="","Error",IF(OR(D24="Roadway",D24="Bikeway_1",D24="Bikeway_2",D24="Pedestrian_1",D24="Pedestrian_2"),F24*G24*5280,F24*G24)) -> 0 | I24: =IF(LEFT($D24,3)="Roa",INDEX(DB_Roadway!$E$11:$E$10000,MATCH($E24,DB_Roadway!$C$11:$C$10000,0),1),IF(LEFT($D24,3)="Bik",INDEX(DB_Bikeway!$E$11:$E$10000,MATCH($E24,DB_Bikeway!$C$11:$C$10000,0),1),IF(LEFT($D24,3)="Ped",INDEX(DB_Pedestrian!$E$11:$E$10000,MATCH($E24,DB_Pedestrian!$C$11:$C$10000,0),1),IF(LEFT($D24,3)="Sig",INDEX(DB_Sig_Int!$E$11:$E$10000,MATCH($E24,DB_Sig_Int!$C$11:$C$10000,0),1),IF(LEFT($D24,3)="Uns",INDEX(DB_Unsig_Int!$E$11:$E$10000,MATCH($E24,DB_Unsig_Int!$C$11:$C$10000,0),1),IF(LEFT($D24,3)="Mis",INDEX(DB_Misc!$E$11:$E$10000,MATCH($E24,DB_Misc!$C$11:$C$10000,0),1),"Error")))))) -> 11000 | J24: =IF(LEFT($D24,3)="Roa",INDEX(DB_Roadway!$D$11:$D$10000,MATCH($E24,DB_Roadway!$C$11:$C$10000,0),1),IF(LEFT($D24,3)="Bik",INDEX(DB_Bikeway!$D$11:$D$10000,MATCH($E24,DB_Bikeway!$C$11:$C$10000,0),1),IF(LEFT($D24,3)="Ped",INDEX(DB_Pedestrian!$D$11:$D$10000,MATCH($E24,DB_Pedestrian!$C$11:$C$10000,0),1),IF(LEFT($D24,3)="Sig",INDEX(DB_Sig_Int!$D$11:$D$10000,MATCH($E24,DB_Sig_Int!$C$11:$C$10000,0),1),IF(LEFT($D24,3)="Uns",INDEX(DB_Unsig_Int!$D$11:$D$10000,MATCH($E24,DB_Unsig_Int!$C$11:$C$10000,0),1),IF(LEFT($D24,3)="Mis",INDEX(DB_Misc!$D$11:$D$10000,MATCH($E24,DB_Misc!$C$11:$C$10000,0),1),"Error")))))) -> 0 | K24: =IF(OR(C24="",D24=""),"",IF(C24<>C23,SUMIFS($G$11:$G$10000,$C$11:$C$10000,C24,DB_Segment!$D$11:$D$10000,"<>Misc",DB_Segment!$D$11:$D$10000,"<>Sig_Int",DB_Segment!$D$11:$D$10000,"<>Unsig_Int")/COUNTIFS($C$11:$C$10000,C24,DB_Segment!$D$11:$D$10000,"<>Misc",DB_Segment!$D$11:$D$10000,"<>Sig_Int",DB_Segment!$D$11:$D$10000,"<>Unsig_Int",DB_Segment!$D$11:$D$10000,"<>"),"")) -> 
C25: Solano Avenue to Central Avenue | D25: Misc | E25: Trash Can | F25: =IF(I25=0,J25,I25) -> 500 | G25: 0 | H25: =IF(D25="","Error",IF(OR(D25="Roadway",D25="Bikeway_1",D25="Bikeway_2",D25="Pedestrian_1",D25="Pedestrian_2"),F25*G25*5280,F25*G25)) -> 0 | I25: =IF(LEFT($D25,3)="Roa",INDEX(DB_Roadway!$E$11:$E$10000,MATCH($E25,DB_Roadway!$C$11:$C$10000,0),1),IF(LEFT($D25,3)="Bik",INDEX(DB_Bikeway!$E$11:$E$10000,MATCH($E25,DB_Bikeway!$C$11:$C$10000,0),1),IF(LEFT($D25,3)="Ped",INDEX(DB_Pedestrian!$E$11:$E$10000,MATCH($E25,DB_Pedestrian!$C$11:$C$10000,0),1),IF(LEFT($D25,3)="Sig",INDEX(DB_Sig_Int!$E$11:$E$10000,MATCH($E25,DB_Sig_Int!$C$11:$C$10000,0),1),IF(LEFT($D25,3)="Uns",INDEX(DB_Unsig_Int!$E$11:$E$10000,MATCH($E25,DB_Unsig_Int!$C$11:$C$10000,0),1),IF(LEFT($D25,3)="Mis",INDEX(DB_Misc!$E$11:$E$10000,MATCH($E25,DB_Misc!$C$11:$C$10000,0),1),"Error")))))) -> 500 | J25: =IF(LEFT($D25,3)="Roa",INDEX(DB_Roadway!$D$11:$D$10000,MATCH($E25,DB_Roadway!$C$11:$C$10000,0),1),IF(LEFT($D25,3)="Bik",INDEX(DB_Bikeway!$D$11:$D$10000,MATCH($E25,DB_Bikeway!$C$11:$C$10000,0),1),IF(LEFT($D25,3)="Ped",INDEX(DB_Pedestrian!$D$11:$D$10000,MATCH($E25,DB_Pedestrian!$C$11:$C$10000,0),1),IF(LEFT($D25,3)="Sig",INDEX(DB_Sig_Int!$D$11:$D$10000,MATCH($E25,DB_Sig_Int!$C$11:$C$10000,0),1),IF(LEFT($D25,3)="Uns",INDEX(DB_Unsig_Int!$D$11:$D$10000,MATCH($E25,DB_Unsig_Int!$C$11:$C$10000,0),1),IF(LEFT($D25,3)="Mis",INDEX(DB_Misc!$D$11:$D$10000,MATCH($E25,DB_Misc!$C$11:$C$10000,0),1),"Error")))))) -> 0 | K25: =IF(OR(C25="",D25=""),"",IF(C25<>C24,SUMIFS($G$11:$G$10000,$C$11:$C$10000,C25,DB_Segment!$D$11:$D$10000,"<>Misc",DB_Segment!$D$11:$D$10000,"<>Sig_Int",DB_Segment!$D$11:$D$10000,"<>Unsig_Int")/COUNTIFS($C$11:$C$10000,C25,DB_Segment!$D$11:$D$10000,"<>Misc",DB_Segment!$D$11:$D$10000,"<>Sig_Int",DB_Segment!$D$11:$D$10000,"<>Unsig_Int",DB_Segment!$D$11:$D$10000,"<>"),"")) -> 
C26: Solano Avenue to Central Avenue | D26: Pedestrian_1 | E26: 10' wide 5' Concrete Sidewalk 5' Raised Planter | F26: =IF(I26=0,J26,I26) -> 105 | G26: 1 | H26: =IF(D26="","Error",IF(OR(D26="Roadway",D26="Bikeway_1",D26="Bikeway_2",D26="Pedestrian_1",D26="Pedestrian_2"),F26*G26*5280,F26*G26)) -> 554400 | I26: =IF(LEFT($D26,3)="Roa",INDEX(DB_Roadway!$E$11:$E$10000,MATCH($E26,DB_Roadway!$C$11:$C$10000,0),1),IF(LEFT($D26,3)="Bik",INDEX(DB_Bikeway!$E$11:$E$10000,MATCH($E26,DB_Bikeway!$C$11:$C$10000,0),1),IF(LEFT($D26,3)="Ped",INDEX(DB_Pedestrian!$E$11:$E$10000,MATCH($E26,DB_Pedestrian!$C$11:$C$10000,0),1),IF(LEFT($D26,3)="Sig",INDEX(DB_Sig_Int!$E$11:$E$10000,MATCH($E26,DB_Sig_Int!$C$11:$C$10000,0),1),IF(LEFT($D26,3)="Uns",INDEX(DB_Unsig_Int!$E$11:$E$10000,MATCH($E26,DB_Unsig_Int!$C$11:$C$10000,0),1),IF(LEFT($D26,3)="Mis",INDEX(DB_Misc!$E$11:$E$10000,MATCH($E26,DB_Misc!$C$11:$C$10000,0),1),"Error")))))) -> 105 | J26: =IF(LEFT($D26,3)="Roa",INDEX(DB_Roadway!$D$11:$D$10000,MATCH($E26,DB_Roadway!$C$11:$C$10000,0),1),IF(LEFT($D26,3)="Bik",INDEX(DB_Bikeway!$D$11:$D$10000,MATCH($E26,DB_Bikeway!$C$11:$C$10000,0),1),IF(LEFT($D26,3)="Ped",INDEX(DB_Pedestrian!$D$11:$D$10000,MATCH($E26,DB_Pedestrian!$C$11:$C$10000,0),1),IF(LEFT($D26,3)="Sig",INDEX(DB_Sig_Int!$D$11:$D$10000,MATCH($E26,DB_Sig_Int!$C$11:$C$10000,0),1),IF(LEFT($D26,3)="Uns",INDEX(DB_Unsig_Int!$D$11:$D$10000,MATCH($E26,DB_Unsig_Int!$C$11:$C$10000,0),1),IF(LEFT($D26,3)="Mis",INDEX(DB_Misc!$D$11:$D$10000,MATCH($E26,DB_Misc!$C$11:$C$10000,0),1),"Error")))))) -> 0 | K26: =IF(OR(C26="",D26=""),"",IF(C26<>C25,SUMIFS($G$11:$G$10000,$C$11:$C$10000,C26,DB_Segment!$D$11:$D$10000,"<>Misc",DB_Segment!$D$11:$D$10000,"<>Sig_Int",DB_Segment!$D$11:$D$10000,"<>Unsig_Int")/COUNTIFS($C$11:$C$10000,C26,DB_Segment!$D$11:$D$10000,"<>Misc",DB_Segment!$D$11:$D$10000,"<>Sig_Int",DB_Segment!$D$11:$D$10000,"<>Unsig_Int",DB_Segment!$D$11:$D$10000,"<>"),"")) -> 
C27: Solano Avenue to Central Avenue | D27: Pedestrian_2 | E27: 10' Concrete Sidewalk | F27: =IF(I27=0,J27,I27) -> 135.2032726 | G27: 1 | H27: =IF(D27="","Error",IF(OR(D27="Roadway",D27="Bikeway_1",D27="Bikeway_2",D27="Pedestrian_1",D27="Pedestrian_2"),F27*G27*5280,F27*G27)) -> 713873.2795 | I27: =IF(LEFT($D27,3)="Roa",INDEX(DB_Roadway!$E$11:$E$10000,MATCH($E27,DB_Roadway!$C$11:$C$10000,0),1),IF(LEFT($D27,3)="Bik",INDEX(DB_Bikeway!$E$11:$E$10000,MATCH($E27,DB_Bikeway!$C$11:$C$10000,0),1),IF(LEFT($D27,3)="Ped",INDEX(DB_Pedestrian!$E$11:$E$10000,MATCH($E27,DB_Pedestrian!$C$11:$C$10000,0),1),IF(LEFT($D27,3)="Sig",INDEX(DB_Sig_Int!$E$11:$E$10000,MATCH($E27,DB_Sig_Int!$C$11:$C$10000,0),1),IF(LEFT($D27,3)="Uns",INDEX(DB_Unsig_Int!$E$11:$E$10000,MATCH($E27,DB_Unsig_Int!$C$11:$C$10000,0),1),IF(LEFT($D27,3)="Mis",INDEX(DB_Misc!$E$11:$E$10000,MATCH($E27,DB_Misc!$C$11:$C$10000,0),1),"Error")))))) -> 0 | J27: =IF(LEFT($D27,3)="Roa",INDEX(DB_Roadway!$D$11:$D$10000,MATCH($E27,DB_Roadway!$C$11:$C$10000,0),1),IF(LEFT($D27,3)="Bik",INDEX(DB_Bikeway!$D$11:$D$10000,MATCH($E27,DB_Bikeway!$C$11:$C$10000,0),1),IF(LEFT($D27,3)="Ped",INDEX(DB_Pedestrian!$D$11:$D$10000,MATCH($E27,DB_Pedestrian!$C$11:$C$10000,0),1),IF(LEFT($D27,3)="Sig",INDEX(DB_Sig_Int!$D$11:$D$10000,MATCH($E27,DB_Sig_Int!$C$11:$C$10000,0),1),IF(LEFT($D27,3)="Uns",INDEX(DB_Unsig_Int!$D$11:$D$10000,MATCH($E27,DB_Unsig_Int!$C$11:$C$10000,0),1),IF(LEFT($D27,3)="Mis",INDEX(DB_Misc!$D$11:$D$10000,MATCH($E27,DB_Misc!$C$11:$C$10000,0),1),"Error")))))) -> 135.2032726 | K27: =IF(OR(C27="",D27=""),"",IF(C27<>C26,SUMIFS($G$11:$G$10000,$C$11:$C$10000,C27,DB_Segment!$D$11:$D$10000,"<>Misc",DB_Segment!$D$11:$D$10000,"<>Sig_Int",DB_Segment!$D$11:$D$10000,"<>Unsig_Int")/COUNTIFS($C$11:$C$10000,C27,DB_Segment!$D$11:$D$10000,"<>Misc",DB_Segment!$D$11:$D$10000,"<>Sig_Int",DB_Segment!$D$11:$D$10000,"<>Unsig_Int",DB_Segment!$D$11:$D$10000,"<>"),"")) -> 
C28: Solano Avenue to Central Avenue | D28: Roadway | E28: 60' Roadway Slurry Seal | F28: =IF(I28=0,J28,I28) -> 441.9227701 | G28: 1 | H28: =IF(D28="","Error",IF(OR(D28="Roadway",D28="Bikeway_1",D28="Bikeway_2",D28="Pedestrian_1",D28="Pedestrian_2"),F28*G28*5280,F28*G28)) -> 2333352.226 | I28: =IF(LEFT($D28,3)="Roa",INDEX(DB_Roadway!$E$11:$E$10000,MATCH($E28,DB_Roadway!$C$11:$C$10000,0),1),IF(LEFT($D28,3)="Bik",INDEX(DB_Bikeway!$E$11:$E$10000,MATCH($E28,DB_Bikeway!$C$11:$C$10000,0),1),IF(LEFT($D28,3)="Ped",INDEX(DB_Pedestrian!$E$11:$E$10000,MATCH($E28,DB_Pedestrian!$C$11:$C$10000,0),1),IF(LEFT($D28,3)="Sig",INDEX(DB_Sig_Int!$E$11:$E$10000,MATCH($E28,DB_Sig_Int!$C$11:$C$10000,0),1),IF(LEFT($D28,3)="Uns",INDEX(DB_Unsig_Int!$E$11:$E$10000,MATCH($E28,DB_Unsig_Int!$C$11:$C$10000,0),1),IF(LEFT($D28,3)="Mis",INDEX(DB_Misc!$E$11:$E$10000,MATCH($E28,DB_Misc!$C$11:$C$10000,0),1),"Error")))))) -> 0 | J28: =IF(LEFT($D28,3)="Roa",INDEX(DB_Roadway!$D$11:$D$10000,MATCH($E28,DB_Roadway!$C$11:$C$10000,0),1),IF(LEFT($D28,3)="Bik",INDEX(DB_Bikeway!$D$11:$D$10000,MATCH($E28,DB_Bikeway!$C$11:$C$10000,0),1),IF(LEFT($D28,3)="Ped",INDEX(DB_Pedestrian!$D$11:$D$10000,MATCH($E28,DB_Pedestrian!$C$11:$C$10000,0),1),IF(LEFT($D28,3)="Sig",INDEX(DB_Sig_Int!$D$11:$D$10000,MATCH($E28,DB_Sig_Int!$C$11:$C$10000,0),1),IF(LEFT($D28,3)="Uns",INDEX(DB_Unsig_Int!$D$11:$D$10000,MATCH($E28,DB_Unsig_Int!$C$11:$C$10000,0),1),IF(LEFT($D28,3)="Mis",INDEX(DB_Misc!$D$11:$D$10000,MATCH($E28,DB_Misc!$C$11:$C$10000,0),1),"Error")))))) -> 441.9227701 | K28: =IF(OR(C28="",D28=""),"",IF(C28<>C27,SUMIFS($G$11:$G$10000,$C$11:$C$10000,C28,DB_Segment!$D$11:$D$10000,"<>Misc",DB_Segment!$D$11:$D$10000,"<>Sig_Int",DB_Segment!$D$11:$D$10000,"<>Unsig_Int")/COUNTIFS($C$11:$C$10000,C28,DB_Segment!$D$11:$D$10000,"<>Misc",DB_Segment!$D$11:$D$10000,"<>Sig_Int",DB_Segment!$D$11:$D$10000,"<>Unsig_Int",DB_Segment!$D$11:$D$10000,"<>"),"")) -> 
C29: Solano Avenue to Central Avenue | D29: Sig_Int | E29: Signalized Cycle Track Intersection | F29: =IF(I29=0,J29,I29) -> 450000 | G29: 5 | H29: =IF(D29="","Error",IF(OR(D29="Roadway",D29="Bikeway_1",D29="Bikeway_2",D29="Pedestrian_1",D29="Pedestrian_2"),F29*G29*5280,F29*G29)) -> 2250000 | I29: =IF(LEFT($D29,3)="Roa",INDEX(DB_Roadway!$E$11:$E$10000,MATCH($E29,DB_Roadway!$C$11:$C$10000,0),1),IF(LEFT($D29,3)="Bik",INDEX(DB_Bikeway!$E$11:$E$10000,MATCH($E29,DB_Bikeway!$C$11:$C$10000,0),1),IF(LEFT($D29,3)="Ped",INDEX(DB_Pedestrian!$E$11:$E$10000,MATCH($E29,DB_Pedestrian!$C$11:$C$10000,0),1),IF(LEFT($D29,3)="Sig",INDEX(DB_Sig_Int!$E$11:$E$10000,MATCH($E29,DB_Sig_Int!$C$11:$C$10000,0),1),IF(LEFT($D29,3)="Uns",INDEX(DB_Unsig_Int!$E$11:$E$10000,MATCH($E29,DB_Unsig_Int!$C$11:$C$10000,0),1),IF(LEFT($D29,3)="Mis",INDEX(DB_Misc!$E$11:$E$10000,MATCH($E29,DB_Misc!$C$11:$C$10000,0),1),"Error")))))) -> 450000 | J29: =IF(LEFT($D29,3)="Roa",INDEX(DB_Roadway!$D$11:$D$10000,MATCH($E29,DB_Roadway!$C$11:$C$10000,0),1),IF(LEFT($D29,3)="Bik",INDEX(DB_Bikeway!$D$11:$D$10000,MATCH($E29,DB_Bikeway!$C$11:$C$10000,0),1),IF(LEFT($D29,3)="Ped",INDEX(DB_Pedestrian!$D$11:$D$10000,MATCH($E29,DB_Pedestrian!$C$11:$C$10000,0),1),IF(LEFT($D29,3)="Sig",INDEX(DB_Sig_Int!$D$11:$D$10000,MATCH($E29,DB_Sig_Int!$C$11:$C$10000,0),1),IF(LEFT($D29,3)="Uns",INDEX(DB_Unsig_Int!$D$11:$D$10000,MATCH($E29,DB_Unsig_Int!$C$11:$C$10000,0),1),IF(LEFT($D29,3)="Mis",INDEX(DB_Misc!$D$11:$D$10000,MATCH($E29,DB_Misc!$C$11:$C$10000,0),1),"Error")))))) -> 61.5 | K29: =IF(OR(C29="",D29=""),"",IF(C29<>C28,SUMIFS($G$11:$G$10000,$C$11:$C$10000,C29,DB_Segment!$D$11:$D$10000,"<>Misc",DB_Segment!$D$11:$D$10000,"<>Sig_Int",DB_Segment!$D$11:$D$10000,"<>Unsig_Int")/COUNTIFS($C$11:$C$10000,C29,DB_Segment!$D$11:$D$10000,"<>Misc",DB_Segment!$D$11:$D$10000,"<>Sig_Int",DB_Segment!$D$11:$D$10000,"<>Unsig_Int",DB_Segment!$D$11:$D$10000,"<>"),"")) -> 
C30: Solano Avenue to Central Avenue | D30: Unsig_Int | E30: Uncontrolled with RRFB | F30: =IF(I30=0,J30,I30) -> 12000 | G30: 5 | H30: =IF(D30="","Error",IF(OR(D30="Roadway",D30="Bikeway_1",D30="Bikeway_2",D30="Pedestrian_1",D30="Pedestrian_2"),F30*G30*5280,F30*G30)) -> 60000 | I30: =IF(LEFT($D30,3)="Roa",INDEX(DB_Roadway!$E$11:$E$10000,MATCH($E30,DB_Roadway!$C$11:$C$10000,0),1),IF(LEFT($D30,3)="Bik",INDEX(DB_Bikeway!$E$11:$E$10000,MATCH($E30,DB_Bikeway!$C$11:$C$10000,0),1),IF(LEFT($D30,3)="Ped",INDEX(DB_Pedestrian!$E$11:$E$10000,MATCH($E30,DB_Pedestrian!$C$11:$C$10000,0),1),IF(LEFT($D30,3)="Sig",INDEX(DB_Sig_Int!$E$11:$E$10000,MATCH($E30,DB_Sig_Int!$C$11:$C$10000,0),1),IF(LEFT($D30,3)="Uns",INDEX(DB_Unsig_Int!$E$11:$E$10000,MATCH($E30,DB_Unsig_Int!$C$11:$C$10000,0),1),IF(LEFT($D30,3)="Mis",INDEX(DB_Misc!$E$11:$E$10000,MATCH($E30,DB_Misc!$C$11:$C$10000,0),1),"Error")))))) -> 12000 | J30: =IF(LEFT($D30,3)="Roa",INDEX(DB_Roadway!$D$11:$D$10000,MATCH($E30,DB_Roadway!$C$11:$C$10000,0),1),IF(LEFT($D30,3)="Bik",INDEX(DB_Bikeway!$D$11:$D$10000,MATCH($E30,DB_Bikeway!$C$11:$C$10000,0),1),IF(LEFT($D30,3)="Ped",INDEX(DB_Pedestrian!$D$11:$D$10000,MATCH($E30,DB_Pedestrian!$C$11:$C$10000,0),1),IF(LEFT($D30,3)="Sig",INDEX(DB_Sig_Int!$D$11:$D$10000,MATCH($E30,DB_Sig_Int!$C$11:$C$10000,0),1),IF(LEFT($D30,3)="Uns",INDEX(DB_Unsig_Int!$D$11:$D$10000,MATCH($E30,DB_Unsig_Int!$C$11:$C$10000,0),1),IF(LEFT($D30,3)="Mis",INDEX(DB_Misc!$D$11:$D$10000,MATCH($E30,DB_Misc!$C$11:$C$10000,0),1),"Error")))))) -> 391150 | K30: =IF(OR(C30="",D30=""),"",IF(C30<>C29,SUMIFS($G$11:$G$10000,$C$11:$C$10000,C30,DB_Segment!$D$11:$D$10000,"<>Misc",DB_Segment!$D$11:$D$10000,"<>Sig_Int",DB_Segment!$D$11:$D$10000,"<>Unsig_Int")/COUNTIFS($C$11:$C$10000,C30,DB_Segment!$D$11:$D$10000,"<>Misc",DB_Segment!$D$11:$D$10000,"<>Sig_Int",DB_Segment!$D$11:$D$10000,"<>Unsig_Int",DB_Segment!$D$11:$D$10000,"<>"),"")) -> 
F31: =IF(I31=0,J31,I31) -> Error | H31: =IF(D31="","Error",IF(OR(D31="Roadway",D31="Bikeway_1",D31="Bikeway_2",D31="Pedestrian_1",D31="Pedestrian_2"),F31*G31*5280,F31*G31)) -> Error | I31: =IF(LEFT($D31,3)="Roa",INDEX(DB_Roadway!$E$11:$E$10000,MATCH($E31,DB_Roadway!$C$11:$C$10000,0),1),IF(LEFT($D31,3)="Bik",INDEX(DB_Bikeway!$E$11:$E$10000,MATCH($E31,DB_Bikeway!$C$11:$C$10000,0),1),IF(LEFT($D31,3)="Ped",INDEX(DB_Pedestrian!$E$11:$E$10000,MATCH($E31,DB_Pedestrian!$C$11:$C$10000,0),1),IF(LEFT($D31,3)="Sig",INDEX(DB_Sig_Int!$E$11:$E$10000,MATCH($E31,DB_Sig_Int!$C$11:$C$10000,0),1),IF(LEFT($D31,3)="Uns",INDEX(DB_Unsig_Int!$E$11:$E$10000,MATCH($E31,DB_Unsig_Int!$C$11:$C$10000,0),1),IF(LEFT($D31,3)="Mis",INDEX(DB_Misc!$E$11:$E$10000,MATCH($E31,DB_Misc!$C$11:$C$10000,0),1),"Error")))))) -> Error | J31: =IF(LEFT($D31,3)="Roa",INDEX(DB_Roadway!$D$11:$D$10000,MATCH($E31,DB_Roadway!$C$11:$C$10000,0),1),IF(LEFT($D31,3)="Bik",INDEX(DB_Bikeway!$D$11:$D$10000,MATCH($E31,DB_Bikeway!$C$11:$C$10000,0),1),IF(LEFT($D31,3)="Ped",INDEX(DB_Pedestrian!$D$11:$D$10000,MATCH($E31,DB_Pedestrian!$C$11:$C$10000,0),1),IF(LEFT($D31,3)="Sig",INDEX(DB_Sig_Int!$D$11:$D$10000,MATCH($E31,DB_Sig_Int!$C$11:$C$10000,0),1),IF(LEFT($D31,3)="Uns",INDEX(DB_Unsig_Int!$D$11:$D$10000,MATCH($E31,DB_Unsig_Int!$C$11:$C$10000,0),1),IF(LEFT($D31,3)="Mis",INDEX(DB_Misc!$D$11:$D$10000,MATCH($E31,DB_Misc!$C$11:$C$10000,0),1),"Error")))))) -> Error | K31: =IF(OR(C31="",D31=""),"",IF(C31<>C30,SUMIFS($G$11:$G$10000,$C$11:$C$10000,C31,DB_Segment!$D$11:$D$10000,"<>Misc",DB_Segment!$D$11:$D$10000,"<>Sig_Int",DB_Segment!$D$11:$D$10000,"<>Unsig_Int")/COUNTIFS($C$11:$C$10000,C31,DB_Segment!$D$11:$D$10000,"<>Misc",DB_Segment!$D$11:$D$10000,"<>Sig_Int",DB_Segment!$D$11:$D$10000,"<>Unsig_Int",DB_Segment!$D$11:$D$10000,"<>"),"")) -> 
F32: =IF(I32=0,J32,I32) -> Error | H32: =IF(D32="","Error",IF(OR(D32="Roadway",D32="Bikeway_1",D32="Bikeway_2",D32="Pedestrian_1",D32="Pedestrian_2"),F32*G32*5280,F32*G32)) -> Error | I32: =IF(LEFT($D32,3)="Roa",INDEX(DB_Roadway!$E$11:$E$10000,MATCH($E32,DB_Roadway!$C$11:$C$10000,0),1),IF(LEFT($D32,3)="Bik",INDEX(DB_Bikeway!$E$11:$E$10000,MATCH($E32,DB_Bikeway!$C$11:$C$10000,0),1),IF(LEFT($D32,3)="Ped",INDEX(DB_Pedestrian!$E$11:$E$10000,MATCH($E32,DB_Pedestrian!$C$11:$C$10000,0),1),IF(LEFT($D32,3)="Sig",INDEX(DB_Sig_Int!$E$11:$E$10000,MATCH($E32,DB_Sig_Int!$C$11:$C$10000,0),1),IF(LEFT($D32,3)="Uns",INDEX(DB_Unsig_Int!$E$11:$E$10000,MATCH($E32,DB_Unsig_Int!$C$11:$C$10000,0),1),IF(LEFT($D32,3)="Mis",INDEX(DB_Misc!$E$11:$E$10000,MATCH($E32,DB_Misc!$C$11:$C$10000,0),1),"Error")))))) -> Error | J32: =IF(LEFT($D32,3)="Roa",INDEX(DB_Roadway!$D$11:$D$10000,MATCH($E32,DB_Roadway!$C$11:$C$10000,0),1),IF(LEFT($D32,3)="Bik",INDEX(DB_Bikeway!$D$11:$D$10000,MATCH($E32,DB_Bikeway!$C$11:$C$10000,0),1),IF(LEFT($D32,3)="Ped",INDEX(DB_Pedestrian!$D$11:$D$10000,MATCH($E32,DB_Pedestrian!$C$11:$C$10000,0),1),IF(LEFT($D32,3)="Sig",INDEX(DB_Sig_Int!$D$11:$D$10000,MATCH($E32,DB_Sig_Int!$C$11:$C$10000,0),1),IF(LEFT($D32,3)="Uns",INDEX(DB_Unsig_Int!$D$11:$D$10000,MATCH($E32,DB_Unsig_Int!$C$11:$C$10000,0),1),IF(LEFT($D32,3)="Mis",INDEX(DB_Misc!$D$11:$D$10000,MATCH($E32,DB_Misc!$C$11:$C$10000,0),1),"Error")))))) -> Error | K32: =IF(OR(C32="",D32=""),"",IF(C32<>C31,SUMIFS($G$11:$G$10000,$C$11:$C$10000,C32,DB_Segment!$D$11:$D$10000,"<>Misc",DB_Segment!$D$11:$D$10000,"<>Sig_Int",DB_Segment!$D$11:$D$10000,"<>Unsig_Int")/COUNTIFS($C$11:$C$10000,C32,DB_Segment!$D$11:$D$10000,"<>Misc",DB_Segment!$D$11:$D$10000,"<>Sig_Int",DB_Segment!$D$11:$D$10000,"<>Unsig_Int",DB_Segment!$D$11:$D$10000,"<>"),"")) -> 
F33: =IF(I33=0,J33,I33) -> Error | H33: =IF(D33="","Error",IF(OR(D33="Roadway",D33="Bikeway_1",D33="Bikeway_2",D33="Pedestrian_1",D33="Pedestrian_2"),F33*G33*5280,F33*G33)) -> Error | I33: =IF(LEFT($D33,3)="Roa",INDEX(DB_Roadway!$E$11:$E$10000,MATCH($E33,DB_Roadway!$C$11:$C$10000,0),1),IF(LEFT($D33,3)="Bik",INDEX(DB_Bikeway!$E$11:$E$10000,MATCH($E33,DB_Bikeway!$C$11:$C$10000,0),1),IF(LEFT($D33,3)="Ped",INDEX(DB_Pedestrian!$E$11:$E$10000,MATCH($E33,DB_Pedestrian!$C$11:$C$10000,0),1),IF(LEFT($D33,3)="Sig",INDEX(DB_Sig_Int!$E$11:$E$10000,MATCH($E33,DB_Sig_Int!$C$11:$C$10000,0),1),IF(LEFT($D33,3)="Uns",INDEX(DB_Unsig_Int!$E$11:$E$10000,MATCH($E33,DB_Unsig_Int!$C$11:$C$10000,0),1),IF(LEFT($D33,3)="Mis",INDEX(DB_Misc!$E$11:$E$10000,MATCH($E33,DB_Misc!$C$11:$C$10000,0),1),"Error")))))) -> Error | J33: =IF(LEFT($D33,3)="Roa",INDEX(DB_Roadway!$D$11:$D$10000,MATCH($E33,DB_Roadway!$C$11:$C$10000,0),1),IF(LEFT($D33,3)="Bik",INDEX(DB_Bikeway!$D$11:$D$10000,MATCH($E33,DB_Bikeway!$C$11:$C$10000,0),1),IF(LEFT($D33,3)="Ped",INDEX(DB_Pedestrian!$D$11:$D$10000,MATCH($E33,DB_Pedestrian!$C$11:$C$10000,0),1),IF(LEFT($D33,3)="Sig",INDEX(DB_Sig_Int!$D$11:$D$10000,MATCH($E33,DB_Sig_Int!$C$11:$C$10000,0),1),IF(LEFT($D33,3)="Uns",INDEX(DB_Unsig_Int!$D$11:$D$10000,MATCH($E33,DB_Unsig_Int!$C$11:$C$10000,0),1),IF(LEFT($D33,3)="Mis",INDEX(DB_Misc!$D$11:$D$10000,MATCH($E33,DB_Misc!$C$11:$C$10000,0),1),"Error")))))) -> Error | K33: =IF(OR(C33="",D33=""),"",IF(C33<>C32,SUMIFS($G$11:$G$10000,$C$11:$C$10000,C33,DB_Segment!$D$11:$D$10000,"<>Misc",DB_Segment!$D$11:$D$10000,"<>Sig_Int",DB_Segment!$D$11:$D$10000,"<>Unsig_Int")/COUNTIFS($C$11:$C$10000,C33,DB_Segment!$D$11:$D$10000,"<>Misc",DB_Segment!$D$11:$D$10000,"<>Sig_Int",DB_Segment!$D$11:$D$10000,"<>Unsig_Int",DB_Segment!$D$11:$D$10000,"<>"),"")) -> 
F34: =IF(I34=0,J34,I34) -> Error | H34: =IF(D34="","Error",IF(OR(D34="Roadway",D34="Bikeway_1",D34="Bikeway_2",D34="Pedestrian_1",D34="Pedestrian_2"),F34*G34*5280,F34*G34)) -> Error | I34: =IF(LEFT($D34,3)="Roa",INDEX(DB_Roadway!$E$11:$E$10000,MATCH($E34,DB_Roadway!$C$11:$C$10000,0),1),IF(LEFT($D34,3)="Bik",INDEX(DB_Bikeway!$E$11:$E$10000,MATCH($E34,DB_Bikeway!$C$11:$C$10000,0),1),IF(LEFT($D34,3)="Ped",INDEX(DB_Pedestrian!$E$11:$E$10000,MATCH($E34,DB_Pedestrian!$C$11:$C$10000,0),1),IF(LEFT($D34,3)="Sig",INDEX(DB_Sig_Int!$E$11:$E$10000,MATCH($E34,DB_Sig_Int!$C$11:$C$10000,0),1),IF(LEFT($D34,3)="Uns",INDEX(DB_Unsig_Int!$E$11:$E$10000,MATCH($E34,DB_Unsig_Int!$C$11:$C$10000,0),1),IF(LEFT($D34,3)="Mis",INDEX(DB_Misc!$E$11:$E$10000,MATCH($E34,DB_Misc!$C$11:$C$10000,0),1),"Error")))))) -> Error | J34: =IF(LEFT($D34,3)="Roa",INDEX(DB_Roadway!$D$11:$D$10000,MATCH($E34,DB_Roadway!$C$11:$C$10000,0),1),IF(LEFT($D34,3)="Bik",INDEX(DB_Bikeway!$D$11:$D$10000,MATCH($E34,DB_Bikeway!$C$11:$C$10000,0),1),IF(LEFT($D34,3)="Ped",INDEX(DB_Pedestrian!$D$11:$D$10000,MATCH($E34,DB_Pedestrian!$C$11:$C$10000,0),1),IF(LEFT($D34,3)="Sig",INDEX(DB_Sig_Int!$D$11:$D$10000,MATCH($E34,DB_Sig_Int!$C$11:$C$10000,0),1),IF(LEFT($D34,3)="Uns",INDEX(DB_Unsig_Int!$D$11:$D$10000,MATCH($E34,DB_Unsig_Int!$C$11:$C$10000,0),1),IF(LEFT($D34,3)="Mis",INDEX(DB_Misc!$D$11:$D$10000,MATCH($E34,DB_Misc!$C$11:$C$10000,0),1),"Error")))))) -> Error | K34: =IF(OR(C34="",D34=""),"",IF(C34<>C33,SUMIFS($G$11:$G$10000,$C$11:$C$10000,C34,DB_Segment!$D$11:$D$10000,"<>Misc",DB_Segment!$D$11:$D$10000,"<>Sig_Int",DB_Segment!$D$11:$D$10000,"<>Unsig_Int")/COUNTIFS($C$11:$C$10000,C34,DB_Segment!$D$11:$D$10000,"<>Misc",DB_Segment!$D$11:$D$10000,"<>Sig_Int",DB_Segment!$D$11:$D$10000,"<>Unsig_Int",DB_Segment!$D$11:$D$10000,"<>"),"")) -> 
F35: =IF(I35=0,J35,I35) -> Error | H35: =IF(D35="","Error",IF(OR(D35="Roadway",D35="Bikeway_1",D35="Bikeway_2",D35="Pedestrian_1",D35="Pedestrian_2"),F35*G35*5280,F35*G35)) -> Error | I35: =IF(LEFT($D35,3)="Roa",INDEX(DB_Roadway!$E$11:$E$10000,MATCH($E35,DB_Roadway!$C$11:$C$10000,0),1),IF(LEFT($D35,3)="Bik",INDEX(DB_Bikeway!$E$11:$E$10000,MATCH($E35,DB_Bikeway!$C$11:$C$10000,0),1),IF(LEFT($D35,3)="Ped",INDEX(DB_Pedestrian!$E$11:$E$10000,MATCH($E35,DB_Pedestrian!$C$11:$C$10000,0),1),IF(LEFT($D35,3)="Sig",INDEX(DB_Sig_Int!$E$11:$E$10000,MATCH($E35,DB_Sig_Int!$C$11:$C$10000,0),1),IF(LEFT($D35,3)="Uns",INDEX(DB_Unsig_Int!$E$11:$E$10000,MATCH($E35,DB_Unsig_Int!$C$11:$C$10000,0),1),IF(LEFT($D35,3)="Mis",INDEX(DB_Misc!$E$11:$E$10000,MATCH($E35,DB_Misc!$C$11:$C$10000,0),1),"Error")))))) -> Error | J35: =IF(LEFT($D35,3)="Roa",INDEX(DB_Roadway!$D$11:$D$10000,MATCH($E35,DB_Roadway!$C$11:$C$10000,0),1),IF(LEFT($D35,3)="Bik",INDEX(DB_Bikeway!$D$11:$D$10000,MATCH($E35,DB_Bikeway!$C$11:$C$10000,0),1),IF(LEFT($D35,3)="Ped",INDEX(DB_Pedestrian!$D$11:$D$10000,MATCH($E35,DB_Pedestrian!$C$11:$C$10000,0),1),IF(LEFT($D35,3)="Sig",INDEX(DB_Sig_Int!$D$11:$D$10000,MATCH($E35,DB_Sig_Int!$C$11:$C$10000,0),1),IF(LEFT($D35,3)="Uns",INDEX(DB_Unsig_Int!$D$11:$D$10000,MATCH($E35,DB_Unsig_Int!$C$11:$C$10000,0),1),IF(LEFT($D35,3)="Mis",INDEX(DB_Misc!$D$11:$D$10000,MATCH($E35,DB_Misc!$C$11:$C$10000,0),1),"Error")))))) -> Error | K35: =IF(OR(C35="",D35=""),"",IF(C35<>C34,SUMIFS($G$11:$G$10000,$C$11:$C$10000,C35,DB_Segment!$D$11:$D$10000,"<>Misc",DB_Segment!$D$11:$D$10000,"<>Sig_Int",DB_Segment!$D$11:$D$10000,"<>Unsig_Int")/COUNTIFS($C$11:$C$10000,C35,DB_Segment!$D$11:$D$10000,"<>Misc",DB_Segment!$D$11:$D$10000,"<>Sig_Int",DB_Segment!$D$11:$D$10000,"<>Unsig_Int",DB_Segment!$D$11:$D$10000,"<>"),"")) -> 
F36: =IF(I36=0,J36,I36) -> Error | H36: =IF(D36="","Error",IF(OR(D36="Roadway",D36="Bikeway_1",D36="Bikeway_2",D36="Pedestrian_1",D36="Pedestrian_2"),F36*G36*5280,F36*G36)) -> Error | I36: =IF(LEFT($D36,3)="Roa",INDEX(DB_Roadway!$E$11:$E$10000,MATCH($E36,DB_Roadway!$C$11:$C$10000,0),1),IF(LEFT($D36,3)="Bik",INDEX(DB_Bikeway!$E$11:$E$10000,MATCH($E36,DB_Bikeway!$C$11:$C$10000,0),1),IF(LEFT($D36,3)="Ped",INDEX(DB_Pedestrian!$E$11:$E$10000,MATCH($E36,DB_Pedestrian!$C$11:$C$10000,0),1),IF(LEFT($D36,3)="Sig",INDEX(DB_Sig_Int!$E$11:$E$10000,MATCH($E36,DB_Sig_Int!$C$11:$C$10000,0),1),IF(LEFT($D36,3)="Uns",INDEX(DB_Unsig_Int!$E$11:$E$10000,MATCH($E36,DB_Unsig_Int!$C$11:$C$10000,0),1),IF(LEFT($D36,3)="Mis",INDEX(DB_Misc!$E$11:$E$10000,MATCH($E36,DB_Misc!$C$11:$C$10000,0),1),"Error")))))) -> Error | J36: =IF(LEFT($D36,3)="Roa",INDEX(DB_Roadway!$D$11:$D$10000,MATCH($E36,DB_Roadway!$C$11:$C$10000,0),1),IF(LEFT($D36,3)="Bik",INDEX(DB_Bikeway!$D$11:$D$10000,MATCH($E36,DB_Bikeway!$C$11:$C$10000,0),1),IF(LEFT($D36,3)="Ped",INDEX(DB_Pedestrian!$D$11:$D$10000,MATCH($E36,DB_Pedestrian!$C$11:$C$10000,0),1),IF(LEFT($D36,3)="Sig",INDEX(DB_Sig_Int!$D$11:$D$10000,MATCH($E36,DB_Sig_Int!$C$11:$C$10000,0),1),IF(LEFT($D36,3)="Uns",INDEX(DB_Unsig_Int!$D$11:$D$10000,MATCH($E36,DB_Unsig_Int!$C$11:$C$10000,0),1),IF(LEFT($D36,3)="Mis",INDEX(DB_Misc!$D$11:$D$10000,MATCH($E36,DB_Misc!$C$11:$C$10000,0),1),"Error")))))) -> Error | K36: =IF(OR(C36="",D36=""),"",IF(C36<>C35,SUMIFS($G$11:$G$10000,$C$11:$C$10000,C36,DB_Segment!$D$11:$D$10000,"<>Misc",DB_Segment!$D$11:$D$10000,"<>Sig_Int",DB_Segment!$D$11:$D$10000,"<>Unsig_Int")/COUNTIFS($C$11:$C$10000,C36,DB_Segment!$D$11:$D$10000,"<>Misc",DB_Segment!$D$11:$D$10000,"<>Sig_Int",DB_Segment!$D$11:$D$10000,"<>Unsig_Int",DB_Segment!$D$11:$D$10000,"<>"),"")) -> 
F37: =IF(I37=0,J37,I37) -> Error | H37: =IF(D37="","Error",IF(OR(D37="Roadway",D37="Bikeway_1",D37="Bikeway_2",D37="Pedestrian_1",D37="Pedestrian_2"),F37*G37*5280,F37*G37)) -> Error | I37: =IF(LEFT($D37,3)="Roa",INDEX(DB_Roadway!$E$11:$E$10000,MATCH($E37,DB_Roadway!$C$11:$C$10000,0),1),IF(LEFT($D37,3)="Bik",INDEX(DB_Bikeway!$E$11:$E$10000,MATCH($E37,DB_Bikeway!$C$11:$C$10000,0),1),IF(LEFT($D37,3)="Ped",INDEX(DB_Pedestrian!$E$11:$E$10000,MATCH($E37,DB_Pedestrian!$C$11:$C$10000,0),1),IF(LEFT($D37,3)="Sig",INDEX(DB_Sig_Int!$E$11:$E$10000,MATCH($E37,DB_Sig_Int!$C$11:$C$10000,0),1),IF(LEFT($D37,3)="Uns",INDEX(DB_Unsig_Int!$E$11:$E$10000,MATCH($E37,DB_Unsig_Int!$C$11:$C$10000,0),1),IF(LEFT($D37,3)="Mis",INDEX(DB_Misc!$E$11:$E$10000,MATCH($E37,DB_Misc!$C$11:$C$10000,0),1),"Error")))))) -> Error | J37: =IF(LEFT($D37,3)="Roa",INDEX(DB_Roadway!$D$11:$D$10000,MATCH($E37,DB_Roadway!$C$11:$C$10000,0),1),IF(LEFT($D37,3)="Bik",INDEX(DB_Bikeway!$D$11:$D$10000,MATCH($E37,DB_Bikeway!$C$11:$C$10000,0),1),IF(LEFT($D37,3)="Ped",INDEX(DB_Pedestrian!$D$11:$D$10000,MATCH($E37,DB_Pedestrian!$C$11:$C$10000,0),1),IF(LEFT($D37,3)="Sig",INDEX(DB_Sig_Int!$D$11:$D$10000,MATCH($E37,DB_Sig_Int!$C$11:$C$10000,0),1),IF(LEFT($D37,3)="Uns",INDEX(DB_Unsig_Int!$D$11:$D$10000,MATCH($E37,DB_Unsig_Int!$C$11:$C$10000,0),1),IF(LEFT($D37,3)="Mis",INDEX(DB_Misc!$D$11:$D$10000,MATCH($E37,DB_Misc!$C$11:$C$10000,0),1),"Error")))))) -> Error | K37: =IF(OR(C37="",D37=""),"",IF(C37<>C36,SUMIFS($G$11:$G$10000,$C$11:$C$10000,C37,DB_Segment!$D$11:$D$10000,"<>Misc",DB_Segment!$D$11:$D$10000,"<>Sig_Int",DB_Segment!$D$11:$D$10000,"<>Unsig_Int")/COUNTIFS($C$11:$C$10000,C37,DB_Segment!$D$11:$D$10000,"<>Misc",DB_Segment!$D$11:$D$10000,"<>Sig_Int",DB_Segment!$D$11:$D$10000,"<>Unsig_Int",DB_Segment!$D$11:$D$10000,"<>"),"")) -> 
F38: =IF(I38=0,J38,I38) -> Error | H38: =IF(D38="","Error",IF(OR(D38="Roadway",D38="Bikeway_1",D38="Bikeway_2",D38="Pedestrian_1",D38="Pedestrian_2"),F38*G38*5280,F38*G38)) -> Error | I38: =IF(LEFT($D38,3)="Roa",INDEX(DB_Roadway!$E$11:$E$10000,MATCH($E38,DB_Roadway!$C$11:$C$10000,0),1),IF(LEFT($D38,3)="Bik",INDEX(DB_Bikeway!$E$11:$E$10000,MATCH($E38,DB_Bikeway!$C$11:$C$10000,0),1),IF(LEFT($D38,3)="Ped",INDEX(DB_Pedestrian!$E$11:$E$10000,MATCH($E38,DB_Pedestrian!$C$11:$C$10000,0),1),IF(LEFT($D38,3)="Sig",INDEX(DB_Sig_Int!$E$11:$E$10000,MATCH($E38,DB_Sig_Int!$C$11:$C$10000,0),1),IF(LEFT($D38,3)="Uns",INDEX(DB_Unsig_Int!$E$11:$E$10000,MATCH($E38,DB_Unsig_Int!$C$11:$C$10000,0),1),IF(LEFT($D38,3)="Mis",INDEX(DB_Misc!$E$11:$E$10000,MATCH($E38,DB_Misc!$C$11:$C$10000,0),1),"Error")))))) -> Error | J38: =IF(LEFT($D38,3)="Roa",INDEX(DB_Roadway!$D$11:$D$10000,MATCH($E38,DB_Roadway!$C$11:$C$10000,0),1),IF(LEFT($D38,3)="Bik",INDEX(DB_Bikeway!$D$11:$D$10000,MATCH($E38,DB_Bikeway!$C$11:$C$10000,0),1),IF(LEFT($D38,3)="Ped",INDEX(DB_Pedestrian!$D$11:$D$10000,MATCH($E38,DB_Pedestrian!$C$11:$C$10000,0),1),IF(LEFT($D38,3)="Sig",INDEX(DB_Sig_Int!$D$11:$D$10000,MATCH($E38,DB_Sig_Int!$C$11:$C$10000,0),1),IF(LEFT($D38,3)="Uns",INDEX(DB_Unsig_Int!$D$11:$D$10000,MATCH($E38,DB_Unsig_Int!$C$11:$C$10000,0),1),IF(LEFT($D38,3)="Mis",INDEX(DB_Misc!$D$11:$D$10000,MATCH($E38,DB_Misc!$C$11:$C$10000,0),1),"Error")))))) -> Error | K38: =IF(OR(C38="",D38=""),"",IF(C38<>C37,SUMIFS($G$11:$G$10000,$C$11:$C$10000,C38,DB_Segment!$D$11:$D$10000,"<>Misc",DB_Segment!$D$11:$D$10000,"<>Sig_Int",DB_Segment!$D$11:$D$10000,"<>Unsig_Int")/COUNTIFS($C$11:$C$10000,C38,DB_Segment!$D$11:$D$10000,"<>Misc",DB_Segment!$D$11:$D$10000,"<>Sig_Int",DB_Segment!$D$11:$D$10000,"<>Unsig_Int",DB_Segment!$D$11:$D$10000,"<>"),"")) -> 
F39: =IF(I39=0,J39,I39) -> Error | H39: =IF(D39="","Error",IF(OR(D39="Roadway",D39="Bikeway_1",D39="Bikeway_2",D39="Pedestrian_1",D39="Pedestrian_2"),F39*G39*5280,F39*G39)) -> Error | I39: =IF(LEFT($D39,3)="Roa",INDEX(DB_Roadway!$E$11:$E$10000,MATCH($E39,DB_Roadway!$C$11:$C$10000,0),1),IF(LEFT($D39,3)="Bik",INDEX(DB_Bikeway!$E$11:$E$10000,MATCH($E39,DB_Bikeway!$C$11:$C$10000,0),1),IF(LEFT($D39,3)="Ped",INDEX(DB_Pedestrian!$E$11:$E$10000,MATCH($E39,DB_Pedestrian!$C$11:$C$10000,0),1),IF(LEFT($D39,3)="Sig",INDEX(DB_Sig_Int!$E$11:$E$10000,MATCH($E39,DB_Sig_Int!$C$11:$C$10000,0),1),IF(LEFT($D39,3)="Uns",INDEX(DB_Unsig_Int!$E$11:$E$10000,MATCH($E39,DB_Unsig_Int!$C$11:$C$10000,0),1),IF(LEFT($D39,3)="Mis",INDEX(DB_Misc!$E$11:$E$10000,MATCH($E39,DB_Misc!$C$11:$C$10000,0),1),"Error")))))) -> Error | J39: =IF(LEFT($D39,3)="Roa",INDEX(DB_Roadway!$D$11:$D$10000,MATCH($E39,DB_Roadway!$C$11:$C$10000,0),1),IF(LEFT($D39,3)="Bik",INDEX(DB_Bikeway!$D$11:$D$10000,MATCH($E39,DB_Bikeway!$C$11:$C$10000,0),1),IF(LEFT($D39,3)="Ped",INDEX(DB_Pedestrian!$D$11:$D$10000,MATCH($E39,DB_Pedestrian!$C$11:$C$10000,0),1),IF(LEFT($D39,3)="Sig",INDEX(DB_Sig_Int!$D$11:$D$10000,MATCH($E39,DB_Sig_Int!$C$11:$C$10000,0),1),IF(LEFT($D39,3)="Uns",INDEX(DB_Unsig_Int!$D$11:$D$10000,MATCH($E39,DB_Unsig_Int!$C$11:$C$10000,0),1),IF(LEFT($D39,3)="Mis",INDEX(DB_Misc!$D$11:$D$10000,MATCH($E39,DB_Misc!$C$11:$C$10000,0),1),"Error")))))) -> Error | K39: =IF(OR(C39="",D39=""),"",IF(C39<>C38,SUMIFS($G$11:$G$10000,$C$11:$C$10000,C39,DB_Segment!$D$11:$D$10000,"<>Misc",DB_Segment!$D$11:$D$10000,"<>Sig_Int",DB_Segment!$D$11:$D$10000,"<>Unsig_Int")/COUNTIFS($C$11:$C$10000,C39,DB_Segment!$D$11:$D$10000,"<>Misc",DB_Segment!$D$11:$D$10000,"<>Sig_Int",DB_Segment!$D$11:$D$10000,"<>Unsig_Int",DB_Segment!$D$11:$D$10000,"<>"),"")) -> 
F40: =IF(I40=0,J40,I40) -> Error | H40: =IF(D40="","Error",IF(OR(D40="Roadway",D40="Bikeway_1",D40="Bikeway_2",D40="Pedestrian_1",D40="Pedestrian_2"),F40*G40*5280,F40*G40)) -> Error | I40: =IF(LEFT($D40,3)="Roa",INDEX(DB_Roadway!$E$11:$E$10000,MATCH($E40,DB_Roadway!$C$11:$C$10000,0),1),IF(LEFT($D40,3)="Bik",INDEX(DB_Bikeway!$E$11:$E$10000,MATCH($E40,DB_Bikeway!$C$11:$C$10000,0),1),IF(LEFT($D40,3)="Ped",INDEX(DB_Pedestrian!$E$11:$E$10000,MATCH($E40,DB_Pedestrian!$C$11:$C$10000,0),1),IF(LEFT($D40,3)="Sig",INDEX(DB_Sig_Int!$E$11:$E$10000,MATCH($E40,DB_Sig_Int!$C$11:$C$10000,0),1),IF(LEFT($D40,3)="Uns",INDEX(DB_Unsig_Int!$E$11:$E$10000,MATCH($E40,DB_Unsig_Int!$C$11:$C$10000,0),1),IF(LEFT($D40,3)="Mis",INDEX(DB_Misc!$E$11:$E$10000,MATCH($E40,DB_Misc!$C$11:$C$10000,0),1),"Error")))))) -> Error | J40: =IF(LEFT($D40,3)="Roa",INDEX(DB_Roadway!$D$11:$D$10000,MATCH($E40,DB_Roadway!$C$11:$C$10000,0),1),IF(LEFT($D40,3)="Bik",INDEX(DB_Bikeway!$D$11:$D$10000,MATCH($E40,DB_Bikeway!$C$11:$C$10000,0),1),IF(LEFT($D40,3)="Ped",INDEX(DB_Pedestrian!$D$11:$D$10000,MATCH($E40,DB_Pedestrian!$C$11:$C$10000,0),1),IF(LEFT($D40,3)="Sig",INDEX(DB_Sig_Int!$D$11:$D$10000,MATCH($E40,DB_Sig_Int!$C$11:$C$10000,0),1),IF(LEFT($D40,3)="Uns",INDEX(DB_Unsig_Int!$D$11:$D$10000,MATCH($E40,DB_Unsig_Int!$C$11:$C$10000,0),1),IF(LEFT($D40,3)="Mis",INDEX(DB_Misc!$D$11:$D$10000,MATCH($E40,DB_Misc!$C$11:$C$10000,0),1),"Error")))))) -> Error | K40: =IF(OR(C40="",D40=""),"",IF(C40<>C39,SUMIFS($G$11:$G$10000,$C$11:$C$10000,C40,DB_Segment!$D$11:$D$10000,"<>Misc",DB_Segment!$D$11:$D$10000,"<>Sig_Int",DB_Segment!$D$11:$D$10000,"<>Unsig_Int")/COUNTIFS($C$11:$C$10000,C40,DB_Segment!$D$11:$D$10000,"<>Misc",DB_Segment!$D$11:$D$10000,"<>Sig_Int",DB_Segment!$D$11:$D$10000,"<>Unsig_Int",DB_Segment!$D$11:$D$10000,"<>"),"")) -> 
F41: =IF(I41=0,J41,I41) -> Error | H41: =IF(D41="","Error",IF(OR(D41="Roadway",D41="Bikeway_1",D41="Bikeway_2",D41="Pedestrian_1",D41="Pedestrian_2"),F41*G41*5280,F41*G41)) -> Error | I41: =IF(LEFT($D41,3)="Roa",INDEX(DB_Roadway!$E$11:$E$10000,MATCH($E41,DB_Roadway!$C$11:$C$10000,0),1),IF(LEFT($D41,3)="Bik",INDEX(DB_Bikeway!$E$11:$E$10000,MATCH($E41,DB_Bikeway!$C$11:$C$10000,0),1),IF(LEFT($D41,3)="Ped",INDEX(DB_Pedestrian!$E$11:$E$10000,MATCH($E41,DB_Pedestrian!$C$11:$C$10000,0),1),IF(LEFT($D41,3)="Sig",INDEX(DB_Sig_Int!$E$11:$E$10000,MATCH($E41,DB_Sig_Int!$C$11:$C$10000,0),1),IF(LEFT($D41,3)="Uns",INDEX(DB_Unsig_Int!$E$11:$E$10000,MATCH($E41,DB_Unsig_Int!$C$11:$C$10000,0),1),IF(LEFT($D41,3)="Mis",INDEX(DB_Misc!$E$11:$E$10000,MATCH($E41,DB_Misc!$C$11:$C$10000,0),1),"Error")))))) -> Error | J41: =IF(LEFT($D41,3)="Roa",INDEX(DB_Roadway!$D$11:$D$10000,MATCH($E41,DB_Roadway!$C$11:$C$10000,0),1),IF(LEFT($D41,3)="Bik",INDEX(DB_Bikeway!$D$11:$D$10000,MATCH($E41,DB_Bikeway!$C$11:$C$10000,0),1),IF(LEFT($D41,3)="Ped",INDEX(DB_Pedestrian!$D$11:$D$10000,MATCH($E41,DB_Pedestrian!$C$11:$C$10000,0),1),IF(LEFT($D41,3)="Sig",INDEX(DB_Sig_Int!$D$11:$D$10000,MATCH($E41,DB_Sig_Int!$C$11:$C$10000,0),1),IF(LEFT($D41,3)="Uns",INDEX(DB_Unsig_Int!$D$11:$D$10000,MATCH($E41,DB_Unsig_Int!$C$11:$C$10000,0),1),IF(LEFT($D41,3)="Mis",INDEX(DB_Misc!$D$11:$D$10000,MATCH($E41,DB_Misc!$C$11:$C$10000,0),1),"Error")))))) -> Error | K41: =IF(OR(C41="",D41=""),"",IF(C41<>C40,SUMIFS($G$11:$G$10000,$C$11:$C$10000,C41,DB_Segment!$D$11:$D$10000,"<>Misc",DB_Segment!$D$11:$D$10000,"<>Sig_Int",DB_Segment!$D$11:$D$10000,"<>Unsig_Int")/COUNTIFS($C$11:$C$10000,C41,DB_Segment!$D$11:$D$10000,"<>Misc",DB_Segment!$D$11:$D$10000,"<>Sig_Int",DB_Segment!$D$11:$D$10000,"<>Unsig_Int",DB_Segment!$D$11:$D$10000,"<>"),"")) -> 
F42: =IF(I42=0,J42,I42) -> Error | H42: =IF(D42="","Error",IF(OR(D42="Roadway",D42="Bikeway_1",D42="Bikeway_2",D42="Pedestrian_1",D42="Pedestrian_2"),F42*G42*5280,F42*G42)) -> Error | I42: =IF(LEFT($D42,3)="Roa",INDEX(DB_Roadway!$E$11:$E$10000,MATCH($E42,DB_Roadway!$C$11:$C$10000,0),1),IF(LEFT($D42,3)="Bik",INDEX(DB_Bikeway!$E$11:$E$10000,MATCH($E42,DB_Bikeway!$C$11:$C$10000,0),1),IF(LEFT($D42,3)="Ped",INDEX(DB_Pedestrian!$E$11:$E$10000,MATCH($E42,DB_Pedestrian!$C$11:$C$10000,0),1),IF(LEFT($D42,3)="Sig",INDEX(DB_Sig_Int!$E$11:$E$10000,MATCH($E42,DB_Sig_Int!$C$11:$C$10000,0),1),IF(LEFT($D42,3)="Uns",INDEX(DB_Unsig_Int!$E$11:$E$10000,MATCH($E42,DB_Unsig_Int!$C$11:$C$10000,0),1),IF(LEFT($D42,3)="Mis",INDEX(DB_Misc!$E$11:$E$10000,MATCH($E42,DB_Misc!$C$11:$C$10000,0),1),"Error")))))) -> Error | J42: =IF(LEFT($D42,3)="Roa",INDEX(DB_Roadway!$D$11:$D$10000,MATCH($E42,DB_Roadway!$C$11:$C$10000,0),1),IF(LEFT($D42,3)="Bik",INDEX(DB_Bikeway!$D$11:$D$10000,MATCH($E42,DB_Bikeway!$C$11:$C$10000,0),1),IF(LEFT($D42,3)="Ped",INDEX(DB_Pedestrian!$D$11:$D$10000,MATCH($E42,DB_Pedestrian!$C$11:$C$10000,0),1),IF(LEFT($D42,3)="Sig",INDEX(DB_Sig_Int!$D$11:$D$10000,MATCH($E42,DB_Sig_Int!$C$11:$C$10000,0),1),IF(LEFT($D42,3)="Uns",INDEX(DB_Unsig_Int!$D$11:$D$10000,MATCH($E42,DB_Unsig_Int!$C$11:$C$10000,0),1),IF(LEFT($D42,3)="Mis",INDEX(DB_Misc!$D$11:$D$10000,MATCH($E42,DB_Misc!$C$11:$C$10000,0),1),"Error")))))) -> Error | K42: =IF(OR(C42="",D42=""),"",IF(C42<>C41,SUMIFS($G$11:$G$10000,$C$11:$C$10000,C42,DB_Segment!$D$11:$D$10000,"<>Misc",DB_Segment!$D$11:$D$10000,"<>Sig_Int",DB_Segment!$D$11:$D$10000,"<>Unsig_Int")/COUNTIFS($C$11:$C$10000,C42,DB_Segment!$D$11:$D$10000,"<>Misc",DB_Segment!$D$11:$D$10000,"<>Sig_Int",DB_Segment!$D$11:$D$10000,"<>Unsig_Int",DB_Segment!$D$11:$D$10000,"<>"),"")) -> 
F43: =IF(I43=0,J43,I43) -> Error | H43: =IF(D43="","Error",IF(OR(D43="Roadway",D43="Bikeway_1",D43="Bikeway_2",D43="Pedestrian_1",D43="Pedestrian_2"),F43*G43*5280,F43*G43)) -> Error | I43: =IF(LEFT($D43,3)="Roa",INDEX(DB_Roadway!$E$11:$E$10000,MATCH($E43,DB_Roadway!$C$11:$C$10000,0),1),IF(LEFT($D43,3)="Bik",INDEX(DB_Bikeway!$E$11:$E$10000,MATCH($E43,DB_Bikeway!$C$11:$C$10000,0),1),IF(LEFT($D43,3)="Ped",INDEX(DB_Pedestrian!$E$11:$E$10000,MATCH($E43,DB_Pedestrian!$C$11:$C$10000,0),1),IF(LEFT($D43,3)="Sig",INDEX(DB_Sig_Int!$E$11:$E$10000,MATCH($E43,DB_Sig_Int!$C$11:$C$10000,0),1),IF(LEFT($D43,3)="Uns",INDEX(DB_Unsig_Int!$E$11:$E$10000,MATCH($E43,DB_Unsig_Int!$C$11:$C$10000,0),1),IF(LEFT($D43,3)="Mis",INDEX(DB_Misc!$E$11:$E$10000,MATCH($E43,DB_Misc!$C$11:$C$10000,0),1),"Error")))))) -> Error | J43: =IF(LEFT($D43,3)="Roa",INDEX(DB_Roadway!$D$11:$D$10000,MATCH($E43,DB_Roadway!$C$11:$C$10000,0),1),IF(LEFT($D43,3)="Bik",INDEX(DB_Bikeway!$D$11:$D$10000,MATCH($E43,DB_Bikeway!$C$11:$C$10000,0),1),IF(LEFT($D43,3)="Ped",INDEX(DB_Pedestrian!$D$11:$D$10000,MATCH($E43,DB_Pedestrian!$C$11:$C$10000,0),1),IF(LEFT($D43,3)="Sig",INDEX(DB_Sig_Int!$D$11:$D$10000,MATCH($E43,DB_Sig_Int!$C$11:$C$10000,0),1),IF(LEFT($D43,3)="Uns",INDEX(DB_Unsig_Int!$D$11:$D$10000,MATCH($E43,DB_Unsig_Int!$C$11:$C$10000,0),1),IF(LEFT($D43,3)="Mis",INDEX(DB_Misc!$D$11:$D$10000,MATCH($E43,DB_Misc!$C$11:$C$10000,0),1),"Error")))))) -> Error | K43: =IF(OR(C43="",D43=""),"",IF(C43<>C42,SUMIFS($G$11:$G$10000,$C$11:$C$10000,C43,DB_Segment!$D$11:$D$10000,"<>Misc",DB_Segment!$D$11:$D$10000,"<>Sig_Int",DB_Segment!$D$11:$D$10000,"<>Unsig_Int")/COUNTIFS($C$11:$C$10000,C43,DB_Segment!$D$11:$D$10000,"<>Misc",DB_Segment!$D$11:$D$10000,"<>Sig_Int",DB_Segment!$D$11:$D$10000,"<>Unsig_Int",DB_Segment!$D$11:$D$10000,"<>"),"")) -> 
F44: =IF(I44=0,J44,I44) -> Error | H44: =IF(D44="","Error",IF(OR(D44="Roadway",D44="Bikeway_1",D44="Bikeway_2",D44="Pedestrian_1",D44="Pedestrian_2"),F44*G44*5280,F44*G44)) -> Error | I44: =IF(LEFT($D44,3)="Roa",INDEX(DB_Roadway!$E$11:$E$10000,MATCH($E44,DB_Roadway!$C$11:$C$10000,0),1),IF(LEFT($D44,3)="Bik",INDEX(DB_Bikeway!$E$11:$E$10000,MATCH($E44,DB_Bikeway!$C$11:$C$10000,0),1),IF(LEFT($D44,3)="Ped",INDEX(DB_Pedestrian!$E$11:$E$10000,MATCH($E44,DB_Pedestrian!$C$11:$C$10000,0),1),IF(LEFT($D44,3)="Sig",INDEX(DB_Sig_Int!$E$11:$E$10000,MATCH($E44,DB_Sig_Int!$C$11:$C$10000,0),1),IF(LEFT($D44,3)="Uns",INDEX(DB_Unsig_Int!$E$11:$E$10000,MATCH($E44,DB_Unsig_Int!$C$11:$C$10000,0),1),IF(LEFT($D44,3)="Mis",INDEX(DB_Misc!$E$11:$E$10000,MATCH($E44,DB_Misc!$C$11:$C$10000,0),1),"Error")))))) -> Error | J44: =IF(LEFT($D44,3)="Roa",INDEX(DB_Roadway!$D$11:$D$10000,MATCH($E44,DB_Roadway!$C$11:$C$10000,0),1),IF(LEFT($D44,3)="Bik",INDEX(DB_Bikeway!$D$11:$D$10000,MATCH($E44,DB_Bikeway!$C$11:$C$10000,0),1),IF(LEFT($D44,3)="Ped",INDEX(DB_Pedestrian!$D$11:$D$10000,MATCH($E44,DB_Pedestrian!$C$11:$C$10000,0),1),IF(LEFT($D44,3)="Sig",INDEX(DB_Sig_Int!$D$11:$D$10000,MATCH($E44,DB_Sig_Int!$C$11:$C$10000,0),1),IF(LEFT($D44,3)="Uns",INDEX(DB_Unsig_Int!$D$11:$D$10000,MATCH($E44,DB_Unsig_Int!$C$11:$C$10000,0),1),IF(LEFT($D44,3)="Mis",INDEX(DB_Misc!$D$11:$D$10000,MATCH($E44,DB_Misc!$C$11:$C$10000,0),1),"Error")))))) -> Error | K44: =IF(OR(C44="",D44=""),"",IF(C44<>C43,SUMIFS($G$11:$G$10000,$C$11:$C$10000,C44,DB_Segment!$D$11:$D$10000,"<>Misc",DB_Segment!$D$11:$D$10000,"<>Sig_Int",DB_Segment!$D$11:$D$10000,"<>Unsig_Int")/COUNTIFS($C$11:$C$10000,C44,DB_Segment!$D$11:$D$10000,"<>Misc",DB_Segment!$D$11:$D$10000,"<>Sig_Int",DB_Segment!$D$11:$D$10000,"<>Unsig_Int",DB_Segment!$D$11:$D$10000,"<>"),"")) -> 
F45: =IF(I45=0,J45,I45) -> Error | H45: =IF(D45="","Error",IF(OR(D45="Roadway",D45="Bikeway_1",D45="Bikeway_2",D45="Pedestrian_1",D45="Pedestrian_2"),F45*G45*5280,F45*G45)) -> Error | I45: =IF(LEFT($D45,3)="Roa",INDEX(DB_Roadway!$E$11:$E$10000,MATCH($E45,DB_Roadway!$C$11:$C$10000,0),1),IF(LEFT($D45,3)="Bik",INDEX(DB_Bikeway!$E$11:$E$10000,MATCH($E45,DB_Bikeway!$C$11:$C$10000,0),1),IF(LEFT($D45,3)="Ped",INDEX(DB_Pedestrian!$E$11:$E$10000,MATCH($E45,DB_Pedestrian!$C$11:$C$10000,0),1),IF(LEFT($D45,3)="Sig",INDEX(DB_Sig_Int!$E$11:$E$10000,MATCH($E45,DB_Sig_Int!$C$11:$C$10000,0),1),IF(LEFT($D45,3)="Uns",INDEX(DB_Unsig_Int!$E$11:$E$10000,MATCH($E45,DB_Unsig_Int!$C$11:$C$10000,0),1),IF(LEFT($D45,3)="Mis",INDEX(DB_Misc!$E$11:$E$10000,MATCH($E45,DB_Misc!$C$11:$C$10000,0),1),"Error")))))) -> Error | J45: =IF(LEFT($D45,3)="Roa",INDEX(DB_Roadway!$D$11:$D$10000,MATCH($E45,DB_Roadway!$C$11:$C$10000,0),1),IF(LEFT($D45,3)="Bik",INDEX(DB_Bikeway!$D$11:$D$10000,MATCH($E45,DB_Bikeway!$C$11:$C$10000,0),1),IF(LEFT($D45,3)="Ped",INDEX(DB_Pedestrian!$D$11:$D$10000,MATCH($E45,DB_Pedestrian!$C$11:$C$10000,0),1),IF(LEFT($D45,3)="Sig",INDEX(DB_Sig_Int!$D$11:$D$10000,MATCH($E45,DB_Sig_Int!$C$11:$C$10000,0),1),IF(LEFT($D45,3)="Uns",INDEX(DB_Unsig_Int!$D$11:$D$10000,MATCH($E45,DB_Unsig_Int!$C$11:$C$10000,0),1),IF(LEFT($D45,3)="Mis",INDEX(DB_Misc!$D$11:$D$10000,MATCH($E45,DB_Misc!$C$11:$C$10000,0),1),"Error")))))) -> Error | K45: =IF(OR(C45="",D45=""),"",IF(C45<>C44,SUMIFS($G$11:$G$10000,$C$11:$C$10000,C45,DB_Segment!$D$11:$D$10000,"<>Misc",DB_Segment!$D$11:$D$10000,"<>Sig_Int",DB_Segment!$D$11:$D$10000,"<>Unsig_Int")/COUNTIFS($C$11:$C$10000,C45,DB_Segment!$D$11:$D$10000,"<>Misc",DB_Segment!$D$11:$D$10000,"<>Sig_Int",DB_Segment!$D$11:$D$10000,"<>Unsig_Int",DB_Segment!$D$11:$D$10000,"<>"),"")) -> 
F46: =IF(I46=0,J46,I46) -> Error | H46: =IF(D46="","Error",IF(OR(D46="Roadway",D46="Bikeway_1",D46="Bikeway_2",D46="Pedestrian_1",D46="Pedestrian_2"),F46*G46*5280,F46*G46)) -> Error | I46: =IF(LEFT($D46,3)="Roa",INDEX(DB_Roadway!$E$11:$E$10000,MATCH($E46,DB_Roadway!$C$11:$C$10000,0),1),IF(LEFT($D46,3)="Bik",INDEX(DB_Bikeway!$E$11:$E$10000,MATCH($E46,DB_Bikeway!$C$11:$C$10000,0),1),IF(LEFT($D46,3)="Ped",INDEX(DB_Pedestrian!$E$11:$E$10000,MATCH($E46,DB_Pedestrian!$C$11:$C$10000,0),1),IF(LEFT($D46,3)="Sig",INDEX(DB_Sig_Int!$E$11:$E$10000,MATCH($E46,DB_Sig_Int!$C$11:$C$10000,0),1),IF(LEFT($D46,3)="Uns",INDEX(DB_Unsig_Int!$E$11:$E$10000,MATCH($E46,DB_Unsig_Int!$C$11:$C$10000,0),1),IF(LEFT($D46,3)="Mis",INDEX(DB_Misc!$E$11:$E$10000,MATCH($E46,DB_Misc!$C$11:$C$10000,0),1),"Error")))))) -> Error | J46: =IF(LEFT($D46,3)="Roa",INDEX(DB_Roadway!$D$11:$D$10000,MATCH($E46,DB_Roadway!$C$11:$C$10000,0),1),IF(LEFT($D46,3)="Bik",INDEX(DB_Bikeway!$D$11:$D$10000,MATCH($E46,DB_Bikeway!$C$11:$C$10000,0),1),IF(LEFT($D46,3)="Ped",INDEX(DB_Pedestrian!$D$11:$D$10000,MATCH($E46,DB_Pedestrian!$C$11:$C$10000,0),1),IF(LEFT($D46,3)="Sig",INDEX(DB_Sig_Int!$D$11:$D$10000,MATCH($E46,DB_Sig_Int!$C$11:$C$10000,0),1),IF(LEFT($D46,3)="Uns",INDEX(DB_Unsig_Int!$D$11:$D$10000,MATCH($E46,DB_Unsig_Int!$C$11:$C$10000,0),1),IF(LEFT($D46,3)="Mis",INDEX(DB_Misc!$D$11:$D$10000,MATCH($E46,DB_Misc!$C$11:$C$10000,0),1),"Error")))))) -> Error | K46: =IF(OR(C46="",D46=""),"",IF(C46<>C45,SUMIFS($G$11:$G$10000,$C$11:$C$10000,C46,DB_Segment!$D$11:$D$10000,"<>Misc",DB_Segment!$D$11:$D$10000,"<>Sig_Int",DB_Segment!$D$11:$D$10000,"<>Unsig_Int")/COUNTIFS($C$11:$C$10000,C46,DB_Segment!$D$11:$D$10000,"<>Misc",DB_Segment!$D$11:$D$10000,"<>Sig_Int",DB_Segment!$D$11:$D$10000,"<>Unsig_Int",DB_Segment!$D$11:$D$10000,"<>"),"")) -> 
F47: =IF(I47=0,J47,I47) -> Error | H47: =IF(D47="","Error",IF(OR(D47="Roadway",D47="Bikeway_1",D47="Bikeway_2",D47="Pedestrian_1",D47="Pedestrian_2"),F47*G47*5280,F47*G47)) -> Error | I47: =IF(LEFT($D47,3)="Roa",INDEX(DB_Roadway!$E$11:$E$10000,MATCH($E47,DB_Roadway!$C$11:$C$10000,0),1),IF(LEFT($D47,3)="Bik",INDEX(DB_Bikeway!$E$11:$E$10000,MATCH($E47,DB_Bikeway!$C$11:$C$10000,0),1),IF(LEFT($D47,3)="Ped",INDEX(DB_Pedestrian!$E$11:$E$10000,MATCH($E47,DB_Pedestrian!$C$11:$C$10000,0),1),IF(LEFT($D47,3)="Sig",INDEX(DB_Sig_Int!$E$11:$E$10000,MATCH($E47,DB_Sig_Int!$C$11:$C$10000,0),1),IF(LEFT($D47,3)="Uns",INDEX(DB_Unsig_Int!$E$11:$E$10000,MATCH($E47,DB_Unsig_Int!$C$11:$C$10000,0),1),IF(LEFT($D47,3)="Mis",INDEX(DB_Misc!$E$11:$E$10000,MATCH($E47,DB_Misc!$C$11:$C$10000,0),1),"Error")))))) -> Error | J47: =IF(LEFT($D47,3)="Roa",INDEX(DB_Roadway!$D$11:$D$10000,MATCH($E47,DB_Roadway!$C$11:$C$10000,0),1),IF(LEFT($D47,3)="Bik",INDEX(DB_Bikeway!$D$11:$D$10000,MATCH($E47,DB_Bikeway!$C$11:$C$10000,0),1),IF(LEFT($D47,3)="Ped",INDEX(DB_Pedestrian!$D$11:$D$10000,MATCH($E47,DB_Pedestrian!$C$11:$C$10000,0),1),IF(LEFT($D47,3)="Sig",INDEX(DB_Sig_Int!$D$11:$D$10000,MATCH($E47,DB_Sig_Int!$C$11:$C$10000,0),1),IF(LEFT($D47,3)="Uns",INDEX(DB_Unsig_Int!$D$11:$D$10000,MATCH($E47,DB_Unsig_Int!$C$11:$C$10000,0),1),IF(LEFT($D47,3)="Mis",INDEX(DB_Misc!$D$11:$D$10000,MATCH($E47,DB_Misc!$C$11:$C$10000,0),1),"Error")))))) -> Error | K47: =IF(OR(C47="",D47=""),"",IF(C47<>C46,SUMIFS($G$11:$G$10000,$C$11:$C$10000,C47,DB_Segment!$D$11:$D$10000,"<>Misc",DB_Segment!$D$11:$D$10000,"<>Sig_Int",DB_Segment!$D$11:$D$10000,"<>Unsig_Int")/COUNTIFS($C$11:$C$10000,C47,DB_Segment!$D$11:$D$10000,"<>Misc",DB_Segment!$D$11:$D$10000,"<>Sig_Int",DB_Segment!$D$11:$D$10000,"<>Unsig_Int",DB_Segment!$D$11:$D$10000,"<>"),"")) -> 
F48: =IF(I48=0,J48,I48) -> Error | H48: =IF(D48="","Error",IF(OR(D48="Roadway",D48="Bikeway_1",D48="Bikeway_2",D48="Pedestrian_1",D48="Pedestrian_2"),F48*G48*5280,F48*G48)) -> Error | I48: =IF(LEFT($D48,3)="Roa",INDEX(DB_Roadway!$E$11:$E$10000,MATCH($E48,DB_Roadway!$C$11:$C$10000,0),1),IF(LEFT($D48,3)="Bik",INDEX(DB_Bikeway!$E$11:$E$10000,MATCH($E48,DB_Bikeway!$C$11:$C$10000,0),1),IF(LEFT($D48,3)="Ped",INDEX(DB_Pedestrian!$E$11:$E$10000,MATCH($E48,DB_Pedestrian!$C$11:$C$10000,0),1),IF(LEFT($D48,3)="Sig",INDEX(DB_Sig_Int!$E$11:$E$10000,MATCH($E48,DB_Sig_Int!$C$11:$C$10000,0),1),IF(LEFT($D48,3)="Uns",INDEX(DB_Unsig_Int!$E$11:$E$10000,MATCH($E48,DB_Unsig_Int!$C$11:$C$10000,0),1),IF(LEFT($D48,3)="Mis",INDEX(DB_Misc!$E$11:$E$10000,MATCH($E48,DB_Misc!$C$11:$C$10000,0),1),"Error")))))) -> Error | J48: =IF(LEFT($D48,3)="Roa",INDEX(DB_Roadway!$D$11:$D$10000,MATCH($E48,DB_Roadway!$C$11:$C$10000,0),1),IF(LEFT($D48,3)="Bik",INDEX(DB_Bikeway!$D$11:$D$10000,MATCH($E48,DB_Bikeway!$C$11:$C$10000,0),1),IF(LEFT($D48,3)="Ped",INDEX(DB_Pedestrian!$D$11:$D$10000,MATCH($E48,DB_Pedestrian!$C$11:$C$10000,0),1),IF(LEFT($D48,3)="Sig",INDEX(DB_Sig_Int!$D$11:$D$10000,MATCH($E48,DB_Sig_Int!$C$11:$C$10000,0),1),IF(LEFT($D48,3)="Uns",INDEX(DB_Unsig_Int!$D$11:$D$10000,MATCH($E48,DB_Unsig_Int!$C$11:$C$10000,0),1),IF(LEFT($D48,3)="Mis",INDEX(DB_Misc!$D$11:$D$10000,MATCH($E48,DB_Misc!$C$11:$C$10000,0),1),"Error")))))) -> Error | K48: =IF(OR(C48="",D48=""),"",IF(C48<>C47,SUMIFS($G$11:$G$10000,$C$11:$C$10000,C48,DB_Segment!$D$11:$D$10000,"<>Misc",DB_Segment!$D$11:$D$10000,"<>Sig_Int",DB_Segment!$D$11:$D$10000,"<>Unsig_Int")/COUNTIFS($C$11:$C$10000,C48,DB_Segment!$D$11:$D$10000,"<>Misc",DB_Segment!$D$11:$D$10000,"<>Sig_Int",DB_Segment!$D$11:$D$10000,"<>Unsig_Int",DB_Segment!$D$11:$D$10000,"<>"),"")) -> 
F49: =IF(I49=0,J49,I49) -> Error | H49: =IF(D49="","Error",IF(OR(D49="Roadway",D49="Bikeway_1",D49="Bikeway_2",D49="Pedestrian_1",D49="Pedestrian_2"),F49*G49*5280,F49*G49)) -> Error | I49: =IF(LEFT($D49,3)="Roa",INDEX(DB_Roadway!$E$11:$E$10000,MATCH($E49,DB_Roadway!$C$11:$C$10000,0),1),IF(LEFT($D49,3)="Bik",INDEX(DB_Bikeway!$E$11:$E$10000,MATCH($E49,DB_Bikeway!$C$11:$C$10000,0),1),IF(LEFT($D49,3)="Ped",INDEX(DB_Pedestrian!$E$11:$E$10000,MATCH($E49,DB_Pedestrian!$C$11:$C$10000,0),1),IF(LEFT($D49,3)="Sig",INDEX(DB_Sig_Int!$E$11:$E$10000,MATCH($E49,DB_Sig_Int!$C$11:$C$10000,0),1),IF(LEFT($D49,3)="Uns",INDEX(DB_Unsig_Int!$E$11:$E$10000,MATCH($E49,DB_Unsig_Int!$C$11:$C$10000,0),1),IF(LEFT($D49,3)="Mis",INDEX(DB_Misc!$E$11:$E$10000,MATCH($E49,DB_Misc!$C$11:$C$10000,0),1),"Error")))))) -> Error | J49: =IF(LEFT($D49,3)="Roa",INDEX(DB_Roadway!$D$11:$D$10000,MATCH($E49,DB_Roadway!$C$11:$C$10000,0),1),IF(LEFT($D49,3)="Bik",INDEX(DB_Bikeway!$D$11:$D$10000,MATCH($E49,DB_Bikeway!$C$11:$C$10000,0),1),IF(LEFT($D49,3)="Ped",INDEX(DB_Pedestrian!$D$11:$D$10000,MATCH($E49,DB_Pedestrian!$C$11:$C$10000,0),1),IF(LEFT($D49,3)="Sig",INDEX(DB_Sig_Int!$D$11:$D$10000,MATCH($E49,DB_Sig_Int!$C$11:$C$10000,0),1),IF(LEFT($D49,3)="Uns",INDEX(DB_Unsig_Int!$D$11:$D$10000,MATCH($E49,DB_Unsig_Int!$C$11:$C$10000,0),1),IF(LEFT($D49,3)="Mis",INDEX(DB_Misc!$D$11:$D$10000,MATCH($E49,DB_Misc!$C$11:$C$10000,0),1),"Error")))))) -> Error | K49: =IF(OR(C49="",D49=""),"",IF(C49<>C48,SUMIFS($G$11:$G$10000,$C$11:$C$10000,C49,DB_Segment!$D$11:$D$10000,"<>Misc",DB_Segment!$D$11:$D$10000,"<>Sig_Int",DB_Segment!$D$11:$D$10000,"<>Unsig_Int")/COUNTIFS($C$11:$C$10000,C49,DB_Segment!$D$11:$D$10000,"<>Misc",DB_Segment!$D$11:$D$10000,"<>Sig_Int",DB_Segment!$D$11:$D$10000,"<>Unsig_Int",DB_Segment!$D$11:$D$10000,"<>"),"")) -> 
F50: =IF(I50=0,J50,I50) -> Error | H50: =IF(D50="","Error",IF(OR(D50="Roadway",D50="Bikeway_1",D50="Bikeway_2",D50="Pedestrian_1",D50="Pedestrian_2"),F50*G50*5280,F50*G50)) -> Error | I50: =IF(LEFT($D50,3)="Roa",INDEX(DB_Roadway!$E$11:$E$10000,MATCH($E50,DB_Roadway!$C$11:$C$10000,0),1),IF(LEFT($D50,3)="Bik",INDEX(DB_Bikeway!$E$11:$E$10000,MATCH($E50,DB_Bikeway!$C$11:$C$10000,0),1),IF(LEFT($D50,3)="Ped",INDEX(DB_Pedestrian!$E$11:$E$10000,MATCH($E50,DB_Pedestrian!$C$11:$C$10000,0),1),IF(LEFT($D50,3)="Sig",INDEX(DB_Sig_Int!$E$11:$E$10000,MATCH($E50,DB_Sig_Int!$C$11:$C$10000,0),1),IF(LEFT($D50,3)="Uns",INDEX(DB_Unsig_Int!$E$11:$E$10000,MATCH($E50,DB_Unsig_Int!$C$11:$C$10000,0),1),IF(LEFT($D50,3)="Mis",INDEX(DB_Misc!$E$11:$E$10000,MATCH($E50,DB_Misc!$C$11:$C$10000,0),1),"Error")))))) -> Error | J50: =IF(LEFT($D50,3)="Roa",INDEX(DB_Roadway!$D$11:$D$10000,MATCH($E50,DB_Roadway!$C$11:$C$10000,0),1),IF(LEFT($D50,3)="Bik",INDEX(DB_Bikeway!$D$11:$D$10000,MATCH($E50,DB_Bikeway!$C$11:$C$10000,0),1),IF(LEFT($D50,3)="Ped",INDEX(DB_Pedestrian!$D$11:$D$10000,MATCH($E50,DB_Pedestrian!$C$11:$C$10000,0),1),IF(LEFT($D50,3)="Sig",INDEX(DB_Sig_Int!$D$11:$D$10000,MATCH($E50,DB_Sig_Int!$C$11:$C$10000,0),1),IF(LEFT($D50,3)="Uns",INDEX(DB_Unsig_Int!$D$11:$D$10000,MATCH($E50,DB_Unsig_Int!$C$11:$C$10000,0),1),IF(LEFT($D50,3)="Mis",INDEX(DB_Misc!$D$11:$D$10000,MATCH($E50,DB_Misc!$C$11:$C$10000,0),1),"Error")))))) -> Error | K50: =IF(OR(C50="",D50=""),"",IF(C50<>C49,SUMIFS($G$11:$G$10000,$C$11:$C$10000,C50,DB_Segment!$D$11:$D$10000,"<>Misc",DB_Segment!$D$11:$D$10000,"<>Sig_Int",DB_Segment!$D$11:$D$10000,"<>Unsig_Int")/COUNTIFS($C$11:$C$10000,C50,DB_Segment!$D$11:$D$10000,"<>Misc",DB_Segment!$D$11:$D$10000,"<>Sig_Int",DB_Segment!$D$11:$D$10000,"<>Unsig_Int",DB_Segment!$D$11:$D$10000,"<>"),"")) -> 
F51: =IF(I51=0,J51,I51) -> Error | H51: =IF(D51="","Error",IF(OR(D51="Roadway",D51="Bikeway_1",D51="Bikeway_2",D51="Pedestrian_1",D51="Pedestrian_2"),F51*G51*5280,F51*G51)) -> Error | I51: =IF(LEFT($D51,3)="Roa",INDEX(DB_Roadway!$E$11:$E$10000,MATCH($E51,DB_Roadway!$C$11:$C$10000,0),1),IF(LEFT($D51,3)="Bik",INDEX(DB_Bikeway!$E$11:$E$10000,MATCH($E51,DB_Bikeway!$C$11:$C$10000,0),1),IF(LEFT($D51,3)="Ped",INDEX(DB_Pedestrian!$E$11:$E$10000,MATCH($E51,DB_Pedestrian!$C$11:$C$10000,0),1),IF(LEFT($D51,3)="Sig",INDEX(DB_Sig_Int!$E$11:$E$10000,MATCH($E51,DB_Sig_Int!$C$11:$C$10000,0),1),IF(LEFT($D51,3)="Uns",INDEX(DB_Unsig_Int!$E$11:$E$10000,MATCH($E51,DB_Unsig_Int!$C$11:$C$10000,0),1),IF(LEFT($D51,3)="Mis",INDEX(DB_Misc!$E$11:$E$10000,MATCH($E51,DB_Misc!$C$11:$C$10000,0),1),"Error")))))) -> Error | J51: =IF(LEFT($D51,3)="Roa",INDEX(DB_Roadway!$D$11:$D$10000,MATCH($E51,DB_Roadway!$C$11:$C$10000,0),1),IF(LEFT($D51,3)="Bik",INDEX(DB_Bikeway!$D$11:$D$10000,MATCH($E51,DB_Bikeway!$C$11:$C$10000,0),1),IF(LEFT($D51,3)="Ped",INDEX(DB_Pedestrian!$D$11:$D$10000,MATCH($E51,DB_Pedestrian!$C$11:$C$10000,0),1),IF(LEFT($D51,3)="Sig",INDEX(DB_Sig_Int!$D$11:$D$10000,MATCH($E51,DB_Sig_Int!$C$11:$C$10000,0),1),IF(LEFT($D51,3)="Uns",INDEX(DB_Unsig_Int!$D$11:$D$10000,MATCH($E51,DB_Unsig_Int!$C$11:$C$10000,0),1),IF(LEFT($D51,3)="Mis",INDEX(DB_Misc!$D$11:$D$10000,MATCH($E51,DB_Misc!$C$11:$C$10000,0),1),"Error")))))) -> Error | K51: =IF(OR(C51="",D51=""),"",IF(C51<>C50,SUMIFS($G$11:$G$10000,$C$11:$C$10000,C51,DB_Segment!$D$11:$D$10000,"<>Misc",DB_Segment!$D$11:$D$10000,"<>Sig_Int",DB_Segment!$D$11:$D$10000,"<>Unsig_Int")/COUNTIFS($C$11:$C$10000,C51,DB_Segment!$D$11:$D$10000,"<>Misc",DB_Segment!$D$11:$D$10000,"<>Sig_Int",DB_Segment!$D$11:$D$10000,"<>Unsig_Int",DB_Segment!$D$11:$D$10000,"<>"),"")) -> 
F52: =IF(I52=0,J52,I52) -> Error | H52: =IF(D52="","Error",IF(OR(D52="Roadway",D52="Bikeway_1",D52="Bikeway_2",D52="Pedestrian_1",D52="Pedestrian_2"),F52*G52*5280,F52*G52)) -> Error | I52: =IF(LEFT($D52,3)="Roa",INDEX(DB_Roadway!$E$11:$E$10000,MATCH($E52,DB_Roadway!$C$11:$C$10000,0),1),IF(LEFT($D52,3)="Bik",INDEX(DB_Bikeway!$E$11:$E$10000,MATCH($E52,DB_Bikeway!$C$11:$C$10000,0),1),IF(LEFT($D52,3)="Ped",INDEX(DB_Pedestrian!$E$11:$E$10000,MATCH($E52,DB_Pedestrian!$C$11:$C$10000,0),1),IF(LEFT($D52,3)="Sig",INDEX(DB_Sig_Int!$E$11:$E$10000,MATCH($E52,DB_Sig_Int!$C$11:$C$10000,0),1),IF(LEFT($D52,3)="Uns",INDEX(DB_Unsig_Int!$E$11:$E$10000,MATCH($E52,DB_Unsig_Int!$C$11:$C$10000,0),1),IF(LEFT($D52,3)="Mis",INDEX(DB_Misc!$E$11:$E$10000,MATCH($E52,DB_Misc!$C$11:$C$10000,0),1),"Error")))))) -> Error | J52: =IF(LEFT($D52,3)="Roa",INDEX(DB_Roadway!$D$11:$D$10000,MATCH($E52,DB_Roadway!$C$11:$C$10000,0),1),IF(LEFT($D52,3)="Bik",INDEX(DB_Bikeway!$D$11:$D$10000,MATCH($E52,DB_Bikeway!$C$11:$C$10000,0),1),IF(LEFT($D52,3)="Ped",INDEX(DB_Pedestrian!$D$11:$D$10000,MATCH($E52,DB_Pedestrian!$C$11:$C$10000,0),1),IF(LEFT($D52,3)="Sig",INDEX(DB_Sig_Int!$D$11:$D$10000,MATCH($E52,DB_Sig_Int!$C$11:$C$10000,0),1),IF(LEFT($D52,3)="Uns",INDEX(DB_Unsig_Int!$D$11:$D$10000,MATCH($E52,DB_Unsig_Int!$C$11:$C$10000,0),1),IF(LEFT($D52,3)="Mis",INDEX(DB_Misc!$D$11:$D$10000,MATCH($E52,DB_Misc!$C$11:$C$10000,0),1),"Error")))))) -> Error | K52: =IF(OR(C52="",D52=""),"",IF(C52<>C51,SUMIFS($G$11:$G$10000,$C$11:$C$10000,C52,DB_Segment!$D$11:$D$10000,"<>Misc",DB_Segment!$D$11:$D$10000,"<>Sig_Int",DB_Segment!$D$11:$D$10000,"<>Unsig_Int")/COUNTIFS($C$11:$C$10000,C52,DB_Segment!$D$11:$D$10000,"<>Misc",DB_Segment!$D$11:$D$10000,"<>Sig_Int",DB_Segment!$D$11:$D$10000,"<>Unsig_Int",DB_Segment!$D$11:$D$10000,"<>"),"")) -> 
F53: =IF(I53=0,J53,I53) -> Error | H53: =IF(D53="","Error",IF(OR(D53="Roadway",D53="Bikeway_1",D53="Bikeway_2",D53="Pedestrian_1",D53="Pedestrian_2"),F53*G53*5280,F53*G53)) -> Error | I53: =IF(LEFT($D53,3)="Roa",INDEX(DB_Roadway!$E$11:$E$10000,MATCH($E53,DB_Roadway!$C$11:$C$10000,0),1),IF(LEFT($D53,3)="Bik",INDEX(DB_Bikeway!$E$11:$E$10000,MATCH($E53,DB_Bikeway!$C$11:$C$10000,0),1),IF(LEFT($D53,3)="Ped",INDEX(DB_Pedestrian!$E$11:$E$10000,MATCH($E53,DB_Pedestrian!$C$11:$C$10000,0),1),IF(LEFT($D53,3)="Sig",INDEX(DB_Sig_Int!$E$11:$E$10000,MATCH($E53,DB_Sig_Int!$C$11:$C$10000,0),1),IF(LEFT($D53,3)="Uns",INDEX(DB_Unsig_Int!$E$11:$E$10000,MATCH($E53,DB_Unsig_Int!$C$11:$C$10000,0),1),IF(LEFT($D53,3)="Mis",INDEX(DB_Misc!$E$11:$E$10000,MATCH($E53,DB_Misc!$C$11:$C$10000,0),1),"Error")))))) -> Error | J53: =IF(LEFT($D53,3)="Roa",INDEX(DB_Roadway!$D$11:$D$10000,MATCH($E53,DB_Roadway!$C$11:$C$10000,0),1),IF(LEFT($D53,3)="Bik",INDEX(DB_Bikeway!$D$11:$D$10000,MATCH($E53,DB_Bikeway!$C$11:$C$10000,0),1),IF(LEFT($D53,3)="Ped",INDEX(DB_Pedestrian!$D$11:$D$10000,MATCH($E53,DB_Pedestrian!$C$11:$C$10000,0),1),IF(LEFT($D53,3)="Sig",INDEX(DB_Sig_Int!$D$11:$D$10000,MATCH($E53,DB_Sig_Int!$C$11:$C$10000,0),1),IF(LEFT($D53,3)="Uns",INDEX(DB_Unsig_Int!$D$11:$D$10000,MATCH($E53,DB_Unsig_Int!$C$11:$C$10000,0),1),IF(LEFT($D53,3)="Mis",INDEX(DB_Misc!$D$11:$D$10000,MATCH($E53,DB_Misc!$C$11:$C$10000,0),1),"Error")))))) -> Error | K53: =IF(OR(C53="",D53=""),"",IF(C53<>C52,SUMIFS($G$11:$G$10000,$C$11:$C$10000,C53,DB_Segment!$D$11:$D$10000,"<>Misc",DB_Segment!$D$11:$D$10000,"<>Sig_Int",DB_Segment!$D$11:$D$10000,"<>Unsig_Int")/COUNTIFS($C$11:$C$10000,C53,DB_Segment!$D$11:$D$10000,"<>Misc",DB_Segment!$D$11:$D$10000,"<>Sig_Int",DB_Segment!$D$11:$D$10000,"<>Unsig_Int",DB_Segment!$D$11:$D$10000,"<>"),"")) -> 
F54: =IF(I54=0,J54,I54) -> Error | H54: =IF(D54="","Error",IF(OR(D54="Roadway",D54="Bikeway_1",D54="Bikeway_2",D54="Pedestrian_1",D54="Pedestrian_2"),F54*G54*5280,F54*G54)) -> Error | I54: =IF(LEFT($D54,3)="Roa",INDEX(DB_Roadway!$E$11:$E$10000,MATCH($E54,DB_Roadway!$C$11:$C$10000,0),1),IF(LEFT($D54,3)="Bik",INDEX(DB_Bikeway!$E$11:$E$10000,MATCH($E54,DB_Bikeway!$C$11:$C$10000,0),1),IF(LEFT($D54,3)="Ped",INDEX(DB_Pedestrian!$E$11:$E$10000,MATCH($E54,DB_Pedestrian!$C$11:$C$10000,0),1),IF(LEFT($D54,3)="Sig",INDEX(DB_Sig_Int!$E$11:$E$10000,MATCH($E54,DB_Sig_Int!$C$11:$C$10000,0),1),IF(LEFT($D54,3)="Uns",INDEX(DB_Unsig_Int!$E$11:$E$10000,MATCH($E54,DB_Unsig_Int!$C$11:$C$10000,0),1),IF(LEFT($D54,3)="Mis",INDEX(DB_Misc!$E$11:$E$10000,MATCH($E54,DB_Misc!$C$11:$C$10000,0),1),"Error")))))) -> Error | J54: =IF(LEFT($D54,3)="Roa",INDEX(DB_Roadway!$D$11:$D$10000,MATCH($E54,DB_Roadway!$C$11:$C$10000,0),1),IF(LEFT($D54,3)="Bik",INDEX(DB_Bikeway!$D$11:$D$10000,MATCH($E54,DB_Bikeway!$C$11:$C$10000,0),1),IF(LEFT($D54,3)="Ped",INDEX(DB_Pedestrian!$D$11:$D$10000,MATCH($E54,DB_Pedestrian!$C$11:$C$10000,0),1),IF(LEFT($D54,3)="Sig",INDEX(DB_Sig_Int!$D$11:$D$10000,MATCH($E54,DB_Sig_Int!$C$11:$C$10000,0),1),IF(LEFT($D54,3)="Uns",INDEX(DB_Unsig_Int!$D$11:$D$10000,MATCH($E54,DB_Unsig_Int!$C$11:$C$10000,0),1),IF(LEFT($D54,3)="Mis",INDEX(DB_Misc!$D$11:$D$10000,MATCH($E54,DB_Misc!$C$11:$C$10000,0),1),"Error")))))) -> Error | K54: =IF(OR(C54="",D54=""),"",IF(C54<>C53,SUMIFS($G$11:$G$10000,$C$11:$C$10000,C54,DB_Segment!$D$11:$D$10000,"<>Misc",DB_Segment!$D$11:$D$10000,"<>Sig_Int",DB_Segment!$D$11:$D$10000,"<>Unsig_Int")/COUNTIFS($C$11:$C$10000,C54,DB_Segment!$D$11:$D$10000,"<>Misc",DB_Segment!$D$11:$D$10000,"<>Sig_Int",DB_Segment!$D$11:$D$10000,"<>Unsig_Int",DB_Segment!$D$11:$D$10000,"<>"),"")) -> 
F55: =IF(I55=0,J55,I55) -> Error | H55: =IF(D55="","Error",IF(OR(D55="Roadway",D55="Bikeway_1",D55="Bikeway_2",D55="Pedestrian_1",D55="Pedestrian_2"),F55*G55*5280,F55*G55)) -> Error | I55: =IF(LEFT($D55,3)="Roa",INDEX(DB_Roadway!$E$11:$E$10000,MATCH($E55,DB_Roadway!$C$11:$C$10000,0),1),IF(LEFT($D55,3)="Bik",INDEX(DB_Bikeway!$E$11:$E$10000,MATCH($E55,DB_Bikeway!$C$11:$C$10000,0),1),IF(LEFT($D55,3)="Ped",INDEX(DB_Pedestrian!$E$11:$E$10000,MATCH($E55,DB_Pedestrian!$C$11:$C$10000,0),1),IF(LEFT($D55,3)="Sig",INDEX(DB_Sig_Int!$E$11:$E$10000,MATCH($E55,DB_Sig_Int!$C$11:$C$10000,0),1),IF(LEFT($D55,3)="Uns",INDEX(DB_Unsig_Int!$E$11:$E$10000,MATCH($E55,DB_Unsig_Int!$C$11:$C$10000,0),1),IF(LEFT($D55,3)="Mis",INDEX(DB_Misc!$E$11:$E$10000,MATCH($E55,DB_Misc!$C$11:$C$10000,0),1),"Error")))))) -> Error | J55: =IF(LEFT($D55,3)="Roa",INDEX(DB_Roadway!$D$11:$D$10000,MATCH($E55,DB_Roadway!$C$11:$C$10000,0),1),IF(LEFT($D55,3)="Bik",INDEX(DB_Bikeway!$D$11:$D$10000,MATCH($E55,DB_Bikeway!$C$11:$C$10000,0),1),IF(LEFT($D55,3)="Ped",INDEX(DB_Pedestrian!$D$11:$D$10000,MATCH($E55,DB_Pedestrian!$C$11:$C$10000,0),1),IF(LEFT($D55,3)="Sig",INDEX(DB_Sig_Int!$D$11:$D$10000,MATCH($E55,DB_Sig_Int!$C$11:$C$10000,0),1),IF(LEFT($D55,3)="Uns",INDEX(DB_Unsig_Int!$D$11:$D$10000,MATCH($E55,DB_Unsig_Int!$C$11:$C$10000,0),1),IF(LEFT($D55,3)="Mis",INDEX(DB_Misc!$D$11:$D$10000,MATCH($E55,DB_Misc!$C$11:$C$10000,0),1),"Error")))))) -> Error | K55: =IF(OR(C55="",D55=""),"",IF(C55<>C54,SUMIFS($G$11:$G$10000,$C$11:$C$10000,C55,DB_Segment!$D$11:$D$10000,"<>Misc",DB_Segment!$D$11:$D$10000,"<>Sig_Int",DB_Segment!$D$11:$D$10000,"<>Unsig_Int")/COUNTIFS($C$11:$C$10000,C55,DB_Segment!$D$11:$D$10000,"<>Misc",DB_Segment!$D$11:$D$10000,"<>Sig_Int",DB_Segment!$D$11:$D$10000,"<>Unsig_Int",DB_Segment!$D$11:$D$10000,"<>"),"")) -> 
F56: =IF(I56=0,J56,I56) -> Error | H56: =IF(D56="","Error",IF(OR(D56="Roadway",D56="Bikeway_1",D56="Bikeway_2",D56="Pedestrian_1",D56="Pedestrian_2"),F56*G56*5280,F56*G56)) -> Error | I56: =IF(LEFT($D56,3)="Roa",INDEX(DB_Roadway!$E$11:$E$10000,MATCH($E56,DB_Roadway!$C$11:$C$10000,0),1),IF(LEFT($D56,3)="Bik",INDEX(DB_Bikeway!$E$11:$E$10000,MATCH($E56,DB_Bikeway!$C$11:$C$10000,0),1),IF(LEFT($D56,3)="Ped",INDEX(DB_Pedestrian!$E$11:$E$10000,MATCH($E56,DB_Pedestrian!$C$11:$C$10000,0),1),IF(LEFT($D56,3)="Sig",INDEX(DB_Sig_Int!$E$11:$E$10000,MATCH($E56,DB_Sig_Int!$C$11:$C$10000,0),1),IF(LEFT($D56,3)="Uns",INDEX(DB_Unsig_Int!$E$11:$E$10000,MATCH($E56,DB_Unsig_Int!$C$11:$C$10000,0),1),IF(LEFT($D56,3)="Mis",INDEX(DB_Misc!$E$11:$E$10000,MATCH($E56,DB_Misc!$C$11:$C$10000,0),1),"Error")))))) -> Error | J56: =IF(LEFT($D56,3)="Roa",INDEX(DB_Roadway!$D$11:$D$10000,MATCH($E56,DB_Roadway!$C$11:$C$10000,0),1),IF(LEFT($D56,3)="Bik",INDEX(DB_Bikeway!$D$11:$D$10000,MATCH($E56,DB_Bikeway!$C$11:$C$10000,0),1),IF(LEFT($D56,3)="Ped",INDEX(DB_Pedestrian!$D$11:$D$10000,MATCH($E56,DB_Pedestrian!$C$11:$C$10000,0),1),IF(LEFT($D56,3)="Sig",INDEX(DB_Sig_Int!$D$11:$D$10000,MATCH($E56,DB_Sig_Int!$C$11:$C$10000,0),1),IF(LEFT($D56,3)="Uns",INDEX(DB_Unsig_Int!$D$11:$D$10000,MATCH($E56,DB_Unsig_Int!$C$11:$C$10000,0),1),IF(LEFT($D56,3)="Mis",INDEX(DB_Misc!$D$11:$D$10000,MATCH($E56,DB_Misc!$C$11:$C$10000,0),1),"Error")))))) -> Error | K56: =IF(OR(C56="",D56=""),"",IF(C56<>C55,SUMIFS($G$11:$G$10000,$C$11:$C$10000,C56,DB_Segment!$D$11:$D$10000,"<>Misc",DB_Segment!$D$11:$D$10000,"<>Sig_Int",DB_Segment!$D$11:$D$10000,"<>Unsig_Int")/COUNTIFS($C$11:$C$10000,C56,DB_Segment!$D$11:$D$10000,"<>Misc",DB_Segment!$D$11:$D$10000,"<>Sig_Int",DB_Segment!$D$11:$D$10000,"<>Unsig_Int",DB_Segment!$D$11:$D$10000,"<>"),"")) -> 
F57: =IF(I57=0,J57,I57) -> Error | H57: =IF(D57="","Error",IF(OR(D57="Roadway",D57="Bikeway_1",D57="Bikeway_2",D57="Pedestrian_1",D57="Pedestrian_2"),F57*G57*5280,F57*G57)) -> Error | I57: =IF(LEFT($D57,3)="Roa",INDEX(DB_Roadway!$E$11:$E$10000,MATCH($E57,DB_Roadway!$C$11:$C$10000,0),1),IF(LEFT($D57,3)="Bik",INDEX(DB_Bikeway!$E$11:$E$10000,MATCH($E57,DB_Bikeway!$C$11:$C$10000,0),1),IF(LEFT($D57,3)="Ped",INDEX(DB_Pedestrian!$E$11:$E$10000,MATCH($E57,DB_Pedestrian!$C$11:$C$10000,0),1),IF(LEFT($D57,3)="Sig",INDEX(DB_Sig_Int!$E$11:$E$10000,MATCH($E57,DB_Sig_Int!$C$11:$C$10000,0),1),IF(LEFT($D57,3)="Uns",INDEX(DB_Unsig_Int!$E$11:$E$10000,MATCH($E57,DB_Unsig_Int!$C$11:$C$10000,0),1),IF(LEFT($D57,3)="Mis",INDEX(DB_Misc!$E$11:$E$10000,MATCH($E57,DB_Misc!$C$11:$C$10000,0),1),"Error")))))) -> Error | J57: =IF(LEFT($D57,3)="Roa",INDEX(DB_Roadway!$D$11:$D$10000,MATCH($E57,DB_Roadway!$C$11:$C$10000,0),1),IF(LEFT($D57,3)="Bik",INDEX(DB_Bikeway!$D$11:$D$10000,MATCH($E57,DB_Bikeway!$C$11:$C$10000,0),1),IF(LEFT($D57,3)="Ped",INDEX(DB_Pedestrian!$D$11:$D$10000,MATCH($E57,DB_Pedestrian!$C$11:$C$10000,0),1),IF(LEFT($D57,3)="Sig",INDEX(DB_Sig_Int!$D$11:$D$10000,MATCH($E57,DB_Sig_Int!$C$11:$C$10000,0),1),IF(LEFT($D57,3)="Uns",INDEX(DB_Unsig_Int!$D$11:$D$10000,MATCH($E57,DB_Unsig_Int!$C$11:$C$10000,0),1),IF(LEFT($D57,3)="Mis",INDEX(DB_Misc!$D$11:$D$10000,MATCH($E57,DB_Misc!$C$11:$C$10000,0),1),"Error")))))) -> Error | K57: =IF(OR(C57="",D57=""),"",IF(C57<>C56,SUMIFS($G$11:$G$10000,$C$11:$C$10000,C57,DB_Segment!$D$11:$D$10000,"<>Misc",DB_Segment!$D$11:$D$10000,"<>Sig_Int",DB_Segment!$D$11:$D$10000,"<>Unsig_Int")/COUNTIFS($C$11:$C$10000,C57,DB_Segment!$D$11:$D$10000,"<>Misc",DB_Segment!$D$11:$D$10000,"<>Sig_Int",DB_Segment!$D$11:$D$10000,"<>Unsig_Int",DB_Segment!$D$11:$D$10000,"<>"),"")) -> 
F58: =IF(I58=0,J58,I58) -> Error | H58: =IF(D58="","Error",IF(OR(D58="Roadway",D58="Bikeway_1",D58="Bikeway_2",D58="Pedestrian_1",D58="Pedestrian_2"),F58*G58*5280,F58*G58)) -> Error | I58: =IF(LEFT($D58,3)="Roa",INDEX(DB_Roadway!$E$11:$E$10000,MATCH($E58,DB_Roadway!$C$11:$C$10000,0),1),IF(LEFT($D58,3)="Bik",INDEX(DB_Bikeway!$E$11:$E$10000,MATCH($E58,DB_Bikeway!$C$11:$C$10000,0),1),IF(LEFT($D58,3)="Ped",INDEX(DB_Pedestrian!$E$11:$E$10000,MATCH($E58,DB_Pedestrian!$C$11:$C$10000,0),1),IF(LEFT($D58,3)="Sig",INDEX(DB_Sig_Int!$E$11:$E$10000,MATCH($E58,DB_Sig_Int!$C$11:$C$10000,0),1),IF(LEFT($D58,3)="Uns",INDEX(DB_Unsig_Int!$E$11:$E$10000,MATCH($E58,DB_Unsig_Int!$C$11:$C$10000,0),1),IF(LEFT($D58,3)="Mis",INDEX(DB_Misc!$E$11:$E$10000,MATCH($E58,DB_Misc!$C$11:$C$10000,0),1),"Error")))))) -> Error | J58: =IF(LEFT($D58,3)="Roa",INDEX(DB_Roadway!$D$11:$D$10000,MATCH($E58,DB_Roadway!$C$11:$C$10000,0),1),IF(LEFT($D58,3)="Bik",INDEX(DB_Bikeway!$D$11:$D$10000,MATCH($E58,DB_Bikeway!$C$11:$C$10000,0),1),IF(LEFT($D58,3)="Ped",INDEX(DB_Pedestrian!$D$11:$D$10000,MATCH($E58,DB_Pedestrian!$C$11:$C$10000,0),1),IF(LEFT($D58,3)="Sig",INDEX(DB_Sig_Int!$D$11:$D$10000,MATCH($E58,DB_Sig_Int!$C$11:$C$10000,0),1),IF(LEFT($D58,3)="Uns",INDEX(DB_Unsig_Int!$D$11:$D$10000,MATCH($E58,DB_Unsig_Int!$C$11:$C$10000,0),1),IF(LEFT($D58,3)="Mis",INDEX(DB_Misc!$D$11:$D$10000,MATCH($E58,DB_Misc!$C$11:$C$10000,0),1),"Error")))))) -> Error | K58: =IF(OR(C58="",D58=""),"",IF(C58<>C57,SUMIFS($G$11:$G$10000,$C$11:$C$10000,C58,DB_Segment!$D$11:$D$10000,"<>Misc",DB_Segment!$D$11:$D$10000,"<>Sig_Int",DB_Segment!$D$11:$D$10000,"<>Unsig_Int")/COUNTIFS($C$11:$C$10000,C58,DB_Segment!$D$11:$D$10000,"<>Misc",DB_Segment!$D$11:$D$10000,"<>Sig_Int",DB_Segment!$D$11:$D$10000,"<>Unsig_Int",DB_Segment!$D$11:$D$10000,"<>"),"")) -> 
F59: =IF(I59=0,J59,I59) -> Error | H59: =IF(D59="","Error",IF(OR(D59="Roadway",D59="Bikeway_1",D59="Bikeway_2",D59="Pedestrian_1",D59="Pedestrian_2"),F59*G59*5280,F59*G59)) -> Error | I59: =IF(LEFT($D59,3)="Roa",INDEX(DB_Roadway!$E$11:$E$10000,MATCH($E59,DB_Roadway!$C$11:$C$10000,0),1),IF(LEFT($D59,3)="Bik",INDEX(DB_Bikeway!$E$11:$E$10000,MATCH($E59,DB_Bikeway!$C$11:$C$10000,0),1),IF(LEFT($D59,3)="Ped",INDEX(DB_Pedestrian!$E$11:$E$10000,MATCH($E59,DB_Pedestrian!$C$11:$C$10000,0),1),IF(LEFT($D59,3)="Sig",INDEX(DB_Sig_Int!$E$11:$E$10000,MATCH($E59,DB_Sig_Int!$C$11:$C$10000,0),1),IF(LEFT($D59,3)="Uns",INDEX(DB_Unsig_Int!$E$11:$E$10000,MATCH($E59,DB_Unsig_Int!$C$11:$C$10000,0),1),IF(LEFT($D59,3)="Mis",INDEX(DB_Misc!$E$11:$E$10000,MATCH($E59,DB_Misc!$C$11:$C$10000,0),1),"Error")))))) -> Error | J59: =IF(LEFT($D59,3)="Roa",INDEX(DB_Roadway!$D$11:$D$10000,MATCH($E59,DB_Roadway!$C$11:$C$10000,0),1),IF(LEFT($D59,3)="Bik",INDEX(DB_Bikeway!$D$11:$D$10000,MATCH($E59,DB_Bikeway!$C$11:$C$10000,0),1),IF(LEFT($D59,3)="Ped",INDEX(DB_Pedestrian!$D$11:$D$10000,MATCH($E59,DB_Pedestrian!$C$11:$C$10000,0),1),IF(LEFT($D59,3)="Sig",INDEX(DB_Sig_Int!$D$11:$D$10000,MATCH($E59,DB_Sig_Int!$C$11:$C$10000,0),1),IF(LEFT($D59,3)="Uns",INDEX(DB_Unsig_Int!$D$11:$D$10000,MATCH($E59,DB_Unsig_Int!$C$11:$C$10000,0),1),IF(LEFT($D59,3)="Mis",INDEX(DB_Misc!$D$11:$D$10000,MATCH($E59,DB_Misc!$C$11:$C$10000,0),1),"Error")))))) -> Error | K59: =IF(OR(C59="",D59=""),"",IF(C59<>C58,SUMIFS($G$11:$G$10000,$C$11:$C$10000,C59,DB_Segment!$D$11:$D$10000,"<>Misc",DB_Segment!$D$11:$D$10000,"<>Sig_Int",DB_Segment!$D$11:$D$10000,"<>Unsig_Int")/COUNTIFS($C$11:$C$10000,C59,DB_Segment!$D$11:$D$10000,"<>Misc",DB_Segment!$D$11:$D$10000,"<>Sig_Int",DB_Segment!$D$11:$D$10000,"<>Unsig_Int",DB_Segment!$D$11:$D$10000,"<>"),"")) -> 
F60: =IF(I60=0,J60,I60) -> Error | H60: =IF(D60="","Error",IF(OR(D60="Roadway",D60="Bikeway_1",D60="Bikeway_2",D60="Pedestrian_1",D60="Pedestrian_2"),F60*G60*5280,F60*G60)) -> Error | I60: =IF(LEFT($D60,3)="Roa",INDEX(DB_Roadway!$E$11:$E$10000,MATCH($E60,DB_Roadway!$C$11:$C$10000,0),1),IF(LEFT($D60,3)="Bik",INDEX(DB_Bikeway!$E$11:$E$10000,MATCH($E60,DB_Bikeway!$C$11:$C$10000,0),1),IF(LEFT($D60,3)="Ped",INDEX(DB_Pedestrian!$E$11:$E$10000,MATCH($E60,DB_Pedestrian!$C$11:$C$10000,0),1),IF(LEFT($D60,3)="Sig",INDEX(DB_Sig_Int!$E$11:$E$10000,MATCH($E60,DB_Sig_Int!$C$11:$C$10000,0),1),IF(LEFT($D60,3)="Uns",INDEX(DB_Unsig_Int!$E$11:$E$10000,MATCH($E60,DB_Unsig_Int!$C$11:$C$10000,0),1),IF(LEFT($D60,3)="Mis",INDEX(DB_Misc!$E$11:$E$10000,MATCH($E60,DB_Misc!$C$11:$C$10000,0),1),"Error")))))) -> Error | J60: =IF(LEFT($D60,3)="Roa",INDEX(DB_Roadway!$D$11:$D$10000,MATCH($E60,DB_Roadway!$C$11:$C$10000,0),1),IF(LEFT($D60,3)="Bik",INDEX(DB_Bikeway!$D$11:$D$10000,MATCH($E60,DB_Bikeway!$C$11:$C$10000,0),1),IF(LEFT($D60,3)="Ped",INDEX(DB_Pedestrian!$D$11:$D$10000,MATCH($E60,DB_Pedestrian!$C$11:$C$10000,0),1),IF(LEFT($D60,3)="Sig",INDEX(DB_Sig_Int!$D$11:$D$10000,MATCH($E60,DB_Sig_Int!$C$11:$C$10000,0),1),IF(LEFT($D60,3)="Uns",INDEX(DB_Unsig_Int!$D$11:$D$10000,MATCH($E60,DB_Unsig_Int!$C$11:$C$10000,0),1),IF(LEFT($D60,3)="Mis",INDEX(DB_Misc!$D$11:$D$10000,MATCH($E60,DB_Misc!$C$11:$C$10000,0),1),"Error")))))) -> Error | K60: =IF(OR(C60="",D60=""),"",IF(C60<>C59,SUMIFS($G$11:$G$10000,$C$11:$C$10000,C60,DB_Segment!$D$11:$D$10000,"<>Misc",DB_Segment!$D$11:$D$10000,"<>Sig_Int",DB_Segment!$D$11:$D$10000,"<>Unsig_Int")/COUNTIFS($C$11:$C$10000,C60,DB_Segment!$D$11:$D$10000,"<>Misc",DB_Segment!$D$11:$D$10000,"<>Sig_Int",DB_Segment!$D$11:$D$10000,"<>Unsig_Int",DB_Segment!$D$11:$D$10000,"<>"),"")) -> 
F61: =IF(I61=0,J61,I61) -> Error | H61: =IF(D61="","Error",IF(OR(D61="Roadway",D61="Bikeway_1",D61="Bikeway_2",D61="Pedestrian_1",D61="Pedestrian_2"),F61*G61*5280,F61*G61)) -> Error | I61: =IF(LEFT($D61,3)="Roa",INDEX(DB_Roadway!$E$11:$E$10000,MATCH($E61,DB_Roadway!$C$11:$C$10000,0),1),IF(LEFT($D61,3)="Bik",INDEX(DB_Bikeway!$E$11:$E$10000,MATCH($E61,DB_Bikeway!$C$11:$C$10000,0),1),IF(LEFT($D61,3)="Ped",INDEX(DB_Pedestrian!$E$11:$E$10000,MATCH($E61,DB_Pedestrian!$C$11:$C$10000,0),1),IF(LEFT($D61,3)="Sig",INDEX(DB_Sig_Int!$E$11:$E$10000,MATCH($E61,DB_Sig_Int!$C$11:$C$10000,0),1),IF(LEFT($D61,3)="Uns",INDEX(DB_Unsig_Int!$E$11:$E$10000,MATCH($E61,DB_Unsig_Int!$C$11:$C$10000,0),1),IF(LEFT($D61,3)="Mis",INDEX(DB_Misc!$E$11:$E$10000,MATCH($E61,DB_Misc!$C$11:$C$10000,0),1),"Error")))))) -> Error | J61: =IF(LEFT($D61,3)="Roa",INDEX(DB_Roadway!$D$11:$D$10000,MATCH($E61,DB_Roadway!$C$11:$C$10000,0),1),IF(LEFT($D61,3)="Bik",INDEX(DB_Bikeway!$D$11:$D$10000,MATCH($E61,DB_Bikeway!$C$11:$C$10000,0),1),IF(LEFT($D61,3)="Ped",INDEX(DB_Pedestrian!$D$11:$D$10000,MATCH($E61,DB_Pedestrian!$C$11:$C$10000,0),1),IF(LEFT($D61,3)="Sig",INDEX(DB_Sig_Int!$D$11:$D$10000,MATCH($E61,DB_Sig_Int!$C$11:$C$10000,0),1),IF(LEFT($D61,3)="Uns",INDEX(DB_Unsig_Int!$D$11:$D$10000,MATCH($E61,DB_Unsig_Int!$C$11:$C$10000,0),1),IF(LEFT($D61,3)="Mis",INDEX(DB_Misc!$D$11:$D$10000,MATCH($E61,DB_Misc!$C$11:$C$10000,0),1),"Error")))))) -> Error | K61: =IF(OR(C61="",D61=""),"",IF(C61<>C60,SUMIFS($G$11:$G$10000,$C$11:$C$10000,C61,DB_Segment!$D$11:$D$10000,"<>Misc",DB_Segment!$D$11:$D$10000,"<>Sig_Int",DB_Segment!$D$11:$D$10000,"<>Unsig_Int")/COUNTIFS($C$11:$C$10000,C61,DB_Segment!$D$11:$D$10000,"<>Misc",DB_Segment!$D$11:$D$10000,"<>Sig_Int",DB_Segment!$D$11:$D$10000,"<>Unsig_Int",DB_Segment!$D$11:$D$10000,"<>"),"")) -> 
F62: =IF(I62=0,J62,I62) -> Error | H62: =IF(D62="","Error",IF(OR(D62="Roadway",D62="Bikeway_1",D62="Bikeway_2",D62="Pedestrian_1",D62="Pedestrian_2"),F62*G62*5280,F62*G62)) -> Error | I62: =IF(LEFT($D62,3)="Roa",INDEX(DB_Roadway!$E$11:$E$10000,MATCH($E62,DB_Roadway!$C$11:$C$10000,0),1),IF(LEFT($D62,3)="Bik",INDEX(DB_Bikeway!$E$11:$E$10000,MATCH($E62,DB_Bikeway!$C$11:$C$10000,0),1),IF(LEFT($D62,3)="Ped",INDEX(DB_Pedestrian!$E$11:$E$10000,MATCH($E62,DB_Pedestrian!$C$11:$C$10000,0),1),IF(LEFT($D62,3)="Sig",INDEX(DB_Sig_Int!$E$11:$E$10000,MATCH($E62,DB_Sig_Int!$C$11:$C$10000,0),1),IF(LEFT($D62,3)="Uns",INDEX(DB_Unsig_Int!$E$11:$E$10000,MATCH($E62,DB_Unsig_Int!$C$11:$C$10000,0),1),IF(LEFT($D62,3)="Mis",INDEX(DB_Misc!$E$11:$E$10000,MATCH($E62,DB_Misc!$C$11:$C$10000,0),1),"Error")))))) -> Error | J62: =IF(LEFT($D62,3)="Roa",INDEX(DB_Roadway!$D$11:$D$10000,MATCH($E62,DB_Roadway!$C$11:$C$10000,0),1),IF(LEFT($D62,3)="Bik",INDEX(DB_Bikeway!$D$11:$D$10000,MATCH($E62,DB_Bikeway!$C$11:$C$10000,0),1),IF(LEFT($D62,3)="Ped",INDEX(DB_Pedestrian!$D$11:$D$10000,MATCH($E62,DB_Pedestrian!$C$11:$C$10000,0),1),IF(LEFT($D62,3)="Sig",INDEX(DB_Sig_Int!$D$11:$D$10000,MATCH($E62,DB_Sig_Int!$C$11:$C$10000,0),1),IF(LEFT($D62,3)="Uns",INDEX(DB_Unsig_Int!$D$11:$D$10000,MATCH($E62,DB_Unsig_Int!$C$11:$C$10000,0),1),IF(LEFT($D62,3)="Mis",INDEX(DB_Misc!$D$11:$D$10000,MATCH($E62,DB_Misc!$C$11:$C$10000,0),1),"Error")))))) -> Error | K62: =IF(OR(C62="",D62=""),"",IF(C62<>C61,SUMIFS($G$11:$G$10000,$C$11:$C$10000,C62,DB_Segment!$D$11:$D$10000,"<>Misc",DB_Segment!$D$11:$D$10000,"<>Sig_Int",DB_Segment!$D$11:$D$10000,"<>Unsig_Int")/COUNTIFS($C$11:$C$10000,C62,DB_Segment!$D$11:$D$10000,"<>Misc",DB_Segment!$D$11:$D$10000,"<>Sig_Int",DB_Segment!$D$11:$D$10000,"<>Unsig_Int",DB_Segment!$D$11:$D$10000,"<>"),"")) -> 
F63: =IF(I63=0,J63,I63) -> Error | H63: =IF(D63="","Error",IF(OR(D63="Roadway",D63="Bikeway_1",D63="Bikeway_2",D63="Pedestrian_1",D63="Pedestrian_2"),F63*G63*5280,F63*G63)) -> Error | I63: =IF(LEFT($D63,3)="Roa",INDEX(DB_Roadway!$E$11:$E$10000,MATCH($E63,DB_Roadway!$C$11:$C$10000,0),1),IF(LEFT($D63,3)="Bik",INDEX(DB_Bikeway!$E$11:$E$10000,MATCH($E63,DB_Bikeway!$C$11:$C$10000,0),1),IF(LEFT($D63,3)="Ped",INDEX(DB_Pedestrian!$E$11:$E$10000,MATCH($E63,DB_Pedestrian!$C$11:$C$10000,0),1),IF(LEFT($D63,3)="Sig",INDEX(DB_Sig_Int!$E$11:$E$10000,MATCH($E63,DB_Sig_Int!$C$11:$C$10000,0),1),IF(LEFT($D63,3)="Uns",INDEX(DB_Unsig_Int!$E$11:$E$10000,MATCH($E63,DB_Unsig_Int!$C$11:$C$10000,0),1),IF(LEFT($D63,3)="Mis",INDEX(DB_Misc!$E$11:$E$10000,MATCH($E63,DB_Misc!$C$11:$C$10000,0),1),"Error")))))) -> Error | J63: =IF(LEFT($D63,3)="Roa",INDEX(DB_Roadway!$D$11:$D$10000,MATCH($E63,DB_Roadway!$C$11:$C$10000,0),1),IF(LEFT($D63,3)="Bik",INDEX(DB_Bikeway!$D$11:$D$10000,MATCH($E63,DB_Bikeway!$C$11:$C$10000,0),1),IF(LEFT($D63,3)="Ped",INDEX(DB_Pedestrian!$D$11:$D$10000,MATCH($E63,DB_Pedestrian!$C$11:$C$10000,0),1),IF(LEFT($D63,3)="Sig",INDEX(DB_Sig_Int!$D$11:$D$10000,MATCH($E63,DB_Sig_Int!$C$11:$C$10000,0),1),IF(LEFT($D63,3)="Uns",INDEX(DB_Unsig_Int!$D$11:$D$10000,MATCH($E63,DB_Unsig_Int!$C$11:$C$10000,0),1),IF(LEFT($D63,3)="Mis",INDEX(DB_Misc!$D$11:$D$10000,MATCH($E63,DB_Misc!$C$11:$C$10000,0),1),"Error")))))) -> Error | K63: =IF(OR(C63="",D63=""),"",IF(C63<>C62,SUMIFS($G$11:$G$10000,$C$11:$C$10000,C63,DB_Segment!$D$11:$D$10000,"<>Misc",DB_Segment!$D$11:$D$10000,"<>Sig_Int",DB_Segment!$D$11:$D$10000,"<>Unsig_Int")/COUNTIFS($C$11:$C$10000,C63,DB_Segment!$D$11:$D$10000,"<>Misc",DB_Segment!$D$11:$D$10000,"<>Sig_Int",DB_Segment!$D$11:$D$10000,"<>Unsig_Int",DB_Segment!$D$11:$D$10000,"<>"),"")) -> 
F64: =IF(I64=0,J64,I64) -> Error | H64: =IF(D64="","Error",IF(OR(D64="Roadway",D64="Bikeway_1",D64="Bikeway_2",D64="Pedestrian_1",D64="Pedestrian_2"),F64*G64*5280,F64*G64)) -> Error | I64: =IF(LEFT($D64,3)="Roa",INDEX(DB_Roadway!$E$11:$E$10000,MATCH($E64,DB_Roadway!$C$11:$C$10000,0),1),IF(LEFT($D64,3)="Bik",INDEX(DB_Bikeway!$E$11:$E$10000,MATCH($E64,DB_Bikeway!$C$11:$C$10000,0),1),IF(LEFT($D64,3)="Ped",INDEX(DB_Pedestrian!$E$11:$E$10000,MATCH($E64,DB_Pedestrian!$C$11:$C$10000,0),1),IF(LEFT($D64,3)="Sig",INDEX(DB_Sig_Int!$E$11:$E$10000,MATCH($E64,DB_Sig_Int!$C$11:$C$10000,0),1),IF(LEFT($D64,3)="Uns",INDEX(DB_Unsig_Int!$E$11:$E$10000,MATCH($E64,DB_Unsig_Int!$C$11:$C$10000,0),1),IF(LEFT($D64,3)="Mis",INDEX(DB_Misc!$E$11:$E$10000,MATCH($E64,DB_Misc!$C$11:$C$10000,0),1),"Error")))))) -> Error | J64: =IF(LEFT($D64,3)="Roa",INDEX(DB_Roadway!$D$11:$D$10000,MATCH($E64,DB_Roadway!$C$11:$C$10000,0),1),IF(LEFT($D64,3)="Bik",INDEX(DB_Bikeway!$D$11:$D$10000,MATCH($E64,DB_Bikeway!$C$11:$C$10000,0),1),IF(LEFT($D64,3)="Ped",INDEX(DB_Pedestrian!$D$11:$D$10000,MATCH($E64,DB_Pedestrian!$C$11:$C$10000,0),1),IF(LEFT($D64,3)="Sig",INDEX(DB_Sig_Int!$D$11:$D$10000,MATCH($E64,DB_Sig_Int!$C$11:$C$10000,0),1),IF(LEFT($D64,3)="Uns",INDEX(DB_Unsig_Int!$D$11:$D$10000,MATCH($E64,DB_Unsig_Int!$C$11:$C$10000,0),1),IF(LEFT($D64,3)="Mis",INDEX(DB_Misc!$D$11:$D$10000,MATCH($E64,DB_Misc!$C$11:$C$10000,0),1),"Error")))))) -> Error | K64: =IF(OR(C64="",D64=""),"",IF(C64<>C63,SUMIFS($G$11:$G$10000,$C$11:$C$10000,C64,DB_Segment!$D$11:$D$10000,"<>Misc",DB_Segment!$D$11:$D$10000,"<>Sig_Int",DB_Segment!$D$11:$D$10000,"<>Unsig_Int")/COUNTIFS($C$11:$C$10000,C64,DB_Segment!$D$11:$D$10000,"<>Misc",DB_Segment!$D$11:$D$10000,"<>Sig_Int",DB_Segment!$D$11:$D$10000,"<>Unsig_Int",DB_Segment!$D$11:$D$10000,"<>"),"")) -> 
F65: =IF(I65=0,J65,I65) -> Error | H65: =IF(D65="","Error",IF(OR(D65="Roadway",D65="Bikeway_1",D65="Bikeway_2",D65="Pedestrian_1",D65="Pedestrian_2"),F65*G65*5280,F65*G65)) -> Error | I65: =IF(LEFT($D65,3)="Roa",INDEX(DB_Roadway!$E$11:$E$10000,MATCH($E65,DB_Roadway!$C$11:$C$10000,0),1),IF(LEFT($D65,3)="Bik",INDEX(DB_Bikeway!$E$11:$E$10000,MATCH($E65,DB_Bikeway!$C$11:$C$10000,0),1),IF(LEFT($D65,3)="Ped",INDEX(DB_Pedestrian!$E$11:$E$10000,MATCH($E65,DB_Pedestrian!$C$11:$C$10000,0),1),IF(LEFT($D65,3)="Sig",INDEX(DB_Sig_Int!$E$11:$E$10000,MATCH($E65,DB_Sig_Int!$C$11:$C$10000,0),1),IF(LEFT($D65,3)="Uns",INDEX(DB_Unsig_Int!$E$11:$E$10000,MATCH($E65,DB_Unsig_Int!$C$11:$C$10000,0),1),IF(LEFT($D65,3)="Mis",INDEX(DB_Misc!$E$11:$E$10000,MATCH($E65,DB_Misc!$C$11:$C$10000,0),1),"Error")))))) -> Error | J65: =IF(LEFT($D65,3)="Roa",INDEX(DB_Roadway!$D$11:$D$10000,MATCH($E65,DB_Roadway!$C$11:$C$10000,0),1),IF(LEFT($D65,3)="Bik",INDEX(DB_Bikeway!$D$11:$D$10000,MATCH($E65,DB_Bikeway!$C$11:$C$10000,0),1),IF(LEFT($D65,3)="Ped",INDEX(DB_Pedestrian!$D$11:$D$10000,MATCH($E65,DB_Pedestrian!$C$11:$C$10000,0),1),IF(LEFT($D65,3)="Sig",INDEX(DB_Sig_Int!$D$11:$D$10000,MATCH($E65,DB_Sig_Int!$C$11:$C$10000,0),1),IF(LEFT($D65,3)="Uns",INDEX(DB_Unsig_Int!$D$11:$D$10000,MATCH($E65,DB_Unsig_Int!$C$11:$C$10000,0),1),IF(LEFT($D65,3)="Mis",INDEX(DB_Misc!$D$11:$D$10000,MATCH($E65,DB_Misc!$C$11:$C$10000,0),1),"Error")))))) -> Error | K65: =IF(OR(C65="",D65=""),"",IF(C65<>C64,SUMIFS($G$11:$G$10000,$C$11:$C$10000,C65,DB_Segment!$D$11:$D$10000,"<>Misc",DB_Segment!$D$11:$D$10000,"<>Sig_Int",DB_Segment!$D$11:$D$10000,"<>Unsig_Int")/COUNTIFS($C$11:$C$10000,C65,DB_Segment!$D$11:$D$10000,"<>Misc",DB_Segment!$D$11:$D$10000,"<>Sig_Int",DB_Segment!$D$11:$D$10000,"<>Unsig_Int",DB_Segment!$D$11:$D$10000,"<>"),"")) -> 
F66: =IF(I66=0,J66,I66) -> Error | H66: =IF(D66="","Error",IF(OR(D66="Roadway",D66="Bikeway_1",D66="Bikeway_2",D66="Pedestrian_1",D66="Pedestrian_2"),F66*G66*5280,F66*G66)) -> Error | I66: =IF(LEFT($D66,3)="Roa",INDEX(DB_Roadway!$E$11:$E$10000,MATCH($E66,DB_Roadway!$C$11:$C$10000,0),1),IF(LEFT($D66,3)="Bik",INDEX(DB_Bikeway!$E$11:$E$10000,MATCH($E66,DB_Bikeway!$C$11:$C$10000,0),1),IF(LEFT($D66,3)="Ped",INDEX(DB_Pedestrian!$E$11:$E$10000,MATCH($E66,DB_Pedestrian!$C$11:$C$10000,0),1),IF(LEFT($D66,3)="Sig",INDEX(DB_Sig_Int!$E$11:$E$10000,MATCH($E66,DB_Sig_Int!$C$11:$C$10000,0),1),IF(LEFT($D66,3)="Uns",INDEX(DB_Unsig_Int!$E$11:$E$10000,MATCH($E66,DB_Unsig_Int!$C$11:$C$10000,0),1),IF(LEFT($D66,3)="Mis",INDEX(DB_Misc!$E$11:$E$10000,MATCH($E66,DB_Misc!$C$11:$C$10000,0),1),"Error")))))) -> Error | J66: =IF(LEFT($D66,3)="Roa",INDEX(DB_Roadway!$D$11:$D$10000,MATCH($E66,DB_Roadway!$C$11:$C$10000,0),1),IF(LEFT($D66,3)="Bik",INDEX(DB_Bikeway!$D$11:$D$10000,MATCH($E66,DB_Bikeway!$C$11:$C$10000,0),1),IF(LEFT($D66,3)="Ped",INDEX(DB_Pedestrian!$D$11:$D$10000,MATCH($E66,DB_Pedestrian!$C$11:$C$10000,0),1),IF(LEFT($D66,3)="Sig",INDEX(DB_Sig_Int!$D$11:$D$10000,MATCH($E66,DB_Sig_Int!$C$11:$C$10000,0),1),IF(LEFT($D66,3)="Uns",INDEX(DB_Unsig_Int!$D$11:$D$10000,MATCH($E66,DB_Unsig_Int!$C$11:$C$10000,0),1),IF(LEFT($D66,3)="Mis",INDEX(DB_Misc!$D$11:$D$10000,MATCH($E66,DB_Misc!$C$11:$C$10000,0),1),"Error")))))) -> Error | K66: =IF(OR(C66="",D66=""),"",IF(C66<>C65,SUMIFS($G$11:$G$10000,$C$11:$C$10000,C66,DB_Segment!$D$11:$D$10000,"<>Misc",DB_Segment!$D$11:$D$10000,"<>Sig_Int",DB_Segment!$D$11:$D$10000,"<>Unsig_Int")/COUNTIFS($C$11:$C$10000,C66,DB_Segment!$D$11:$D$10000,"<>Misc",DB_Segment!$D$11:$D$10000,"<>Sig_Int",DB_Segment!$D$11:$D$10000,"<>Unsig_Int",DB_Segment!$D$11:$D$10000,"<>"),"")) -> 
F67: =IF(I67=0,J67,I67) -> Error | H67: =IF(D67="","Error",IF(OR(D67="Roadway",D67="Bikeway_1",D67="Bikeway_2",D67="Pedestrian_1",D67="Pedestrian_2"),F67*G67*5280,F67*G67)) -> Error | I67: =IF(LEFT($D67,3)="Roa",INDEX(DB_Roadway!$E$11:$E$10000,MATCH($E67,DB_Roadway!$C$11:$C$10000,0),1),IF(LEFT($D67,3)="Bik",INDEX(DB_Bikeway!$E$11:$E$10000,MATCH($E67,DB_Bikeway!$C$11:$C$10000,0),1),IF(LEFT($D67,3)="Ped",INDEX(DB_Pedestrian!$E$11:$E$10000,MATCH($E67,DB_Pedestrian!$C$11:$C$10000,0),1),IF(LEFT($D67,3)="Sig",INDEX(DB_Sig_Int!$E$11:$E$10000,MATCH($E67,DB_Sig_Int!$C$11:$C$10000,0),1),IF(LEFT($D67,3)="Uns",INDEX(DB_Unsig_Int!$E$11:$E$10000,MATCH($E67,DB_Unsig_Int!$C$11:$C$10000,0),1),IF(LEFT($D67,3)="Mis",INDEX(DB_Misc!$E$11:$E$10000,MATCH($E67,DB_Misc!$C$11:$C$10000,0),1),"Error")))))) -> Error | J67: =IF(LEFT($D67,3)="Roa",INDEX(DB_Roadway!$D$11:$D$10000,MATCH($E67,DB_Roadway!$C$11:$C$10000,0),1),IF(LEFT($D67,3)="Bik",INDEX(DB_Bikeway!$D$11:$D$10000,MATCH($E67,DB_Bikeway!$C$11:$C$10000,0),1),IF(LEFT($D67,3)="Ped",INDEX(DB_Pedestrian!$D$11:$D$10000,MATCH($E67,DB_Pedestrian!$C$11:$C$10000,0),1),IF(LEFT($D67,3)="Sig",INDEX(DB_Sig_Int!$D$11:$D$10000,MATCH($E67,DB_Sig_Int!$C$11:$C$10000,0),1),IF(LEFT($D67,3)="Uns",INDEX(DB_Unsig_Int!$D$11:$D$10000,MATCH($E67,DB_Unsig_Int!$C$11:$C$10000,0),1),IF(LEFT($D67,3)="Mis",INDEX(DB_Misc!$D$11:$D$10000,MATCH($E67,DB_Misc!$C$11:$C$10000,0),1),"Error")))))) -> Error | K67: =IF(OR(C67="",D67=""),"",IF(C67<>C66,SUMIFS($G$11:$G$10000,$C$11:$C$10000,C67,DB_Segment!$D$11:$D$10000,"<>Misc",DB_Segment!$D$11:$D$10000,"<>Sig_Int",DB_Segment!$D$11:$D$10000,"<>Unsig_Int")/COUNTIFS($C$11:$C$10000,C67,DB_Segment!$D$11:$D$10000,"<>Misc",DB_Segment!$D$11:$D$10000,"<>Sig_Int",DB_Segment!$D$11:$D$10000,"<>Unsig_Int",DB_Segment!$D$11:$D$10000,"<>"),"")) -> 
F68: =IF(I68=0,J68,I68) -> Error | H68: =IF(D68="","Error",IF(OR(D68="Roadway",D68="Bikeway_1",D68="Bikeway_2",D68="Pedestrian_1",D68="Pedestrian_2"),F68*G68*5280,F68*G68)) -> Error | I68: =IF(LEFT($D68,3)="Roa",INDEX(DB_Roadway!$E$11:$E$10000,MATCH($E68,DB_Roadway!$C$11:$C$10000,0),1),IF(LEFT($D68,3)="Bik",INDEX(DB_Bikeway!$E$11:$E$10000,MATCH($E68,DB_Bikeway!$C$11:$C$10000,0),1),IF(LEFT($D68,3)="Ped",INDEX(DB_Pedestrian!$E$11:$E$10000,MATCH($E68,DB_Pedestrian!$C$11:$C$10000,0),1),IF(LEFT($D68,3)="Sig",INDEX(DB_Sig_Int!$E$11:$E$10000,MATCH($E68,DB_Sig_Int!$C$11:$C$10000,0),1),IF(LEFT($D68,3)="Uns",INDEX(DB_Unsig_Int!$E$11:$E$10000,MATCH($E68,DB_Unsig_Int!$C$11:$C$10000,0),1),IF(LEFT($D68,3)="Mis",INDEX(DB_Misc!$E$11:$E$10000,MATCH($E68,DB_Misc!$C$11:$C$10000,0),1),"Error")))))) -> Error | J68: =IF(LEFT($D68,3)="Roa",INDEX(DB_Roadway!$D$11:$D$10000,MATCH($E68,DB_Roadway!$C$11:$C$10000,0),1),IF(LEFT($D68,3)="Bik",INDEX(DB_Bikeway!$D$11:$D$10000,MATCH($E68,DB_Bikeway!$C$11:$C$10000,0),1),IF(LEFT($D68,3)="Ped",INDEX(DB_Pedestrian!$D$11:$D$10000,MATCH($E68,DB_Pedestrian!$C$11:$C$10000,0),1),IF(LEFT($D68,3)="Sig",INDEX(DB_Sig_Int!$D$11:$D$10000,MATCH($E68,DB_Sig_Int!$C$11:$C$10000,0),1),IF(LEFT($D68,3)="Uns",INDEX(DB_Unsig_Int!$D$11:$D$10000,MATCH($E68,DB_Unsig_Int!$C$11:$C$10000,0),1),IF(LEFT($D68,3)="Mis",INDEX(DB_Misc!$D$11:$D$10000,MATCH($E68,DB_Misc!$C$11:$C$10000,0),1),"Error")))))) -> Error | K68: =IF(OR(C68="",D68=""),"",IF(C68<>C67,SUMIFS($G$11:$G$10000,$C$11:$C$10000,C68,DB_Segment!$D$11:$D$10000,"<>Misc",DB_Segment!$D$11:$D$10000,"<>Sig_Int",DB_Segment!$D$11:$D$10000,"<>Unsig_Int")/COUNTIFS($C$11:$C$10000,C68,DB_Segment!$D$11:$D$10000,"<>Misc",DB_Segment!$D$11:$D$10000,"<>Sig_Int",DB_Segment!$D$11:$D$10000,"<>Unsig_Int",DB_Segment!$D$11:$D$10000,"<>"),"")) -> 
F69: =IF(I69=0,J69,I69) -> Error | H69: =IF(D69="","Error",IF(OR(D69="Roadway",D69="Bikeway_1",D69="Bikeway_2",D69="Pedestrian_1",D69="Pedestrian_2"),F69*G69*5280,F69*G69)) -> Error | I69: =IF(LEFT($D69,3)="Roa",INDEX(DB_Roadway!$E$11:$E$10000,MATCH($E69,DB_Roadway!$C$11:$C$10000,0),1),IF(LEFT($D69,3)="Bik",INDEX(DB_Bikeway!$E$11:$E$10000,MATCH($E69,DB_Bikeway!$C$11:$C$10000,0),1),IF(LEFT($D69,3)="Ped",INDEX(DB_Pedestrian!$E$11:$E$10000,MATCH($E69,DB_Pedestrian!$C$11:$C$10000,0),1),IF(LEFT($D69,3)="Sig",INDEX(DB_Sig_Int!$E$11:$E$10000,MATCH($E69,DB_Sig_Int!$C$11:$C$10000,0),1),IF(LEFT($D69,3)="Uns",INDEX(DB_Unsig_Int!$E$11:$E$10000,MATCH($E69,DB_Unsig_Int!$C$11:$C$10000,0),1),IF(LEFT($D69,3)="Mis",INDEX(DB_Misc!$E$11:$E$10000,MATCH($E69,DB_Misc!$C$11:$C$10000,0),1),"Error")))))) -> Error | J69: =IF(LEFT($D69,3)="Roa",INDEX(DB_Roadway!$D$11:$D$10000,MATCH($E69,DB_Roadway!$C$11:$C$10000,0),1),IF(LEFT($D69,3)="Bik",INDEX(DB_Bikeway!$D$11:$D$10000,MATCH($E69,DB_Bikeway!$C$11:$C$10000,0),1),IF(LEFT($D69,3)="Ped",INDEX(DB_Pedestrian!$D$11:$D$10000,MATCH($E69,DB_Pedestrian!$C$11:$C$10000,0),1),IF(LEFT($D69,3)="Sig",INDEX(DB_Sig_Int!$D$11:$D$10000,MATCH($E69,DB_Sig_Int!$C$11:$C$10000,0),1),IF(LEFT($D69,3)="Uns",INDEX(DB_Unsig_Int!$D$11:$D$10000,MATCH($E69,DB_Unsig_Int!$C$11:$C$10000,0),1),IF(LEFT($D69,3)="Mis",INDEX(DB_Misc!$D$11:$D$10000,MATCH($E69,DB_Misc!$C$11:$C$10000,0),1),"Error")))))) -> Error | K69: =IF(OR(C69="",D69=""),"",IF(C69<>C68,SUMIFS($G$11:$G$10000,$C$11:$C$10000,C69,DB_Segment!$D$11:$D$10000,"<>Misc",DB_Segment!$D$11:$D$10000,"<>Sig_Int",DB_Segment!$D$11:$D$10000,"<>Unsig_Int")/COUNTIFS($C$11:$C$10000,C69,DB_Segment!$D$11:$D$10000,"<>Misc",DB_Segment!$D$11:$D$10000,"<>Sig_Int",DB_Segment!$D$11:$D$10000,"<>Unsig_Int",DB_Segment!$D$11:$D$10000,"<>"),"")) -> 
F70: =IF(I70=0,J70,I70) -> Error | H70: =IF(D70="","Error",IF(OR(D70="Roadway",D70="Bikeway_1",D70="Bikeway_2",D70="Pedestrian_1",D70="Pedestrian_2"),F70*G70*5280,F70*G70)) -> Error | I70: =IF(LEFT($D70,3)="Roa",INDEX(DB_Roadway!$E$11:$E$10000,MATCH($E70,DB_Roadway!$C$11:$C$10000,0),1),IF(LEFT($D70,3)="Bik",INDEX(DB_Bikeway!$E$11:$E$10000,MATCH($E70,DB_Bikeway!$C$11:$C$10000,0),1),IF(LEFT($D70,3)="Ped",INDEX(DB_Pedestrian!$E$11:$E$10000,MATCH($E70,DB_Pedestrian!$C$11:$C$10000,0),1),IF(LEFT($D70,3)="Sig",INDEX(DB_Sig_Int!$E$11:$E$10000,MATCH($E70,DB_Sig_Int!$C$11:$C$10000,0),1),IF(LEFT($D70,3)="Uns",INDEX(DB_Unsig_Int!$E$11:$E$10000,MATCH($E70,DB_Unsig_Int!$C$11:$C$10000,0),1),IF(LEFT($D70,3)="Mis",INDEX(DB_Misc!$E$11:$E$10000,MATCH($E70,DB_Misc!$C$11:$C$10000,0),1),"Error")))))) -> Error | J70: =IF(LEFT($D70,3)="Roa",INDEX(DB_Roadway!$D$11:$D$10000,MATCH($E70,DB_Roadway!$C$11:$C$10000,0),1),IF(LEFT($D70,3)="Bik",INDEX(DB_Bikeway!$D$11:$D$10000,MATCH($E70,DB_Bikeway!$C$11:$C$10000,0),1),IF(LEFT($D70,3)="Ped",INDEX(DB_Pedestrian!$D$11:$D$10000,MATCH($E70,DB_Pedestrian!$C$11:$C$10000,0),1),IF(LEFT($D70,3)="Sig",INDEX(DB_Sig_Int!$D$11:$D$10000,MATCH($E70,DB_Sig_Int!$C$11:$C$10000,0),1),IF(LEFT($D70,3)="Uns",INDEX(DB_Unsig_Int!$D$11:$D$10000,MATCH($E70,DB_Unsig_Int!$C$11:$C$10000,0),1),IF(LEFT($D70,3)="Mis",INDEX(DB_Misc!$D$11:$D$10000,MATCH($E70,DB_Misc!$C$11:$C$10000,0),1),"Error")))))) -> Error | K70: =IF(OR(C70="",D70=""),"",IF(C70<>C69,SUMIFS($G$11:$G$10000,$C$11:$C$10000,C70,DB_Segment!$D$11:$D$10000,"<>Misc",DB_Segment!$D$11:$D$10000,"<>Sig_Int",DB_Segment!$D$11:$D$10000,"<>Unsig_Int")/COUNTIFS($C$11:$C$10000,C70,DB_Segment!$D$11:$D$10000,"<>Misc",DB_Segment!$D$11:$D$10000,"<>Sig_Int",DB_Segment!$D$11:$D$10000,"<>Unsig_Int",DB_Segment!$D$11:$D$10000,"<>"),"")) -> 
F71: =IF(I71=0,J71,I71) -> Error | H71: =IF(D71="","Error",IF(OR(D71="Roadway",D71="Bikeway_1",D71="Bikeway_2",D71="Pedestrian_1",D71="Pedestrian_2"),F71*G71*5280,F71*G71)) -> Error | I71: =IF(LEFT($D71,3)="Roa",INDEX(DB_Roadway!$E$11:$E$10000,MATCH($E71,DB_Roadway!$C$11:$C$10000,0),1),IF(LEFT($D71,3)="Bik",INDEX(DB_Bikeway!$E$11:$E$10000,MATCH($E71,DB_Bikeway!$C$11:$C$10000,0),1),IF(LEFT($D71,3)="Ped",INDEX(DB_Pedestrian!$E$11:$E$10000,MATCH($E71,DB_Pedestrian!$C$11:$C$10000,0),1),IF(LEFT($D71,3)="Sig",INDEX(DB_Sig_Int!$E$11:$E$10000,MATCH($E71,DB_Sig_Int!$C$11:$C$10000,0),1),IF(LEFT($D71,3)="Uns",INDEX(DB_Unsig_Int!$E$11:$E$10000,MATCH($E71,DB_Unsig_Int!$C$11:$C$10000,0),1),IF(LEFT($D71,3)="Mis",INDEX(DB_Misc!$E$11:$E$10000,MATCH($E71,DB_Misc!$C$11:$C$10000,0),1),"Error")))))) -> Error | J71: =IF(LEFT($D71,3)="Roa",INDEX(DB_Roadway!$D$11:$D$10000,MATCH($E71,DB_Roadway!$C$11:$C$10000,0),1),IF(LEFT($D71,3)="Bik",INDEX(DB_Bikeway!$D$11:$D$10000,MATCH($E71,DB_Bikeway!$C$11:$C$10000,0),1),IF(LEFT($D71,3)="Ped",INDEX(DB_Pedestrian!$D$11:$D$10000,MATCH($E71,DB_Pedestrian!$C$11:$C$10000,0),1),IF(LEFT($D71,3)="Sig",INDEX(DB_Sig_Int!$D$11:$D$10000,MATCH($E71,DB_Sig_Int!$C$11:$C$10000,0),1),IF(LEFT($D71,3)="Uns",INDEX(DB_Unsig_Int!$D$11:$D$10000,MATCH($E71,DB_Unsig_Int!$C$11:$C$10000,0),1),IF(LEFT($D71,3)="Mis",INDEX(DB_Misc!$D$11:$D$10000,MATCH($E71,DB_Misc!$C$11:$C$10000,0),1),"Error")))))) -> Error | K71: =IF(OR(C71="",D71=""),"",IF(C71<>C70,SUMIFS($G$11:$G$10000,$C$11:$C$10000,C71,DB_Segment!$D$11:$D$10000,"<>Misc",DB_Segment!$D$11:$D$10000,"<>Sig_Int",DB_Segment!$D$11:$D$10000,"<>Unsig_Int")/COUNTIFS($C$11:$C$10000,C71,DB_Segment!$D$11:$D$10000,"<>Misc",DB_Segment!$D$11:$D$10000,"<>Sig_Int",DB_Segment!$D$11:$D$10000,"<>Unsig_Int",DB_Segment!$D$11:$D$10000,"<>"),"")) -> 
F72: =IF(I72=0,J72,I72) -> Error | H72: =IF(D72="","Error",IF(OR(D72="Roadway",D72="Bikeway_1",D72="Bikeway_2",D72="Pedestrian_1",D72="Pedestrian_2"),F72*G72*5280,F72*G72)) -> Error | I72: =IF(LEFT($D72,3)="Roa",INDEX(DB_Roadway!$E$11:$E$10000,MATCH($E72,DB_Roadway!$C$11:$C$10000,0),1),IF(LEFT($D72,3)="Bik",INDEX(DB_Bikeway!$E$11:$E$10000,MATCH($E72,DB_Bikeway!$C$11:$C$10000,0),1),IF(LEFT($D72,3)="Ped",INDEX(DB_Pedestrian!$E$11:$E$10000,MATCH($E72,DB_Pedestrian!$C$11:$C$10000,0),1),IF(LEFT($D72,3)="Sig",INDEX(DB_Sig_Int!$E$11:$E$10000,MATCH($E72,DB_Sig_Int!$C$11:$C$10000,0),1),IF(LEFT($D72,3)="Uns",INDEX(DB_Unsig_Int!$E$11:$E$10000,MATCH($E72,DB_Unsig_Int!$C$11:$C$10000,0),1),IF(LEFT($D72,3)="Mis",INDEX(DB_Misc!$E$11:$E$10000,MATCH($E72,DB_Misc!$C$11:$C$10000,0),1),"Error")))))) -> Error | J72: =IF(LEFT($D72,3)="Roa",INDEX(DB_Roadway!$D$11:$D$10000,MATCH($E72,DB_Roadway!$C$11:$C$10000,0),1),IF(LEFT($D72,3)="Bik",INDEX(DB_Bikeway!$D$11:$D$10000,MATCH($E72,DB_Bikeway!$C$11:$C$10000,0),1),IF(LEFT($D72,3)="Ped",INDEX(DB_Pedestrian!$D$11:$D$10000,MATCH($E72,DB_Pedestrian!$C$11:$C$10000,0),1),IF(LEFT($D72,3)="Sig",INDEX(DB_Sig_Int!$D$11:$D$10000,MATCH($E72,DB_Sig_Int!$C$11:$C$10000,0),1),IF(LEFT($D72,3)="Uns",INDEX(DB_Unsig_Int!$D$11:$D$10000,MATCH($E72,DB_Unsig_Int!$C$11:$C$10000,0),1),IF(LEFT($D72,3)="Mis",INDEX(DB_Misc!$D$11:$D$10000,MATCH($E72,DB_Misc!$C$11:$C$10000,0),1),"Error")))))) -> Error | K72: =IF(OR(C72="",D72=""),"",IF(C72<>C71,SUMIFS($G$11:$G$10000,$C$11:$C$10000,C72,DB_Segment!$D$11:$D$10000,"<>Misc",DB_Segment!$D$11:$D$10000,"<>Sig_Int",DB_Segment!$D$11:$D$10000,"<>Unsig_Int")/COUNTIFS($C$11:$C$10000,C72,DB_Segment!$D$11:$D$10000,"<>Misc",DB_Segment!$D$11:$D$10000,"<>Sig_Int",DB_Segment!$D$11:$D$10000,"<>Unsig_Int",DB_Segment!$D$11:$D$10000,"<>"),"")) -> 
F73: =IF(I73=0,J73,I73) -> Error | H73: =IF(D73="","Error",IF(OR(D73="Roadway",D73="Bikeway_1",D73="Bikeway_2",D73="Pedestrian_1",D73="Pedestrian_2"),F73*G73*5280,F73*G73)) -> Error | I73: =IF(LEFT($D73,3)="Roa",INDEX(DB_Roadway!$E$11:$E$10000,MATCH($E73,DB_Roadway!$C$11:$C$10000,0),1),IF(LEFT($D73,3)="Bik",INDEX(DB_Bikeway!$E$11:$E$10000,MATCH($E73,DB_Bikeway!$C$11:$C$10000,0),1),IF(LEFT($D73,3)="Ped",INDEX(DB_Pedestrian!$E$11:$E$10000,MATCH($E73,DB_Pedestrian!$C$11:$C$10000,0),1),IF(LEFT($D73,3)="Sig",INDEX(DB_Sig_Int!$E$11:$E$10000,MATCH($E73,DB_Sig_Int!$C$11:$C$10000,0),1),IF(LEFT($D73,3)="Uns",INDEX(DB_Unsig_Int!$E$11:$E$10000,MATCH($E73,DB_Unsig_Int!$C$11:$C$10000,0),1),IF(LEFT($D73,3)="Mis",INDEX(DB_Misc!$E$11:$E$10000,MATCH($E73,DB_Misc!$C$11:$C$10000,0),1),"Error")))))) -> Error | J73: =IF(LEFT($D73,3)="Roa",INDEX(DB_Roadway!$D$11:$D$10000,MATCH($E73,DB_Roadway!$C$11:$C$10000,0),1),IF(LEFT($D73,3)="Bik",INDEX(DB_Bikeway!$D$11:$D$10000,MATCH($E73,DB_Bikeway!$C$11:$C$10000,0),1),IF(LEFT($D73,3)="Ped",INDEX(DB_Pedestrian!$D$11:$D$10000,MATCH($E73,DB_Pedestrian!$C$11:$C$10000,0),1),IF(LEFT($D73,3)="Sig",INDEX(DB_Sig_Int!$D$11:$D$10000,MATCH($E73,DB_Sig_Int!$C$11:$C$10000,0),1),IF(LEFT($D73,3)="Uns",INDEX(DB_Unsig_Int!$D$11:$D$10000,MATCH($E73,DB_Unsig_Int!$C$11:$C$10000,0),1),IF(LEFT($D73,3)="Mis",INDEX(DB_Misc!$D$11:$D$10000,MATCH($E73,DB_Misc!$C$11:$C$10000,0),1),"Error")))))) -> Error | K73: =IF(OR(C73="",D73=""),"",IF(C73<>C72,SUMIFS($G$11:$G$10000,$C$11:$C$10000,C73,DB_Segment!$D$11:$D$10000,"<>Misc",DB_Segment!$D$11:$D$10000,"<>Sig_Int",DB_Segment!$D$11:$D$10000,"<>Unsig_Int")/COUNTIFS($C$11:$C$10000,C73,DB_Segment!$D$11:$D$10000,"<>Misc",DB_Segment!$D$11:$D$10000,"<>Sig_Int",DB_Segment!$D$11:$D$10000,"<>Unsig_Int",DB_Segment!$D$11:$D$10000,"<>"),"")) -> 
F74: =IF(I74=0,J74,I74) -> Error | H74: =IF(D74="","Error",IF(OR(D74="Roadway",D74="Bikeway_1",D74="Bikeway_2",D74="Pedestrian_1",D74="Pedestrian_2"),F74*G74*5280,F74*G74)) -> Error | I74: =IF(LEFT($D74,3)="Roa",INDEX(DB_Roadway!$E$11:$E$10000,MATCH($E74,DB_Roadway!$C$11:$C$10000,0),1),IF(LEFT($D74,3)="Bik",INDEX(DB_Bikeway!$E$11:$E$10000,MATCH($E74,DB_Bikeway!$C$11:$C$10000,0),1),IF(LEFT($D74,3)="Ped",INDEX(DB_Pedestrian!$E$11:$E$10000,MATCH($E74,DB_Pedestrian!$C$11:$C$10000,0),1),IF(LEFT($D74,3)="Sig",INDEX(DB_Sig_Int!$E$11:$E$10000,MATCH($E74,DB_Sig_Int!$C$11:$C$10000,0),1),IF(LEFT($D74,3)="Uns",INDEX(DB_Unsig_Int!$E$11:$E$10000,MATCH($E74,DB_Unsig_Int!$C$11:$C$10000,0),1),IF(LEFT($D74,3)="Mis",INDEX(DB_Misc!$E$11:$E$10000,MATCH($E74,DB_Misc!$C$11:$C$10000,0),1),"Error")))))) -> Error | J74: =IF(LEFT($D74,3)="Roa",INDEX(DB_Roadway!$D$11:$D$10000,MATCH($E74,DB_Roadway!$C$11:$C$10000,0),1),IF(LEFT($D74,3)="Bik",INDEX(DB_Bikeway!$D$11:$D$10000,MATCH($E74,DB_Bikeway!$C$11:$C$10000,0),1),IF(LEFT($D74,3)="Ped",INDEX(DB_Pedestrian!$D$11:$D$10000,MATCH($E74,DB_Pedestrian!$C$11:$C$10000,0),1),IF(LEFT($D74,3)="Sig",INDEX(DB_Sig_Int!$D$11:$D$10000,MATCH($E74,DB_Sig_Int!$C$11:$C$10000,0),1),IF(LEFT($D74,3)="Uns",INDEX(DB_Unsig_Int!$D$11:$D$10000,MATCH($E74,DB_Unsig_Int!$C$11:$C$10000,0),1),IF(LEFT($D74,3)="Mis",INDEX(DB_Misc!$D$11:$D$10000,MATCH($E74,DB_Misc!$C$11:$C$10000,0),1),"Error")))))) -> Error | K74: =IF(OR(C74="",D74=""),"",IF(C74<>C73,SUMIFS($G$11:$G$10000,$C$11:$C$10000,C74,DB_Segment!$D$11:$D$10000,"<>Misc",DB_Segment!$D$11:$D$10000,"<>Sig_Int",DB_Segment!$D$11:$D$10000,"<>Unsig_Int")/COUNTIFS($C$11:$C$10000,C74,DB_Segment!$D$11:$D$10000,"<>Misc",DB_Segment!$D$11:$D$10000,"<>Sig_Int",DB_Segment!$D$11:$D$10000,"<>Unsig_Int",DB_Segment!$D$11:$D$10000,"<>"),"")) -> 
F75: =IF(I75=0,J75,I75) -> Error | H75: =IF(D75="","Error",IF(OR(D75="Roadway",D75="Bikeway_1",D75="Bikeway_2",D75="Pedestrian_1",D75="Pedestrian_2"),F75*G75*5280,F75*G75)) -> Error | I75: =IF(LEFT($D75,3)="Roa",INDEX(DB_Roadway!$E$11:$E$10000,MATCH($E75,DB_Roadway!$C$11:$C$10000,0),1),IF(LEFT($D75,3)="Bik",INDEX(DB_Bikeway!$E$11:$E$10000,MATCH($E75,DB_Bikeway!$C$11:$C$10000,0),1),IF(LEFT($D75,3)="Ped",INDEX(DB_Pedestrian!$E$11:$E$10000,MATCH($E75,DB_Pedestrian!$C$11:$C$10000,0),1),IF(LEFT($D75,3)="Sig",INDEX(DB_Sig_Int!$E$11:$E$10000,MATCH($E75,DB_Sig_Int!$C$11:$C$10000,0),1),IF(LEFT($D75,3)="Uns",INDEX(DB_Unsig_Int!$E$11:$E$10000,MATCH($E75,DB_Unsig_Int!$C$11:$C$10000,0),1),IF(LEFT($D75,3)="Mis",INDEX(DB_Misc!$E$11:$E$10000,MATCH($E75,DB_Misc!$C$11:$C$10000,0),1),"Error")))))) -> Error | J75: =IF(LEFT($D75,3)="Roa",INDEX(DB_Roadway!$D$11:$D$10000,MATCH($E75,DB_Roadway!$C$11:$C$10000,0),1),IF(LEFT($D75,3)="Bik",INDEX(DB_Bikeway!$D$11:$D$10000,MATCH($E75,DB_Bikeway!$C$11:$C$10000,0),1),IF(LEFT($D75,3)="Ped",INDEX(DB_Pedestrian!$D$11:$D$10000,MATCH($E75,DB_Pedestrian!$C$11:$C$10000,0),1),IF(LEFT($D75,3)="Sig",INDEX(DB_Sig_Int!$D$11:$D$10000,MATCH($E75,DB_Sig_Int!$C$11:$C$10000,0),1),IF(LEFT($D75,3)="Uns",INDEX(DB_Unsig_Int!$D$11:$D$10000,MATCH($E75,DB_Unsig_Int!$C$11:$C$10000,0),1),IF(LEFT($D75,3)="Mis",INDEX(DB_Misc!$D$11:$D$10000,MATCH($E75,DB_Misc!$C$11:$C$10000,0),1),"Error")))))) -> Error | K75: =IF(OR(C75="",D75=""),"",IF(C75<>C74,SUMIFS($G$11:$G$10000,$C$11:$C$10000,C75,DB_Segment!$D$11:$D$10000,"<>Misc",DB_Segment!$D$11:$D$10000,"<>Sig_Int",DB_Segment!$D$11:$D$10000,"<>Unsig_Int")/COUNTIFS($C$11:$C$10000,C75,DB_Segment!$D$11:$D$10000,"<>Misc",DB_Segment!$D$11:$D$10000,"<>Sig_Int",DB_Segment!$D$11:$D$10000,"<>Unsig_Int",DB_Segment!$D$11:$D$10000,"<>"),"")) -> 
F76: =IF(I76=0,J76,I76) -> Error | H76: =IF(D76="","Error",IF(OR(D76="Roadway",D76="Bikeway_1",D76="Bikeway_2",D76="Pedestrian_1",D76="Pedestrian_2"),F76*G76*5280,F76*G76)) -> Error | I76: =IF(LEFT($D76,3)="Roa",INDEX(DB_Roadway!$E$11:$E$10000,MATCH($E76,DB_Roadway!$C$11:$C$10000,0),1),IF(LEFT($D76,3)="Bik",INDEX(DB_Bikeway!$E$11:$E$10000,MATCH($E76,DB_Bikeway!$C$11:$C$10000,0),1),IF(LEFT($D76,3)="Ped",INDEX(DB_Pedestrian!$E$11:$E$10000,MATCH($E76,DB_Pedestrian!$C$11:$C$10000,0),1),IF(LEFT($D76,3)="Sig",INDEX(DB_Sig_Int!$E$11:$E$10000,MATCH($E76,DB_Sig_Int!$C$11:$C$10000,0),1),IF(LEFT($D76,3)="Uns",INDEX(DB_Unsig_Int!$E$11:$E$10000,MATCH($E76,DB_Unsig_Int!$C$11:$C$10000,0),1),IF(LEFT($D76,3)="Mis",INDEX(DB_Misc!$E$11:$E$10000,MATCH($E76,DB_Misc!$C$11:$C$10000,0),1),"Error")))))) -> Error | J76: =IF(LEFT($D76,3)="Roa",INDEX(DB_Roadway!$D$11:$D$10000,MATCH($E76,DB_Roadway!$C$11:$C$10000,0),1),IF(LEFT($D76,3)="Bik",INDEX(DB_Bikeway!$D$11:$D$10000,MATCH($E76,DB_Bikeway!$C$11:$C$10000,0),1),IF(LEFT($D76,3)="Ped",INDEX(DB_Pedestrian!$D$11:$D$10000,MATCH($E76,DB_Pedestrian!$C$11:$C$10000,0),1),IF(LEFT($D76,3)="Sig",INDEX(DB_Sig_Int!$D$11:$D$10000,MATCH($E76,DB_Sig_Int!$C$11:$C$10000,0),1),IF(LEFT($D76,3)="Uns",INDEX(DB_Unsig_Int!$D$11:$D$10000,MATCH($E76,DB_Unsig_Int!$C$11:$C$10000,0),1),IF(LEFT($D76,3)="Mis",INDEX(DB_Misc!$D$11:$D$10000,MATCH($E76,DB_Misc!$C$11:$C$10000,0),1),"Error")))))) -> Error | K76: =IF(OR(C76="",D76=""),"",IF(C76<>C75,SUMIFS($G$11:$G$10000,$C$11:$C$10000,C76,DB_Segment!$D$11:$D$10000,"<>Misc",DB_Segment!$D$11:$D$10000,"<>Sig_Int",DB_Segment!$D$11:$D$10000,"<>Unsig_Int")/COUNTIFS($C$11:$C$10000,C76,DB_Segment!$D$11:$D$10000,"<>Misc",DB_Segment!$D$11:$D$10000,"<>Sig_Int",DB_Segment!$D$11:$D$10000,"<>Unsig_Int",DB_Segment!$D$11:$D$10000,"<>"),"")) -> 
F77: =IF(I77=0,J77,I77) -> Error | H77: =IF(D77="","Error",IF(OR(D77="Roadway",D77="Bikeway_1",D77="Bikeway_2",D77="Pedestrian_1",D77="Pedestrian_2"),F77*G77*5280,F77*G77)) -> Error | I77: =IF(LEFT($D77,3)="Roa",INDEX(DB_Roadway!$E$11:$E$10000,MATCH($E77,DB_Roadway!$C$11:$C$10000,0),1),IF(LEFT($D77,3)="Bik",INDEX(DB_Bikeway!$E$11:$E$10000,MATCH($E77,DB_Bikeway!$C$11:$C$10000,0),1),IF(LEFT($D77,3)="Ped",INDEX(DB_Pedestrian!$E$11:$E$10000,MATCH($E77,DB_Pedestrian!$C$11:$C$10000,0),1),IF(LEFT($D77,3)="Sig",INDEX(DB_Sig_Int!$E$11:$E$10000,MATCH($E77,DB_Sig_Int!$C$11:$C$10000,0),1),IF(LEFT($D77,3)="Uns",INDEX(DB_Unsig_Int!$E$11:$E$10000,MATCH($E77,DB_Unsig_Int!$C$11:$C$10000,0),1),IF(LEFT($D77,3)="Mis",INDEX(DB_Misc!$E$11:$E$10000,MATCH($E77,DB_Misc!$C$11:$C$10000,0),1),"Error")))))) -> Error | J77: =IF(LEFT($D77,3)="Roa",INDEX(DB_Roadway!$D$11:$D$10000,MATCH($E77,DB_Roadway!$C$11:$C$10000,0),1),IF(LEFT($D77,3)="Bik",INDEX(DB_Bikeway!$D$11:$D$10000,MATCH($E77,DB_Bikeway!$C$11:$C$10000,0),1),IF(LEFT($D77,3)="Ped",INDEX(DB_Pedestrian!$D$11:$D$10000,MATCH($E77,DB_Pedestrian!$C$11:$C$10000,0),1),IF(LEFT($D77,3)="Sig",INDEX(DB_Sig_Int!$D$11:$D$10000,MATCH($E77,DB_Sig_Int!$C$11:$C$10000,0),1),IF(LEFT($D77,3)="Uns",INDEX(DB_Unsig_Int!$D$11:$D$10000,MATCH($E77,DB_Unsig_Int!$C$11:$C$10000,0),1),IF(LEFT($D77,3)="Mis",INDEX(DB_Misc!$D$11:$D$10000,MATCH($E77,DB_Misc!$C$11:$C$10000,0),1),"Error")))))) -> Error | K77: =IF(OR(C77="",D77=""),"",IF(C77<>C76,SUMIFS($G$11:$G$10000,$C$11:$C$10000,C77,DB_Segment!$D$11:$D$10000,"<>Misc",DB_Segment!$D$11:$D$10000,"<>Sig_Int",DB_Segment!$D$11:$D$10000,"<>Unsig_Int")/COUNTIFS($C$11:$C$10000,C77,DB_Segment!$D$11:$D$10000,"<>Misc",DB_Segment!$D$11:$D$10000,"<>Sig_Int",DB_Segment!$D$11:$D$10000,"<>Unsig_Int",DB_Segment!$D$11:$D$10000,"<>"),"")) -> 
F78: =IF(I78=0,J78,I78) -> Error | H78: =IF(D78="","Error",IF(OR(D78="Roadway",D78="Bikeway_1",D78="Bikeway_2",D78="Pedestrian_1",D78="Pedestrian_2"),F78*G78*5280,F78*G78)) -> Error | I78: =IF(LEFT($D78,3)="Roa",INDEX(DB_Roadway!$E$11:$E$10000,MATCH($E78,DB_Roadway!$C$11:$C$10000,0),1),IF(LEFT($D78,3)="Bik",INDEX(DB_Bikeway!$E$11:$E$10000,MATCH($E78,DB_Bikeway!$C$11:$C$10000,0),1),IF(LEFT($D78,3)="Ped",INDEX(DB_Pedestrian!$E$11:$E$10000,MATCH($E78,DB_Pedestrian!$C$11:$C$10000,0),1),IF(LEFT($D78,3)="Sig",INDEX(DB_Sig_Int!$E$11:$E$10000,MATCH($E78,DB_Sig_Int!$C$11:$C$10000,0),1),IF(LEFT($D78,3)="Uns",INDEX(DB_Unsig_Int!$E$11:$E$10000,MATCH($E78,DB_Unsig_Int!$C$11:$C$10000,0),1),IF(LEFT($D78,3)="Mis",INDEX(DB_Misc!$E$11:$E$10000,MATCH($E78,DB_Misc!$C$11:$C$10000,0),1),"Error")))))) -> Error | J78: =IF(LEFT($D78,3)="Roa",INDEX(DB_Roadway!$D$11:$D$10000,MATCH($E78,DB_Roadway!$C$11:$C$10000,0),1),IF(LEFT($D78,3)="Bik",INDEX(DB_Bikeway!$D$11:$D$10000,MATCH($E78,DB_Bikeway!$C$11:$C$10000,0),1),IF(LEFT($D78,3)="Ped",INDEX(DB_Pedestrian!$D$11:$D$10000,MATCH($E78,DB_Pedestrian!$C$11:$C$10000,0),1),IF(LEFT($D78,3)="Sig",INDEX(DB_Sig_Int!$D$11:$D$10000,MATCH($E78,DB_Sig_Int!$C$11:$C$10000,0),1),IF(LEFT($D78,3)="Uns",INDEX(DB_Unsig_Int!$D$11:$D$10000,MATCH($E78,DB_Unsig_Int!$C$11:$C$10000,0),1),IF(LEFT($D78,3)="Mis",INDEX(DB_Misc!$D$11:$D$10000,MATCH($E78,DB_Misc!$C$11:$C$10000,0),1),"Error")))))) -> Error | K78: =IF(OR(C78="",D78=""),"",IF(C78<>C77,SUMIFS($G$11:$G$10000,$C$11:$C$10000,C78,DB_Segment!$D$11:$D$10000,"<>Misc",DB_Segment!$D$11:$D$10000,"<>Sig_Int",DB_Segment!$D$11:$D$10000,"<>Unsig_Int")/COUNTIFS($C$11:$C$10000,C78,DB_Segment!$D$11:$D$10000,"<>Misc",DB_Segment!$D$11:$D$10000,"<>Sig_Int",DB_Segment!$D$11:$D$10000,"<>Unsig_Int",DB_Segment!$D$11:$D$10000,"<>"),"")) -> 
F79: =IF(I79=0,J79,I79) -> Error | H79: =IF(D79="","Error",IF(OR(D79="Roadway",D79="Bikeway_1",D79="Bikeway_2",D79="Pedestrian_1",D79="Pedestrian_2"),F79*G79*5280,F79*G79)) -> Error | I79: =IF(LEFT($D79,3)="Roa",INDEX(DB_Roadway!$E$11:$E$10000,MATCH($E79,DB_Roadway!$C$11:$C$10000,0),1),IF(LEFT($D79,3)="Bik",INDEX(DB_Bikeway!$E$11:$E$10000,MATCH($E79,DB_Bikeway!$C$11:$C$10000,0),1),IF(LEFT($D79,3)="Ped",INDEX(DB_Pedestrian!$E$11:$E$10000,MATCH($E79,DB_Pedestrian!$C$11:$C$10000,0),1),IF(LEFT($D79,3)="Sig",INDEX(DB_Sig_Int!$E$11:$E$10000,MATCH($E79,DB_Sig_Int!$C$11:$C$10000,0),1),IF(LEFT($D79,3)="Uns",INDEX(DB_Unsig_Int!$E$11:$E$10000,MATCH($E79,DB_Unsig_Int!$C$11:$C$10000,0),1),IF(LEFT($D79,3)="Mis",INDEX(DB_Misc!$E$11:$E$10000,MATCH($E79,DB_Misc!$C$11:$C$10000,0),1),"Error")))))) -> Error | J79: =IF(LEFT($D79,3)="Roa",INDEX(DB_Roadway!$D$11:$D$10000,MATCH($E79,DB_Roadway!$C$11:$C$10000,0),1),IF(LEFT($D79,3)="Bik",INDEX(DB_Bikeway!$D$11:$D$10000,MATCH($E79,DB_Bikeway!$C$11:$C$10000,0),1),IF(LEFT($D79,3)="Ped",INDEX(DB_Pedestrian!$D$11:$D$10000,MATCH($E79,DB_Pedestrian!$C$11:$C$10000,0),1),IF(LEFT($D79,3)="Sig",INDEX(DB_Sig_Int!$D$11:$D$10000,MATCH($E79,DB_Sig_Int!$C$11:$C$10000,0),1),IF(LEFT($D79,3)="Uns",INDEX(DB_Unsig_Int!$D$11:$D$10000,MATCH($E79,DB_Unsig_Int!$C$11:$C$10000,0),1),IF(LEFT($D79,3)="Mis",INDEX(DB_Misc!$D$11:$D$10000,MATCH($E79,DB_Misc!$C$11:$C$10000,0),1),"Error")))))) -> Error | K79: =IF(OR(C79="",D79=""),"",IF(C79<>C78,SUMIFS($G$11:$G$10000,$C$11:$C$10000,C79,DB_Segment!$D$11:$D$10000,"<>Misc",DB_Segment!$D$11:$D$10000,"<>Sig_Int",DB_Segment!$D$11:$D$10000,"<>Unsig_Int")/COUNTIFS($C$11:$C$10000,C79,DB_Segment!$D$11:$D$10000,"<>Misc",DB_Segment!$D$11:$D$10000,"<>Sig_Int",DB_Segment!$D$11:$D$10000,"<>Unsig_Int",DB_Segment!$D$11:$D$10000,"<>"),"")) -> 
F80: =IF(I80=0,J80,I80) -> Error | H80: =IF(D80="","Error",IF(OR(D80="Roadway",D80="Bikeway_1",D80="Bikeway_2",D80="Pedestrian_1",D80="Pedestrian_2"),F80*G80*5280,F80*G80)) -> Error | I80: =IF(LEFT($D80,3)="Roa",INDEX(DB_Roadway!$E$11:$E$10000,MATCH($E80,DB_Roadway!$C$11:$C$10000,0),1),IF(LEFT($D80,3)="Bik",INDEX(DB_Bikeway!$E$11:$E$10000,MATCH($E80,DB_Bikeway!$C$11:$C$10000,0),1),IF(LEFT($D80,3)="Ped",INDEX(DB_Pedestrian!$E$11:$E$10000,MATCH($E80,DB_Pedestrian!$C$11:$C$10000,0),1),IF(LEFT($D80,3)="Sig",INDEX(DB_Sig_Int!$E$11:$E$10000,MATCH($E80,DB_Sig_Int!$C$11:$C$10000,0),1),IF(LEFT($D80,3)="Uns",INDEX(DB_Unsig_Int!$E$11:$E$10000,MATCH($E80,DB_Unsig_Int!$C$11:$C$10000,0),1),IF(LEFT($D80,3)="Mis",INDEX(DB_Misc!$E$11:$E$10000,MATCH($E80,DB_Misc!$C$11:$C$10000,0),1),"Error")))))) -> Error | J80: =IF(LEFT($D80,3)="Roa",INDEX(DB_Roadway!$D$11:$D$10000,MATCH($E80,DB_Roadway!$C$11:$C$10000,0),1),IF(LEFT($D80,3)="Bik",INDEX(DB_Bikeway!$D$11:$D$10000,MATCH($E80,DB_Bikeway!$C$11:$C$10000,0),1),IF(LEFT($D80,3)="Ped",INDEX(DB_Pedestrian!$D$11:$D$10000,MATCH($E80,DB_Pedestrian!$C$11:$C$10000,0),1),IF(LEFT($D80,3)="Sig",INDEX(DB_Sig_Int!$D$11:$D$10000,MATCH($E80,DB_Sig_Int!$C$11:$C$10000,0),1),IF(LEFT($D80,3)="Uns",INDEX(DB_Unsig_Int!$D$11:$D$10000,MATCH($E80,DB_Unsig_Int!$C$11:$C$10000,0),1),IF(LEFT($D80,3)="Mis",INDEX(DB_Misc!$D$11:$D$10000,MATCH($E80,DB_Misc!$C$11:$C$10000,0),1),"Error")))))) -> Error | K80: =IF(OR(C80="",D80=""),"",IF(C80<>C79,SUMIFS($G$11:$G$10000,$C$11:$C$10000,C80,DB_Segment!$D$11:$D$10000,"<>Misc",DB_Segment!$D$11:$D$10000,"<>Sig_Int",DB_Segment!$D$11:$D$10000,"<>Unsig_Int")/COUNTIFS($C$11:$C$10000,C80,DB_Segment!$D$11:$D$10000,"<>Misc",DB_Segment!$D$11:$D$10000,"<>Sig_Int",DB_Segment!$D$11:$D$10000,"<>Unsig_Int",DB_Segment!$D$11:$D$10000,"<>"),"")) -> 
F81: =IF(I81=0,J81,I81) -> Error | H81: =IF(D81="","Error",IF(OR(D81="Roadway",D81="Bikeway_1",D81="Bikeway_2",D81="Pedestrian_1",D81="Pedestrian_2"),F81*G81*5280,F81*G81)) -> Error | I81: =IF(LEFT($D81,3)="Roa",INDEX(DB_Roadway!$E$11:$E$10000,MATCH($E81,DB_Roadway!$C$11:$C$10000,0),1),IF(LEFT($D81,3)="Bik",INDEX(DB_Bikeway!$E$11:$E$10000,MATCH($E81,DB_Bikeway!$C$11:$C$10000,0),1),IF(LEFT($D81,3)="Ped",INDEX(DB_Pedestrian!$E$11:$E$10000,MATCH($E81,DB_Pedestrian!$C$11:$C$10000,0),1),IF(LEFT($D81,3)="Sig",INDEX(DB_Sig_Int!$E$11:$E$10000,MATCH($E81,DB_Sig_Int!$C$11:$C$10000,0),1),IF(LEFT($D81,3)="Uns",INDEX(DB_Unsig_Int!$E$11:$E$10000,MATCH($E81,DB_Unsig_Int!$C$11:$C$10000,0),1),IF(LEFT($D81,3)="Mis",INDEX(DB_Misc!$E$11:$E$10000,MATCH($E81,DB_Misc!$C$11:$C$10000,0),1),"Error")))))) -> Error | J81: =IF(LEFT($D81,3)="Roa",INDEX(DB_Roadway!$D$11:$D$10000,MATCH($E81,DB_Roadway!$C$11:$C$10000,0),1),IF(LEFT($D81,3)="Bik",INDEX(DB_Bikeway!$D$11:$D$10000,MATCH($E81,DB_Bikeway!$C$11:$C$10000,0),1),IF(LEFT($D81,3)="Ped",INDEX(DB_Pedestrian!$D$11:$D$10000,MATCH($E81,DB_Pedestrian!$C$11:$C$10000,0),1),IF(LEFT($D81,3)="Sig",INDEX(DB_Sig_Int!$D$11:$D$10000,MATCH($E81,DB_Sig_Int!$C$11:$C$10000,0),1),IF(LEFT($D81,3)="Uns",INDEX(DB_Unsig_Int!$D$11:$D$10000,MATCH($E81,DB_Unsig_Int!$C$11:$C$10000,0),1),IF(LEFT($D81,3)="Mis",INDEX(DB_Misc!$D$11:$D$10000,MATCH($E81,DB_Misc!$C$11:$C$10000,0),1),"Error")))))) -> Error | K81: =IF(OR(C81="",D81=""),"",IF(C81<>C80,SUMIFS($G$11:$G$10000,$C$11:$C$10000,C81,DB_Segment!$D$11:$D$10000,"<>Misc",DB_Segment!$D$11:$D$10000,"<>Sig_Int",DB_Segment!$D$11:$D$10000,"<>Unsig_Int")/COUNTIFS($C$11:$C$10000,C81,DB_Segment!$D$11:$D$10000,"<>Misc",DB_Segment!$D$11:$D$10000,"<>Sig_Int",DB_Segment!$D$11:$D$10000,"<>Unsig_Int",DB_Segment!$D$11:$D$10000,"<>"),"")) -> 
F82: =IF(I82=0,J82,I82) -> Error | H82: =IF(D82="","Error",IF(OR(D82="Roadway",D82="Bikeway_1",D82="Bikeway_2",D82="Pedestrian_1",D82="Pedestrian_2"),F82*G82*5280,F82*G82)) -> Error | I82: =IF(LEFT($D82,3)="Roa",INDEX(DB_Roadway!$E$11:$E$10000,MATCH($E82,DB_Roadway!$C$11:$C$10000,0),1),IF(LEFT($D82,3)="Bik",INDEX(DB_Bikeway!$E$11:$E$10000,MATCH($E82,DB_Bikeway!$C$11:$C$10000,0),1),IF(LEFT($D82,3)="Ped",INDEX(DB_Pedestrian!$E$11:$E$10000,MATCH($E82,DB_Pedestrian!$C$11:$C$10000,0),1),IF(LEFT($D82,3)="Sig",INDEX(DB_Sig_Int!$E$11:$E$10000,MATCH($E82,DB_Sig_Int!$C$11:$C$10000,0),1),IF(LEFT($D82,3)="Uns",INDEX(DB_Unsig_Int!$E$11:$E$10000,MATCH($E82,DB_Unsig_Int!$C$11:$C$10000,0),1),IF(LEFT($D82,3)="Mis",INDEX(DB_Misc!$E$11:$E$10000,MATCH($E82,DB_Misc!$C$11:$C$10000,0),1),"Error")))))) -> Error | J82: =IF(LEFT($D82,3)="Roa",INDEX(DB_Roadway!$D$11:$D$10000,MATCH($E82,DB_Roadway!$C$11:$C$10000,0),1),IF(LEFT($D82,3)="Bik",INDEX(DB_Bikeway!$D$11:$D$10000,MATCH($E82,DB_Bikeway!$C$11:$C$10000,0),1),IF(LEFT($D82,3)="Ped",INDEX(DB_Pedestrian!$D$11:$D$10000,MATCH($E82,DB_Pedestrian!$C$11:$C$10000,0),1),IF(LEFT($D82,3)="Sig",INDEX(DB_Sig_Int!$D$11:$D$10000,MATCH($E82,DB_Sig_Int!$C$11:$C$10000,0),1),IF(LEFT($D82,3)="Uns",INDEX(DB_Unsig_Int!$D$11:$D$10000,MATCH($E82,DB_Unsig_Int!$C$11:$C$10000,0),1),IF(LEFT($D82,3)="Mis",INDEX(DB_Misc!$D$11:$D$10000,MATCH($E82,DB_Misc!$C$11:$C$10000,0),1),"Error")))))) -> Error | K82: =IF(OR(C82="",D82=""),"",IF(C82<>C81,SUMIFS($G$11:$G$10000,$C$11:$C$10000,C82,DB_Segment!$D$11:$D$10000,"<>Misc",DB_Segment!$D$11:$D$10000,"<>Sig_Int",DB_Segment!$D$11:$D$10000,"<>Unsig_Int")/COUNTIFS($C$11:$C$10000,C82,DB_Segment!$D$11:$D$10000,"<>Misc",DB_Segment!$D$11:$D$10000,"<>Sig_Int",DB_Segment!$D$11:$D$10000,"<>Unsig_Int",DB_Segment!$D$11:$D$10000,"<>"),"")) -> 
F83: =IF(I83=0,J83,I83) -> Error | H83: =IF(D83="","Error",IF(OR(D83="Roadway",D83="Bikeway_1",D83="Bikeway_2",D83="Pedestrian_1",D83="Pedestrian_2"),F83*G83*5280,F83*G83)) -> Error | I83: =IF(LEFT($D83,3)="Roa",INDEX(DB_Roadway!$E$11:$E$10000,MATCH($E83,DB_Roadway!$C$11:$C$10000,0),1),IF(LEFT($D83,3)="Bik",INDEX(DB_Bikeway!$E$11:$E$10000,MATCH($E83,DB_Bikeway!$C$11:$C$10000,0),1),IF(LEFT($D83,3)="Ped",INDEX(DB_Pedestrian!$E$11:$E$10000,MATCH($E83,DB_Pedestrian!$C$11:$C$10000,0),1),IF(LEFT($D83,3)="Sig",INDEX(DB_Sig_Int!$E$11:$E$10000,MATCH($E83,DB_Sig_Int!$C$11:$C$10000,0),1),IF(LEFT($D83,3)="Uns",INDEX(DB_Unsig_Int!$E$11:$E$10000,MATCH($E83,DB_Unsig_Int!$C$11:$C$10000,0),1),IF(LEFT($D83,3)="Mis",INDEX(DB_Misc!$E$11:$E$10000,MATCH($E83,DB_Misc!$C$11:$C$10000,0),1),"Error")))))) -> Error | J83: =IF(LEFT($D83,3)="Roa",INDEX(DB_Roadway!$D$11:$D$10000,MATCH($E83,DB_Roadway!$C$11:$C$10000,0),1),IF(LEFT($D83,3)="Bik",INDEX(DB_Bikeway!$D$11:$D$10000,MATCH($E83,DB_Bikeway!$C$11:$C$10000,0),1),IF(LEFT($D83,3)="Ped",INDEX(DB_Pedestrian!$D$11:$D$10000,MATCH($E83,DB_Pedestrian!$C$11:$C$10000,0),1),IF(LEFT($D83,3)="Sig",INDEX(DB_Sig_Int!$D$11:$D$10000,MATCH($E83,DB_Sig_Int!$C$11:$C$10000,0),1),IF(LEFT($D83,3)="Uns",INDEX(DB_Unsig_Int!$D$11:$D$10000,MATCH($E83,DB_Unsig_Int!$C$11:$C$10000,0),1),IF(LEFT($D83,3)="Mis",INDEX(DB_Misc!$D$11:$D$10000,MATCH($E83,DB_Misc!$C$11:$C$10000,0),1),"Error")))))) -> Error | K83: =IF(OR(C83="",D83=""),"",IF(C83<>C82,SUMIFS($G$11:$G$10000,$C$11:$C$10000,C83,DB_Segment!$D$11:$D$10000,"<>Misc",DB_Segment!$D$11:$D$10000,"<>Sig_Int",DB_Segment!$D$11:$D$10000,"<>Unsig_Int")/COUNTIFS($C$11:$C$10000,C83,DB_Segment!$D$11:$D$10000,"<>Misc",DB_Segment!$D$11:$D$10000,"<>Sig_Int",DB_Segment!$D$11:$D$10000,"<>Unsig_Int",DB_Segment!$D$11:$D$10000,"<>"),"")) -> 
F84: =IF(I84=0,J84,I84) -> Error | H84: =IF(D84="","Error",IF(OR(D84="Roadway",D84="Bikeway_1",D84="Bikeway_2",D84="Pedestrian_1",D84="Pedestrian_2"),F84*G84*5280,F84*G84)) -> Error | I84: =IF(LEFT($D84,3)="Roa",INDEX(DB_Roadway!$E$11:$E$10000,MATCH($E84,DB_Roadway!$C$11:$C$10000,0),1),IF(LEFT($D84,3)="Bik",INDEX(DB_Bikeway!$E$11:$E$10000,MATCH($E84,DB_Bikeway!$C$11:$C$10000,0),1),IF(LEFT($D84,3)="Ped",INDEX(DB_Pedestrian!$E$11:$E$10000,MATCH($E84,DB_Pedestrian!$C$11:$C$10000,0),1),IF(LEFT($D84,3)="Sig",INDEX(DB_Sig_Int!$E$11:$E$10000,MATCH($E84,DB_Sig_Int!$C$11:$C$10000,0),1),IF(LEFT($D84,3)="Uns",INDEX(DB_Unsig_Int!$E$11:$E$10000,MATCH($E84,DB_Unsig_Int!$C$11:$C$10000,0),1),IF(LEFT($D84,3)="Mis",INDEX(DB_Misc!$E$11:$E$10000,MATCH($E84,DB_Misc!$C$11:$C$10000,0),1),"Error")))))) -> Error | J84: =IF(LEFT($D84,3)="Roa",INDEX(DB_Roadway!$D$11:$D$10000,MATCH($E84,DB_Roadway!$C$11:$C$10000,0),1),IF(LEFT($D84,3)="Bik",INDEX(DB_Bikeway!$D$11:$D$10000,MATCH($E84,DB_Bikeway!$C$11:$C$10000,0),1),IF(LEFT($D84,3)="Ped",INDEX(DB_Pedestrian!$D$11:$D$10000,MATCH($E84,DB_Pedestrian!$C$11:$C$10000,0),1),IF(LEFT($D84,3)="Sig",INDEX(DB_Sig_Int!$D$11:$D$10000,MATCH($E84,DB_Sig_Int!$C$11:$C$10000,0),1),IF(LEFT($D84,3)="Uns",INDEX(DB_Unsig_Int!$D$11:$D$10000,MATCH($E84,DB_Unsig_Int!$C$11:$C$10000,0),1),IF(LEFT($D84,3)="Mis",INDEX(DB_Misc!$D$11:$D$10000,MATCH($E84,DB_Misc!$C$11:$C$10000,0),1),"Error")))))) -> Error | K84: =IF(OR(C84="",D84=""),"",IF(C84<>C83,SUMIFS($G$11:$G$10000,$C$11:$C$10000,C84,DB_Segment!$D$11:$D$10000,"<>Misc",DB_Segment!$D$11:$D$10000,"<>Sig_Int",DB_Segment!$D$11:$D$10000,"<>Unsig_Int")/COUNTIFS($C$11:$C$10000,C84,DB_Segment!$D$11:$D$10000,"<>Misc",DB_Segment!$D$11:$D$10000,"<>Sig_Int",DB_Segment!$D$11:$D$10000,"<>Unsig_Int",DB_Segment!$D$11:$D$10000,"<>"),"")) -> 
F85: =IF(I85=0,J85,I85) -> Error | H85: =IF(D85="","Error",IF(OR(D85="Roadway",D85="Bikeway_1",D85="Bikeway_2",D85="Pedestrian_1",D85="Pedestrian_2"),F85*G85*5280,F85*G85)) -> Error | I85: =IF(LEFT($D85,3)="Roa",INDEX(DB_Roadway!$E$11:$E$10000,MATCH($E85,DB_Roadway!$C$11:$C$10000,0),1),IF(LEFT($D85,3)="Bik",INDEX(DB_Bikeway!$E$11:$E$10000,MATCH($E85,DB_Bikeway!$C$11:$C$10000,0),1),IF(LEFT($D85,3)="Ped",INDEX(DB_Pedestrian!$E$11:$E$10000,MATCH($E85,DB_Pedestrian!$C$11:$C$10000,0),1),IF(LEFT($D85,3)="Sig",INDEX(DB_Sig_Int!$E$11:$E$10000,MATCH($E85,DB_Sig_Int!$C$11:$C$10000,0),1),IF(LEFT($D85,3)="Uns",INDEX(DB_Unsig_Int!$E$11:$E$10000,MATCH($E85,DB_Unsig_Int!$C$11:$C$10000,0),1),IF(LEFT($D85,3)="Mis",INDEX(DB_Misc!$E$11:$E$10000,MATCH($E85,DB_Misc!$C$11:$C$10000,0),1),"Error")))))) -> Error | J85: =IF(LEFT($D85,3)="Roa",INDEX(DB_Roadway!$D$11:$D$10000,MATCH($E85,DB_Roadway!$C$11:$C$10000,0),1),IF(LEFT($D85,3)="Bik",INDEX(DB_Bikeway!$D$11:$D$10000,MATCH($E85,DB_Bikeway!$C$11:$C$10000,0),1),IF(LEFT($D85,3)="Ped",INDEX(DB_Pedestrian!$D$11:$D$10000,MATCH($E85,DB_Pedestrian!$C$11:$C$10000,0),1),IF(LEFT($D85,3)="Sig",INDEX(DB_Sig_Int!$D$11:$D$10000,MATCH($E85,DB_Sig_Int!$C$11:$C$10000,0),1),IF(LEFT($D85,3)="Uns",INDEX(DB_Unsig_Int!$D$11:$D$10000,MATCH($E85,DB_Unsig_Int!$C$11:$C$10000,0),1),IF(LEFT($D85,3)="Mis",INDEX(DB_Misc!$D$11:$D$10000,MATCH($E85,DB_Misc!$C$11:$C$10000,0),1),"Error")))))) -> Error | K85: =IF(OR(C85="",D85=""),"",IF(C85<>C84,SUMIFS($G$11:$G$10000,$C$11:$C$10000,C85,DB_Segment!$D$11:$D$10000,"<>Misc",DB_Segment!$D$11:$D$10000,"<>Sig_Int",DB_Segment!$D$11:$D$10000,"<>Unsig_Int")/COUNTIFS($C$11:$C$10000,C85,DB_Segment!$D$11:$D$10000,"<>Misc",DB_Segment!$D$11:$D$10000,"<>Sig_Int",DB_Segment!$D$11:$D$10000,"<>Unsig_Int",DB_Segment!$D$11:$D$10000,"<>"),"")) -> 
F86: =IF(I86=0,J86,I86) -> Error | H86: =IF(D86="","Error",IF(OR(D86="Roadway",D86="Bikeway_1",D86="Bikeway_2",D86="Pedestrian_1",D86="Pedestrian_2"),F86*G86*5280,F86*G86)) -> Error | I86: =IF(LEFT($D86,3)="Roa",INDEX(DB_Roadway!$E$11:$E$10000,MATCH($E86,DB_Roadway!$C$11:$C$10000,0),1),IF(LEFT($D86,3)="Bik",INDEX(DB_Bikeway!$E$11:$E$10000,MATCH($E86,DB_Bikeway!$C$11:$C$10000,0),1),IF(LEFT($D86,3)="Ped",INDEX(DB_Pedestrian!$E$11:$E$10000,MATCH($E86,DB_Pedestrian!$C$11:$C$10000,0),1),IF(LEFT($D86,3)="Sig",INDEX(DB_Sig_Int!$E$11:$E$10000,MATCH($E86,DB_Sig_Int!$C$11:$C$10000,0),1),IF(LEFT($D86,3)="Uns",INDEX(DB_Unsig_Int!$E$11:$E$10000,MATCH($E86,DB_Unsig_Int!$C$11:$C$10000,0),1),IF(LEFT($D86,3)="Mis",INDEX(DB_Misc!$E$11:$E$10000,MATCH($E86,DB_Misc!$C$11:$C$10000,0),1),"Error")))))) -> Error | J86: =IF(LEFT($D86,3)="Roa",INDEX(DB_Roadway!$D$11:$D$10000,MATCH($E86,DB_Roadway!$C$11:$C$10000,0),1),IF(LEFT($D86,3)="Bik",INDEX(DB_Bikeway!$D$11:$D$10000,MATCH($E86,DB_Bikeway!$C$11:$C$10000,0),1),IF(LEFT($D86,3)="Ped",INDEX(DB_Pedestrian!$D$11:$D$10000,MATCH($E86,DB_Pedestrian!$C$11:$C$10000,0),1),IF(LEFT($D86,3)="Sig",INDEX(DB_Sig_Int!$D$11:$D$10000,MATCH($E86,DB_Sig_Int!$C$11:$C$10000,0),1),IF(LEFT($D86,3)="Uns",INDEX(DB_Unsig_Int!$D$11:$D$10000,MATCH($E86,DB_Unsig_Int!$C$11:$C$10000,0),1),IF(LEFT($D86,3)="Mis",INDEX(DB_Misc!$D$11:$D$10000,MATCH($E86,DB_Misc!$C$11:$C$10000,0),1),"Error")))))) -> Error | K86: =IF(OR(C86="",D86=""),"",IF(C86<>C85,SUMIFS($G$11:$G$10000,$C$11:$C$10000,C86,DB_Segment!$D$11:$D$10000,"<>Misc",DB_Segment!$D$11:$D$10000,"<>Sig_Int",DB_Segment!$D$11:$D$10000,"<>Unsig_Int")/COUNTIFS($C$11:$C$10000,C86,DB_Segment!$D$11:$D$10000,"<>Misc",DB_Segment!$D$11:$D$10000,"<>Sig_Int",DB_Segment!$D$11:$D$10000,"<>Unsig_Int",DB_Segment!$D$11:$D$10000,"<>"),"")) -> 
F87: =IF(I87=0,J87,I87) -> Error | H87: =IF(D87="","Error",IF(OR(D87="Roadway",D87="Bikeway_1",D87="Bikeway_2",D87="Pedestrian_1",D87="Pedestrian_2"),F87*G87*5280,F87*G87)) -> Error | I87: =IF(LEFT($D87,3)="Roa",INDEX(DB_Roadway!$E$11:$E$10000,MATCH($E87,DB_Roadway!$C$11:$C$10000,0),1),IF(LEFT($D87,3)="Bik",INDEX(DB_Bikeway!$E$11:$E$10000,MATCH($E87,DB_Bikeway!$C$11:$C$10000,0),1),IF(LEFT($D87,3)="Ped",INDEX(DB_Pedestrian!$E$11:$E$10000,MATCH($E87,DB_Pedestrian!$C$11:$C$10000,0),1),IF(LEFT($D87,3)="Sig",INDEX(DB_Sig_Int!$E$11:$E$10000,MATCH($E87,DB_Sig_Int!$C$11:$C$10000,0),1),IF(LEFT($D87,3)="Uns",INDEX(DB_Unsig_Int!$E$11:$E$10000,MATCH($E87,DB_Unsig_Int!$C$11:$C$10000,0),1),IF(LEFT($D87,3)="Mis",INDEX(DB_Misc!$E$11:$E$10000,MATCH($E87,DB_Misc!$C$11:$C$10000,0),1),"Error")))))) -> Error | J87: =IF(LEFT($D87,3)="Roa",INDEX(DB_Roadway!$D$11:$D$10000,MATCH($E87,DB_Roadway!$C$11:$C$10000,0),1),IF(LEFT($D87,3)="Bik",INDEX(DB_Bikeway!$D$11:$D$10000,MATCH($E87,DB_Bikeway!$C$11:$C$10000,0),1),IF(LEFT($D87,3)="Ped",INDEX(DB_Pedestrian!$D$11:$D$10000,MATCH($E87,DB_Pedestrian!$C$11:$C$10000,0),1),IF(LEFT($D87,3)="Sig",INDEX(DB_Sig_Int!$D$11:$D$10000,MATCH($E87,DB_Sig_Int!$C$11:$C$10000,0),1),IF(LEFT($D87,3)="Uns",INDEX(DB_Unsig_Int!$D$11:$D$10000,MATCH($E87,DB_Unsig_Int!$C$11:$C$10000,0),1),IF(LEFT($D87,3)="Mis",INDEX(DB_Misc!$D$11:$D$10000,MATCH($E87,DB_Misc!$C$11:$C$10000,0),1),"Error")))))) -> Error | K87: =IF(OR(C87="",D87=""),"",IF(C87<>C86,SUMIFS($G$11:$G$10000,$C$11:$C$10000,C87,DB_Segment!$D$11:$D$10000,"<>Misc",DB_Segment!$D$11:$D$10000,"<>Sig_Int",DB_Segment!$D$11:$D$10000,"<>Unsig_Int")/COUNTIFS($C$11:$C$10000,C87,DB_Segment!$D$11:$D$10000,"<>Misc",DB_Segment!$D$11:$D$10000,"<>Sig_Int",DB_Segment!$D$11:$D$10000,"<>Unsig_Int",DB_Segment!$D$11:$D$10000,"<>"),"")) -> 
F88: =IF(I88=0,J88,I88) -> Error | H88: =IF(D88="","Error",IF(OR(D88="Roadway",D88="Bikeway_1",D88="Bikeway_2",D88="Pedestrian_1",D88="Pedestrian_2"),F88*G88*5280,F88*G88)) -> Error | I88: =IF(LEFT($D88,3)="Roa",INDEX(DB_Roadway!$E$11:$E$10000,MATCH($E88,DB_Roadway!$C$11:$C$10000,0),1),IF(LEFT($D88,3)="Bik",INDEX(DB_Bikeway!$E$11:$E$10000,MATCH($E88,DB_Bikeway!$C$11:$C$10000,0),1),IF(LEFT($D88,3)="Ped",INDEX(DB_Pedestrian!$E$11:$E$10000,MATCH($E88,DB_Pedestrian!$C$11:$C$10000,0),1),IF(LEFT($D88,3)="Sig",INDEX(DB_Sig_Int!$E$11:$E$10000,MATCH($E88,DB_Sig_Int!$C$11:$C$10000,0),1),IF(LEFT($D88,3)="Uns",INDEX(DB_Unsig_Int!$E$11:$E$10000,MATCH($E88,DB_Unsig_Int!$C$11:$C$10000,0),1),IF(LEFT($D88,3)="Mis",INDEX(DB_Misc!$E$11:$E$10000,MATCH($E88,DB_Misc!$C$11:$C$10000,0),1),"Error")))))) -> Error | J88: =IF(LEFT($D88,3)="Roa",INDEX(DB_Roadway!$D$11:$D$10000,MATCH($E88,DB_Roadway!$C$11:$C$10000,0),1),IF(LEFT($D88,3)="Bik",INDEX(DB_Bikeway!$D$11:$D$10000,MATCH($E88,DB_Bikeway!$C$11:$C$10000,0),1),IF(LEFT($D88,3)="Ped",INDEX(DB_Pedestrian!$D$11:$D$10000,MATCH($E88,DB_Pedestrian!$C$11:$C$10000,0),1),IF(LEFT($D88,3)="Sig",INDEX(DB_Sig_Int!$D$11:$D$10000,MATCH($E88,DB_Sig_Int!$C$11:$C$10000,0),1),IF(LEFT($D88,3)="Uns",INDEX(DB_Unsig_Int!$D$11:$D$10000,MATCH($E88,DB_Unsig_Int!$C$11:$C$10000,0),1),IF(LEFT($D88,3)="Mis",INDEX(DB_Misc!$D$11:$D$10000,MATCH($E88,DB_Misc!$C$11:$C$10000,0),1),"Error")))))) -> Error | K88: =IF(OR(C88="",D88=""),"",IF(C88<>C87,SUMIFS($G$11:$G$10000,$C$11:$C$10000,C88,DB_Segment!$D$11:$D$10000,"<>Misc",DB_Segment!$D$11:$D$10000,"<>Sig_Int",DB_Segment!$D$11:$D$10000,"<>Unsig_Int")/COUNTIFS($C$11:$C$10000,C88,DB_Segment!$D$11:$D$10000,"<>Misc",DB_Segment!$D$11:$D$10000,"<>Sig_Int",DB_Segment!$D$11:$D$10000,"<>Unsig_Int",DB_Segment!$D$11:$D$10000,"<>"),"")) -> 
F89: =IF(I89=0,J89,I89) -> Error | H89: =IF(D89="","Error",IF(OR(D89="Roadway",D89="Bikeway_1",D89="Bikeway_2",D89="Pedestrian_1",D89="Pedestrian_2"),F89*G89*5280,F89*G89)) -> Error | I89: =IF(LEFT($D89,3)="Roa",INDEX(DB_Roadway!$E$11:$E$10000,MATCH($E89,DB_Roadway!$C$11:$C$10000,0),1),IF(LEFT($D89,3)="Bik",INDEX(DB_Bikeway!$E$11:$E$10000,MATCH($E89,DB_Bikeway!$C$11:$C$10000,0),1),IF(LEFT($D89,3)="Ped",INDEX(DB_Pedestrian!$E$11:$E$10000,MATCH($E89,DB_Pedestrian!$C$11:$C$10000,0),1),IF(LEFT($D89,3)="Sig",INDEX(DB_Sig_Int!$E$11:$E$10000,MATCH($E89,DB_Sig_Int!$C$11:$C$10000,0),1),IF(LEFT($D89,3)="Uns",INDEX(DB_Unsig_Int!$E$11:$E$10000,MATCH($E89,DB_Unsig_Int!$C$11:$C$10000,0),1),IF(LEFT($D89,3)="Mis",INDEX(DB_Misc!$E$11:$E$10000,MATCH($E89,DB_Misc!$C$11:$C$10000,0),1),"Error")))))) -> Error | J89: =IF(LEFT($D89,3)="Roa",INDEX(DB_Roadway!$D$11:$D$10000,MATCH($E89,DB_Roadway!$C$11:$C$10000,0),1),IF(LEFT($D89,3)="Bik",INDEX(DB_Bikeway!$D$11:$D$10000,MATCH($E89,DB_Bikeway!$C$11:$C$10000,0),1),IF(LEFT($D89,3)="Ped",INDEX(DB_Pedestrian!$D$11:$D$10000,MATCH($E89,DB_Pedestrian!$C$11:$C$10000,0),1),IF(LEFT($D89,3)="Sig",INDEX(DB_Sig_Int!$D$11:$D$10000,MATCH($E89,DB_Sig_Int!$C$11:$C$10000,0),1),IF(LEFT($D89,3)="Uns",INDEX(DB_Unsig_Int!$D$11:$D$10000,MATCH($E89,DB_Unsig_Int!$C$11:$C$10000,0),1),IF(LEFT($D89,3)="Mis",INDEX(DB_Misc!$D$11:$D$10000,MATCH($E89,DB_Misc!$C$11:$C$10000,0),1),"Error")))))) -> Error | K89: =IF(OR(C89="",D89=""),"",IF(C89<>C88,SUMIFS($G$11:$G$10000,$C$11:$C$10000,C89,DB_Segment!$D$11:$D$10000,"<>Misc",DB_Segment!$D$11:$D$10000,"<>Sig_Int",DB_Segment!$D$11:$D$10000,"<>Unsig_Int")/COUNTIFS($C$11:$C$10000,C89,DB_Segment!$D$11:$D$10000,"<>Misc",DB_Segment!$D$11:$D$10000,"<>Sig_Int",DB_Segment!$D$11:$D$10000,"<>Unsig_Int",DB_Segment!$D$11:$D$10000,"<>"),"")) -> 
F90: =IF(I90=0,J90,I90) -> Error | H90: =IF(D90="","Error",IF(OR(D90="Roadway",D90="Bikeway_1",D90="Bikeway_2",D90="Pedestrian_1",D90="Pedestrian_2"),F90*G90*5280,F90*G90)) -> Error | I90: =IF(LEFT($D90,3)="Roa",INDEX(DB_Roadway!$E$11:$E$10000,MATCH($E90,DB_Roadway!$C$11:$C$10000,0),1),IF(LEFT($D90,3)="Bik",INDEX(DB_Bikeway!$E$11:$E$10000,MATCH($E90,DB_Bikeway!$C$11:$C$10000,0),1),IF(LEFT($D90,3)="Ped",INDEX(DB_Pedestrian!$E$11:$E$10000,MATCH($E90,DB_Pedestrian!$C$11:$C$10000,0),1),IF(LEFT($D90,3)="Sig",INDEX(DB_Sig_Int!$E$11:$E$10000,MATCH($E90,DB_Sig_Int!$C$11:$C$10000,0),1),IF(LEFT($D90,3)="Uns",INDEX(DB_Unsig_Int!$E$11:$E$10000,MATCH($E90,DB_Unsig_Int!$C$11:$C$10000,0),1),IF(LEFT($D90,3)="Mis",INDEX(DB_Misc!$E$11:$E$10000,MATCH($E90,DB_Misc!$C$11:$C$10000,0),1),"Error")))))) -> Error | J90: =IF(LEFT($D90,3)="Roa",INDEX(DB_Roadway!$D$11:$D$10000,MATCH($E90,DB_Roadway!$C$11:$C$10000,0),1),IF(LEFT($D90,3)="Bik",INDEX(DB_Bikeway!$D$11:$D$10000,MATCH($E90,DB_Bikeway!$C$11:$C$10000,0),1),IF(LEFT($D90,3)="Ped",INDEX(DB_Pedestrian!$D$11:$D$10000,MATCH($E90,DB_Pedestrian!$C$11:$C$10000,0),1),IF(LEFT($D90,3)="Sig",INDEX(DB_Sig_Int!$D$11:$D$10000,MATCH($E90,DB_Sig_Int!$C$11:$C$10000,0),1),IF(LEFT($D90,3)="Uns",INDEX(DB_Unsig_Int!$D$11:$D$10000,MATCH($E90,DB_Unsig_Int!$C$11:$C$10000,0),1),IF(LEFT($D90,3)="Mis",INDEX(DB_Misc!$D$11:$D$10000,MATCH($E90,DB_Misc!$C$11:$C$10000,0),1),"Error")))))) -> Error | K90: =IF(OR(C90="",D90=""),"",IF(C90<>C89,SUMIFS($G$11:$G$10000,$C$11:$C$10000,C90,DB_Segment!$D$11:$D$10000,"<>Misc",DB_Segment!$D$11:$D$10000,"<>Sig_Int",DB_Segment!$D$11:$D$10000,"<>Unsig_Int")/COUNTIFS($C$11:$C$10000,C90,DB_Segment!$D$11:$D$10000,"<>Misc",DB_Segment!$D$11:$D$10000,"<>Sig_Int",DB_Segment!$D$11:$D$10000,"<>Unsig_Int",DB_Segment!$D$11:$D$10000,"<>"),"")) -> 
F91: =IF(I91=0,J91,I91) -> Error | H91: =IF(D91="","Error",IF(OR(D91="Roadway",D91="Bikeway_1",D91="Bikeway_2",D91="Pedestrian_1",D91="Pedestrian_2"),F91*G91*5280,F91*G91)) -> Error | I91: =IF(LEFT($D91,3)="Roa",INDEX(DB_Roadway!$E$11:$E$10000,MATCH($E91,DB_Roadway!$C$11:$C$10000,0),1),IF(LEFT($D91,3)="Bik",INDEX(DB_Bikeway!$E$11:$E$10000,MATCH($E91,DB_Bikeway!$C$11:$C$10000,0),1),IF(LEFT($D91,3)="Ped",INDEX(DB_Pedestrian!$E$11:$E$10000,MATCH($E91,DB_Pedestrian!$C$11:$C$10000,0),1),IF(LEFT($D91,3)="Sig",INDEX(DB_Sig_Int!$E$11:$E$10000,MATCH($E91,DB_Sig_Int!$C$11:$C$10000,0),1),IF(LEFT($D91,3)="Uns",INDEX(DB_Unsig_Int!$E$11:$E$10000,MATCH($E91,DB_Unsig_Int!$C$11:$C$10000,0),1),IF(LEFT($D91,3)="Mis",INDEX(DB_Misc!$E$11:$E$10000,MATCH($E91,DB_Misc!$C$11:$C$10000,0),1),"Error")))))) -> Error | J91: =IF(LEFT($D91,3)="Roa",INDEX(DB_Roadway!$D$11:$D$10000,MATCH($E91,DB_Roadway!$C$11:$C$10000,0),1),IF(LEFT($D91,3)="Bik",INDEX(DB_Bikeway!$D$11:$D$10000,MATCH($E91,DB_Bikeway!$C$11:$C$10000,0),1),IF(LEFT($D91,3)="Ped",INDEX(DB_Pedestrian!$D$11:$D$10000,MATCH($E91,DB_Pedestrian!$C$11:$C$10000,0),1),IF(LEFT($D91,3)="Sig",INDEX(DB_Sig_Int!$D$11:$D$10000,MATCH($E91,DB_Sig_Int!$C$11:$C$10000,0),1),IF(LEFT($D91,3)="Uns",INDEX(DB_Unsig_Int!$D$11:$D$10000,MATCH($E91,DB_Unsig_Int!$C$11:$C$10000,0),1),IF(LEFT($D91,3)="Mis",INDEX(DB_Misc!$D$11:$D$10000,MATCH($E91,DB_Misc!$C$11:$C$10000,0),1),"Error")))))) -> Error | K91: =IF(OR(C91="",D91=""),"",IF(C91<>C90,SUMIFS($G$11:$G$10000,$C$11:$C$10000,C91,DB_Segment!$D$11:$D$10000,"<>Misc",DB_Segment!$D$11:$D$10000,"<>Sig_Int",DB_Segment!$D$11:$D$10000,"<>Unsig_Int")/COUNTIFS($C$11:$C$10000,C91,DB_Segment!$D$11:$D$10000,"<>Misc",DB_Segment!$D$11:$D$10000,"<>Sig_Int",DB_Segment!$D$11:$D$10000,"<>Unsig_Int",DB_Segment!$D$11:$D$10000,"<>"),"")) -> 
F92: =IF(I92=0,J92,I92) -> Error | H92: =IF(D92="","Error",IF(OR(D92="Roadway",D92="Bikeway_1",D92="Bikeway_2",D92="Pedestrian_1",D92="Pedestrian_2"),F92*G92*5280,F92*G92)) -> Error | I92: =IF(LEFT($D92,3)="Roa",INDEX(DB_Roadway!$E$11:$E$10000,MATCH($E92,DB_Roadway!$C$11:$C$10000,0),1),IF(LEFT($D92,3)="Bik",INDEX(DB_Bikeway!$E$11:$E$10000,MATCH($E92,DB_Bikeway!$C$11:$C$10000,0),1),IF(LEFT($D92,3)="Ped",INDEX(DB_Pedestrian!$E$11:$E$10000,MATCH($E92,DB_Pedestrian!$C$11:$C$10000,0),1),IF(LEFT($D92,3)="Sig",INDEX(DB_Sig_Int!$E$11:$E$10000,MATCH($E92,DB_Sig_Int!$C$11:$C$10000,0),1),IF(LEFT($D92,3)="Uns",INDEX(DB_Unsig_Int!$E$11:$E$10000,MATCH($E92,DB_Unsig_Int!$C$11:$C$10000,0),1),IF(LEFT($D92,3)="Mis",INDEX(DB_Misc!$E$11:$E$10000,MATCH($E92,DB_Misc!$C$11:$C$10000,0),1),"Error")))))) -> Error | J92: =IF(LEFT($D92,3)="Roa",INDEX(DB_Roadway!$D$11:$D$10000,MATCH($E92,DB_Roadway!$C$11:$C$10000,0),1),IF(LEFT($D92,3)="Bik",INDEX(DB_Bikeway!$D$11:$D$10000,MATCH($E92,DB_Bikeway!$C$11:$C$10000,0),1),IF(LEFT($D92,3)="Ped",INDEX(DB_Pedestrian!$D$11:$D$10000,MATCH($E92,DB_Pedestrian!$C$11:$C$10000,0),1),IF(LEFT($D92,3)="Sig",INDEX(DB_Sig_Int!$D$11:$D$10000,MATCH($E92,DB_Sig_Int!$C$11:$C$10000,0),1),IF(LEFT($D92,3)="Uns",INDEX(DB_Unsig_Int!$D$11:$D$10000,MATCH($E92,DB_Unsig_Int!$C$11:$C$10000,0),1),IF(LEFT($D92,3)="Mis",INDEX(DB_Misc!$D$11:$D$10000,MATCH($E92,DB_Misc!$C$11:$C$10000,0),1),"Error")))))) -> Error | K92: =IF(OR(C92="",D92=""),"",IF(C92<>C91,SUMIFS($G$11:$G$10000,$C$11:$C$10000,C92,DB_Segment!$D$11:$D$10000,"<>Misc",DB_Segment!$D$11:$D$10000,"<>Sig_Int",DB_Segment!$D$11:$D$10000,"<>Unsig_Int")/COUNTIFS($C$11:$C$10000,C92,DB_Segment!$D$11:$D$10000,"<>Misc",DB_Segment!$D$11:$D$10000,"<>Sig_Int",DB_Segment!$D$11:$D$10000,"<>Unsig_Int",DB_Segment!$D$11:$D$10000,"<>"),"")) -> 
F93: =IF(I93=0,J93,I93) -> Error | H93: =IF(D93="","Error",IF(OR(D93="Roadway",D93="Bikeway_1",D93="Bikeway_2",D93="Pedestrian_1",D93="Pedestrian_2"),F93*G93*5280,F93*G93)) -> Error | I93: =IF(LEFT($D93,3)="Roa",INDEX(DB_Roadway!$E$11:$E$10000,MATCH($E93,DB_Roadway!$C$11:$C$10000,0),1),IF(LEFT($D93,3)="Bik",INDEX(DB_Bikeway!$E$11:$E$10000,MATCH($E93,DB_Bikeway!$C$11:$C$10000,0),1),IF(LEFT($D93,3)="Ped",INDEX(DB_Pedestrian!$E$11:$E$10000,MATCH($E93,DB_Pedestrian!$C$11:$C$10000,0),1),IF(LEFT($D93,3)="Sig",INDEX(DB_Sig_Int!$E$11:$E$10000,MATCH($E93,DB_Sig_Int!$C$11:$C$10000,0),1),IF(LEFT($D93,3)="Uns",INDEX(DB_Unsig_Int!$E$11:$E$10000,MATCH($E93,DB_Unsig_Int!$C$11:$C$10000,0),1),IF(LEFT($D93,3)="Mis",INDEX(DB_Misc!$E$11:$E$10000,MATCH($E93,DB_Misc!$C$11:$C$10000,0),1),"Error")))))) -> Error | J93: =IF(LEFT($D93,3)="Roa",INDEX(DB_Roadway!$D$11:$D$10000,MATCH($E93,DB_Roadway!$C$11:$C$10000,0),1),IF(LEFT($D93,3)="Bik",INDEX(DB_Bikeway!$D$11:$D$10000,MATCH($E93,DB_Bikeway!$C$11:$C$10000,0),1),IF(LEFT($D93,3)="Ped",INDEX(DB_Pedestrian!$D$11:$D$10000,MATCH($E93,DB_Pedestrian!$C$11:$C$10000,0),1),IF(LEFT($D93,3)="Sig",INDEX(DB_Sig_Int!$D$11:$D$10000,MATCH($E93,DB_Sig_Int!$C$11:$C$10000,0),1),IF(LEFT($D93,3)="Uns",INDEX(DB_Unsig_Int!$D$11:$D$10000,MATCH($E93,DB_Unsig_Int!$C$11:$C$10000,0),1),IF(LEFT($D93,3)="Mis",INDEX(DB_Misc!$D$11:$D$10000,MATCH($E93,DB_Misc!$C$11:$C$10000,0),1),"Error")))))) -> Error | K93: =IF(OR(C93="",D93=""),"",IF(C93<>C92,SUMIFS($G$11:$G$10000,$C$11:$C$10000,C93,DB_Segment!$D$11:$D$10000,"<>Misc",DB_Segment!$D$11:$D$10000,"<>Sig_Int",DB_Segment!$D$11:$D$10000,"<>Unsig_Int")/COUNTIFS($C$11:$C$10000,C93,DB_Segment!$D$11:$D$10000,"<>Misc",DB_Segment!$D$11:$D$10000,"<>Sig_Int",DB_Segment!$D$11:$D$10000,"<>Unsig_Int",DB_Segment!$D$11:$D$10000,"<>"),"")) -> 
F94: =IF(I94=0,J94,I94) -> Error | H94: =IF(D94="","Error",IF(OR(D94="Roadway",D94="Bikeway_1",D94="Bikeway_2",D94="Pedestrian_1",D94="Pedestrian_2"),F94*G94*5280,F94*G94)) -> Error | I94: =IF(LEFT($D94,3)="Roa",INDEX(DB_Roadway!$E$11:$E$10000,MATCH($E94,DB_Roadway!$C$11:$C$10000,0),1),IF(LEFT($D94,3)="Bik",INDEX(DB_Bikeway!$E$11:$E$10000,MATCH($E94,DB_Bikeway!$C$11:$C$10000,0),1),IF(LEFT($D94,3)="Ped",INDEX(DB_Pedestrian!$E$11:$E$10000,MATCH($E94,DB_Pedestrian!$C$11:$C$10000,0),1),IF(LEFT($D94,3)="Sig",INDEX(DB_Sig_Int!$E$11:$E$10000,MATCH($E94,DB_Sig_Int!$C$11:$C$10000,0),1),IF(LEFT($D94,3)="Uns",INDEX(DB_Unsig_Int!$E$11:$E$10000,MATCH($E94,DB_Unsig_Int!$C$11:$C$10000,0),1),IF(LEFT($D94,3)="Mis",INDEX(DB_Misc!$E$11:$E$10000,MATCH($E94,DB_Misc!$C$11:$C$10000,0),1),"Error")))))) -> Error | J94: =IF(LEFT($D94,3)="Roa",INDEX(DB_Roadway!$D$11:$D$10000,MATCH($E94,DB_Roadway!$C$11:$C$10000,0),1),IF(LEFT($D94,3)="Bik",INDEX(DB_Bikeway!$D$11:$D$10000,MATCH($E94,DB_Bikeway!$C$11:$C$10000,0),1),IF(LEFT($D94,3)="Ped",INDEX(DB_Pedestrian!$D$11:$D$10000,MATCH($E94,DB_Pedestrian!$C$11:$C$10000,0),1),IF(LEFT($D94,3)="Sig",INDEX(DB_Sig_Int!$D$11:$D$10000,MATCH($E94,DB_Sig_Int!$C$11:$C$10000,0),1),IF(LEFT($D94,3)="Uns",INDEX(DB_Unsig_Int!$D$11:$D$10000,MATCH($E94,DB_Unsig_Int!$C$11:$C$10000,0),1),IF(LEFT($D94,3)="Mis",INDEX(DB_Misc!$D$11:$D$10000,MATCH($E94,DB_Misc!$C$11:$C$10000,0),1),"Error")))))) -> Error | K94: =IF(OR(C94="",D94=""),"",IF(C94<>C93,SUMIFS($G$11:$G$10000,$C$11:$C$10000,C94,DB_Segment!$D$11:$D$10000,"<>Misc",DB_Segment!$D$11:$D$10000,"<>Sig_Int",DB_Segment!$D$11:$D$10000,"<>Unsig_Int")/COUNTIFS($C$11:$C$10000,C94,DB_Segment!$D$11:$D$10000,"<>Misc",DB_Segment!$D$11:$D$10000,"<>Sig_Int",DB_Segment!$D$11:$D$10000,"<>Unsig_Int",DB_Segment!$D$11:$D$10000,"<>"),"")) -> 
F95: =IF(I95=0,J95,I95) -> Error | H95: =IF(D95="","Error",IF(OR(D95="Roadway",D95="Bikeway_1",D95="Bikeway_2",D95="Pedestrian_1",D95="Pedestrian_2"),F95*G95*5280,F95*G95)) -> Error | I95: =IF(LEFT($D95,3)="Roa",INDEX(DB_Roadway!$E$11:$E$10000,MATCH($E95,DB_Roadway!$C$11:$C$10000,0),1),IF(LEFT($D95,3)="Bik",INDEX(DB_Bikeway!$E$11:$E$10000,MATCH($E95,DB_Bikeway!$C$11:$C$10000,0),1),IF(LEFT($D95,3)="Ped",INDEX(DB_Pedestrian!$E$11:$E$10000,MATCH($E95,DB_Pedestrian!$C$11:$C$10000,0),1),IF(LEFT($D95,3)="Sig",INDEX(DB_Sig_Int!$E$11:$E$10000,MATCH($E95,DB_Sig_Int!$C$11:$C$10000,0),1),IF(LEFT($D95,3)="Uns",INDEX(DB_Unsig_Int!$E$11:$E$10000,MATCH($E95,DB_Unsig_Int!$C$11:$C$10000,0),1),IF(LEFT($D95,3)="Mis",INDEX(DB_Misc!$E$11:$E$10000,MATCH($E95,DB_Misc!$C$11:$C$10000,0),1),"Error")))))) -> Error | J95: =IF(LEFT($D95,3)="Roa",INDEX(DB_Roadway!$D$11:$D$10000,MATCH($E95,DB_Roadway!$C$11:$C$10000,0),1),IF(LEFT($D95,3)="Bik",INDEX(DB_Bikeway!$D$11:$D$10000,MATCH($E95,DB_Bikeway!$C$11:$C$10000,0),1),IF(LEFT($D95,3)="Ped",INDEX(DB_Pedestrian!$D$11:$D$10000,MATCH($E95,DB_Pedestrian!$C$11:$C$10000,0),1),IF(LEFT($D95,3)="Sig",INDEX(DB_Sig_Int!$D$11:$D$10000,MATCH($E95,DB_Sig_Int!$C$11:$C$10000,0),1),IF(LEFT($D95,3)="Uns",INDEX(DB_Unsig_Int!$D$11:$D$10000,MATCH($E95,DB_Unsig_Int!$C$11:$C$10000,0),1),IF(LEFT($D95,3)="Mis",INDEX(DB_Misc!$D$11:$D$10000,MATCH($E95,DB_Misc!$C$11:$C$10000,0),1),"Error")))))) -> Error | K95: =IF(OR(C95="",D95=""),"",IF(C95<>C94,SUMIFS($G$11:$G$10000,$C$11:$C$10000,C95,DB_Segment!$D$11:$D$10000,"<>Misc",DB_Segment!$D$11:$D$10000,"<>Sig_Int",DB_Segment!$D$11:$D$10000,"<>Unsig_Int")/COUNTIFS($C$11:$C$10000,C95,DB_Segment!$D$11:$D$10000,"<>Misc",DB_Segment!$D$11:$D$10000,"<>Sig_Int",DB_Segment!$D$11:$D$10000,"<>Unsig_Int",DB_Segment!$D$11:$D$10000,"<>"),"")) -> 
F96: =IF(I96=0,J96,I96) -> Error | H96: =IF(D96="","Error",IF(OR(D96="Roadway",D96="Bikeway_1",D96="Bikeway_2",D96="Pedestrian_1",D96="Pedestrian_2"),F96*G96*5280,F96*G96)) -> Error | I96: =IF(LEFT($D96,3)="Roa",INDEX(DB_Roadway!$E$11:$E$10000,MATCH($E96,DB_Roadway!$C$11:$C$10000,0),1),IF(LEFT($D96,3)="Bik",INDEX(DB_Bikeway!$E$11:$E$10000,MATCH($E96,DB_Bikeway!$C$11:$C$10000,0),1),IF(LEFT($D96,3)="Ped",INDEX(DB_Pedestrian!$E$11:$E$10000,MATCH($E96,DB_Pedestrian!$C$11:$C$10000,0),1),IF(LEFT($D96,3)="Sig",INDEX(DB_Sig_Int!$E$11:$E$10000,MATCH($E96,DB_Sig_Int!$C$11:$C$10000,0),1),IF(LEFT($D96,3)="Uns",INDEX(DB_Unsig_Int!$E$11:$E$10000,MATCH($E96,DB_Unsig_Int!$C$11:$C$10000,0),1),IF(LEFT($D96,3)="Mis",INDEX(DB_Misc!$E$11:$E$10000,MATCH($E96,DB_Misc!$C$11:$C$10000,0),1),"Error")))))) -> Error | J96: =IF(LEFT($D96,3)="Roa",INDEX(DB_Roadway!$D$11:$D$10000,MATCH($E96,DB_Roadway!$C$11:$C$10000,0),1),IF(LEFT($D96,3)="Bik",INDEX(DB_Bikeway!$D$11:$D$10000,MATCH($E96,DB_Bikeway!$C$11:$C$10000,0),1),IF(LEFT($D96,3)="Ped",INDEX(DB_Pedestrian!$D$11:$D$10000,MATCH($E96,DB_Pedestrian!$C$11:$C$10000,0),1),IF(LEFT($D96,3)="Sig",INDEX(DB_Sig_Int!$D$11:$D$10000,MATCH($E96,DB_Sig_Int!$C$11:$C$10000,0),1),IF(LEFT($D96,3)="Uns",INDEX(DB_Unsig_Int!$D$11:$D$10000,MATCH($E96,DB_Unsig_Int!$C$11:$C$10000,0),1),IF(LEFT($D96,3)="Mis",INDEX(DB_Misc!$D$11:$D$10000,MATCH($E96,DB_Misc!$C$11:$C$10000,0),1),"Error")))))) -> Error | K96: =IF(OR(C96="",D96=""),"",IF(C96<>C95,SUMIFS($G$11:$G$10000,$C$11:$C$10000,C96,DB_Segment!$D$11:$D$10000,"<>Misc",DB_Segment!$D$11:$D$10000,"<>Sig_Int",DB_Segment!$D$11:$D$10000,"<>Unsig_Int")/COUNTIFS($C$11:$C$10000,C96,DB_Segment!$D$11:$D$10000,"<>Misc",DB_Segment!$D$11:$D$10000,"<>Sig_Int",DB_Segment!$D$11:$D$10000,"<>Unsig_Int",DB_Segment!$D$11:$D$10000,"<>"),"")) -> 
F97: =IF(I97=0,J97,I97) -> Error | H97: =IF(D97="","Error",IF(OR(D97="Roadway",D97="Bikeway_1",D97="Bikeway_2",D97="Pedestrian_1",D97="Pedestrian_2"),F97*G97*5280,F97*G97)) -> Error | I97: =IF(LEFT($D97,3)="Roa",INDEX(DB_Roadway!$E$11:$E$10000,MATCH($E97,DB_Roadway!$C$11:$C$10000,0),1),IF(LEFT($D97,3)="Bik",INDEX(DB_Bikeway!$E$11:$E$10000,MATCH($E97,DB_Bikeway!$C$11:$C$10000,0),1),IF(LEFT($D97,3)="Ped",INDEX(DB_Pedestrian!$E$11:$E$10000,MATCH($E97,DB_Pedestrian!$C$11:$C$10000,0),1),IF(LEFT($D97,3)="Sig",INDEX(DB_Sig_Int!$E$11:$E$10000,MATCH($E97,DB_Sig_Int!$C$11:$C$10000,0),1),IF(LEFT($D97,3)="Uns",INDEX(DB_Unsig_Int!$E$11:$E$10000,MATCH($E97,DB_Unsig_Int!$C$11:$C$10000,0),1),IF(LEFT($D97,3)="Mis",INDEX(DB_Misc!$E$11:$E$10000,MATCH($E97,DB_Misc!$C$11:$C$10000,0),1),"Error")))))) -> Error | J97: =IF(LEFT($D97,3)="Roa",INDEX(DB_Roadway!$D$11:$D$10000,MATCH($E97,DB_Roadway!$C$11:$C$10000,0),1),IF(LEFT($D97,3)="Bik",INDEX(DB_Bikeway!$D$11:$D$10000,MATCH($E97,DB_Bikeway!$C$11:$C$10000,0),1),IF(LEFT($D97,3)="Ped",INDEX(DB_Pedestrian!$D$11:$D$10000,MATCH($E97,DB_Pedestrian!$C$11:$C$10000,0),1),IF(LEFT($D97,3)="Sig",INDEX(DB_Sig_Int!$D$11:$D$10000,MATCH($E97,DB_Sig_Int!$C$11:$C$10000,0),1),IF(LEFT($D97,3)="Uns",INDEX(DB_Unsig_Int!$D$11:$D$10000,MATCH($E97,DB_Unsig_Int!$C$11:$C$10000,0),1),IF(LEFT($D97,3)="Mis",INDEX(DB_Misc!$D$11:$D$10000,MATCH($E97,DB_Misc!$C$11:$C$10000,0),1),"Error")))))) -> Error | K97: =IF(OR(C97="",D97=""),"",IF(C97<>C96,SUMIFS($G$11:$G$10000,$C$11:$C$10000,C97,DB_Segment!$D$11:$D$10000,"<>Misc",DB_Segment!$D$11:$D$10000,"<>Sig_Int",DB_Segment!$D$11:$D$10000,"<>Unsig_Int")/COUNTIFS($C$11:$C$10000,C97,DB_Segment!$D$11:$D$10000,"<>Misc",DB_Segment!$D$11:$D$10000,"<>Sig_Int",DB_Segment!$D$11:$D$10000,"<>Unsig_Int",DB_Segment!$D$11:$D$10000,"<>"),"")) -> 
F98: =IF(I98=0,J98,I98) -> Error | H98: =IF(D98="","Error",IF(OR(D98="Roadway",D98="Bikeway_1",D98="Bikeway_2",D98="Pedestrian_1",D98="Pedestrian_2"),F98*G98*5280,F98*G98)) -> Error | I98: =IF(LEFT($D98,3)="Roa",INDEX(DB_Roadway!$E$11:$E$10000,MATCH($E98,DB_Roadway!$C$11:$C$10000,0),1),IF(LEFT($D98,3)="Bik",INDEX(DB_Bikeway!$E$11:$E$10000,MATCH($E98,DB_Bikeway!$C$11:$C$10000,0),1),IF(LEFT($D98,3)="Ped",INDEX(DB_Pedestrian!$E$11:$E$10000,MATCH($E98,DB_Pedestrian!$C$11:$C$10000,0),1),IF(LEFT($D98,3)="Sig",INDEX(DB_Sig_Int!$E$11:$E$10000,MATCH($E98,DB_Sig_Int!$C$11:$C$10000,0),1),IF(LEFT($D98,3)="Uns",INDEX(DB_Unsig_Int!$E$11:$E$10000,MATCH($E98,DB_Unsig_Int!$C$11:$C$10000,0),1),IF(LEFT($D98,3)="Mis",INDEX(DB_Misc!$E$11:$E$10000,MATCH($E98,DB_Misc!$C$11:$C$10000,0),1),"Error")))))) -> Error | J98: =IF(LEFT($D98,3)="Roa",INDEX(DB_Roadway!$D$11:$D$10000,MATCH($E98,DB_Roadway!$C$11:$C$10000,0),1),IF(LEFT($D98,3)="Bik",INDEX(DB_Bikeway!$D$11:$D$10000,MATCH($E98,DB_Bikeway!$C$11:$C$10000,0),1),IF(LEFT($D98,3)="Ped",INDEX(DB_Pedestrian!$D$11:$D$10000,MATCH($E98,DB_Pedestrian!$C$11:$C$10000,0),1),IF(LEFT($D98,3)="Sig",INDEX(DB_Sig_Int!$D$11:$D$10000,MATCH($E98,DB_Sig_Int!$C$11:$C$10000,0),1),IF(LEFT($D98,3)="Uns",INDEX(DB_Unsig_Int!$D$11:$D$10000,MATCH($E98,DB_Unsig_Int!$C$11:$C$10000,0),1),IF(LEFT($D98,3)="Mis",INDEX(DB_Misc!$D$11:$D$10000,MATCH($E98,DB_Misc!$C$11:$C$10000,0),1),"Error")))))) -> Error | K98: =IF(OR(C98="",D98=""),"",IF(C98<>C97,SUMIFS($G$11:$G$10000,$C$11:$C$10000,C98,DB_Segment!$D$11:$D$10000,"<>Misc",DB_Segment!$D$11:$D$10000,"<>Sig_Int",DB_Segment!$D$11:$D$10000,"<>Unsig_Int")/COUNTIFS($C$11:$C$10000,C98,DB_Segment!$D$11:$D$10000,"<>Misc",DB_Segment!$D$11:$D$10000,"<>Sig_Int",DB_Segment!$D$11:$D$10000,"<>Unsig_Int",DB_Segment!$D$11:$D$10000,"<>"),"")) -> 
F99: =IF(I99=0,J99,I99) -> Error | H99: =IF(D99="","Error",IF(OR(D99="Roadway",D99="Bikeway_1",D99="Bikeway_2",D99="Pedestrian_1",D99="Pedestrian_2"),F99*G99*5280,F99*G99)) -> Error | I99: =IF(LEFT($D99,3)="Roa",INDEX(DB_Roadway!$E$11:$E$10000,MATCH($E99,DB_Roadway!$C$11:$C$10000,0),1),IF(LEFT($D99,3)="Bik",INDEX(DB_Bikeway!$E$11:$E$10000,MATCH($E99,DB_Bikeway!$C$11:$C$10000,0),1),IF(LEFT($D99,3)="Ped",INDEX(DB_Pedestrian!$E$11:$E$10000,MATCH($E99,DB_Pedestrian!$C$11:$C$10000,0),1),IF(LEFT($D99,3)="Sig",INDEX(DB_Sig_Int!$E$11:$E$10000,MATCH($E99,DB_Sig_Int!$C$11:$C$10000,0),1),IF(LEFT($D99,3)="Uns",INDEX(DB_Unsig_Int!$E$11:$E$10000,MATCH($E99,DB_Unsig_Int!$C$11:$C$10000,0),1),IF(LEFT($D99,3)="Mis",INDEX(DB_Misc!$E$11:$E$10000,MATCH($E99,DB_Misc!$C$11:$C$10000,0),1),"Error")))))) -> Error | J99: =IF(LEFT($D99,3)="Roa",INDEX(DB_Roadway!$D$11:$D$10000,MATCH($E99,DB_Roadway!$C$11:$C$10000,0),1),IF(LEFT($D99,3)="Bik",INDEX(DB_Bikeway!$D$11:$D$10000,MATCH($E99,DB_Bikeway!$C$11:$C$10000,0),1),IF(LEFT($D99,3)="Ped",INDEX(DB_Pedestrian!$D$11:$D$10000,MATCH($E99,DB_Pedestrian!$C$11:$C$10000,0),1),IF(LEFT($D99,3)="Sig",INDEX(DB_Sig_Int!$D$11:$D$10000,MATCH($E99,DB_Sig_Int!$C$11:$C$10000,0),1),IF(LEFT($D99,3)="Uns",INDEX(DB_Unsig_Int!$D$11:$D$10000,MATCH($E99,DB_Unsig_Int!$C$11:$C$10000,0),1),IF(LEFT($D99,3)="Mis",INDEX(DB_Misc!$D$11:$D$10000,MATCH($E99,DB_Misc!$C$11:$C$10000,0),1),"Error")))))) -> Error | K99: =IF(OR(C99="",D99=""),"",IF(C99<>C98,SUMIFS($G$11:$G$10000,$C$11:$C$10000,C99,DB_Segment!$D$11:$D$10000,"<>Misc",DB_Segment!$D$11:$D$10000,"<>Sig_Int",DB_Segment!$D$11:$D$10000,"<>Unsig_Int")/COUNTIFS($C$11:$C$10000,C99,DB_Segment!$D$11:$D$10000,"<>Misc",DB_Segment!$D$11:$D$10000,"<>Sig_Int",DB_Segment!$D$11:$D$10000,"<>Unsig_Int",DB_Segment!$D$11:$D$10000,"<>"),"")) -> 
F100: =IF(I100=0,J100,I100) -> Error | H100: =IF(D100="","Error",IF(OR(D100="Roadway",D100="Bikeway_1",D100="Bikeway_2",D100="Pedestrian_1",D100="Pedestrian_2"),F100*G100*5280,F100*G100)) -> Error | I100: =IF(LEFT($D100,3)="Roa",INDEX(DB_Roadway!$E$11:$E$10000,MATCH($E100,DB_Roadway!$C$11:$C$10000,0),1),IF(LEFT($D100,3)="Bik",INDEX(DB_Bikeway!$E$11:$E$10000,MATCH($E100,DB_Bikeway!$C$11:$C$10000,0),1),IF(LEFT($D100,3)="Ped",INDEX(DB_Pedestrian!$E$11:$E$10000,MATCH($E100,DB_Pedestrian!$C$11:$C$10000,0),1),IF(LEFT($D100,3)="Sig",INDEX(DB_Sig_Int!$E$11:$E$10000,MATCH($E100,DB_Sig_Int!$C$11:$C$10000,0),1),IF(LEFT($D100,3)="Uns",INDEX(DB_Unsig_Int!$E$11:$E$10000,MATCH($E100,DB_Unsig_Int!$C$11:$C$10000,0),1),IF(LEFT($D100,3)="Mis",INDEX(DB_Misc!$E$11:$E$10000,MATCH($E100,DB_Misc!$C$11:$C$10000,0),1),"Error")))))) -> Error | J100: =IF(LEFT($D100,3)="Roa",INDEX(DB_Roadway!$D$11:$D$10000,MATCH($E100,DB_Roadway!$C$11:$C$10000,0),1),IF(LEFT($D100,3)="Bik",INDEX(DB_Bikeway!$D$11:$D$10000,MATCH($E100,DB_Bikeway!$C$11:$C$10000,0),1),IF(LEFT($D100,3)="Ped",INDEX(DB_Pedestrian!$D$11:$D$10000,MATCH($E100,DB_Pedestrian!$C$11:$C$10000,0),1),IF(LEFT($D100,3)="Sig",INDEX(DB_Sig_Int!$D$11:$D$10000,MATCH($E100,DB_Sig_Int!$C$11:$C$10000,0),1),IF(LEFT($D100,3)="Uns",INDEX(DB_Unsig_Int!$D$11:$D$10000,MATCH($E100,DB_Unsig_Int!$C$11:$C$10000,0),1),IF(LEFT($D100,3)="Mis",INDEX(DB_Misc!$D$11:$D$10000,MATCH($E100,DB_Misc!$C$11:$C$10000,0),1),"Error")))))) -> Error | K100: =IF(OR(C100="",D100=""),"",IF(C100<>C99,SUMIFS($G$11:$G$10000,$C$11:$C$10000,C100,DB_Segment!$D$11:$D$10000,"<>Misc",DB_Segment!$D$11:$D$10000,"<>Sig_Int",DB_Segment!$D$11:$D$10000,"<>Unsig_Int")/COUNTIFS($C$11:$C$10000,C100,DB_Segment!$D$11:$D$10000,"<>Misc",DB_Segment!$D$11:$D$10000,"<>Sig_Int",DB_Segment!$D$11:$D$10000,"<>Unsig_Int",DB_Segment!$D$11:$D$10000,"<>"),"")) -> 
F101: =IF(I101=0,J101,I101) -> Error | H101: =IF(D101="","Error",IF(OR(D101="Roadway",D101="Bikeway_1",D101="Bikeway_2",D101="Pedestrian_1",D101="Pedestrian_2"),F101*G101*5280,F101*G101)) -> Error | I101: =IF(LEFT($D101,3)="Roa",INDEX(DB_Roadway!$E$11:$E$10000,MATCH($E101,DB_Roadway!$C$11:$C$10000,0),1),IF(LEFT($D101,3)="Bik",INDEX(DB_Bikeway!$E$11:$E$10000,MATCH($E101,DB_Bikeway!$C$11:$C$10000,0),1),IF(LEFT($D101,3)="Ped",INDEX(DB_Pedestrian!$E$11:$E$10000,MATCH($E101,DB_Pedestrian!$C$11:$C$10000,0),1),IF(LEFT($D101,3)="Sig",INDEX(DB_Sig_Int!$E$11:$E$10000,MATCH($E101,DB_Sig_Int!$C$11:$C$10000,0),1),IF(LEFT($D101,3)="Uns",INDEX(DB_Unsig_Int!$E$11:$E$10000,MATCH($E101,DB_Unsig_Int!$C$11:$C$10000,0),1),IF(LEFT($D101,3)="Mis",INDEX(DB_Misc!$E$11:$E$10000,MATCH($E101,DB_Misc!$C$11:$C$10000,0),1),"Error")))))) -> Error | J101: =IF(LEFT($D101,3)="Roa",INDEX(DB_Roadway!$D$11:$D$10000,MATCH($E101,DB_Roadway!$C$11:$C$10000,0),1),IF(LEFT($D101,3)="Bik",INDEX(DB_Bikeway!$D$11:$D$10000,MATCH($E101,DB_Bikeway!$C$11:$C$10000,0),1),IF(LEFT($D101,3)="Ped",INDEX(DB_Pedestrian!$D$11:$D$10000,MATCH($E101,DB_Pedestrian!$C$11:$C$10000,0),1),IF(LEFT($D101,3)="Sig",INDEX(DB_Sig_Int!$D$11:$D$10000,MATCH($E101,DB_Sig_Int!$C$11:$C$10000,0),1),IF(LEFT($D101,3)="Uns",INDEX(DB_Unsig_Int!$D$11:$D$10000,MATCH($E101,DB_Unsig_Int!$C$11:$C$10000,0),1),IF(LEFT($D101,3)="Mis",INDEX(DB_Misc!$D$11:$D$10000,MATCH($E101,DB_Misc!$C$11:$C$10000,0),1),"Error")))))) -> Error | K101: =IF(OR(C101="",D101=""),"",IF(C101<>C100,SUMIFS($G$11:$G$10000,$C$11:$C$10000,C101,DB_Segment!$D$11:$D$10000,"<>Misc",DB_Segment!$D$11:$D$10000,"<>Sig_Int",DB_Segment!$D$11:$D$10000,"<>Unsig_Int")/COUNTIFS($C$11:$C$10000,C101,DB_Segment!$D$11:$D$10000,"<>Misc",DB_Segment!$D$11:$D$10000,"<>Sig_Int",DB_Segment!$D$11:$D$10000,"<>Unsig_Int",DB_Segment!$D$11:$D$10000,"<>"),"")) -> 
F102: =IF(I102=0,J102,I102) -> Error | H102: =IF(D102="","Error",IF(OR(D102="Roadway",D102="Bikeway_1",D102="Bikeway_2",D102="Pedestrian_1",D102="Pedestrian_2"),F102*G102*5280,F102*G102)) -> Error | I102: =IF(LEFT($D102,3)="Roa",INDEX(DB_Roadway!$E$11:$E$10000,MATCH($E102,DB_Roadway!$C$11:$C$10000,0),1),IF(LEFT($D102,3)="Bik",INDEX(DB_Bikeway!$E$11:$E$10000,MATCH($E102,DB_Bikeway!$C$11:$C$10000,0),1),IF(LEFT($D102,3)="Ped",INDEX(DB_Pedestrian!$E$11:$E$10000,MATCH($E102,DB_Pedestrian!$C$11:$C$10000,0),1),IF(LEFT($D102,3)="Sig",INDEX(DB_Sig_Int!$E$11:$E$10000,MATCH($E102,DB_Sig_Int!$C$11:$C$10000,0),1),IF(LEFT($D102,3)="Uns",INDEX(DB_Unsig_Int!$E$11:$E$10000,MATCH($E102,DB_Unsig_Int!$C$11:$C$10000,0),1),IF(LEFT($D102,3)="Mis",INDEX(DB_Misc!$E$11:$E$10000,MATCH($E102,DB_Misc!$C$11:$C$10000,0),1),"Error")))))) -> Error | J102: =IF(LEFT($D102,3)="Roa",INDEX(DB_Roadway!$D$11:$D$10000,MATCH($E102,DB_Roadway!$C$11:$C$10000,0),1),IF(LEFT($D102,3)="Bik",INDEX(DB_Bikeway!$D$11:$D$10000,MATCH($E102,DB_Bikeway!$C$11:$C$10000,0),1),IF(LEFT($D102,3)="Ped",INDEX(DB_Pedestrian!$D$11:$D$10000,MATCH($E102,DB_Pedestrian!$C$11:$C$10000,0),1),IF(LEFT($D102,3)="Sig",INDEX(DB_Sig_Int!$D$11:$D$10000,MATCH($E102,DB_Sig_Int!$C$11:$C$10000,0),1),IF(LEFT($D102,3)="Uns",INDEX(DB_Unsig_Int!$D$11:$D$10000,MATCH($E102,DB_Unsig_Int!$C$11:$C$10000,0),1),IF(LEFT($D102,3)="Mis",INDEX(DB_Misc!$D$11:$D$10000,MATCH($E102,DB_Misc!$C$11:$C$10000,0),1),"Error")))))) -> Error | K102: =IF(OR(C102="",D102=""),"",IF(C102<>C101,SUMIFS($G$11:$G$10000,$C$11:$C$10000,C102,DB_Segment!$D$11:$D$10000,"<>Misc",DB_Segment!$D$11:$D$10000,"<>Sig_Int",DB_Segment!$D$11:$D$10000,"<>Unsig_Int")/COUNTIFS($C$11:$C$10000,C102,DB_Segment!$D$11:$D$10000,"<>Misc",DB_Segment!$D$11:$D$10000,"<>Sig_Int",DB_Segment!$D$11:$D$10000,"<>Unsig_Int",DB_Segment!$D$11:$D$10000,"<>"),"")) -> 
F103: =IF(I103=0,J103,I103) -> Error | H103: =IF(D103="","Error",IF(OR(D103="Roadway",D103="Bikeway_1",D103="Bikeway_2",D103="Pedestrian_1",D103="Pedestrian_2"),F103*G103*5280,F103*G103)) -> Error | I103: =IF(LEFT($D103,3)="Roa",INDEX(DB_Roadway!$E$11:$E$10000,MATCH($E103,DB_Roadway!$C$11:$C$10000,0),1),IF(LEFT($D103,3)="Bik",INDEX(DB_Bikeway!$E$11:$E$10000,MATCH($E103,DB_Bikeway!$C$11:$C$10000,0),1),IF(LEFT($D103,3)="Ped",INDEX(DB_Pedestrian!$E$11:$E$10000,MATCH($E103,DB_Pedestrian!$C$11:$C$10000,0),1),IF(LEFT($D103,3)="Sig",INDEX(DB_Sig_Int!$E$11:$E$10000,MATCH($E103,DB_Sig_Int!$C$11:$C$10000,0),1),IF(LEFT($D103,3)="Uns",INDEX(DB_Unsig_Int!$E$11:$E$10000,MATCH($E103,DB_Unsig_Int!$C$11:$C$10000,0),1),IF(LEFT($D103,3)="Mis",INDEX(DB_Misc!$E$11:$E$10000,MATCH($E103,DB_Misc!$C$11:$C$10000,0),1),"Error")))))) -> Error | J103: =IF(LEFT($D103,3)="Roa",INDEX(DB_Roadway!$D$11:$D$10000,MATCH($E103,DB_Roadway!$C$11:$C$10000,0),1),IF(LEFT($D103,3)="Bik",INDEX(DB_Bikeway!$D$11:$D$10000,MATCH($E103,DB_Bikeway!$C$11:$C$10000,0),1),IF(LEFT($D103,3)="Ped",INDEX(DB_Pedestrian!$D$11:$D$10000,MATCH($E103,DB_Pedestrian!$C$11:$C$10000,0),1),IF(LEFT($D103,3)="Sig",INDEX(DB_Sig_Int!$D$11:$D$10000,MATCH($E103,DB_Sig_Int!$C$11:$C$10000,0),1),IF(LEFT($D103,3)="Uns",INDEX(DB_Unsig_Int!$D$11:$D$10000,MATCH($E103,DB_Unsig_Int!$C$11:$C$10000,0),1),IF(LEFT($D103,3)="Mis",INDEX(DB_Misc!$D$11:$D$10000,MATCH($E103,DB_Misc!$C$11:$C$10000,0),1),"Error")))))) -> Error | K103: =IF(OR(C103="",D103=""),"",IF(C103<>C102,SUMIFS($G$11:$G$10000,$C$11:$C$10000,C103,DB_Segment!$D$11:$D$10000,"<>Misc",DB_Segment!$D$11:$D$10000,"<>Sig_Int",DB_Segment!$D$11:$D$10000,"<>Unsig_Int")/COUNTIFS($C$11:$C$10000,C103,DB_Segment!$D$11:$D$10000,"<>Misc",DB_Segment!$D$11:$D$10000,"<>Sig_Int",DB_Segment!$D$11:$D$10000,"<>Unsig_Int",DB_Segment!$D$11:$D$10000,"<>"),"")) -> 
F104: =IF(I104=0,J104,I104) -> Error | H104: =IF(D104="","Error",IF(OR(D104="Roadway",D104="Bikeway_1",D104="Bikeway_2",D104="Pedestrian_1",D104="Pedestrian_2"),F104*G104*5280,F104*G104)) -> Error | I104: =IF(LEFT($D104,3)="Roa",INDEX(DB_Roadway!$E$11:$E$10000,MATCH($E104,DB_Roadway!$C$11:$C$10000,0),1),IF(LEFT($D104,3)="Bik",INDEX(DB_Bikeway!$E$11:$E$10000,MATCH($E104,DB_Bikeway!$C$11:$C$10000,0),1),IF(LEFT($D104,3)="Ped",INDEX(DB_Pedestrian!$E$11:$E$10000,MATCH($E104,DB_Pedestrian!$C$11:$C$10000,0),1),IF(LEFT($D104,3)="Sig",INDEX(DB_Sig_Int!$E$11:$E$10000,MATCH($E104,DB_Sig_Int!$C$11:$C$10000,0),1),IF(LEFT($D104,3)="Uns",INDEX(DB_Unsig_Int!$E$11:$E$10000,MATCH($E104,DB_Unsig_Int!$C$11:$C$10000,0),1),IF(LEFT($D104,3)="Mis",INDEX(DB_Misc!$E$11:$E$10000,MATCH($E104,DB_Misc!$C$11:$C$10000,0),1),"Error")))))) -> Error | J104: =IF(LEFT($D104,3)="Roa",INDEX(DB_Roadway!$D$11:$D$10000,MATCH($E104,DB_Roadway!$C$11:$C$10000,0),1),IF(LEFT($D104,3)="Bik",INDEX(DB_Bikeway!$D$11:$D$10000,MATCH($E104,DB_Bikeway!$C$11:$C$10000,0),1),IF(LEFT($D104,3)="Ped",INDEX(DB_Pedestrian!$D$11:$D$10000,MATCH($E104,DB_Pedestrian!$C$11:$C$10000,0),1),IF(LEFT($D104,3)="Sig",INDEX(DB_Sig_Int!$D$11:$D$10000,MATCH($E104,DB_Sig_Int!$C$11:$C$10000,0),1),IF(LEFT($D104,3)="Uns",INDEX(DB_Unsig_Int!$D$11:$D$10000,MATCH($E104,DB_Unsig_Int!$C$11:$C$10000,0),1),IF(LEFT($D104,3)="Mis",INDEX(DB_Misc!$D$11:$D$10000,MATCH($E104,DB_Misc!$C$11:$C$10000,0),1),"Error")))))) -> Error | K104: =IF(OR(C104="",D104=""),"",IF(C104<>C103,SUMIFS($G$11:$G$10000,$C$11:$C$10000,C104,DB_Segment!$D$11:$D$10000,"<>Misc",DB_Segment!$D$11:$D$10000,"<>Sig_Int",DB_Segment!$D$11:$D$10000,"<>Unsig_Int")/COUNTIFS($C$11:$C$10000,C104,DB_Segment!$D$11:$D$10000,"<>Misc",DB_Segment!$D$11:$D$10000,"<>Sig_Int",DB_Segment!$D$11:$D$10000,"<>Unsig_Int",DB_Segment!$D$11:$D$10000,"<>"),"")) -> 
F105: =IF(I105=0,J105,I105) -> Error | H105: =IF(D105="","Error",IF(OR(D105="Roadway",D105="Bikeway_1",D105="Bikeway_2",D105="Pedestrian_1",D105="Pedestrian_2"),F105*G105*5280,F105*G105)) -> Error | I105: =IF(LEFT($D105,3)="Roa",INDEX(DB_Roadway!$E$11:$E$10000,MATCH($E105,DB_Roadway!$C$11:$C$10000,0),1),IF(LEFT($D105,3)="Bik",INDEX(DB_Bikeway!$E$11:$E$10000,MATCH($E105,DB_Bikeway!$C$11:$C$10000,0),1),IF(LEFT($D105,3)="Ped",INDEX(DB_Pedestrian!$E$11:$E$10000,MATCH($E105,DB_Pedestrian!$C$11:$C$10000,0),1),IF(LEFT($D105,3)="Sig",INDEX(DB_Sig_Int!$E$11:$E$10000,MATCH($E105,DB_Sig_Int!$C$11:$C$10000,0),1),IF(LEFT($D105,3)="Uns",INDEX(DB_Unsig_Int!$E$11:$E$10000,MATCH($E105,DB_Unsig_Int!$C$11:$C$10000,0),1),IF(LEFT($D105,3)="Mis",INDEX(DB_Misc!$E$11:$E$10000,MATCH($E105,DB_Misc!$C$11:$C$10000,0),1),"Error")))))) -> Error | J105: =IF(LEFT($D105,3)="Roa",INDEX(DB_Roadway!$D$11:$D$10000,MATCH($E105,DB_Roadway!$C$11:$C$10000,0),1),IF(LEFT($D105,3)="Bik",INDEX(DB_Bikeway!$D$11:$D$10000,MATCH($E105,DB_Bikeway!$C$11:$C$10000,0),1),IF(LEFT($D105,3)="Ped",INDEX(DB_Pedestrian!$D$11:$D$10000,MATCH($E105,DB_Pedestrian!$C$11:$C$10000,0),1),IF(LEFT($D105,3)="Sig",INDEX(DB_Sig_Int!$D$11:$D$10000,MATCH($E105,DB_Sig_Int!$C$11:$C$10000,0),1),IF(LEFT($D105,3)="Uns",INDEX(DB_Unsig_Int!$D$11:$D$10000,MATCH($E105,DB_Unsig_Int!$C$11:$C$10000,0),1),IF(LEFT($D105,3)="Mis",INDEX(DB_Misc!$D$11:$D$10000,MATCH($E105,DB_Misc!$C$11:$C$10000,0),1),"Error")))))) -> Error | K105: =IF(OR(C105="",D105=""),"",IF(C105<>C104,SUMIFS($G$11:$G$10000,$C$11:$C$10000,C105,DB_Segment!$D$11:$D$10000,"<>Misc",DB_Segment!$D$11:$D$10000,"<>Sig_Int",DB_Segment!$D$11:$D$10000,"<>Unsig_Int")/COUNTIFS($C$11:$C$10000,C105,DB_Segment!$D$11:$D$10000,"<>Misc",DB_Segment!$D$11:$D$10000,"<>Sig_Int",DB_Segment!$D$11:$D$10000,"<>Unsig_Int",DB_Segment!$D$11:$D$10000,"<>"),"")) -> 
F106: =IF(I106=0,J106,I106) -> Error | H106: =IF(D106="","Error",IF(OR(D106="Roadway",D106="Bikeway_1",D106="Bikeway_2",D106="Pedestrian_1",D106="Pedestrian_2"),F106*G106*5280,F106*G106)) -> Error | I106: =IF(LEFT($D106,3)="Roa",INDEX(DB_Roadway!$E$11:$E$10000,MATCH($E106,DB_Roadway!$C$11:$C$10000,0),1),IF(LEFT($D106,3)="Bik",INDEX(DB_Bikeway!$E$11:$E$10000,MATCH($E106,DB_Bikeway!$C$11:$C$10000,0),1),IF(LEFT($D106,3)="Ped",INDEX(DB_Pedestrian!$E$11:$E$10000,MATCH($E106,DB_Pedestrian!$C$11:$C$10000,0),1),IF(LEFT($D106,3)="Sig",INDEX(DB_Sig_Int!$E$11:$E$10000,MATCH($E106,DB_Sig_Int!$C$11:$C$10000,0),1),IF(LEFT($D106,3)="Uns",INDEX(DB_Unsig_Int!$E$11:$E$10000,MATCH($E106,DB_Unsig_Int!$C$11:$C$10000,0),1),IF(LEFT($D106,3)="Mis",INDEX(DB_Misc!$E$11:$E$10000,MATCH($E106,DB_Misc!$C$11:$C$10000,0),1),"Error")))))) -> Error | J106: =IF(LEFT($D106,3)="Roa",INDEX(DB_Roadway!$D$11:$D$10000,MATCH($E106,DB_Roadway!$C$11:$C$10000,0),1),IF(LEFT($D106,3)="Bik",INDEX(DB_Bikeway!$D$11:$D$10000,MATCH($E106,DB_Bikeway!$C$11:$C$10000,0),1),IF(LEFT($D106,3)="Ped",INDEX(DB_Pedestrian!$D$11:$D$10000,MATCH($E106,DB_Pedestrian!$C$11:$C$10000,0),1),IF(LEFT($D106,3)="Sig",INDEX(DB_Sig_Int!$D$11:$D$10000,MATCH($E106,DB_Sig_Int!$C$11:$C$10000,0),1),IF(LEFT($D106,3)="Uns",INDEX(DB_Unsig_Int!$D$11:$D$10000,MATCH($E106,DB_Unsig_Int!$C$11:$C$10000,0),1),IF(LEFT($D106,3)="Mis",INDEX(DB_Misc!$D$11:$D$10000,MATCH($E106,DB_Misc!$C$11:$C$10000,0),1),"Error")))))) -> Error | K106: =IF(OR(C106="",D106=""),"",IF(C106<>C105,SUMIFS($G$11:$G$10000,$C$11:$C$10000,C106,DB_Segment!$D$11:$D$10000,"<>Misc",DB_Segment!$D$11:$D$10000,"<>Sig_Int",DB_Segment!$D$11:$D$10000,"<>Unsig_Int")/COUNTIFS($C$11:$C$10000,C106,DB_Segment!$D$11:$D$10000,"<>Misc",DB_Segment!$D$11:$D$10000,"<>Sig_Int",DB_Segment!$D$11:$D$10000,"<>Unsig_Int",DB_Segment!$D$11:$D$10000,"<>"),"")) -> 
F107: =IF(I107=0,J107,I107) -> Error | H107: =IF(D107="","Error",IF(OR(D107="Roadway",D107="Bikeway_1",D107="Bikeway_2",D107="Pedestrian_1",D107="Pedestrian_2"),F107*G107*5280,F107*G107)) -> Error | I107: =IF(LEFT($D107,3)="Roa",INDEX(DB_Roadway!$E$11:$E$10000,MATCH($E107,DB_Roadway!$C$11:$C$10000,0),1),IF(LEFT($D107,3)="Bik",INDEX(DB_Bikeway!$E$11:$E$10000,MATCH($E107,DB_Bikeway!$C$11:$C$10000,0),1),IF(LEFT($D107,3)="Ped",INDEX(DB_Pedestrian!$E$11:$E$10000,MATCH($E107,DB_Pedestrian!$C$11:$C$10000,0),1),IF(LEFT($D107,3)="Sig",INDEX(DB_Sig_Int!$E$11:$E$10000,MATCH($E107,DB_Sig_Int!$C$11:$C$10000,0),1),IF(LEFT($D107,3)="Uns",INDEX(DB_Unsig_Int!$E$11:$E$10000,MATCH($E107,DB_Unsig_Int!$C$11:$C$10000,0),1),IF(LEFT($D107,3)="Mis",INDEX(DB_Misc!$E$11:$E$10000,MATCH($E107,DB_Misc!$C$11:$C$10000,0),1),"Error")))))) -> Error | J107: =IF(LEFT($D107,3)="Roa",INDEX(DB_Roadway!$D$11:$D$10000,MATCH($E107,DB_Roadway!$C$11:$C$10000,0),1),IF(LEFT($D107,3)="Bik",INDEX(DB_Bikeway!$D$11:$D$10000,MATCH($E107,DB_Bikeway!$C$11:$C$10000,0),1),IF(LEFT($D107,3)="Ped",INDEX(DB_Pedestrian!$D$11:$D$10000,MATCH($E107,DB_Pedestrian!$C$11:$C$10000,0),1),IF(LEFT($D107,3)="Sig",INDEX(DB_Sig_Int!$D$11:$D$10000,MATCH($E107,DB_Sig_Int!$C$11:$C$10000,0),1),IF(LEFT($D107,3)="Uns",INDEX(DB_Unsig_Int!$D$11:$D$10000,MATCH($E107,DB_Unsig_Int!$C$11:$C$10000,0),1),IF(LEFT($D107,3)="Mis",INDEX(DB_Misc!$D$11:$D$10000,MATCH($E107,DB_Misc!$C$11:$C$10000,0),1),"Error")))))) -> Error | K107: =IF(OR(C107="",D107=""),"",IF(C107<>C106,SUMIFS($G$11:$G$10000,$C$11:$C$10000,C107,DB_Segment!$D$11:$D$10000,"<>Misc",DB_Segment!$D$11:$D$10000,"<>Sig_Int",DB_Segment!$D$11:$D$10000,"<>Unsig_Int")/COUNTIFS($C$11:$C$10000,C107,DB_Segment!$D$11:$D$10000,"<>Misc",DB_Segment!$D$11:$D$10000,"<>Sig_Int",DB_Segment!$D$11:$D$10000,"<>Unsig_Int",DB_Segment!$D$11:$D$10000,"<>"),"")) -> 
F108: =IF(I108=0,J108,I108) -> Error | H108: =IF(D108="","Error",IF(OR(D108="Roadway",D108="Bikeway_1",D108="Bikeway_2",D108="Pedestrian_1",D108="Pedestrian_2"),F108*G108*5280,F108*G108)) -> Error | I108: =IF(LEFT($D108,3)="Roa",INDEX(DB_Roadway!$E$11:$E$10000,MATCH($E108,DB_Roadway!$C$11:$C$10000,0),1),IF(LEFT($D108,3)="Bik",INDEX(DB_Bikeway!$E$11:$E$10000,MATCH($E108,DB_Bikeway!$C$11:$C$10000,0),1),IF(LEFT($D108,3)="Ped",INDEX(DB_Pedestrian!$E$11:$E$10000,MATCH($E108,DB_Pedestrian!$C$11:$C$10000,0),1),IF(LEFT($D108,3)="Sig",INDEX(DB_Sig_Int!$E$11:$E$10000,MATCH($E108,DB_Sig_Int!$C$11:$C$10000,0),1),IF(LEFT($D108,3)="Uns",INDEX(DB_Unsig_Int!$E$11:$E$10000,MATCH($E108,DB_Unsig_Int!$C$11:$C$10000,0),1),IF(LEFT($D108,3)="Mis",INDEX(DB_Misc!$E$11:$E$10000,MATCH($E108,DB_Misc!$C$11:$C$10000,0),1),"Error")))))) -> Error | J108: =IF(LEFT($D108,3)="Roa",INDEX(DB_Roadway!$D$11:$D$10000,MATCH($E108,DB_Roadway!$C$11:$C$10000,0),1),IF(LEFT($D108,3)="Bik",INDEX(DB_Bikeway!$D$11:$D$10000,MATCH($E108,DB_Bikeway!$C$11:$C$10000,0),1),IF(LEFT($D108,3)="Ped",INDEX(DB_Pedestrian!$D$11:$D$10000,MATCH($E108,DB_Pedestrian!$C$11:$C$10000,0),1),IF(LEFT($D108,3)="Sig",INDEX(DB_Sig_Int!$D$11:$D$10000,MATCH($E108,DB_Sig_Int!$C$11:$C$10000,0),1),IF(LEFT($D108,3)="Uns",INDEX(DB_Unsig_Int!$D$11:$D$10000,MATCH($E108,DB_Unsig_Int!$C$11:$C$10000,0),1),IF(LEFT($D108,3)="Mis",INDEX(DB_Misc!$D$11:$D$10000,MATCH($E108,DB_Misc!$C$11:$C$10000,0),1),"Error")))))) -> Error | K108: =IF(OR(C108="",D108=""),"",IF(C108<>C107,SUMIFS($G$11:$G$10000,$C$11:$C$10000,C108,DB_Segment!$D$11:$D$10000,"<>Misc",DB_Segment!$D$11:$D$10000,"<>Sig_Int",DB_Segment!$D$11:$D$10000,"<>Unsig_Int")/COUNTIFS($C$11:$C$10000,C108,DB_Segment!$D$11:$D$10000,"<>Misc",DB_Segment!$D$11:$D$10000,"<>Sig_Int",DB_Segment!$D$11:$D$10000,"<>Unsig_Int",DB_Segment!$D$11:$D$10000,"<>"),"")) -> 
F109: =IF(I109=0,J109,I109) -> Error | H109: =IF(D109="","Error",IF(OR(D109="Roadway",D109="Bikeway_1",D109="Bikeway_2",D109="Pedestrian_1",D109="Pedestrian_2"),F109*G109*5280,F109*G109)) -> Error | I109: =IF(LEFT($D109,3)="Roa",INDEX(DB_Roadway!$E$11:$E$10000,MATCH($E109,DB_Roadway!$C$11:$C$10000,0),1),IF(LEFT($D109,3)="Bik",INDEX(DB_Bikeway!$E$11:$E$10000,MATCH($E109,DB_Bikeway!$C$11:$C$10000,0),1),IF(LEFT($D109,3)="Ped",INDEX(DB_Pedestrian!$E$11:$E$10000,MATCH($E109,DB_Pedestrian!$C$11:$C$10000,0),1),IF(LEFT($D109,3)="Sig",INDEX(DB_Sig_Int!$E$11:$E$10000,MATCH($E109,DB_Sig_Int!$C$11:$C$10000,0),1),IF(LEFT($D109,3)="Uns",INDEX(DB_Unsig_Int!$E$11:$E$10000,MATCH($E109,DB_Unsig_Int!$C$11:$C$10000,0),1),IF(LEFT($D109,3)="Mis",INDEX(DB_Misc!$E$11:$E$10000,MATCH($E109,DB_Misc!$C$11:$C$10000,0),1),"Error")))))) -> Error | J109: =IF(LEFT($D109,3)="Roa",INDEX(DB_Roadway!$D$11:$D$10000,MATCH($E109,DB_Roadway!$C$11:$C$10000,0),1),IF(LEFT($D109,3)="Bik",INDEX(DB_Bikeway!$D$11:$D$10000,MATCH($E109,DB_Bikeway!$C$11:$C$10000,0),1),IF(LEFT($D109,3)="Ped",INDEX(DB_Pedestrian!$D$11:$D$10000,MATCH($E109,DB_Pedestrian!$C$11:$C$10000,0),1),IF(LEFT($D109,3)="Sig",INDEX(DB_Sig_Int!$D$11:$D$10000,MATCH($E109,DB_Sig_Int!$C$11:$C$10000,0),1),IF(LEFT($D109,3)="Uns",INDEX(DB_Unsig_Int!$D$11:$D$10000,MATCH($E109,DB_Unsig_Int!$C$11:$C$10000,0),1),IF(LEFT($D109,3)="Mis",INDEX(DB_Misc!$D$11:$D$10000,MATCH($E109,DB_Misc!$C$11:$C$10000,0),1),"Error")))))) -> Error | K109: =IF(OR(C109="",D109=""),"",IF(C109<>C108,SUMIFS($G$11:$G$10000,$C$11:$C$10000,C109,DB_Segment!$D$11:$D$10000,"<>Misc",DB_Segment!$D$11:$D$10000,"<>Sig_Int",DB_Segment!$D$11:$D$10000,"<>Unsig_Int")/COUNTIFS($C$11:$C$10000,C109,DB_Segment!$D$11:$D$10000,"<>Misc",DB_Segment!$D$11:$D$10000,"<>Sig_Int",DB_Segment!$D$11:$D$10000,"<>Unsig_Int",DB_Segment!$D$11:$D$10000,"<>"),"")) -> 
F110: =IF(I110=0,J110,I110) -> Error | H110: =IF(D110="","Error",IF(OR(D110="Roadway",D110="Bikeway_1",D110="Bikeway_2",D110="Pedestrian_1",D110="Pedestrian_2"),F110*G110*5280,F110*G110)) -> Error | I110: =IF(LEFT($D110,3)="Roa",INDEX(DB_Roadway!$E$11:$E$10000,MATCH($E110,DB_Roadway!$C$11:$C$10000,0),1),IF(LEFT($D110,3)="Bik",INDEX(DB_Bikeway!$E$11:$E$10000,MATCH($E110,DB_Bikeway!$C$11:$C$10000,0),1),IF(LEFT($D110,3)="Ped",INDEX(DB_Pedestrian!$E$11:$E$10000,MATCH($E110,DB_Pedestrian!$C$11:$C$10000,0),1),IF(LEFT($D110,3)="Sig",INDEX(DB_Sig_Int!$E$11:$E$10000,MATCH($E110,DB_Sig_Int!$C$11:$C$10000,0),1),IF(LEFT($D110,3)="Uns",INDEX(DB_Unsig_Int!$E$11:$E$10000,MATCH($E110,DB_Unsig_Int!$C$11:$C$10000,0),1),IF(LEFT($D110,3)="Mis",INDEX(DB_Misc!$E$11:$E$10000,MATCH($E110,DB_Misc!$C$11:$C$10000,0),1),"Error")))))) -> Error | J110: =IF(LEFT($D110,3)="Roa",INDEX(DB_Roadway!$D$11:$D$10000,MATCH($E110,DB_Roadway!$C$11:$C$10000,0),1),IF(LEFT($D110,3)="Bik",INDEX(DB_Bikeway!$D$11:$D$10000,MATCH($E110,DB_Bikeway!$C$11:$C$10000,0),1),IF(LEFT($D110,3)="Ped",INDEX(DB_Pedestrian!$D$11:$D$10000,MATCH($E110,DB_Pedestrian!$C$11:$C$10000,0),1),IF(LEFT($D110,3)="Sig",INDEX(DB_Sig_Int!$D$11:$D$10000,MATCH($E110,DB_Sig_Int!$C$11:$C$10000,0),1),IF(LEFT($D110,3)="Uns",INDEX(DB_Unsig_Int!$D$11:$D$10000,MATCH($E110,DB_Unsig_Int!$C$11:$C$10000,0),1),IF(LEFT($D110,3)="Mis",INDEX(DB_Misc!$D$11:$D$10000,MATCH($E110,DB_Misc!$C$11:$C$10000,0),1),"Error")))))) -> Error | K110: =IF(OR(C110="",D110=""),"",IF(C110<>C109,SUMIFS($G$11:$G$10000,$C$11:$C$10000,C110,DB_Segment!$D$11:$D$10000,"<>Misc",DB_Segment!$D$11:$D$10000,"<>Sig_Int",DB_Segment!$D$11:$D$10000,"<>Unsig_Int")/COUNTIFS($C$11:$C$10000,C110,DB_Segment!$D$11:$D$10000,"<>Misc",DB_Segment!$D$11:$D$10000,"<>Sig_Int",DB_Segment!$D$11:$D$10000,"<>Unsig_Int",DB_Segment!$D$11:$D$10000,"<>"),"")) -> 
F111: =IF(I111=0,J111,I111) -> Error | H111: =IF(D111="","Error",IF(OR(D111="Roadway",D111="Bikeway_1",D111="Bikeway_2",D111="Pedestrian_1",D111="Pedestrian_2"),F111*G111*5280,F111*G111)) -> Error | I111: =IF(LEFT($D111,3)="Roa",INDEX(DB_Roadway!$E$11:$E$10000,MATCH($E111,DB_Roadway!$C$11:$C$10000,0),1),IF(LEFT($D111,3)="Bik",INDEX(DB_Bikeway!$E$11:$E$10000,MATCH($E111,DB_Bikeway!$C$11:$C$10000,0),1),IF(LEFT($D111,3)="Ped",INDEX(DB_Pedestrian!$E$11:$E$10000,MATCH($E111,DB_Pedestrian!$C$11:$C$10000,0),1),IF(LEFT($D111,3)="Sig",INDEX(DB_Sig_Int!$E$11:$E$10000,MATCH($E111,DB_Sig_Int!$C$11:$C$10000,0),1),IF(LEFT($D111,3)="Uns",INDEX(DB_Unsig_Int!$E$11:$E$10000,MATCH($E111,DB_Unsig_Int!$C$11:$C$10000,0),1),IF(LEFT($D111,3)="Mis",INDEX(DB_Misc!$E$11:$E$10000,MATCH($E111,DB_Misc!$C$11:$C$10000,0),1),"Error")))))) -> Error | J111: =IF(LEFT($D111,3)="Roa",INDEX(DB_Roadway!$D$11:$D$10000,MATCH($E111,DB_Roadway!$C$11:$C$10000,0),1),IF(LEFT($D111,3)="Bik",INDEX(DB_Bikeway!$D$11:$D$10000,MATCH($E111,DB_Bikeway!$C$11:$C$10000,0),1),IF(LEFT($D111,3)="Ped",INDEX(DB_Pedestrian!$D$11:$D$10000,MATCH($E111,DB_Pedestrian!$C$11:$C$10000,0),1),IF(LEFT($D111,3)="Sig",INDEX(DB_Sig_Int!$D$11:$D$10000,MATCH($E111,DB_Sig_Int!$C$11:$C$10000,0),1),IF(LEFT($D111,3)="Uns",INDEX(DB_Unsig_Int!$D$11:$D$10000,MATCH($E111,DB_Unsig_Int!$C$11:$C$10000,0),1),IF(LEFT($D111,3)="Mis",INDEX(DB_Misc!$D$11:$D$10000,MATCH($E111,DB_Misc!$C$11:$C$10000,0),1),"Error")))))) -> Error | K111: =IF(OR(C111="",D111=""),"",IF(C111<>C110,SUMIFS($G$11:$G$10000,$C$11:$C$10000,C111,DB_Segment!$D$11:$D$10000,"<>Misc",DB_Segment!$D$11:$D$10000,"<>Sig_Int",DB_Segment!$D$11:$D$10000,"<>Unsig_Int")/COUNTIFS($C$11:$C$10000,C111,DB_Segment!$D$11:$D$10000,"<>Misc",DB_Segment!$D$11:$D$10000,"<>Sig_Int",DB_Segment!$D$11:$D$10000,"<>Unsig_Int",DB_Segment!$D$11:$D$10000,"<>"),"")) -> 
F112: =IF(I112=0,J112,I112) -> Error | H112: =IF(D112="","Error",IF(OR(D112="Roadway",D112="Bikeway_1",D112="Bikeway_2",D112="Pedestrian_1",D112="Pedestrian_2"),F112*G112*5280,F112*G112)) -> Error | I112: =IF(LEFT($D112,3)="Roa",INDEX(DB_Roadway!$E$11:$E$10000,MATCH($E112,DB_Roadway!$C$11:$C$10000,0),1),IF(LEFT($D112,3)="Bik",INDEX(DB_Bikeway!$E$11:$E$10000,MATCH($E112,DB_Bikeway!$C$11:$C$10000,0),1),IF(LEFT($D112,3)="Ped",INDEX(DB_Pedestrian!$E$11:$E$10000,MATCH($E112,DB_Pedestrian!$C$11:$C$10000,0),1),IF(LEFT($D112,3)="Sig",INDEX(DB_Sig_Int!$E$11:$E$10000,MATCH($E112,DB_Sig_Int!$C$11:$C$10000,0),1),IF(LEFT($D112,3)="Uns",INDEX(DB_Unsig_Int!$E$11:$E$10000,MATCH($E112,DB_Unsig_Int!$C$11:$C$10000,0),1),IF(LEFT($D112,3)="Mis",INDEX(DB_Misc!$E$11:$E$10000,MATCH($E112,DB_Misc!$C$11:$C$10000,0),1),"Error")))))) -> Error | J112: =IF(LEFT($D112,3)="Roa",INDEX(DB_Roadway!$D$11:$D$10000,MATCH($E112,DB_Roadway!$C$11:$C$10000,0),1),IF(LEFT($D112,3)="Bik",INDEX(DB_Bikeway!$D$11:$D$10000,MATCH($E112,DB_Bikeway!$C$11:$C$10000,0),1),IF(LEFT($D112,3)="Ped",INDEX(DB_Pedestrian!$D$11:$D$10000,MATCH($E112,DB_Pedestrian!$C$11:$C$10000,0),1),IF(LEFT($D112,3)="Sig",INDEX(DB_Sig_Int!$D$11:$D$10000,MATCH($E112,DB_Sig_Int!$C$11:$C$10000,0),1),IF(LEFT($D112,3)="Uns",INDEX(DB_Unsig_Int!$D$11:$D$10000,MATCH($E112,DB_Unsig_Int!$C$11:$C$10000,0),1),IF(LEFT($D112,3)="Mis",INDEX(DB_Misc!$D$11:$D$10000,MATCH($E112,DB_Misc!$C$11:$C$10000,0),1),"Error")))))) -> Error | K112: =IF(OR(C112="",D112=""),"",IF(C112<>C111,SUMIFS($G$11:$G$10000,$C$11:$C$10000,C112,DB_Segment!$D$11:$D$10000,"<>Misc",DB_Segment!$D$11:$D$10000,"<>Sig_Int",DB_Segment!$D$11:$D$10000,"<>Unsig_Int")/COUNTIFS($C$11:$C$10000,C112,DB_Segment!$D$11:$D$10000,"<>Misc",DB_Segment!$D$11:$D$10000,"<>Sig_Int",DB_Segment!$D$11:$D$10000,"<>Unsig_Int",DB_Segment!$D$11:$D$10000,"<>"),"")) -> 
F113: =IF(I113=0,J113,I113) -> Error | H113: =IF(D113="","Error",IF(OR(D113="Roadway",D113="Bikeway_1",D113="Bikeway_2",D113="Pedestrian_1",D113="Pedestrian_2"),F113*G113*5280,F113*G113)) -> Error | I113: =IF(LEFT($D113,3)="Roa",INDEX(DB_Roadway!$E$11:$E$10000,MATCH($E113,DB_Roadway!$C$11:$C$10000,0),1),IF(LEFT($D113,3)="Bik",INDEX(DB_Bikeway!$E$11:$E$10000,MATCH($E113,DB_Bikeway!$C$11:$C$10000,0),1),IF(LEFT($D113,3)="Ped",INDEX(DB_Pedestrian!$E$11:$E$10000,MATCH($E113,DB_Pedestrian!$C$11:$C$10000,0),1),IF(LEFT($D113,3)="Sig",INDEX(DB_Sig_Int!$E$11:$E$10000,MATCH($E113,DB_Sig_Int!$C$11:$C$10000,0),1),IF(LEFT($D113,3)="Uns",INDEX(DB_Unsig_Int!$E$11:$E$10000,MATCH($E113,DB_Unsig_Int!$C$11:$C$10000,0),1),IF(LEFT($D113,3)="Mis",INDEX(DB_Misc!$E$11:$E$10000,MATCH($E113,DB_Misc!$C$11:$C$10000,0),1),"Error")))))) -> Error | J113: =IF(LEFT($D113,3)="Roa",INDEX(DB_Roadway!$D$11:$D$10000,MATCH($E113,DB_Roadway!$C$11:$C$10000,0),1),IF(LEFT($D113,3)="Bik",INDEX(DB_Bikeway!$D$11:$D$10000,MATCH($E113,DB_Bikeway!$C$11:$C$10000,0),1),IF(LEFT($D113,3)="Ped",INDEX(DB_Pedestrian!$D$11:$D$10000,MATCH($E113,DB_Pedestrian!$C$11:$C$10000,0),1),IF(LEFT($D113,3)="Sig",INDEX(DB_Sig_Int!$D$11:$D$10000,MATCH($E113,DB_Sig_Int!$C$11:$C$10000,0),1),IF(LEFT($D113,3)="Uns",INDEX(DB_Unsig_Int!$D$11:$D$10000,MATCH($E113,DB_Unsig_Int!$C$11:$C$10000,0),1),IF(LEFT($D113,3)="Mis",INDEX(DB_Misc!$D$11:$D$10000,MATCH($E113,DB_Misc!$C$11:$C$10000,0),1),"Error")))))) -> Error | K113: =IF(OR(C113="",D113=""),"",IF(C113<>C112,SUMIFS($G$11:$G$10000,$C$11:$C$10000,C113,DB_Segment!$D$11:$D$10000,"<>Misc",DB_Segment!$D$11:$D$10000,"<>Sig_Int",DB_Segment!$D$11:$D$10000,"<>Unsig_Int")/COUNTIFS($C$11:$C$10000,C113,DB_Segment!$D$11:$D$10000,"<>Misc",DB_Segment!$D$11:$D$10000,"<>Sig_Int",DB_Segment!$D$11:$D$10000,"<>Unsig_Int",DB_Segment!$D$11:$D$10000,"<>"),"")) -> 
F114: =IF(I114=0,J114,I114) -> Error | H114: =IF(D114="","Error",IF(OR(D114="Roadway",D114="Bikeway_1",D114="Bikeway_2",D114="Pedestrian_1",D114="Pedestrian_2"),F114*G114*5280,F114*G114)) -> Error | I114: =IF(LEFT($D114,3)="Roa",INDEX(DB_Roadway!$E$11:$E$10000,MATCH($E114,DB_Roadway!$C$11:$C$10000,0),1),IF(LEFT($D114,3)="Bik",INDEX(DB_Bikeway!$E$11:$E$10000,MATCH($E114,DB_Bikeway!$C$11:$C$10000,0),1),IF(LEFT($D114,3)="Ped",INDEX(DB_Pedestrian!$E$11:$E$10000,MATCH($E114,DB_Pedestrian!$C$11:$C$10000,0),1),IF(LEFT($D114,3)="Sig",INDEX(DB_Sig_Int!$E$11:$E$10000,MATCH($E114,DB_Sig_Int!$C$11:$C$10000,0),1),IF(LEFT($D114,3)="Uns",INDEX(DB_Unsig_Int!$E$11:$E$10000,MATCH($E114,DB_Unsig_Int!$C$11:$C$10000,0),1),IF(LEFT($D114,3)="Mis",INDEX(DB_Misc!$E$11:$E$10000,MATCH($E114,DB_Misc!$C$11:$C$10000,0),1),"Error")))))) -> Error | J114: =IF(LEFT($D114,3)="Roa",INDEX(DB_Roadway!$D$11:$D$10000,MATCH($E114,DB_Roadway!$C$11:$C$10000,0),1),IF(LEFT($D114,3)="Bik",INDEX(DB_Bikeway!$D$11:$D$10000,MATCH($E114,DB_Bikeway!$C$11:$C$10000,0),1),IF(LEFT($D114,3)="Ped",INDEX(DB_Pedestrian!$D$11:$D$10000,MATCH($E114,DB_Pedestrian!$C$11:$C$10000,0),1),IF(LEFT($D114,3)="Sig",INDEX(DB_Sig_Int!$D$11:$D$10000,MATCH($E114,DB_Sig_Int!$C$11:$C$10000,0),1),IF(LEFT($D114,3)="Uns",INDEX(DB_Unsig_Int!$D$11:$D$10000,MATCH($E114,DB_Unsig_Int!$C$11:$C$10000,0),1),IF(LEFT($D114,3)="Mis",INDEX(DB_Misc!$D$11:$D$10000,MATCH($E114,DB_Misc!$C$11:$C$10000,0),1),"Error")))))) -> Error | K114: =IF(OR(C114="",D114=""),"",IF(C114<>C113,SUMIFS($G$11:$G$10000,$C$11:$C$10000,C114,DB_Segment!$D$11:$D$10000,"<>Misc",DB_Segment!$D$11:$D$10000,"<>Sig_Int",DB_Segment!$D$11:$D$10000,"<>Unsig_Int")/COUNTIFS($C$11:$C$10000,C114,DB_Segment!$D$11:$D$10000,"<>Misc",DB_Segment!$D$11:$D$10000,"<>Sig_Int",DB_Segment!$D$11:$D$10000,"<>Unsig_Int",DB_Segment!$D$11:$D$10000,"<>"),"")) -> 
F115: =IF(I115=0,J115,I115) -> Error | H115: =IF(D115="","Error",IF(OR(D115="Roadway",D115="Bikeway_1",D115="Bikeway_2",D115="Pedestrian_1",D115="Pedestrian_2"),F115*G115*5280,F115*G115)) -> Error | I115: =IF(LEFT($D115,3)="Roa",INDEX(DB_Roadway!$E$11:$E$10000,MATCH($E115,DB_Roadway!$C$11:$C$10000,0),1),IF(LEFT($D115,3)="Bik",INDEX(DB_Bikeway!$E$11:$E$10000,MATCH($E115,DB_Bikeway!$C$11:$C$10000,0),1),IF(LEFT($D115,3)="Ped",INDEX(DB_Pedestrian!$E$11:$E$10000,MATCH($E115,DB_Pedestrian!$C$11:$C$10000,0),1),IF(LEFT($D115,3)="Sig",INDEX(DB_Sig_Int!$E$11:$E$10000,MATCH($E115,DB_Sig_Int!$C$11:$C$10000,0),1),IF(LEFT($D115,3)="Uns",INDEX(DB_Unsig_Int!$E$11:$E$10000,MATCH($E115,DB_Unsig_Int!$C$11:$C$10000,0),1),IF(LEFT($D115,3)="Mis",INDEX(DB_Misc!$E$11:$E$10000,MATCH($E115,DB_Misc!$C$11:$C$10000,0),1),"Error")))))) -> Error | J115: =IF(LEFT($D115,3)="Roa",INDEX(DB_Roadway!$D$11:$D$10000,MATCH($E115,DB_Roadway!$C$11:$C$10000,0),1),IF(LEFT($D115,3)="Bik",INDEX(DB_Bikeway!$D$11:$D$10000,MATCH($E115,DB_Bikeway!$C$11:$C$10000,0),1),IF(LEFT($D115,3)="Ped",INDEX(DB_Pedestrian!$D$11:$D$10000,MATCH($E115,DB_Pedestrian!$C$11:$C$10000,0),1),IF(LEFT($D115,3)="Sig",INDEX(DB_Sig_Int!$D$11:$D$10000,MATCH($E115,DB_Sig_Int!$C$11:$C$10000,0),1),IF(LEFT($D115,3)="Uns",INDEX(DB_Unsig_Int!$D$11:$D$10000,MATCH($E115,DB_Unsig_Int!$C$11:$C$10000,0),1),IF(LEFT($D115,3)="Mis",INDEX(DB_Misc!$D$11:$D$10000,MATCH($E115,DB_Misc!$C$11:$C$10000,0),1),"Error")))))) -> Error | K115: =IF(OR(C115="",D115=""),"",IF(C115<>C114,SUMIFS($G$11:$G$10000,$C$11:$C$10000,C115,DB_Segment!$D$11:$D$10000,"<>Misc",DB_Segment!$D$11:$D$10000,"<>Sig_Int",DB_Segment!$D$11:$D$10000,"<>Unsig_Int")/COUNTIFS($C$11:$C$10000,C115,DB_Segment!$D$11:$D$10000,"<>Misc",DB_Segment!$D$11:$D$10000,"<>Sig_Int",DB_Segment!$D$11:$D$10000,"<>Unsig_Int",DB_Segment!$D$11:$D$10000,"<>"),"")) -> 
F116: =IF(I116=0,J116,I116) -> Error | H116: =IF(D116="","Error",IF(OR(D116="Roadway",D116="Bikeway_1",D116="Bikeway_2",D116="Pedestrian_1",D116="Pedestrian_2"),F116*G116*5280,F116*G116)) -> Error | I116: =IF(LEFT($D116,3)="Roa",INDEX(DB_Roadway!$E$11:$E$10000,MATCH($E116,DB_Roadway!$C$11:$C$10000,0),1),IF(LEFT($D116,3)="Bik",INDEX(DB_Bikeway!$E$11:$E$10000,MATCH($E116,DB_Bikeway!$C$11:$C$10000,0),1),IF(LEFT($D116,3)="Ped",INDEX(DB_Pedestrian!$E$11:$E$10000,MATCH($E116,DB_Pedestrian!$C$11:$C$10000,0),1),IF(LEFT($D116,3)="Sig",INDEX(DB_Sig_Int!$E$11:$E$10000,MATCH($E116,DB_Sig_Int!$C$11:$C$10000,0),1),IF(LEFT($D116,3)="Uns",INDEX(DB_Unsig_Int!$E$11:$E$10000,MATCH($E116,DB_Unsig_Int!$C$11:$C$10000,0),1),IF(LEFT($D116,3)="Mis",INDEX(DB_Misc!$E$11:$E$10000,MATCH($E116,DB_Misc!$C$11:$C$10000,0),1),"Error")))))) -> Error | J116: =IF(LEFT($D116,3)="Roa",INDEX(DB_Roadway!$D$11:$D$10000,MATCH($E116,DB_Roadway!$C$11:$C$10000,0),1),IF(LEFT($D116,3)="Bik",INDEX(DB_Bikeway!$D$11:$D$10000,MATCH($E116,DB_Bikeway!$C$11:$C$10000,0),1),IF(LEFT($D116,3)="Ped",INDEX(DB_Pedestrian!$D$11:$D$10000,MATCH($E116,DB_Pedestrian!$C$11:$C$10000,0),1),IF(LEFT($D116,3)="Sig",INDEX(DB_Sig_Int!$D$11:$D$10000,MATCH($E116,DB_Sig_Int!$C$11:$C$10000,0),1),IF(LEFT($D116,3)="Uns",INDEX(DB_Unsig_Int!$D$11:$D$10000,MATCH($E116,DB_Unsig_Int!$C$11:$C$10000,0),1),IF(LEFT($D116,3)="Mis",INDEX(DB_Misc!$D$11:$D$10000,MATCH($E116,DB_Misc!$C$11:$C$10000,0),1),"Error")))))) -> Error | K116: =IF(OR(C116="",D116=""),"",IF(C116<>C115,SUMIFS($G$11:$G$10000,$C$11:$C$10000,C116,DB_Segment!$D$11:$D$10000,"<>Misc",DB_Segment!$D$11:$D$10000,"<>Sig_Int",DB_Segment!$D$11:$D$10000,"<>Unsig_Int")/COUNTIFS($C$11:$C$10000,C116,DB_Segment!$D$11:$D$10000,"<>Misc",DB_Segment!$D$11:$D$10000,"<>Sig_Int",DB_Segment!$D$11:$D$10000,"<>Unsig_Int",DB_Segment!$D$11:$D$10000,"<>"),"")) -> 
F117: =IF(I117=0,J117,I117) -> Error | H117: =IF(D117="","Error",IF(OR(D117="Roadway",D117="Bikeway_1",D117="Bikeway_2",D117="Pedestrian_1",D117="Pedestrian_2"),F117*G117*5280,F117*G117)) -> Error | I117: =IF(LEFT($D117,3)="Roa",INDEX(DB_Roadway!$E$11:$E$10000,MATCH($E117,DB_Roadway!$C$11:$C$10000,0),1),IF(LEFT($D117,3)="Bik",INDEX(DB_Bikeway!$E$11:$E$10000,MATCH($E117,DB_Bikeway!$C$11:$C$10000,0),1),IF(LEFT($D117,3)="Ped",INDEX(DB_Pedestrian!$E$11:$E$10000,MATCH($E117,DB_Pedestrian!$C$11:$C$10000,0),1),IF(LEFT($D117,3)="Sig",INDEX(DB_Sig_Int!$E$11:$E$10000,MATCH($E117,DB_Sig_Int!$C$11:$C$10000,0),1),IF(LEFT($D117,3)="Uns",INDEX(DB_Unsig_Int!$E$11:$E$10000,MATCH($E117,DB_Unsig_Int!$C$11:$C$10000,0),1),IF(LEFT($D117,3)="Mis",INDEX(DB_Misc!$E$11:$E$10000,MATCH($E117,DB_Misc!$C$11:$C$10000,0),1),"Error")))))) -> Error | J117: =IF(LEFT($D117,3)="Roa",INDEX(DB_Roadway!$D$11:$D$10000,MATCH($E117,DB_Roadway!$C$11:$C$10000,0),1),IF(LEFT($D117,3)="Bik",INDEX(DB_Bikeway!$D$11:$D$10000,MATCH($E117,DB_Bikeway!$C$11:$C$10000,0),1),IF(LEFT($D117,3)="Ped",INDEX(DB_Pedestrian!$D$11:$D$10000,MATCH($E117,DB_Pedestrian!$C$11:$C$10000,0),1),IF(LEFT($D117,3)="Sig",INDEX(DB_Sig_Int!$D$11:$D$10000,MATCH($E117,DB_Sig_Int!$C$11:$C$10000,0),1),IF(LEFT($D117,3)="Uns",INDEX(DB_Unsig_Int!$D$11:$D$10000,MATCH($E117,DB_Unsig_Int!$C$11:$C$10000,0),1),IF(LEFT($D117,3)="Mis",INDEX(DB_Misc!$D$11:$D$10000,MATCH($E117,DB_Misc!$C$11:$C$10000,0),1),"Error")))))) -> Error | K117: =IF(OR(C117="",D117=""),"",IF(C117<>C116,SUMIFS($G$11:$G$10000,$C$11:$C$10000,C117,DB_Segment!$D$11:$D$10000,"<>Misc",DB_Segment!$D$11:$D$10000,"<>Sig_Int",DB_Segment!$D$11:$D$10000,"<>Unsig_Int")/COUNTIFS($C$11:$C$10000,C117,DB_Segment!$D$11:$D$10000,"<>Misc",DB_Segment!$D$11:$D$10000,"<>Sig_Int",DB_Segment!$D$11:$D$10000,"<>Unsig_Int",DB_Segment!$D$11:$D$10000,"<>"),"")) -> 
F118: =IF(I118=0,J118,I118) -> Error | H118: =IF(D118="","Error",IF(OR(D118="Roadway",D118="Bikeway_1",D118="Bikeway_2",D118="Pedestrian_1",D118="Pedestrian_2"),F118*G118*5280,F118*G118)) -> Error | I118: =IF(LEFT($D118,3)="Roa",INDEX(DB_Roadway!$E$11:$E$10000,MATCH($E118,DB_Roadway!$C$11:$C$10000,0),1),IF(LEFT($D118,3)="Bik",INDEX(DB_Bikeway!$E$11:$E$10000,MATCH($E118,DB_Bikeway!$C$11:$C$10000,0),1),IF(LEFT($D118,3)="Ped",INDEX(DB_Pedestrian!$E$11:$E$10000,MATCH($E118,DB_Pedestrian!$C$11:$C$10000,0),1),IF(LEFT($D118,3)="Sig",INDEX(DB_Sig_Int!$E$11:$E$10000,MATCH($E118,DB_Sig_Int!$C$11:$C$10000,0),1),IF(LEFT($D118,3)="Uns",INDEX(DB_Unsig_Int!$E$11:$E$10000,MATCH($E118,DB_Unsig_Int!$C$11:$C$10000,0),1),IF(LEFT($D118,3)="Mis",INDEX(DB_Misc!$E$11:$E$10000,MATCH($E118,DB_Misc!$C$11:$C$10000,0),1),"Error")))))) -> Error | J118: =IF(LEFT($D118,3)="Roa",INDEX(DB_Roadway!$D$11:$D$10000,MATCH($E118,DB_Roadway!$C$11:$C$10000,0),1),IF(LEFT($D118,3)="Bik",INDEX(DB_Bikeway!$D$11:$D$10000,MATCH($E118,DB_Bikeway!$C$11:$C$10000,0),1),IF(LEFT($D118,3)="Ped",INDEX(DB_Pedestrian!$D$11:$D$10000,MATCH($E118,DB_Pedestrian!$C$11:$C$10000,0),1),IF(LEFT($D118,3)="Sig",INDEX(DB_Sig_Int!$D$11:$D$10000,MATCH($E118,DB_Sig_Int!$C$11:$C$10000,0),1),IF(LEFT($D118,3)="Uns",INDEX(DB_Unsig_Int!$D$11:$D$10000,MATCH($E118,DB_Unsig_Int!$C$11:$C$10000,0),1),IF(LEFT($D118,3)="Mis",INDEX(DB_Misc!$D$11:$D$10000,MATCH($E118,DB_Misc!$C$11:$C$10000,0),1),"Error")))))) -> Error | K118: =IF(OR(C118="",D118=""),"",IF(C118<>C117,SUMIFS($G$11:$G$10000,$C$11:$C$10000,C118,DB_Segment!$D$11:$D$10000,"<>Misc",DB_Segment!$D$11:$D$10000,"<>Sig_Int",DB_Segment!$D$11:$D$10000,"<>Unsig_Int")/COUNTIFS($C$11:$C$10000,C118,DB_Segment!$D$11:$D$10000,"<>Misc",DB_Segment!$D$11:$D$10000,"<>Sig_Int",DB_Segment!$D$11:$D$10000,"<>Unsig_Int",DB_Segment!$D$11:$D$10000,"<>"),"")) -> 
F119: =IF(I119=0,J119,I119) -> Error | H119: =IF(D119="","Error",IF(OR(D119="Roadway",D119="Bikeway_1",D119="Bikeway_2",D119="Pedestrian_1",D119="Pedestrian_2"),F119*G119*5280,F119*G119)) -> Error | I119: =IF(LEFT($D119,3)="Roa",INDEX(DB_Roadway!$E$11:$E$10000,MATCH($E119,DB_Roadway!$C$11:$C$10000,0),1),IF(LEFT($D119,3)="Bik",INDEX(DB_Bikeway!$E$11:$E$10000,MATCH($E119,DB_Bikeway!$C$11:$C$10000,0),1),IF(LEFT($D119,3)="Ped",INDEX(DB_Pedestrian!$E$11:$E$10000,MATCH($E119,DB_Pedestrian!$C$11:$C$10000,0),1),IF(LEFT($D119,3)="Sig",INDEX(DB_Sig_Int!$E$11:$E$10000,MATCH($E119,DB_Sig_Int!$C$11:$C$10000,0),1),IF(LEFT($D119,3)="Uns",INDEX(DB_Unsig_Int!$E$11:$E$10000,MATCH($E119,DB_Unsig_Int!$C$11:$C$10000,0),1),IF(LEFT($D119,3)="Mis",INDEX(DB_Misc!$E$11:$E$10000,MATCH($E119,DB_Misc!$C$11:$C$10000,0),1),"Error")))))) -> Error | J119: =IF(LEFT($D119,3)="Roa",INDEX(DB_Roadway!$D$11:$D$10000,MATCH($E119,DB_Roadway!$C$11:$C$10000,0),1),IF(LEFT($D119,3)="Bik",INDEX(DB_Bikeway!$D$11:$D$10000,MATCH($E119,DB_Bikeway!$C$11:$C$10000,0),1),IF(LEFT($D119,3)="Ped",INDEX(DB_Pedestrian!$D$11:$D$10000,MATCH($E119,DB_Pedestrian!$C$11:$C$10000,0),1),IF(LEFT($D119,3)="Sig",INDEX(DB_Sig_Int!$D$11:$D$10000,MATCH($E119,DB_Sig_Int!$C$11:$C$10000,0),1),IF(LEFT($D119,3)="Uns",INDEX(DB_Unsig_Int!$D$11:$D$10000,MATCH($E119,DB_Unsig_Int!$C$11:$C$10000,0),1),IF(LEFT($D119,3)="Mis",INDEX(DB_Misc!$D$11:$D$10000,MATCH($E119,DB_Misc!$C$11:$C$10000,0),1),"Error")))))) -> Error | K119: =IF(OR(C119="",D119=""),"",IF(C119<>C118,SUMIFS($G$11:$G$10000,$C$11:$C$10000,C119,DB_Segment!$D$11:$D$10000,"<>Misc",DB_Segment!$D$11:$D$10000,"<>Sig_Int",DB_Segment!$D$11:$D$10000,"<>Unsig_Int")/COUNTIFS($C$11:$C$10000,C119,DB_Segment!$D$11:$D$10000,"<>Misc",DB_Segment!$D$11:$D$10000,"<>Sig_Int",DB_Segment!$D$11:$D$10000,"<>Unsig_Int",DB_Segment!$D$11:$D$10000,"<>"),"")) -> 
F120: =IF(I120=0,J120,I120) -> Error | H120: =IF(D120="","Error",IF(OR(D120="Roadway",D120="Bikeway_1",D120="Bikeway_2",D120="Pedestrian_1",D120="Pedestrian_2"),F120*G120*5280,F120*G120)) -> Error | I120: =IF(LEFT($D120,3)="Roa",INDEX(DB_Roadway!$E$11:$E$10000,MATCH($E120,DB_Roadway!$C$11:$C$10000,0),1),IF(LEFT($D120,3)="Bik",INDEX(DB_Bikeway!$E$11:$E$10000,MATCH($E120,DB_Bikeway!$C$11:$C$10000,0),1),IF(LEFT($D120,3)="Ped",INDEX(DB_Pedestrian!$E$11:$E$10000,MATCH($E120,DB_Pedestrian!$C$11:$C$10000,0),1),IF(LEFT($D120,3)="Sig",INDEX(DB_Sig_Int!$E$11:$E$10000,MATCH($E120,DB_Sig_Int!$C$11:$C$10000,0),1),IF(LEFT($D120,3)="Uns",INDEX(DB_Unsig_Int!$E$11:$E$10000,MATCH($E120,DB_Unsig_Int!$C$11:$C$10000,0),1),IF(LEFT($D120,3)="Mis",INDEX(DB_Misc!$E$11:$E$10000,MATCH($E120,DB_Misc!$C$11:$C$10000,0),1),"Error")))))) -> Error | J120: =IF(LEFT($D120,3)="Roa",INDEX(DB_Roadway!$D$11:$D$10000,MATCH($E120,DB_Roadway!$C$11:$C$10000,0),1),IF(LEFT($D120,3)="Bik",INDEX(DB_Bikeway!$D$11:$D$10000,MATCH($E120,DB_Bikeway!$C$11:$C$10000,0),1),IF(LEFT($D120,3)="Ped",INDEX(DB_Pedestrian!$D$11:$D$10000,MATCH($E120,DB_Pedestrian!$C$11:$C$10000,0),1),IF(LEFT($D120,3)="Sig",INDEX(DB_Sig_Int!$D$11:$D$10000,MATCH($E120,DB_Sig_Int!$C$11:$C$10000,0),1),IF(LEFT($D120,3)="Uns",INDEX(DB_Unsig_Int!$D$11:$D$10000,MATCH($E120,DB_Unsig_Int!$C$11:$C$10000,0),1),IF(LEFT($D120,3)="Mis",INDEX(DB_Misc!$D$11:$D$10000,MATCH($E120,DB_Misc!$C$11:$C$10000,0),1),"Error")))))) -> Error | K120: =IF(OR(C120="",D120=""),"",IF(C120<>C119,SUMIFS($G$11:$G$10000,$C$11:$C$10000,C120,DB_Segment!$D$11:$D$10000,"<>Misc",DB_Segment!$D$11:$D$10000,"<>Sig_Int",DB_Segment!$D$11:$D$10000,"<>Unsig_Int")/COUNTIFS($C$11:$C$10000,C120,DB_Segment!$D$11:$D$10000,"<>Misc",DB_Segment!$D$11:$D$10000,"<>Sig_Int",DB_Segment!$D$11:$D$10000,"<>Unsig_Int",DB_Segment!$D$11:$D$10000,"<>"),"")) -> 
F121: =IF(I121=0,J121,I121) -> Error | H121: =IF(D121="","Error",IF(OR(D121="Roadway",D121="Bikeway_1",D121="Bikeway_2",D121="Pedestrian_1",D121="Pedestrian_2"),F121*G121*5280,F121*G121)) -> Error | I121: =IF(LEFT($D121,3)="Roa",INDEX(DB_Roadway!$E$11:$E$10000,MATCH($E121,DB_Roadway!$C$11:$C$10000,0),1),IF(LEFT($D121,3)="Bik",INDEX(DB_Bikeway!$E$11:$E$10000,MATCH($E121,DB_Bikeway!$C$11:$C$10000,0),1),IF(LEFT($D121,3)="Ped",INDEX(DB_Pedestrian!$E$11:$E$10000,MATCH($E121,DB_Pedestrian!$C$11:$C$10000,0),1),IF(LEFT($D121,3)="Sig",INDEX(DB_Sig_Int!$E$11:$E$10000,MATCH($E121,DB_Sig_Int!$C$11:$C$10000,0),1),IF(LEFT($D121,3)="Uns",INDEX(DB_Unsig_Int!$E$11:$E$10000,MATCH($E121,DB_Unsig_Int!$C$11:$C$10000,0),1),IF(LEFT($D121,3)="Mis",INDEX(DB_Misc!$E$11:$E$10000,MATCH($E121,DB_Misc!$C$11:$C$10000,0),1),"Error")))))) -> Error | J121: =IF(LEFT($D121,3)="Roa",INDEX(DB_Roadway!$D$11:$D$10000,MATCH($E121,DB_Roadway!$C$11:$C$10000,0),1),IF(LEFT($D121,3)="Bik",INDEX(DB_Bikeway!$D$11:$D$10000,MATCH($E121,DB_Bikeway!$C$11:$C$10000,0),1),IF(LEFT($D121,3)="Ped",INDEX(DB_Pedestrian!$D$11:$D$10000,MATCH($E121,DB_Pedestrian!$C$11:$C$10000,0),1),IF(LEFT($D121,3)="Sig",INDEX(DB_Sig_Int!$D$11:$D$10000,MATCH($E121,DB_Sig_Int!$C$11:$C$10000,0),1),IF(LEFT($D121,3)="Uns",INDEX(DB_Unsig_Int!$D$11:$D$10000,MATCH($E121,DB_Unsig_Int!$C$11:$C$10000,0),1),IF(LEFT($D121,3)="Mis",INDEX(DB_Misc!$D$11:$D$10000,MATCH($E121,DB_Misc!$C$11:$C$10000,0),1),"Error")))))) -> Error | K121: =IF(OR(C121="",D121=""),"",IF(C121<>C120,SUMIFS($G$11:$G$10000,$C$11:$C$10000,C121,DB_Segment!$D$11:$D$10000,"<>Misc",DB_Segment!$D$11:$D$10000,"<>Sig_Int",DB_Segment!$D$11:$D$10000,"<>Unsig_Int")/COUNTIFS($C$11:$C$10000,C121,DB_Segment!$D$11:$D$10000,"<>Misc",DB_Segment!$D$11:$D$10000,"<>Sig_Int",DB_Segment!$D$11:$D$10000,"<>Unsig_Int",DB_Segment!$D$11:$D$10000,"<>"),"")) -> 
F122: =IF(I122=0,J122,I122) -> Error | H122: =IF(D122="","Error",IF(OR(D122="Roadway",D122="Bikeway_1",D122="Bikeway_2",D122="Pedestrian_1",D122="Pedestrian_2"),F122*G122*5280,F122*G122)) -> Error | I122: =IF(LEFT($D122,3)="Roa",INDEX(DB_Roadway!$E$11:$E$10000,MATCH($E122,DB_Roadway!$C$11:$C$10000,0),1),IF(LEFT($D122,3)="Bik",INDEX(DB_Bikeway!$E$11:$E$10000,MATCH($E122,DB_Bikeway!$C$11:$C$10000,0),1),IF(LEFT($D122,3)="Ped",INDEX(DB_Pedestrian!$E$11:$E$10000,MATCH($E122,DB_Pedestrian!$C$11:$C$10000,0),1),IF(LEFT($D122,3)="Sig",INDEX(DB_Sig_Int!$E$11:$E$10000,MATCH($E122,DB_Sig_Int!$C$11:$C$10000,0),1),IF(LEFT($D122,3)="Uns",INDEX(DB_Unsig_Int!$E$11:$E$10000,MATCH($E122,DB_Unsig_Int!$C$11:$C$10000,0),1),IF(LEFT($D122,3)="Mis",INDEX(DB_Misc!$E$11:$E$10000,MATCH($E122,DB_Misc!$C$11:$C$10000,0),1),"Error")))))) -> Error | J122: =IF(LEFT($D122,3)="Roa",INDEX(DB_Roadway!$D$11:$D$10000,MATCH($E122,DB_Roadway!$C$11:$C$10000,0),1),IF(LEFT($D122,3)="Bik",INDEX(DB_Bikeway!$D$11:$D$10000,MATCH($E122,DB_Bikeway!$C$11:$C$10000,0),1),IF(LEFT($D122,3)="Ped",INDEX(DB_Pedestrian!$D$11:$D$10000,MATCH($E122,DB_Pedestrian!$C$11:$C$10000,0),1),IF(LEFT($D122,3)="Sig",INDEX(DB_Sig_Int!$D$11:$D$10000,MATCH($E122,DB_Sig_Int!$C$11:$C$10000,0),1),IF(LEFT($D122,3)="Uns",INDEX(DB_Unsig_Int!$D$11:$D$10000,MATCH($E122,DB_Unsig_Int!$C$11:$C$10000,0),1),IF(LEFT($D122,3)="Mis",INDEX(DB_Misc!$D$11:$D$10000,MATCH($E122,DB_Misc!$C$11:$C$10000,0),1),"Error")))))) -> Error | K122: =IF(OR(C122="",D122=""),"",IF(C122<>C121,SUMIFS($G$11:$G$10000,$C$11:$C$10000,C122,DB_Segment!$D$11:$D$10000,"<>Misc",DB_Segment!$D$11:$D$10000,"<>Sig_Int",DB_Segment!$D$11:$D$10000,"<>Unsig_Int")/COUNTIFS($C$11:$C$10000,C122,DB_Segment!$D$11:$D$10000,"<>Misc",DB_Segment!$D$11:$D$10000,"<>Sig_Int",DB_Segment!$D$11:$D$10000,"<>Unsig_Int",DB_Segment!$D$11:$D$10000,"<>"),"")) -> 
F123: =IF(I123=0,J123,I123) -> Error | H123: =IF(D123="","Error",IF(OR(D123="Roadway",D123="Bikeway_1",D123="Bikeway_2",D123="Pedestrian_1",D123="Pedestrian_2"),F123*G123*5280,F123*G123)) -> Error | I123: =IF(LEFT($D123,3)="Roa",INDEX(DB_Roadway!$E$11:$E$10000,MATCH($E123,DB_Roadway!$C$11:$C$10000,0),1),IF(LEFT($D123,3)="Bik",INDEX(DB_Bikeway!$E$11:$E$10000,MATCH($E123,DB_Bikeway!$C$11:$C$10000,0),1),IF(LEFT($D123,3)="Ped",INDEX(DB_Pedestrian!$E$11:$E$10000,MATCH($E123,DB_Pedestrian!$C$11:$C$10000,0),1),IF(LEFT($D123,3)="Sig",INDEX(DB_Sig_Int!$E$11:$E$10000,MATCH($E123,DB_Sig_Int!$C$11:$C$10000,0),1),IF(LEFT($D123,3)="Uns",INDEX(DB_Unsig_Int!$E$11:$E$10000,MATCH($E123,DB_Unsig_Int!$C$11:$C$10000,0),1),IF(LEFT($D123,3)="Mis",INDEX(DB_Misc!$E$11:$E$10000,MATCH($E123,DB_Misc!$C$11:$C$10000,0),1),"Error")))))) -> Error | J123: =IF(LEFT($D123,3)="Roa",INDEX(DB_Roadway!$D$11:$D$10000,MATCH($E123,DB_Roadway!$C$11:$C$10000,0),1),IF(LEFT($D123,3)="Bik",INDEX(DB_Bikeway!$D$11:$D$10000,MATCH($E123,DB_Bikeway!$C$11:$C$10000,0),1),IF(LEFT($D123,3)="Ped",INDEX(DB_Pedestrian!$D$11:$D$10000,MATCH($E123,DB_Pedestrian!$C$11:$C$10000,0),1),IF(LEFT($D123,3)="Sig",INDEX(DB_Sig_Int!$D$11:$D$10000,MATCH($E123,DB_Sig_Int!$C$11:$C$10000,0),1),IF(LEFT($D123,3)="Uns",INDEX(DB_Unsig_Int!$D$11:$D$10000,MATCH($E123,DB_Unsig_Int!$C$11:$C$10000,0),1),IF(LEFT($D123,3)="Mis",INDEX(DB_Misc!$D$11:$D$10000,MATCH($E123,DB_Misc!$C$11:$C$10000,0),1),"Error")))))) -> Error | K123: =IF(OR(C123="",D123=""),"",IF(C123<>C122,SUMIFS($G$11:$G$10000,$C$11:$C$10000,C123,DB_Segment!$D$11:$D$10000,"<>Misc",DB_Segment!$D$11:$D$10000,"<>Sig_Int",DB_Segment!$D$11:$D$10000,"<>Unsig_Int")/COUNTIFS($C$11:$C$10000,C123,DB_Segment!$D$11:$D$10000,"<>Misc",DB_Segment!$D$11:$D$10000,"<>Sig_Int",DB_Segment!$D$11:$D$10000,"<>Unsig_Int",DB_Segment!$D$11:$D$10000,"<>"),"")) -> 
F124: =IF(I124=0,J124,I124) -> Error | H124: =IF(D124="","Error",IF(OR(D124="Roadway",D124="Bikeway_1",D124="Bikeway_2",D124="Pedestrian_1",D124="Pedestrian_2"),F124*G124*5280,F124*G124)) -> Error | I124: =IF(LEFT($D124,3)="Roa",INDEX(DB_Roadway!$E$11:$E$10000,MATCH($E124,DB_Roadway!$C$11:$C$10000,0),1),IF(LEFT($D124,3)="Bik",INDEX(DB_Bikeway!$E$11:$E$10000,MATCH($E124,DB_Bikeway!$C$11:$C$10000,0),1),IF(LEFT($D124,3)="Ped",INDEX(DB_Pedestrian!$E$11:$E$10000,MATCH($E124,DB_Pedestrian!$C$11:$C$10000,0),1),IF(LEFT($D124,3)="Sig",INDEX(DB_Sig_Int!$E$11:$E$10000,MATCH($E124,DB_Sig_Int!$C$11:$C$10000,0),1),IF(LEFT($D124,3)="Uns",INDEX(DB_Unsig_Int!$E$11:$E$10000,MATCH($E124,DB_Unsig_Int!$C$11:$C$10000,0),1),IF(LEFT($D124,3)="Mis",INDEX(DB_Misc!$E$11:$E$10000,MATCH($E124,DB_Misc!$C$11:$C$10000,0),1),"Error")))))) -> Error | J124: =IF(LEFT($D124,3)="Roa",INDEX(DB_Roadway!$D$11:$D$10000,MATCH($E124,DB_Roadway!$C$11:$C$10000,0),1),IF(LEFT($D124,3)="Bik",INDEX(DB_Bikeway!$D$11:$D$10000,MATCH($E124,DB_Bikeway!$C$11:$C$10000,0),1),IF(LEFT($D124,3)="Ped",INDEX(DB_Pedestrian!$D$11:$D$10000,MATCH($E124,DB_Pedestrian!$C$11:$C$10000,0),1),IF(LEFT($D124,3)="Sig",INDEX(DB_Sig_Int!$D$11:$D$10000,MATCH($E124,DB_Sig_Int!$C$11:$C$10000,0),1),IF(LEFT($D124,3)="Uns",INDEX(DB_Unsig_Int!$D$11:$D$10000,MATCH($E124,DB_Unsig_Int!$C$11:$C$10000,0),1),IF(LEFT($D124,3)="Mis",INDEX(DB_Misc!$D$11:$D$10000,MATCH($E124,DB_Misc!$C$11:$C$10000,0),1),"Error")))))) -> Error | K124: =IF(OR(C124="",D124=""),"",IF(C124<>C123,SUMIFS($G$11:$G$10000,$C$11:$C$10000,C124,DB_Segment!$D$11:$D$10000,"<>Misc",DB_Segment!$D$11:$D$10000,"<>Sig_Int",DB_Segment!$D$11:$D$10000,"<>Unsig_Int")/COUNTIFS($C$11:$C$10000,C124,DB_Segment!$D$11:$D$10000,"<>Misc",DB_Segment!$D$11:$D$10000,"<>Sig_Int",DB_Segment!$D$11:$D$10000,"<>Unsig_Int",DB_Segment!$D$11:$D$10000,"<>"),"")) -> 
F125: =IF(I125=0,J125,I125) -> Error | H125: =IF(D125="","Error",IF(OR(D125="Roadway",D125="Bikeway_1",D125="Bikeway_2",D125="Pedestrian_1",D125="Pedestrian_2"),F125*G125*5280,F125*G125)) -> Error | I125: =IF(LEFT($D125,3)="Roa",INDEX(DB_Roadway!$E$11:$E$10000,MATCH($E125,DB_Roadway!$C$11:$C$10000,0),1),IF(LEFT($D125,3)="Bik",INDEX(DB_Bikeway!$E$11:$E$10000,MATCH($E125,DB_Bikeway!$C$11:$C$10000,0),1),IF(LEFT($D125,3)="Ped",INDEX(DB_Pedestrian!$E$11:$E$10000,MATCH($E125,DB_Pedestrian!$C$11:$C$10000,0),1),IF(LEFT($D125,3)="Sig",INDEX(DB_Sig_Int!$E$11:$E$10000,MATCH($E125,DB_Sig_Int!$C$11:$C$10000,0),1),IF(LEFT($D125,3)="Uns",INDEX(DB_Unsig_Int!$E$11:$E$10000,MATCH($E125,DB_Unsig_Int!$C$11:$C$10000,0),1),IF(LEFT($D125,3)="Mis",INDEX(DB_Misc!$E$11:$E$10000,MATCH($E125,DB_Misc!$C$11:$C$10000,0),1),"Error")))))) -> Error | J125: =IF(LEFT($D125,3)="Roa",INDEX(DB_Roadway!$D$11:$D$10000,MATCH($E125,DB_Roadway!$C$11:$C$10000,0),1),IF(LEFT($D125,3)="Bik",INDEX(DB_Bikeway!$D$11:$D$10000,MATCH($E125,DB_Bikeway!$C$11:$C$10000,0),1),IF(LEFT($D125,3)="Ped",INDEX(DB_Pedestrian!$D$11:$D$10000,MATCH($E125,DB_Pedestrian!$C$11:$C$10000,0),1),IF(LEFT($D125,3)="Sig",INDEX(DB_Sig_Int!$D$11:$D$10000,MATCH($E125,DB_Sig_Int!$C$11:$C$10000,0),1),IF(LEFT($D125,3)="Uns",INDEX(DB_Unsig_Int!$D$11:$D$10000,MATCH($E125,DB_Unsig_Int!$C$11:$C$10000,0),1),IF(LEFT($D125,3)="Mis",INDEX(DB_Misc!$D$11:$D$10000,MATCH($E125,DB_Misc!$C$11:$C$10000,0),1),"Error")))))) -> Error | K125: =IF(OR(C125="",D125=""),"",IF(C125<>C124,SUMIFS($G$11:$G$10000,$C$11:$C$10000,C125,DB_Segment!$D$11:$D$10000,"<>Misc",DB_Segment!$D$11:$D$10000,"<>Sig_Int",DB_Segment!$D$11:$D$10000,"<>Unsig_Int")/COUNTIFS($C$11:$C$10000,C125,DB_Segment!$D$11:$D$10000,"<>Misc",DB_Segment!$D$11:$D$10000,"<>Sig_Int",DB_Segment!$D$11:$D$10000,"<>Unsig_Int",DB_Segment!$D$11:$D$10000,"<>"),"")) -> 
F126: =IF(I126=0,J126,I126) -> Error | H126: =IF(D126="","Error",IF(OR(D126="Roadway",D126="Bikeway_1",D126="Bikeway_2",D126="Pedestrian_1",D126="Pedestrian_2"),F126*G126*5280,F126*G126)) -> Error | I126: =IF(LEFT($D126,3)="Roa",INDEX(DB_Roadway!$E$11:$E$10000,MATCH($E126,DB_Roadway!$C$11:$C$10000,0),1),IF(LEFT($D126,3)="Bik",INDEX(DB_Bikeway!$E$11:$E$10000,MATCH($E126,DB_Bikeway!$C$11:$C$10000,0),1),IF(LEFT($D126,3)="Ped",INDEX(DB_Pedestrian!$E$11:$E$10000,MATCH($E126,DB_Pedestrian!$C$11:$C$10000,0),1),IF(LEFT($D126,3)="Sig",INDEX(DB_Sig_Int!$E$11:$E$10000,MATCH($E126,DB_Sig_Int!$C$11:$C$10000,0),1),IF(LEFT($D126,3)="Uns",INDEX(DB_Unsig_Int!$E$11:$E$10000,MATCH($E126,DB_Unsig_Int!$C$11:$C$10000,0),1),IF(LEFT($D126,3)="Mis",INDEX(DB_Misc!$E$11:$E$10000,MATCH($E126,DB_Misc!$C$11:$C$10000,0),1),"Error")))))) -> Error | J126: =IF(LEFT($D126,3)="Roa",INDEX(DB_Roadway!$D$11:$D$10000,MATCH($E126,DB_Roadway!$C$11:$C$10000,0),1),IF(LEFT($D126,3)="Bik",INDEX(DB_Bikeway!$D$11:$D$10000,MATCH($E126,DB_Bikeway!$C$11:$C$10000,0),1),IF(LEFT($D126,3)="Ped",INDEX(DB_Pedestrian!$D$11:$D$10000,MATCH($E126,DB_Pedestrian!$C$11:$C$10000,0),1),IF(LEFT($D126,3)="Sig",INDEX(DB_Sig_Int!$D$11:$D$10000,MATCH($E126,DB_Sig_Int!$C$11:$C$10000,0),1),IF(LEFT($D126,3)="Uns",INDEX(DB_Unsig_Int!$D$11:$D$10000,MATCH($E126,DB_Unsig_Int!$C$11:$C$10000,0),1),IF(LEFT($D126,3)="Mis",INDEX(DB_Misc!$D$11:$D$10000,MATCH($E126,DB_Misc!$C$11:$C$10000,0),1),"Error")))))) -> Error | K126: =IF(OR(C126="",D126=""),"",IF(C126<>C125,SUMIFS($G$11:$G$10000,$C$11:$C$10000,C126,DB_Segment!$D$11:$D$10000,"<>Misc",DB_Segment!$D$11:$D$10000,"<>Sig_Int",DB_Segment!$D$11:$D$10000,"<>Unsig_Int")/COUNTIFS($C$11:$C$10000,C126,DB_Segment!$D$11:$D$10000,"<>Misc",DB_Segment!$D$11:$D$10000,"<>Sig_Int",DB_Segment!$D$11:$D$10000,"<>Unsig_Int",DB_Segment!$D$11:$D$10000,"<>"),"")) -> 
F127: =IF(I127=0,J127,I127) -> Error | H127: =IF(D127="","Error",IF(OR(D127="Roadway",D127="Bikeway_1",D127="Bikeway_2",D127="Pedestrian_1",D127="Pedestrian_2"),F127*G127*5280,F127*G127)) -> Error | I127: =IF(LEFT($D127,3)="Roa",INDEX(DB_Roadway!$E$11:$E$10000,MATCH($E127,DB_Roadway!$C$11:$C$10000,0),1),IF(LEFT($D127,3)="Bik",INDEX(DB_Bikeway!$E$11:$E$10000,MATCH($E127,DB_Bikeway!$C$11:$C$10000,0),1),IF(LEFT($D127,3)="Ped",INDEX(DB_Pedestrian!$E$11:$E$10000,MATCH($E127,DB_Pedestrian!$C$11:$C$10000,0),1),IF(LEFT($D127,3)="Sig",INDEX(DB_Sig_Int!$E$11:$E$10000,MATCH($E127,DB_Sig_Int!$C$11:$C$10000,0),1),IF(LEFT($D127,3)="Uns",INDEX(DB_Unsig_Int!$E$11:$E$10000,MATCH($E127,DB_Unsig_Int!$C$11:$C$10000,0),1),IF(LEFT($D127,3)="Mis",INDEX(DB_Misc!$E$11:$E$10000,MATCH($E127,DB_Misc!$C$11:$C$10000,0),1),"Error")))))) -> Error | J127: =IF(LEFT($D127,3)="Roa",INDEX(DB_Roadway!$D$11:$D$10000,MATCH($E127,DB_Roadway!$C$11:$C$10000,0),1),IF(LEFT($D127,3)="Bik",INDEX(DB_Bikeway!$D$11:$D$10000,MATCH($E127,DB_Bikeway!$C$11:$C$10000,0),1),IF(LEFT($D127,3)="Ped",INDEX(DB_Pedestrian!$D$11:$D$10000,MATCH($E127,DB_Pedestrian!$C$11:$C$10000,0),1),IF(LEFT($D127,3)="Sig",INDEX(DB_Sig_Int!$D$11:$D$10000,MATCH($E127,DB_Sig_Int!$C$11:$C$10000,0),1),IF(LEFT($D127,3)="Uns",INDEX(DB_Unsig_Int!$D$11:$D$10000,MATCH($E127,DB_Unsig_Int!$C$11:$C$10000,0),1),IF(LEFT($D127,3)="Mis",INDEX(DB_Misc!$D$11:$D$10000,MATCH($E127,DB_Misc!$C$11:$C$10000,0),1),"Error")))))) -> Error | K127: =IF(OR(C127="",D127=""),"",IF(C127<>C126,SUMIFS($G$11:$G$10000,$C$11:$C$10000,C127,DB_Segment!$D$11:$D$10000,"<>Misc",DB_Segment!$D$11:$D$10000,"<>Sig_Int",DB_Segment!$D$11:$D$10000,"<>Unsig_Int")/COUNTIFS($C$11:$C$10000,C127,DB_Segment!$D$11:$D$10000,"<>Misc",DB_Segment!$D$11:$D$10000,"<>Sig_Int",DB_Segment!$D$11:$D$10000,"<>Unsig_Int",DB_Segment!$D$11:$D$10000,"<>"),"")) -> 
F128: =IF(I128=0,J128,I128) -> Error | H128: =IF(D128="","Error",IF(OR(D128="Roadway",D128="Bikeway_1",D128="Bikeway_2",D128="Pedestrian_1",D128="Pedestrian_2"),F128*G128*5280,F128*G128)) -> Error | I128: =IF(LEFT($D128,3)="Roa",INDEX(DB_Roadway!$E$11:$E$10000,MATCH($E128,DB_Roadway!$C$11:$C$10000,0),1),IF(LEFT($D128,3)="Bik",INDEX(DB_Bikeway!$E$11:$E$10000,MATCH($E128,DB_Bikeway!$C$11:$C$10000,0),1),IF(LEFT($D128,3)="Ped",INDEX(DB_Pedestrian!$E$11:$E$10000,MATCH($E128,DB_Pedestrian!$C$11:$C$10000,0),1),IF(LEFT($D128,3)="Sig",INDEX(DB_Sig_Int!$E$11:$E$10000,MATCH($E128,DB_Sig_Int!$C$11:$C$10000,0),1),IF(LEFT($D128,3)="Uns",INDEX(DB_Unsig_Int!$E$11:$E$10000,MATCH($E128,DB_Unsig_Int!$C$11:$C$10000,0),1),IF(LEFT($D128,3)="Mis",INDEX(DB_Misc!$E$11:$E$10000,MATCH($E128,DB_Misc!$C$11:$C$10000,0),1),"Error")))))) -> Error | J128: =IF(LEFT($D128,3)="Roa",INDEX(DB_Roadway!$D$11:$D$10000,MATCH($E128,DB_Roadway!$C$11:$C$10000,0),1),IF(LEFT($D128,3)="Bik",INDEX(DB_Bikeway!$D$11:$D$10000,MATCH($E128,DB_Bikeway!$C$11:$C$10000,0),1),IF(LEFT($D128,3)="Ped",INDEX(DB_Pedestrian!$D$11:$D$10000,MATCH($E128,DB_Pedestrian!$C$11:$C$10000,0),1),IF(LEFT($D128,3)="Sig",INDEX(DB_Sig_Int!$D$11:$D$10000,MATCH($E128,DB_Sig_Int!$C$11:$C$10000,0),1),IF(LEFT($D128,3)="Uns",INDEX(DB_Unsig_Int!$D$11:$D$10000,MATCH($E128,DB_Unsig_Int!$C$11:$C$10000,0),1),IF(LEFT($D128,3)="Mis",INDEX(DB_Misc!$D$11:$D$10000,MATCH($E128,DB_Misc!$C$11:$C$10000,0),1),"Error")))))) -> Error | K128: =IF(OR(C128="",D128=""),"",IF(C128<>C127,SUMIFS($G$11:$G$10000,$C$11:$C$10000,C128,DB_Segment!$D$11:$D$10000,"<>Misc",DB_Segment!$D$11:$D$10000,"<>Sig_Int",DB_Segment!$D$11:$D$10000,"<>Unsig_Int")/COUNTIFS($C$11:$C$10000,C128,DB_Segment!$D$11:$D$10000,"<>Misc",DB_Segment!$D$11:$D$10000,"<>Sig_Int",DB_Segment!$D$11:$D$10000,"<>Unsig_Int",DB_Segment!$D$11:$D$10000,"<>"),"")) -> 
F129: =IF(I129=0,J129,I129) -> Error | H129: =IF(D129="","Error",IF(OR(D129="Roadway",D129="Bikeway_1",D129="Bikeway_2",D129="Pedestrian_1",D129="Pedestrian_2"),F129*G129*5280,F129*G129)) -> Error | I129: =IF(LEFT($D129,3)="Roa",INDEX(DB_Roadway!$E$11:$E$10000,MATCH($E129,DB_Roadway!$C$11:$C$10000,0),1),IF(LEFT($D129,3)="Bik",INDEX(DB_Bikeway!$E$11:$E$10000,MATCH($E129,DB_Bikeway!$C$11:$C$10000,0),1),IF(LEFT($D129,3)="Ped",INDEX(DB_Pedestrian!$E$11:$E$10000,MATCH($E129,DB_Pedestrian!$C$11:$C$10000,0),1),IF(LEFT($D129,3)="Sig",INDEX(DB_Sig_Int!$E$11:$E$10000,MATCH($E129,DB_Sig_Int!$C$11:$C$10000,0),1),IF(LEFT($D129,3)="Uns",INDEX(DB_Unsig_Int!$E$11:$E$10000,MATCH($E129,DB_Unsig_Int!$C$11:$C$10000,0),1),IF(LEFT($D129,3)="Mis",INDEX(DB_Misc!$E$11:$E$10000,MATCH($E129,DB_Misc!$C$11:$C$10000,0),1),"Error")))))) -> Error | J129: =IF(LEFT($D129,3)="Roa",INDEX(DB_Roadway!$D$11:$D$10000,MATCH($E129,DB_Roadway!$C$11:$C$10000,0),1),IF(LEFT($D129,3)="Bik",INDEX(DB_Bikeway!$D$11:$D$10000,MATCH($E129,DB_Bikeway!$C$11:$C$10000,0),1),IF(LEFT($D129,3)="Ped",INDEX(DB_Pedestrian!$D$11:$D$10000,MATCH($E129,DB_Pedestrian!$C$11:$C$10000,0),1),IF(LEFT($D129,3)="Sig",INDEX(DB_Sig_Int!$D$11:$D$10000,MATCH($E129,DB_Sig_Int!$C$11:$C$10000,0),1),IF(LEFT($D129,3)="Uns",INDEX(DB_Unsig_Int!$D$11:$D$10000,MATCH($E129,DB_Unsig_Int!$C$11:$C$10000,0),1),IF(LEFT($D129,3)="Mis",INDEX(DB_Misc!$D$11:$D$10000,MATCH($E129,DB_Misc!$C$11:$C$10000,0),1),"Error")))))) -> Error | K129: =IF(OR(C129="",D129=""),"",IF(C129<>C128,SUMIFS($G$11:$G$10000,$C$11:$C$10000,C129,DB_Segment!$D$11:$D$10000,"<>Misc",DB_Segment!$D$11:$D$10000,"<>Sig_Int",DB_Segment!$D$11:$D$10000,"<>Unsig_Int")/COUNTIFS($C$11:$C$10000,C129,DB_Segment!$D$11:$D$10000,"<>Misc",DB_Segment!$D$11:$D$10000,"<>Sig_Int",DB_Segment!$D$11:$D$10000,"<>Unsig_Int",DB_Segment!$D$11:$D$10000,"<>"),"")) -> 
F130: =IF(I130=0,J130,I130) -> Error | H130: =IF(D130="","Error",IF(OR(D130="Roadway",D130="Bikeway_1",D130="Bikeway_2",D130="Pedestrian_1",D130="Pedestrian_2"),F130*G130*5280,F130*G130)) -> Error | I130: =IF(LEFT($D130,3)="Roa",INDEX(DB_Roadway!$E$11:$E$10000,MATCH($E130,DB_Roadway!$C$11:$C$10000,0),1),IF(LEFT($D130,3)="Bik",INDEX(DB_Bikeway!$E$11:$E$10000,MATCH($E130,DB_Bikeway!$C$11:$C$10000,0),1),IF(LEFT($D130,3)="Ped",INDEX(DB_Pedestrian!$E$11:$E$10000,MATCH($E130,DB_Pedestrian!$C$11:$C$10000,0),1),IF(LEFT($D130,3)="Sig",INDEX(DB_Sig_Int!$E$11:$E$10000,MATCH($E130,DB_Sig_Int!$C$11:$C$10000,0),1),IF(LEFT($D130,3)="Uns",INDEX(DB_Unsig_Int!$E$11:$E$10000,MATCH($E130,DB_Unsig_Int!$C$11:$C$10000,0),1),IF(LEFT($D130,3)="Mis",INDEX(DB_Misc!$E$11:$E$10000,MATCH($E130,DB_Misc!$C$11:$C$10000,0),1),"Error")))))) -> Error | J130: =IF(LEFT($D130,3)="Roa",INDEX(DB_Roadway!$D$11:$D$10000,MATCH($E130,DB_Roadway!$C$11:$C$10000,0),1),IF(LEFT($D130,3)="Bik",INDEX(DB_Bikeway!$D$11:$D$10000,MATCH($E130,DB_Bikeway!$C$11:$C$10000,0),1),IF(LEFT($D130,3)="Ped",INDEX(DB_Pedestrian!$D$11:$D$10000,MATCH($E130,DB_Pedestrian!$C$11:$C$10000,0),1),IF(LEFT($D130,3)="Sig",INDEX(DB_Sig_Int!$D$11:$D$10000,MATCH($E130,DB_Sig_Int!$C$11:$C$10000,0),1),IF(LEFT($D130,3)="Uns",INDEX(DB_Unsig_Int!$D$11:$D$10000,MATCH($E130,DB_Unsig_Int!$C$11:$C$10000,0),1),IF(LEFT($D130,3)="Mis",INDEX(DB_Misc!$D$11:$D$10000,MATCH($E130,DB_Misc!$C$11:$C$10000,0),1),"Error")))))) -> Error | K130: =IF(OR(C130="",D130=""),"",IF(C130<>C129,SUMIFS($G$11:$G$10000,$C$11:$C$10000,C130,DB_Segment!$D$11:$D$10000,"<>Misc",DB_Segment!$D$11:$D$10000,"<>Sig_Int",DB_Segment!$D$11:$D$10000,"<>Unsig_Int")/COUNTIFS($C$11:$C$10000,C130,DB_Segment!$D$11:$D$10000,"<>Misc",DB_Segment!$D$11:$D$10000,"<>Sig_Int",DB_Segment!$D$11:$D$10000,"<>Unsig_Int",DB_Segment!$D$11:$D$10000,"<>"),"")) -> 
F131: =IF(I131=0,J131,I131) -> Error | H131: =IF(D131="","Error",IF(OR(D131="Roadway",D131="Bikeway_1",D131="Bikeway_2",D131="Pedestrian_1",D131="Pedestrian_2"),F131*G131*5280,F131*G131)) -> Error | I131: =IF(LEFT($D131,3)="Roa",INDEX(DB_Roadway!$E$11:$E$10000,MATCH($E131,DB_Roadway!$C$11:$C$10000,0),1),IF(LEFT($D131,3)="Bik",INDEX(DB_Bikeway!$E$11:$E$10000,MATCH($E131,DB_Bikeway!$C$11:$C$10000,0),1),IF(LEFT($D131,3)="Ped",INDEX(DB_Pedestrian!$E$11:$E$10000,MATCH($E131,DB_Pedestrian!$C$11:$C$10000,0),1),IF(LEFT($D131,3)="Sig",INDEX(DB_Sig_Int!$E$11:$E$10000,MATCH($E131,DB_Sig_Int!$C$11:$C$10000,0),1),IF(LEFT($D131,3)="Uns",INDEX(DB_Unsig_Int!$E$11:$E$10000,MATCH($E131,DB_Unsig_Int!$C$11:$C$10000,0),1),IF(LEFT($D131,3)="Mis",INDEX(DB_Misc!$E$11:$E$10000,MATCH($E131,DB_Misc!$C$11:$C$10000,0),1),"Error")))))) -> Error | J131: =IF(LEFT($D131,3)="Roa",INDEX(DB_Roadway!$D$11:$D$10000,MATCH($E131,DB_Roadway!$C$11:$C$10000,0),1),IF(LEFT($D131,3)="Bik",INDEX(DB_Bikeway!$D$11:$D$10000,MATCH($E131,DB_Bikeway!$C$11:$C$10000,0),1),IF(LEFT($D131,3)="Ped",INDEX(DB_Pedestrian!$D$11:$D$10000,MATCH($E131,DB_Pedestrian!$C$11:$C$10000,0),1),IF(LEFT($D131,3)="Sig",INDEX(DB_Sig_Int!$D$11:$D$10000,MATCH($E131,DB_Sig_Int!$C$11:$C$10000,0),1),IF(LEFT($D131,3)="Uns",INDEX(DB_Unsig_Int!$D$11:$D$10000,MATCH($E131,DB_Unsig_Int!$C$11:$C$10000,0),1),IF(LEFT($D131,3)="Mis",INDEX(DB_Misc!$D$11:$D$10000,MATCH($E131,DB_Misc!$C$11:$C$10000,0),1),"Error")))))) -> Error | K131: =IF(OR(C131="",D131=""),"",IF(C131<>C130,SUMIFS($G$11:$G$10000,$C$11:$C$10000,C131,DB_Segment!$D$11:$D$10000,"<>Misc",DB_Segment!$D$11:$D$10000,"<>Sig_Int",DB_Segment!$D$11:$D$10000,"<>Unsig_Int")/COUNTIFS($C$11:$C$10000,C131,DB_Segment!$D$11:$D$10000,"<>Misc",DB_Segment!$D$11:$D$10000,"<>Sig_Int",DB_Segment!$D$11:$D$10000,"<>Unsig_Int",DB_Segment!$D$11:$D$10000,"<>"),"")) -> 
F132: =IF(I132=0,J132,I132) -> Error | H132: =IF(D132="","Error",IF(OR(D132="Roadway",D132="Bikeway_1",D132="Bikeway_2",D132="Pedestrian_1",D132="Pedestrian_2"),F132*G132*5280,F132*G132)) -> Error | I132: =IF(LEFT($D132,3)="Roa",INDEX(DB_Roadway!$E$11:$E$10000,MATCH($E132,DB_Roadway!$C$11:$C$10000,0),1),IF(LEFT($D132,3)="Bik",INDEX(DB_Bikeway!$E$11:$E$10000,MATCH($E132,DB_Bikeway!$C$11:$C$10000,0),1),IF(LEFT($D132,3)="Ped",INDEX(DB_Pedestrian!$E$11:$E$10000,MATCH($E132,DB_Pedestrian!$C$11:$C$10000,0),1),IF(LEFT($D132,3)="Sig",INDEX(DB_Sig_Int!$E$11:$E$10000,MATCH($E132,DB_Sig_Int!$C$11:$C$10000,0),1),IF(LEFT($D132,3)="Uns",INDEX(DB_Unsig_Int!$E$11:$E$10000,MATCH($E132,DB_Unsig_Int!$C$11:$C$10000,0),1),IF(LEFT($D132,3)="Mis",INDEX(DB_Misc!$E$11:$E$10000,MATCH($E132,DB_Misc!$C$11:$C$10000,0),1),"Error")))))) -> Error | J132: =IF(LEFT($D132,3)="Roa",INDEX(DB_Roadway!$D$11:$D$10000,MATCH($E132,DB_Roadway!$C$11:$C$10000,0),1),IF(LEFT($D132,3)="Bik",INDEX(DB_Bikeway!$D$11:$D$10000,MATCH($E132,DB_Bikeway!$C$11:$C$10000,0),1),IF(LEFT($D132,3)="Ped",INDEX(DB_Pedestrian!$D$11:$D$10000,MATCH($E132,DB_Pedestrian!$C$11:$C$10000,0),1),IF(LEFT($D132,3)="Sig",INDEX(DB_Sig_Int!$D$11:$D$10000,MATCH($E132,DB_Sig_Int!$C$11:$C$10000,0),1),IF(LEFT($D132,3)="Uns",INDEX(DB_Unsig_Int!$D$11:$D$10000,MATCH($E132,DB_Unsig_Int!$C$11:$C$10000,0),1),IF(LEFT($D132,3)="Mis",INDEX(DB_Misc!$D$11:$D$10000,MATCH($E132,DB_Misc!$C$11:$C$10000,0),1),"Error")))))) -> Error | K132: =IF(OR(C132="",D132=""),"",IF(C132<>C131,SUMIFS($G$11:$G$10000,$C$11:$C$10000,C132,DB_Segment!$D$11:$D$10000,"<>Misc",DB_Segment!$D$11:$D$10000,"<>Sig_Int",DB_Segment!$D$11:$D$10000,"<>Unsig_Int")/COUNTIFS($C$11:$C$10000,C132,DB_Segment!$D$11:$D$10000,"<>Misc",DB_Segment!$D$11:$D$10000,"<>Sig_Int",DB_Segment!$D$11:$D$10000,"<>Unsig_Int",DB_Segment!$D$11:$D$10000,"<>"),"")) -> 
F133: =IF(I133=0,J133,I133) -> Error | H133: =IF(D133="","Error",IF(OR(D133="Roadway",D133="Bikeway_1",D133="Bikeway_2",D133="Pedestrian_1",D133="Pedestrian_2"),F133*G133*5280,F133*G133)) -> Error | I133: =IF(LEFT($D133,3)="Roa",INDEX(DB_Roadway!$E$11:$E$10000,MATCH($E133,DB_Roadway!$C$11:$C$10000,0),1),IF(LEFT($D133,3)="Bik",INDEX(DB_Bikeway!$E$11:$E$10000,MATCH($E133,DB_Bikeway!$C$11:$C$10000,0),1),IF(LEFT($D133,3)="Ped",INDEX(DB_Pedestrian!$E$11:$E$10000,MATCH($E133,DB_Pedestrian!$C$11:$C$10000,0),1),IF(LEFT($D133,3)="Sig",INDEX(DB_Sig_Int!$E$11:$E$10000,MATCH($E133,DB_Sig_Int!$C$11:$C$10000,0),1),IF(LEFT($D133,3)="Uns",INDEX(DB_Unsig_Int!$E$11:$E$10000,MATCH($E133,DB_Unsig_Int!$C$11:$C$10000,0),1),IF(LEFT($D133,3)="Mis",INDEX(DB_Misc!$E$11:$E$10000,MATCH($E133,DB_Misc!$C$11:$C$10000,0),1),"Error")))))) -> Error | J133: =IF(LEFT($D133,3)="Roa",INDEX(DB_Roadway!$D$11:$D$10000,MATCH($E133,DB_Roadway!$C$11:$C$10000,0),1),IF(LEFT($D133,3)="Bik",INDEX(DB_Bikeway!$D$11:$D$10000,MATCH($E133,DB_Bikeway!$C$11:$C$10000,0),1),IF(LEFT($D133,3)="Ped",INDEX(DB_Pedestrian!$D$11:$D$10000,MATCH($E133,DB_Pedestrian!$C$11:$C$10000,0),1),IF(LEFT($D133,3)="Sig",INDEX(DB_Sig_Int!$D$11:$D$10000,MATCH($E133,DB_Sig_Int!$C$11:$C$10000,0),1),IF(LEFT($D133,3)="Uns",INDEX(DB_Unsig_Int!$D$11:$D$10000,MATCH($E133,DB_Unsig_Int!$C$11:$C$10000,0),1),IF(LEFT($D133,3)="Mis",INDEX(DB_Misc!$D$11:$D$10000,MATCH($E133,DB_Misc!$C$11:$C$10000,0),1),"Error")))))) -> Error | K133: =IF(OR(C133="",D133=""),"",IF(C133<>C132,SUMIFS($G$11:$G$10000,$C$11:$C$10000,C133,DB_Segment!$D$11:$D$10000,"<>Misc",DB_Segment!$D$11:$D$10000,"<>Sig_Int",DB_Segment!$D$11:$D$10000,"<>Unsig_Int")/COUNTIFS($C$11:$C$10000,C133,DB_Segment!$D$11:$D$10000,"<>Misc",DB_Segment!$D$11:$D$10000,"<>Sig_Int",DB_Segment!$D$11:$D$10000,"<>Unsig_Int",DB_Segment!$D$11:$D$10000,"<>"),"")) -> 
F134: =IF(I134=0,J134,I134) -> Error | H134: =IF(D134="","Error",IF(OR(D134="Roadway",D134="Bikeway_1",D134="Bikeway_2",D134="Pedestrian_1",D134="Pedestrian_2"),F134*G134*5280,F134*G134)) -> Error | I134: =IF(LEFT($D134,3)="Roa",INDEX(DB_Roadway!$E$11:$E$10000,MATCH($E134,DB_Roadway!$C$11:$C$10000,0),1),IF(LEFT($D134,3)="Bik",INDEX(DB_Bikeway!$E$11:$E$10000,MATCH($E134,DB_Bikeway!$C$11:$C$10000,0),1),IF(LEFT($D134,3)="Ped",INDEX(DB_Pedestrian!$E$11:$E$10000,MATCH($E134,DB_Pedestrian!$C$11:$C$10000,0),1),IF(LEFT($D134,3)="Sig",INDEX(DB_Sig_Int!$E$11:$E$10000,MATCH($E134,DB_Sig_Int!$C$11:$C$10000,0),1),IF(LEFT($D134,3)="Uns",INDEX(DB_Unsig_Int!$E$11:$E$10000,MATCH($E134,DB_Unsig_Int!$C$11:$C$10000,0),1),IF(LEFT($D134,3)="Mis",INDEX(DB_Misc!$E$11:$E$10000,MATCH($E134,DB_Misc!$C$11:$C$10000,0),1),"Error")))))) -> Error | J134: =IF(LEFT($D134,3)="Roa",INDEX(DB_Roadway!$D$11:$D$10000,MATCH($E134,DB_Roadway!$C$11:$C$10000,0),1),IF(LEFT($D134,3)="Bik",INDEX(DB_Bikeway!$D$11:$D$10000,MATCH($E134,DB_Bikeway!$C$11:$C$10000,0),1),IF(LEFT($D134,3)="Ped",INDEX(DB_Pedestrian!$D$11:$D$10000,MATCH($E134,DB_Pedestrian!$C$11:$C$10000,0),1),IF(LEFT($D134,3)="Sig",INDEX(DB_Sig_Int!$D$11:$D$10000,MATCH($E134,DB_Sig_Int!$C$11:$C$10000,0),1),IF(LEFT($D134,3)="Uns",INDEX(DB_Unsig_Int!$D$11:$D$10000,MATCH($E134,DB_Unsig_Int!$C$11:$C$10000,0),1),IF(LEFT($D134,3)="Mis",INDEX(DB_Misc!$D$11:$D$10000,MATCH($E134,DB_Misc!$C$11:$C$10000,0),1),"Error")))))) -> Error | K134: =IF(OR(C134="",D134=""),"",IF(C134<>C133,SUMIFS($G$11:$G$10000,$C$11:$C$10000,C134,DB_Segment!$D$11:$D$10000,"<>Misc",DB_Segment!$D$11:$D$10000,"<>Sig_Int",DB_Segment!$D$11:$D$10000,"<>Unsig_Int")/COUNTIFS($C$11:$C$10000,C134,DB_Segment!$D$11:$D$10000,"<>Misc",DB_Segment!$D$11:$D$10000,"<>Sig_Int",DB_Segment!$D$11:$D$10000,"<>Unsig_Int",DB_Segment!$D$11:$D$10000,"<>"),"")) -> 
F135: =IF(I135=0,J135,I135) -> Error | H135: =IF(D135="","Error",IF(OR(D135="Roadway",D135="Bikeway_1",D135="Bikeway_2",D135="Pedestrian_1",D135="Pedestrian_2"),F135*G135*5280,F135*G135)) -> Error | I135: =IF(LEFT($D135,3)="Roa",INDEX(DB_Roadway!$E$11:$E$10000,MATCH($E135,DB_Roadway!$C$11:$C$10000,0),1),IF(LEFT($D135,3)="Bik",INDEX(DB_Bikeway!$E$11:$E$10000,MATCH($E135,DB_Bikeway!$C$11:$C$10000,0),1),IF(LEFT($D135,3)="Ped",INDEX(DB_Pedestrian!$E$11:$E$10000,MATCH($E135,DB_Pedestrian!$C$11:$C$10000,0),1),IF(LEFT($D135,3)="Sig",INDEX(DB_Sig_Int!$E$11:$E$10000,MATCH($E135,DB_Sig_Int!$C$11:$C$10000,0),1),IF(LEFT($D135,3)="Uns",INDEX(DB_Unsig_Int!$E$11:$E$10000,MATCH($E135,DB_Unsig_Int!$C$11:$C$10000,0),1),IF(LEFT($D135,3)="Mis",INDEX(DB_Misc!$E$11:$E$10000,MATCH($E135,DB_Misc!$C$11:$C$10000,0),1),"Error")))))) -> Error | J135: =IF(LEFT($D135,3)="Roa",INDEX(DB_Roadway!$D$11:$D$10000,MATCH($E135,DB_Roadway!$C$11:$C$10000,0),1),IF(LEFT($D135,3)="Bik",INDEX(DB_Bikeway!$D$11:$D$10000,MATCH($E135,DB_Bikeway!$C$11:$C$10000,0),1),IF(LEFT($D135,3)="Ped",INDEX(DB_Pedestrian!$D$11:$D$10000,MATCH($E135,DB_Pedestrian!$C$11:$C$10000,0),1),IF(LEFT($D135,3)="Sig",INDEX(DB_Sig_Int!$D$11:$D$10000,MATCH($E135,DB_Sig_Int!$C$11:$C$10000,0),1),IF(LEFT($D135,3)="Uns",INDEX(DB_Unsig_Int!$D$11:$D$10000,MATCH($E135,DB_Unsig_Int!$C$11:$C$10000,0),1),IF(LEFT($D135,3)="Mis",INDEX(DB_Misc!$D$11:$D$10000,MATCH($E135,DB_Misc!$C$11:$C$10000,0),1),"Error")))))) -> Error | K135: =IF(OR(C135="",D135=""),"",IF(C135<>C134,SUMIFS($G$11:$G$10000,$C$11:$C$10000,C135,DB_Segment!$D$11:$D$10000,"<>Misc",DB_Segment!$D$11:$D$10000,"<>Sig_Int",DB_Segment!$D$11:$D$10000,"<>Unsig_Int")/COUNTIFS($C$11:$C$10000,C135,DB_Segment!$D$11:$D$10000,"<>Misc",DB_Segment!$D$11:$D$10000,"<>Sig_Int",DB_Segment!$D$11:$D$10000,"<>Unsig_Int",DB_Segment!$D$11:$D$10000,"<>"),"")) -> 
F136: =IF(I136=0,J136,I136) -> Error | H136: =IF(D136="","Error",IF(OR(D136="Roadway",D136="Bikeway_1",D136="Bikeway_2",D136="Pedestrian_1",D136="Pedestrian_2"),F136*G136*5280,F136*G136)) -> Error | I136: =IF(LEFT($D136,3)="Roa",INDEX(DB_Roadway!$E$11:$E$10000,MATCH($E136,DB_Roadway!$C$11:$C$10000,0),1),IF(LEFT($D136,3)="Bik",INDEX(DB_Bikeway!$E$11:$E$10000,MATCH($E136,DB_Bikeway!$C$11:$C$10000,0),1),IF(LEFT($D136,3)="Ped",INDEX(DB_Pedestrian!$E$11:$E$10000,MATCH($E136,DB_Pedestrian!$C$11:$C$10000,0),1),IF(LEFT($D136,3)="Sig",INDEX(DB_Sig_Int!$E$11:$E$10000,MATCH($E136,DB_Sig_Int!$C$11:$C$10000,0),1),IF(LEFT($D136,3)="Uns",INDEX(DB_Unsig_Int!$E$11:$E$10000,MATCH($E136,DB_Unsig_Int!$C$11:$C$10000,0),1),IF(LEFT($D136,3)="Mis",INDEX(DB_Misc!$E$11:$E$10000,MATCH($E136,DB_Misc!$C$11:$C$10000,0),1),"Error")))))) -> Error | J136: =IF(LEFT($D136,3)="Roa",INDEX(DB_Roadway!$D$11:$D$10000,MATCH($E136,DB_Roadway!$C$11:$C$10000,0),1),IF(LEFT($D136,3)="Bik",INDEX(DB_Bikeway!$D$11:$D$10000,MATCH($E136,DB_Bikeway!$C$11:$C$10000,0),1),IF(LEFT($D136,3)="Ped",INDEX(DB_Pedestrian!$D$11:$D$10000,MATCH($E136,DB_Pedestrian!$C$11:$C$10000,0),1),IF(LEFT($D136,3)="Sig",INDEX(DB_Sig_Int!$D$11:$D$10000,MATCH($E136,DB_Sig_Int!$C$11:$C$10000,0),1),IF(LEFT($D136,3)="Uns",INDEX(DB_Unsig_Int!$D$11:$D$10000,MATCH($E136,DB_Unsig_Int!$C$11:$C$10000,0),1),IF(LEFT($D136,3)="Mis",INDEX(DB_Misc!$D$11:$D$10000,MATCH($E136,DB_Misc!$C$11:$C$10000,0),1),"Error")))))) -> Error | K136: =IF(OR(C136="",D136=""),"",IF(C136<>C135,SUMIFS($G$11:$G$10000,$C$11:$C$10000,C136,DB_Segment!$D$11:$D$10000,"<>Misc",DB_Segment!$D$11:$D$10000,"<>Sig_Int",DB_Segment!$D$11:$D$10000,"<>Unsig_Int")/COUNTIFS($C$11:$C$10000,C136,DB_Segment!$D$11:$D$10000,"<>Misc",DB_Segment!$D$11:$D$10000,"<>Sig_Int",DB_Segment!$D$11:$D$10000,"<>Unsig_Int",DB_Segment!$D$11:$D$10000,"<>"),"")) -> 
F137: =IF(I137=0,J137,I137) -> Error | H137: =IF(D137="","Error",IF(OR(D137="Roadway",D137="Bikeway_1",D137="Bikeway_2",D137="Pedestrian_1",D137="Pedestrian_2"),F137*G137*5280,F137*G137)) -> Error | I137: =IF(LEFT($D137,3)="Roa",INDEX(DB_Roadway!$E$11:$E$10000,MATCH($E137,DB_Roadway!$C$11:$C$10000,0),1),IF(LEFT($D137,3)="Bik",INDEX(DB_Bikeway!$E$11:$E$10000,MATCH($E137,DB_Bikeway!$C$11:$C$10000,0),1),IF(LEFT($D137,3)="Ped",INDEX(DB_Pedestrian!$E$11:$E$10000,MATCH($E137,DB_Pedestrian!$C$11:$C$10000,0),1),IF(LEFT($D137,3)="Sig",INDEX(DB_Sig_Int!$E$11:$E$10000,MATCH($E137,DB_Sig_Int!$C$11:$C$10000,0),1),IF(LEFT($D137,3)="Uns",INDEX(DB_Unsig_Int!$E$11:$E$10000,MATCH($E137,DB_Unsig_Int!$C$11:$C$10000,0),1),IF(LEFT($D137,3)="Mis",INDEX(DB_Misc!$E$11:$E$10000,MATCH($E137,DB_Misc!$C$11:$C$10000,0),1),"Error")))))) -> Error | J137: =IF(LEFT($D137,3)="Roa",INDEX(DB_Roadway!$D$11:$D$10000,MATCH($E137,DB_Roadway!$C$11:$C$10000,0),1),IF(LEFT($D137,3)="Bik",INDEX(DB_Bikeway!$D$11:$D$10000,MATCH($E137,DB_Bikeway!$C$11:$C$10000,0),1),IF(LEFT($D137,3)="Ped",INDEX(DB_Pedestrian!$D$11:$D$10000,MATCH($E137,DB_Pedestrian!$C$11:$C$10000,0),1),IF(LEFT($D137,3)="Sig",INDEX(DB_Sig_Int!$D$11:$D$10000,MATCH($E137,DB_Sig_Int!$C$11:$C$10000,0),1),IF(LEFT($D137,3)="Uns",INDEX(DB_Unsig_Int!$D$11:$D$10000,MATCH($E137,DB_Unsig_Int!$C$11:$C$10000,0),1),IF(LEFT($D137,3)="Mis",INDEX(DB_Misc!$D$11:$D$10000,MATCH($E137,DB_Misc!$C$11:$C$10000,0),1),"Error")))))) -> Error | K137: =IF(OR(C137="",D137=""),"",IF(C137<>C136,SUMIFS($G$11:$G$10000,$C$11:$C$10000,C137,DB_Segment!$D$11:$D$10000,"<>Misc",DB_Segment!$D$11:$D$10000,"<>Sig_Int",DB_Segment!$D$11:$D$10000,"<>Unsig_Int")/COUNTIFS($C$11:$C$10000,C137,DB_Segment!$D$11:$D$10000,"<>Misc",DB_Segment!$D$11:$D$10000,"<>Sig_Int",DB_Segment!$D$11:$D$10000,"<>Unsig_Int",DB_Segment!$D$11:$D$10000,"<>"),"")) -> 
F138: =IF(I138=0,J138,I138) -> Error | H138: =IF(D138="","Error",IF(OR(D138="Roadway",D138="Bikeway_1",D138="Bikeway_2",D138="Pedestrian_1",D138="Pedestrian_2"),F138*G138*5280,F138*G138)) -> Error | I138: =IF(LEFT($D138,3)="Roa",INDEX(DB_Roadway!$E$11:$E$10000,MATCH($E138,DB_Roadway!$C$11:$C$10000,0),1),IF(LEFT($D138,3)="Bik",INDEX(DB_Bikeway!$E$11:$E$10000,MATCH($E138,DB_Bikeway!$C$11:$C$10000,0),1),IF(LEFT($D138,3)="Ped",INDEX(DB_Pedestrian!$E$11:$E$10000,MATCH($E138,DB_Pedestrian!$C$11:$C$10000,0),1),IF(LEFT($D138,3)="Sig",INDEX(DB_Sig_Int!$E$11:$E$10000,MATCH($E138,DB_Sig_Int!$C$11:$C$10000,0),1),IF(LEFT($D138,3)="Uns",INDEX(DB_Unsig_Int!$E$11:$E$10000,MATCH($E138,DB_Unsig_Int!$C$11:$C$10000,0),1),IF(LEFT($D138,3)="Mis",INDEX(DB_Misc!$E$11:$E$10000,MATCH($E138,DB_Misc!$C$11:$C$10000,0),1),"Error")))))) -> Error | J138: =IF(LEFT($D138,3)="Roa",INDEX(DB_Roadway!$D$11:$D$10000,MATCH($E138,DB_Roadway!$C$11:$C$10000,0),1),IF(LEFT($D138,3)="Bik",INDEX(DB_Bikeway!$D$11:$D$10000,MATCH($E138,DB_Bikeway!$C$11:$C$10000,0),1),IF(LEFT($D138,3)="Ped",INDEX(DB_Pedestrian!$D$11:$D$10000,MATCH($E138,DB_Pedestrian!$C$11:$C$10000,0),1),IF(LEFT($D138,3)="Sig",INDEX(DB_Sig_Int!$D$11:$D$10000,MATCH($E138,DB_Sig_Int!$C$11:$C$10000,0),1),IF(LEFT($D138,3)="Uns",INDEX(DB_Unsig_Int!$D$11:$D$10000,MATCH($E138,DB_Unsig_Int!$C$11:$C$10000,0),1),IF(LEFT($D138,3)="Mis",INDEX(DB_Misc!$D$11:$D$10000,MATCH($E138,DB_Misc!$C$11:$C$10000,0),1),"Error")))))) -> Error | K138: =IF(OR(C138="",D138=""),"",IF(C138<>C137,SUMIFS($G$11:$G$10000,$C$11:$C$10000,C138,DB_Segment!$D$11:$D$10000,"<>Misc",DB_Segment!$D$11:$D$10000,"<>Sig_Int",DB_Segment!$D$11:$D$10000,"<>Unsig_Int")/COUNTIFS($C$11:$C$10000,C138,DB_Segment!$D$11:$D$10000,"<>Misc",DB_Segment!$D$11:$D$10000,"<>Sig_Int",DB_Segment!$D$11:$D$10000,"<>Unsig_Int",DB_Segment!$D$11:$D$10000,"<>"),"")) -> 
F139: =IF(I139=0,J139,I139) -> Error | H139: =IF(D139="","Error",IF(OR(D139="Roadway",D139="Bikeway_1",D139="Bikeway_2",D139="Pedestrian_1",D139="Pedestrian_2"),F139*G139*5280,F139*G139)) -> Error | I139: =IF(LEFT($D139,3)="Roa",INDEX(DB_Roadway!$E$11:$E$10000,MATCH($E139,DB_Roadway!$C$11:$C$10000,0),1),IF(LEFT($D139,3)="Bik",INDEX(DB_Bikeway!$E$11:$E$10000,MATCH($E139,DB_Bikeway!$C$11:$C$10000,0),1),IF(LEFT($D139,3)="Ped",INDEX(DB_Pedestrian!$E$11:$E$10000,MATCH($E139,DB_Pedestrian!$C$11:$C$10000,0),1),IF(LEFT($D139,3)="Sig",INDEX(DB_Sig_Int!$E$11:$E$10000,MATCH($E139,DB_Sig_Int!$C$11:$C$10000,0),1),IF(LEFT($D139,3)="Uns",INDEX(DB_Unsig_Int!$E$11:$E$10000,MATCH($E139,DB_Unsig_Int!$C$11:$C$10000,0),1),IF(LEFT($D139,3)="Mis",INDEX(DB_Misc!$E$11:$E$10000,MATCH($E139,DB_Misc!$C$11:$C$10000,0),1),"Error")))))) -> Error | J139: =IF(LEFT($D139,3)="Roa",INDEX(DB_Roadway!$D$11:$D$10000,MATCH($E139,DB_Roadway!$C$11:$C$10000,0),1),IF(LEFT($D139,3)="Bik",INDEX(DB_Bikeway!$D$11:$D$10000,MATCH($E139,DB_Bikeway!$C$11:$C$10000,0),1),IF(LEFT($D139,3)="Ped",INDEX(DB_Pedestrian!$D$11:$D$10000,MATCH($E139,DB_Pedestrian!$C$11:$C$10000,0),1),IF(LEFT($D139,3)="Sig",INDEX(DB_Sig_Int!$D$11:$D$10000,MATCH($E139,DB_Sig_Int!$C$11:$C$10000,0),1),IF(LEFT($D139,3)="Uns",INDEX(DB_Unsig_Int!$D$11:$D$10000,MATCH($E139,DB_Unsig_Int!$C$11:$C$10000,0),1),IF(LEFT($D139,3)="Mis",INDEX(DB_Misc!$D$11:$D$10000,MATCH($E139,DB_Misc!$C$11:$C$10000,0),1),"Error")))))) -> Error | K139: =IF(OR(C139="",D139=""),"",IF(C139<>C138,SUMIFS($G$11:$G$10000,$C$11:$C$10000,C139,DB_Segment!$D$11:$D$10000,"<>Misc",DB_Segment!$D$11:$D$10000,"<>Sig_Int",DB_Segment!$D$11:$D$10000,"<>Unsig_Int")/COUNTIFS($C$11:$C$10000,C139,DB_Segment!$D$11:$D$10000,"<>Misc",DB_Segment!$D$11:$D$10000,"<>Sig_Int",DB_Segment!$D$11:$D$10000,"<>Unsig_Int",DB_Segment!$D$11:$D$10000,"<>"),"")) -> 
F140: =IF(I140=0,J140,I140) -> Error | H140: =IF(D140="","Error",IF(OR(D140="Roadway",D140="Bikeway_1",D140="Bikeway_2",D140="Pedestrian_1",D140="Pedestrian_2"),F140*G140*5280,F140*G140)) -> Error | I140: =IF(LEFT($D140,3)="Roa",INDEX(DB_Roadway!$E$11:$E$10000,MATCH($E140,DB_Roadway!$C$11:$C$10000,0),1),IF(LEFT($D140,3)="Bik",INDEX(DB_Bikeway!$E$11:$E$10000,MATCH($E140,DB_Bikeway!$C$11:$C$10000,0),1),IF(LEFT($D140,3)="Ped",INDEX(DB_Pedestrian!$E$11:$E$10000,MATCH($E140,DB_Pedestrian!$C$11:$C$10000,0),1),IF(LEFT($D140,3)="Sig",INDEX(DB_Sig_Int!$E$11:$E$10000,MATCH($E140,DB_Sig_Int!$C$11:$C$10000,0),1),IF(LEFT($D140,3)="Uns",INDEX(DB_Unsig_Int!$E$11:$E$10000,MATCH($E140,DB_Unsig_Int!$C$11:$C$10000,0),1),IF(LEFT($D140,3)="Mis",INDEX(DB_Misc!$E$11:$E$10000,MATCH($E140,DB_Misc!$C$11:$C$10000,0),1),"Error")))))) -> Error | J140: =IF(LEFT($D140,3)="Roa",INDEX(DB_Roadway!$D$11:$D$10000,MATCH($E140,DB_Roadway!$C$11:$C$10000,0),1),IF(LEFT($D140,3)="Bik",INDEX(DB_Bikeway!$D$11:$D$10000,MATCH($E140,DB_Bikeway!$C$11:$C$10000,0),1),IF(LEFT($D140,3)="Ped",INDEX(DB_Pedestrian!$D$11:$D$10000,MATCH($E140,DB_Pedestrian!$C$11:$C$10000,0),1),IF(LEFT($D140,3)="Sig",INDEX(DB_Sig_Int!$D$11:$D$10000,MATCH($E140,DB_Sig_Int!$C$11:$C$10000,0),1),IF(LEFT($D140,3)="Uns",INDEX(DB_Unsig_Int!$D$11:$D$10000,MATCH($E140,DB_Unsig_Int!$C$11:$C$10000,0),1),IF(LEFT($D140,3)="Mis",INDEX(DB_Misc!$D$11:$D$10000,MATCH($E140,DB_Misc!$C$11:$C$10000,0),1),"Error")))))) -> Error | K140: =IF(OR(C140="",D140=""),"",IF(C140<>C139,SUMIFS($G$11:$G$10000,$C$11:$C$10000,C140,DB_Segment!$D$11:$D$10000,"<>Misc",DB_Segment!$D$11:$D$10000,"<>Sig_Int",DB_Segment!$D$11:$D$10000,"<>Unsig_Int")/COUNTIFS($C$11:$C$10000,C140,DB_Segment!$D$11:$D$10000,"<>Misc",DB_Segment!$D$11:$D$10000,"<>Sig_Int",DB_Segment!$D$11:$D$10000,"<>Unsig_Int",DB_Segment!$D$11:$D$10000,"<>"),"")) -> 
F141: =IF(I141=0,J141,I141) -> Error | H141: =IF(D141="","Error",IF(OR(D141="Roadway",D141="Bikeway_1",D141="Bikeway_2",D141="Pedestrian_1",D141="Pedestrian_2"),F141*G141*5280,F141*G141)) -> Error | I141: =IF(LEFT($D141,3)="Roa",INDEX(DB_Roadway!$E$11:$E$10000,MATCH($E141,DB_Roadway!$C$11:$C$10000,0),1),IF(LEFT($D141,3)="Bik",INDEX(DB_Bikeway!$E$11:$E$10000,MATCH($E141,DB_Bikeway!$C$11:$C$10000,0),1),IF(LEFT($D141,3)="Ped",INDEX(DB_Pedestrian!$E$11:$E$10000,MATCH($E141,DB_Pedestrian!$C$11:$C$10000,0),1),IF(LEFT($D141,3)="Sig",INDEX(DB_Sig_Int!$E$11:$E$10000,MATCH($E141,DB_Sig_Int!$C$11:$C$10000,0),1),IF(LEFT($D141,3)="Uns",INDEX(DB_Unsig_Int!$E$11:$E$10000,MATCH($E141,DB_Unsig_Int!$C$11:$C$10000,0),1),IF(LEFT($D141,3)="Mis",INDEX(DB_Misc!$E$11:$E$10000,MATCH($E141,DB_Misc!$C$11:$C$10000,0),1),"Error")))))) -> Error | J141: =IF(LEFT($D141,3)="Roa",INDEX(DB_Roadway!$D$11:$D$10000,MATCH($E141,DB_Roadway!$C$11:$C$10000,0),1),IF(LEFT($D141,3)="Bik",INDEX(DB_Bikeway!$D$11:$D$10000,MATCH($E141,DB_Bikeway!$C$11:$C$10000,0),1),IF(LEFT($D141,3)="Ped",INDEX(DB_Pedestrian!$D$11:$D$10000,MATCH($E141,DB_Pedestrian!$C$11:$C$10000,0),1),IF(LEFT($D141,3)="Sig",INDEX(DB_Sig_Int!$D$11:$D$10000,MATCH($E141,DB_Sig_Int!$C$11:$C$10000,0),1),IF(LEFT($D141,3)="Uns",INDEX(DB_Unsig_Int!$D$11:$D$10000,MATCH($E141,DB_Unsig_Int!$C$11:$C$10000,0),1),IF(LEFT($D141,3)="Mis",INDEX(DB_Misc!$D$11:$D$10000,MATCH($E141,DB_Misc!$C$11:$C$10000,0),1),"Error")))))) -> Error | K141: =IF(OR(C141="",D141=""),"",IF(C141<>C140,SUMIFS($G$11:$G$10000,$C$11:$C$10000,C141,DB_Segment!$D$11:$D$10000,"<>Misc",DB_Segment!$D$11:$D$10000,"<>Sig_Int",DB_Segment!$D$11:$D$10000,"<>Unsig_Int")/COUNTIFS($C$11:$C$10000,C141,DB_Segment!$D$11:$D$10000,"<>Misc",DB_Segment!$D$11:$D$10000,"<>Sig_Int",DB_Segment!$D$11:$D$10000,"<>Unsig_Int",DB_Segment!$D$11:$D$10000,"<>"),"")) -> 
F142: =IF(I142=0,J142,I142) -> Error | H142: =IF(D142="","Error",IF(OR(D142="Roadway",D142="Bikeway_1",D142="Bikeway_2",D142="Pedestrian_1",D142="Pedestrian_2"),F142*G142*5280,F142*G142)) -> Error | I142: =IF(LEFT($D142,3)="Roa",INDEX(DB_Roadway!$E$11:$E$10000,MATCH($E142,DB_Roadway!$C$11:$C$10000,0),1),IF(LEFT($D142,3)="Bik",INDEX(DB_Bikeway!$E$11:$E$10000,MATCH($E142,DB_Bikeway!$C$11:$C$10000,0),1),IF(LEFT($D142,3)="Ped",INDEX(DB_Pedestrian!$E$11:$E$10000,MATCH($E142,DB_Pedestrian!$C$11:$C$10000,0),1),IF(LEFT($D142,3)="Sig",INDEX(DB_Sig_Int!$E$11:$E$10000,MATCH($E142,DB_Sig_Int!$C$11:$C$10000,0),1),IF(LEFT($D142,3)="Uns",INDEX(DB_Unsig_Int!$E$11:$E$10000,MATCH($E142,DB_Unsig_Int!$C$11:$C$10000,0),1),IF(LEFT($D142,3)="Mis",INDEX(DB_Misc!$E$11:$E$10000,MATCH($E142,DB_Misc!$C$11:$C$10000,0),1),"Error")))))) -> Error | J142: =IF(LEFT($D142,3)="Roa",INDEX(DB_Roadway!$D$11:$D$10000,MATCH($E142,DB_Roadway!$C$11:$C$10000,0),1),IF(LEFT($D142,3)="Bik",INDEX(DB_Bikeway!$D$11:$D$10000,MATCH($E142,DB_Bikeway!$C$11:$C$10000,0),1),IF(LEFT($D142,3)="Ped",INDEX(DB_Pedestrian!$D$11:$D$10000,MATCH($E142,DB_Pedestrian!$C$11:$C$10000,0),1),IF(LEFT($D142,3)="Sig",INDEX(DB_Sig_Int!$D$11:$D$10000,MATCH($E142,DB_Sig_Int!$C$11:$C$10000,0),1),IF(LEFT($D142,3)="Uns",INDEX(DB_Unsig_Int!$D$11:$D$10000,MATCH($E142,DB_Unsig_Int!$C$11:$C$10000,0),1),IF(LEFT($D142,3)="Mis",INDEX(DB_Misc!$D$11:$D$10000,MATCH($E142,DB_Misc!$C$11:$C$10000,0),1),"Error")))))) -> Error | K142: =IF(OR(C142="",D142=""),"",IF(C142<>C141,SUMIFS($G$11:$G$10000,$C$11:$C$10000,C142,DB_Segment!$D$11:$D$10000,"<>Misc",DB_Segment!$D$11:$D$10000,"<>Sig_Int",DB_Segment!$D$11:$D$10000,"<>Unsig_Int")/COUNTIFS($C$11:$C$10000,C142,DB_Segment!$D$11:$D$10000,"<>Misc",DB_Segment!$D$11:$D$10000,"<>Sig_Int",DB_Segment!$D$11:$D$10000,"<>Unsig_Int",DB_Segment!$D$11:$D$10000,"<>"),"")) -> 
F143: =IF(I143=0,J143,I143) -> Error | H143: =IF(D143="","Error",IF(OR(D143="Roadway",D143="Bikeway_1",D143="Bikeway_2",D143="Pedestrian_1",D143="Pedestrian_2"),F143*G143*5280,F143*G143)) -> Error | I143: =IF(LEFT($D143,3)="Roa",INDEX(DB_Roadway!$E$11:$E$10000,MATCH($E143,DB_Roadway!$C$11:$C$10000,0),1),IF(LEFT($D143,3)="Bik",INDEX(DB_Bikeway!$E$11:$E$10000,MATCH($E143,DB_Bikeway!$C$11:$C$10000,0),1),IF(LEFT($D143,3)="Ped",INDEX(DB_Pedestrian!$E$11:$E$10000,MATCH($E143,DB_Pedestrian!$C$11:$C$10000,0),1),IF(LEFT($D143,3)="Sig",INDEX(DB_Sig_Int!$E$11:$E$10000,MATCH($E143,DB_Sig_Int!$C$11:$C$10000,0),1),IF(LEFT($D143,3)="Uns",INDEX(DB_Unsig_Int!$E$11:$E$10000,MATCH($E143,DB_Unsig_Int!$C$11:$C$10000,0),1),IF(LEFT($D143,3)="Mis",INDEX(DB_Misc!$E$11:$E$10000,MATCH($E143,DB_Misc!$C$11:$C$10000,0),1),"Error")))))) -> Error | J143: =IF(LEFT($D143,3)="Roa",INDEX(DB_Roadway!$D$11:$D$10000,MATCH($E143,DB_Roadway!$C$11:$C$10000,0),1),IF(LEFT($D143,3)="Bik",INDEX(DB_Bikeway!$D$11:$D$10000,MATCH($E143,DB_Bikeway!$C$11:$C$10000,0),1),IF(LEFT($D143,3)="Ped",INDEX(DB_Pedestrian!$D$11:$D$10000,MATCH($E143,DB_Pedestrian!$C$11:$C$10000,0),1),IF(LEFT($D143,3)="Sig",INDEX(DB_Sig_Int!$D$11:$D$10000,MATCH($E143,DB_Sig_Int!$C$11:$C$10000,0),1),IF(LEFT($D143,3)="Uns",INDEX(DB_Unsig_Int!$D$11:$D$10000,MATCH($E143,DB_Unsig_Int!$C$11:$C$10000,0),1),IF(LEFT($D143,3)="Mis",INDEX(DB_Misc!$D$11:$D$10000,MATCH($E143,DB_Misc!$C$11:$C$10000,0),1),"Error")))))) -> Error | K143: =IF(OR(C143="",D143=""),"",IF(C143<>C142,SUMIFS($G$11:$G$10000,$C$11:$C$10000,C143,DB_Segment!$D$11:$D$10000,"<>Misc",DB_Segment!$D$11:$D$10000,"<>Sig_Int",DB_Segment!$D$11:$D$10000,"<>Unsig_Int")/COUNTIFS($C$11:$C$10000,C143,DB_Segment!$D$11:$D$10000,"<>Misc",DB_Segment!$D$11:$D$10000,"<>Sig_Int",DB_Segment!$D$11:$D$10000,"<>Unsig_Int",DB_Segment!$D$11:$D$10000,"<>"),"")) -> 
F144: =IF(I144=0,J144,I144) -> Error | H144: =IF(D144="","Error",IF(OR(D144="Roadway",D144="Bikeway_1",D144="Bikeway_2",D144="Pedestrian_1",D144="Pedestrian_2"),F144*G144*5280,F144*G144)) -> Error | I144: =IF(LEFT($D144,3)="Roa",INDEX(DB_Roadway!$E$11:$E$10000,MATCH($E144,DB_Roadway!$C$11:$C$10000,0),1),IF(LEFT($D144,3)="Bik",INDEX(DB_Bikeway!$E$11:$E$10000,MATCH($E144,DB_Bikeway!$C$11:$C$10000,0),1),IF(LEFT($D144,3)="Ped",INDEX(DB_Pedestrian!$E$11:$E$10000,MATCH($E144,DB_Pedestrian!$C$11:$C$10000,0),1),IF(LEFT($D144,3)="Sig",INDEX(DB_Sig_Int!$E$11:$E$10000,MATCH($E144,DB_Sig_Int!$C$11:$C$10000,0),1),IF(LEFT($D144,3)="Uns",INDEX(DB_Unsig_Int!$E$11:$E$10000,MATCH($E144,DB_Unsig_Int!$C$11:$C$10000,0),1),IF(LEFT($D144,3)="Mis",INDEX(DB_Misc!$E$11:$E$10000,MATCH($E144,DB_Misc!$C$11:$C$10000,0),1),"Error")))))) -> Error | J144: =IF(LEFT($D144,3)="Roa",INDEX(DB_Roadway!$D$11:$D$10000,MATCH($E144,DB_Roadway!$C$11:$C$10000,0),1),IF(LEFT($D144,3)="Bik",INDEX(DB_Bikeway!$D$11:$D$10000,MATCH($E144,DB_Bikeway!$C$11:$C$10000,0),1),IF(LEFT($D144,3)="Ped",INDEX(DB_Pedestrian!$D$11:$D$10000,MATCH($E144,DB_Pedestrian!$C$11:$C$10000,0),1),IF(LEFT($D144,3)="Sig",INDEX(DB_Sig_Int!$D$11:$D$10000,MATCH($E144,DB_Sig_Int!$C$11:$C$10000,0),1),IF(LEFT($D144,3)="Uns",INDEX(DB_Unsig_Int!$D$11:$D$10000,MATCH($E144,DB_Unsig_Int!$C$11:$C$10000,0),1),IF(LEFT($D144,3)="Mis",INDEX(DB_Misc!$D$11:$D$10000,MATCH($E144,DB_Misc!$C$11:$C$10000,0),1),"Error")))))) -> Error | K144: =IF(OR(C144="",D144=""),"",IF(C144<>C143,SUMIFS($G$11:$G$10000,$C$11:$C$10000,C144,DB_Segment!$D$11:$D$10000,"<>Misc",DB_Segment!$D$11:$D$10000,"<>Sig_Int",DB_Segment!$D$11:$D$10000,"<>Unsig_Int")/COUNTIFS($C$11:$C$10000,C144,DB_Segment!$D$11:$D$10000,"<>Misc",DB_Segment!$D$11:$D$10000,"<>Sig_Int",DB_Segment!$D$11:$D$10000,"<>Unsig_Int",DB_Segment!$D$11:$D$10000,"<>"),"")) -> 
F145: =IF(I145=0,J145,I145) -> Error | H145: =IF(D145="","Error",IF(OR(D145="Roadway",D145="Bikeway_1",D145="Bikeway_2",D145="Pedestrian_1",D145="Pedestrian_2"),F145*G145*5280,F145*G145)) -> Error | I145: =IF(LEFT($D145,3)="Roa",INDEX(DB_Roadway!$E$11:$E$10000,MATCH($E145,DB_Roadway!$C$11:$C$10000,0),1),IF(LEFT($D145,3)="Bik",INDEX(DB_Bikeway!$E$11:$E$10000,MATCH($E145,DB_Bikeway!$C$11:$C$10000,0),1),IF(LEFT($D145,3)="Ped",INDEX(DB_Pedestrian!$E$11:$E$10000,MATCH($E145,DB_Pedestrian!$C$11:$C$10000,0),1),IF(LEFT($D145,3)="Sig",INDEX(DB_Sig_Int!$E$11:$E$10000,MATCH($E145,DB_Sig_Int!$C$11:$C$10000,0),1),IF(LEFT($D145,3)="Uns",INDEX(DB_Unsig_Int!$E$11:$E$10000,MATCH($E145,DB_Unsig_Int!$C$11:$C$10000,0),1),IF(LEFT($D145,3)="Mis",INDEX(DB_Misc!$E$11:$E$10000,MATCH($E145,DB_Misc!$C$11:$C$10000,0),1),"Error")))))) -> Error | J145: =IF(LEFT($D145,3)="Roa",INDEX(DB_Roadway!$D$11:$D$10000,MATCH($E145,DB_Roadway!$C$11:$C$10000,0),1),IF(LEFT($D145,3)="Bik",INDEX(DB_Bikeway!$D$11:$D$10000,MATCH($E145,DB_Bikeway!$C$11:$C$10000,0),1),IF(LEFT($D145,3)="Ped",INDEX(DB_Pedestrian!$D$11:$D$10000,MATCH($E145,DB_Pedestrian!$C$11:$C$10000,0),1),IF(LEFT($D145,3)="Sig",INDEX(DB_Sig_Int!$D$11:$D$10000,MATCH($E145,DB_Sig_Int!$C$11:$C$10000,0),1),IF(LEFT($D145,3)="Uns",INDEX(DB_Unsig_Int!$D$11:$D$10000,MATCH($E145,DB_Unsig_Int!$C$11:$C$10000,0),1),IF(LEFT($D145,3)="Mis",INDEX(DB_Misc!$D$11:$D$10000,MATCH($E145,DB_Misc!$C$11:$C$10000,0),1),"Error")))))) -> Error | K145: =IF(OR(C145="",D145=""),"",IF(C145<>C144,SUMIFS($G$11:$G$10000,$C$11:$C$10000,C145,DB_Segment!$D$11:$D$10000,"<>Misc",DB_Segment!$D$11:$D$10000,"<>Sig_Int",DB_Segment!$D$11:$D$10000,"<>Unsig_Int")/COUNTIFS($C$11:$C$10000,C145,DB_Segment!$D$11:$D$10000,"<>Misc",DB_Segment!$D$11:$D$10000,"<>Sig_Int",DB_Segment!$D$11:$D$10000,"<>Unsig_Int",DB_Segment!$D$11:$D$10000,"<>"),"")) -> 
F146: =IF(I146=0,J146,I146) -> Error | H146: =IF(D146="","Error",IF(OR(D146="Roadway",D146="Bikeway_1",D146="Bikeway_2",D146="Pedestrian_1",D146="Pedestrian_2"),F146*G146*5280,F146*G146)) -> Error | I146: =IF(LEFT($D146,3)="Roa",INDEX(DB_Roadway!$E$11:$E$10000,MATCH($E146,DB_Roadway!$C$11:$C$10000,0),1),IF(LEFT($D146,3)="Bik",INDEX(DB_Bikeway!$E$11:$E$10000,MATCH($E146,DB_Bikeway!$C$11:$C$10000,0),1),IF(LEFT($D146,3)="Ped",INDEX(DB_Pedestrian!$E$11:$E$10000,MATCH($E146,DB_Pedestrian!$C$11:$C$10000,0),1),IF(LEFT($D146,3)="Sig",INDEX(DB_Sig_Int!$E$11:$E$10000,MATCH($E146,DB_Sig_Int!$C$11:$C$10000,0),1),IF(LEFT($D146,3)="Uns",INDEX(DB_Unsig_Int!$E$11:$E$10000,MATCH($E146,DB_Unsig_Int!$C$11:$C$10000,0),1),IF(LEFT($D146,3)="Mis",INDEX(DB_Misc!$E$11:$E$10000,MATCH($E146,DB_Misc!$C$11:$C$10000,0),1),"Error")))))) -> Error | J146: =IF(LEFT($D146,3)="Roa",INDEX(DB_Roadway!$D$11:$D$10000,MATCH($E146,DB_Roadway!$C$11:$C$10000,0),1),IF(LEFT($D146,3)="Bik",INDEX(DB_Bikeway!$D$11:$D$10000,MATCH($E146,DB_Bikeway!$C$11:$C$10000,0),1),IF(LEFT($D146,3)="Ped",INDEX(DB_Pedestrian!$D$11:$D$10000,MATCH($E146,DB_Pedestrian!$C$11:$C$10000,0),1),IF(LEFT($D146,3)="Sig",INDEX(DB_Sig_Int!$D$11:$D$10000,MATCH($E146,DB_Sig_Int!$C$11:$C$10000,0),1),IF(LEFT($D146,3)="Uns",INDEX(DB_Unsig_Int!$D$11:$D$10000,MATCH($E146,DB_Unsig_Int!$C$11:$C$10000,0),1),IF(LEFT($D146,3)="Mis",INDEX(DB_Misc!$D$11:$D$10000,MATCH($E146,DB_Misc!$C$11:$C$10000,0),1),"Error")))))) -> Error | K146: =IF(OR(C146="",D146=""),"",IF(C146<>C145,SUMIFS($G$11:$G$10000,$C$11:$C$10000,C146,DB_Segment!$D$11:$D$10000,"<>Misc",DB_Segment!$D$11:$D$10000,"<>Sig_Int",DB_Segment!$D$11:$D$10000,"<>Unsig_Int")/COUNTIFS($C$11:$C$10000,C146,DB_Segment!$D$11:$D$10000,"<>Misc",DB_Segment!$D$11:$D$10000,"<>Sig_Int",DB_Segment!$D$11:$D$10000,"<>Unsig_Int",DB_Segment!$D$11:$D$10000,"<>"),"")) -> 
F147: =IF(I147=0,J147,I147) -> Error | H147: =IF(D147="","Error",IF(OR(D147="Roadway",D147="Bikeway_1",D147="Bikeway_2",D147="Pedestrian_1",D147="Pedestrian_2"),F147*G147*5280,F147*G147)) -> Error | I147: =IF(LEFT($D147,3)="Roa",INDEX(DB_Roadway!$E$11:$E$10000,MATCH($E147,DB_Roadway!$C$11:$C$10000,0),1),IF(LEFT($D147,3)="Bik",INDEX(DB_Bikeway!$E$11:$E$10000,MATCH($E147,DB_Bikeway!$C$11:$C$10000,0),1),IF(LEFT($D147,3)="Ped",INDEX(DB_Pedestrian!$E$11:$E$10000,MATCH($E147,DB_Pedestrian!$C$11:$C$10000,0),1),IF(LEFT($D147,3)="Sig",INDEX(DB_Sig_Int!$E$11:$E$10000,MATCH($E147,DB_Sig_Int!$C$11:$C$10000,0),1),IF(LEFT($D147,3)="Uns",INDEX(DB_Unsig_Int!$E$11:$E$10000,MATCH($E147,DB_Unsig_Int!$C$11:$C$10000,0),1),IF(LEFT($D147,3)="Mis",INDEX(DB_Misc!$E$11:$E$10000,MATCH($E147,DB_Misc!$C$11:$C$10000,0),1),"Error")))))) -> Error | J147: =IF(LEFT($D147,3)="Roa",INDEX(DB_Roadway!$D$11:$D$10000,MATCH($E147,DB_Roadway!$C$11:$C$10000,0),1),IF(LEFT($D147,3)="Bik",INDEX(DB_Bikeway!$D$11:$D$10000,MATCH($E147,DB_Bikeway!$C$11:$C$10000,0),1),IF(LEFT($D147,3)="Ped",INDEX(DB_Pedestrian!$D$11:$D$10000,MATCH($E147,DB_Pedestrian!$C$11:$C$10000,0),1),IF(LEFT($D147,3)="Sig",INDEX(DB_Sig_Int!$D$11:$D$10000,MATCH($E147,DB_Sig_Int!$C$11:$C$10000,0),1),IF(LEFT($D147,3)="Uns",INDEX(DB_Unsig_Int!$D$11:$D$10000,MATCH($E147,DB_Unsig_Int!$C$11:$C$10000,0),1),IF(LEFT($D147,3)="Mis",INDEX(DB_Misc!$D$11:$D$10000,MATCH($E147,DB_Misc!$C$11:$C$10000,0),1),"Error")))))) -> Error | K147: =IF(OR(C147="",D147=""),"",IF(C147<>C146,SUMIFS($G$11:$G$10000,$C$11:$C$10000,C147,DB_Segment!$D$11:$D$10000,"<>Misc",DB_Segment!$D$11:$D$10000,"<>Sig_Int",DB_Segment!$D$11:$D$10000,"<>Unsig_Int")/COUNTIFS($C$11:$C$10000,C147,DB_Segment!$D$11:$D$10000,"<>Misc",DB_Segment!$D$11:$D$10000,"<>Sig_Int",DB_Segment!$D$11:$D$10000,"<>Unsig_Int",DB_Segment!$D$11:$D$10000,"<>"),"")) -> 
F148: =IF(I148=0,J148,I148) -> Error | H148: =IF(D148="","Error",IF(OR(D148="Roadway",D148="Bikeway_1",D148="Bikeway_2",D148="Pedestrian_1",D148="Pedestrian_2"),F148*G148*5280,F148*G148)) -> Error | I148: =IF(LEFT($D148,3)="Roa",INDEX(DB_Roadway!$E$11:$E$10000,MATCH($E148,DB_Roadway!$C$11:$C$10000,0),1),IF(LEFT($D148,3)="Bik",INDEX(DB_Bikeway!$E$11:$E$10000,MATCH($E148,DB_Bikeway!$C$11:$C$10000,0),1),IF(LEFT($D148,3)="Ped",INDEX(DB_Pedestrian!$E$11:$E$10000,MATCH($E148,DB_Pedestrian!$C$11:$C$10000,0),1),IF(LEFT($D148,3)="Sig",INDEX(DB_Sig_Int!$E$11:$E$10000,MATCH($E148,DB_Sig_Int!$C$11:$C$10000,0),1),IF(LEFT($D148,3)="Uns",INDEX(DB_Unsig_Int!$E$11:$E$10000,MATCH($E148,DB_Unsig_Int!$C$11:$C$10000,0),1),IF(LEFT($D148,3)="Mis",INDEX(DB_Misc!$E$11:$E$10000,MATCH($E148,DB_Misc!$C$11:$C$10000,0),1),"Error")))))) -> Error | J148: =IF(LEFT($D148,3)="Roa",INDEX(DB_Roadway!$D$11:$D$10000,MATCH($E148,DB_Roadway!$C$11:$C$10000,0),1),IF(LEFT($D148,3)="Bik",INDEX(DB_Bikeway!$D$11:$D$10000,MATCH($E148,DB_Bikeway!$C$11:$C$10000,0),1),IF(LEFT($D148,3)="Ped",INDEX(DB_Pedestrian!$D$11:$D$10000,MATCH($E148,DB_Pedestrian!$C$11:$C$10000,0),1),IF(LEFT($D148,3)="Sig",INDEX(DB_Sig_Int!$D$11:$D$10000,MATCH($E148,DB_Sig_Int!$C$11:$C$10000,0),1),IF(LEFT($D148,3)="Uns",INDEX(DB_Unsig_Int!$D$11:$D$10000,MATCH($E148,DB_Unsig_Int!$C$11:$C$10000,0),1),IF(LEFT($D148,3)="Mis",INDEX(DB_Misc!$D$11:$D$10000,MATCH($E148,DB_Misc!$C$11:$C$10000,0),1),"Error")))))) -> Error | K148: =IF(OR(C148="",D148=""),"",IF(C148<>C147,SUMIFS($G$11:$G$10000,$C$11:$C$10000,C148,DB_Segment!$D$11:$D$10000,"<>Misc",DB_Segment!$D$11:$D$10000,"<>Sig_Int",DB_Segment!$D$11:$D$10000,"<>Unsig_Int")/COUNTIFS($C$11:$C$10000,C148,DB_Segment!$D$11:$D$10000,"<>Misc",DB_Segment!$D$11:$D$10000,"<>Sig_Int",DB_Segment!$D$11:$D$10000,"<>Unsig_Int",DB_Segment!$D$11:$D$10000,"<>"),"")) -> 
F149: =IF(I149=0,J149,I149) -> Error | H149: =IF(D149="","Error",IF(OR(D149="Roadway",D149="Bikeway_1",D149="Bikeway_2",D149="Pedestrian_1",D149="Pedestrian_2"),F149*G149*5280,F149*G149)) -> Error | I149: =IF(LEFT($D149,3)="Roa",INDEX(DB_Roadway!$E$11:$E$10000,MATCH($E149,DB_Roadway!$C$11:$C$10000,0),1),IF(LEFT($D149,3)="Bik",INDEX(DB_Bikeway!$E$11:$E$10000,MATCH($E149,DB_Bikeway!$C$11:$C$10000,0),1),IF(LEFT($D149,3)="Ped",INDEX(DB_Pedestrian!$E$11:$E$10000,MATCH($E149,DB_Pedestrian!$C$11:$C$10000,0),1),IF(LEFT($D149,3)="Sig",INDEX(DB_Sig_Int!$E$11:$E$10000,MATCH($E149,DB_Sig_Int!$C$11:$C$10000,0),1),IF(LEFT($D149,3)="Uns",INDEX(DB_Unsig_Int!$E$11:$E$10000,MATCH($E149,DB_Unsig_Int!$C$11:$C$10000,0),1),IF(LEFT($D149,3)="Mis",INDEX(DB_Misc!$E$11:$E$10000,MATCH($E149,DB_Misc!$C$11:$C$10000,0),1),"Error")))))) -> Error | J149: =IF(LEFT($D149,3)="Roa",INDEX(DB_Roadway!$D$11:$D$10000,MATCH($E149,DB_Roadway!$C$11:$C$10000,0),1),IF(LEFT($D149,3)="Bik",INDEX(DB_Bikeway!$D$11:$D$10000,MATCH($E149,DB_Bikeway!$C$11:$C$10000,0),1),IF(LEFT($D149,3)="Ped",INDEX(DB_Pedestrian!$D$11:$D$10000,MATCH($E149,DB_Pedestrian!$C$11:$C$10000,0),1),IF(LEFT($D149,3)="Sig",INDEX(DB_Sig_Int!$D$11:$D$10000,MATCH($E149,DB_Sig_Int!$C$11:$C$10000,0),1),IF(LEFT($D149,3)="Uns",INDEX(DB_Unsig_Int!$D$11:$D$10000,MATCH($E149,DB_Unsig_Int!$C$11:$C$10000,0),1),IF(LEFT($D149,3)="Mis",INDEX(DB_Misc!$D$11:$D$10000,MATCH($E149,DB_Misc!$C$11:$C$10000,0),1),"Error")))))) -> Error | K149: =IF(OR(C149="",D149=""),"",IF(C149<>C148,SUMIFS($G$11:$G$10000,$C$11:$C$10000,C149,DB_Segment!$D$11:$D$10000,"<>Misc",DB_Segment!$D$11:$D$10000,"<>Sig_Int",DB_Segment!$D$11:$D$10000,"<>Unsig_Int")/COUNTIFS($C$11:$C$10000,C149,DB_Segment!$D$11:$D$10000,"<>Misc",DB_Segment!$D$11:$D$10000,"<>Sig_Int",DB_Segment!$D$11:$D$10000,"<>Unsig_Int",DB_Segment!$D$11:$D$10000,"<>"),"")) -> 
